Workbook

Sheet ورقة1
A1: إدارة | C1: الشهداء التعليمية | D1: بيانات العاملين
A2: مدرسة | C2: الادارة | D2: الاستمارة | L2: صمم هذا البرنامج اخوكم فى الله أ/محمد محمد عبد الله عبد الصمد رئيس قسم التدريب بادارة الشهداء نسألكم الدعاء بظاهرالغيب
A3: شهر | C3: مارس 2018 | D3: خلف الاستمارة
A4: مدير المدرسة | C4: محمد | D4: فردية
A5: سنة | C5: 2018 | D5: خلف فردية
A6: مسئول المرتبات
L7: يجب توزيع عدد العاملين على مجموعة من الكشوف بواقع 25 عامل للكشف على أن يكون كشف التجميعه من ضمن الكشوف فمثلا 50 عامل توزع 25كشف 1 و23 للكشف 2 وعدد 2عامل لكشف التجميعة ،خانة التوقيع بالاستلام اكتب فيها رقم العامل الموجودفى البيانات ، تأكد من عدم وجود بيانات فى الكشوف الغير مستعمله وذلكبالذهاب للكشف والضغطعلى مفتاحمسح البيانات فى يسار الكشف
K9: aya6672

Sheet العاملين
H1: استحقاقات | AP1: استقطاعات | BL1: الخلايا الحمراء لا تدخل بها بيانات فهى تحسب نفسها
A2: م | B2: الاســــــــــــم | C2: نقابي | D2: نقابى /غيرنقابى | E2: الحالة الاجتماعية | F2: اكتب 1 للحاصل على ال 33% | H2: الوظيفة | I2: المرتب الذى يحسب عليه الكادر | J2: المرتب الاساسي | K2: علاوة 2012 | L2: علاوة 2013 | M2: علاوة 2014 | N2: علاةة 2015 | O2: علاوة 2016 | P2: ع اجتماعية | Q2: ع اجتماعيةاضافية | R2: أعباء وظيفية | S2: بدل نظارة | T2: حافز مدير | U2: بدل تفرغ | V2: بدل تجاريين | W2: بدل عدوي | X2: حافز ماجستير | Y2: حافزدكتوراة | Z2: بدل تسكين | AA2: الحدالادنى | AB2: اكتب ما تشاء | AC2: اكتب ما تشاء | AD2: اكتب ما تشاء | AE2: اكتب ما تشاء | AF2: اكتب ما تشاء | AG2: اكتب ما تشاء | AH2: اكتب ما تشاء | AI2: اكتب ما تشاء | AJ2: نقابة اجتماعية | AK2: نقابة تطبيقين | AL2: رابطه | AM2: ضريبة الدخل | AN2: دمغة عادية | AO2: دمغة نسبيه | AP2: أرباب عهد | AQ2: خدمات عمالية | AR2: نقابة بحث علمى 5% | AS2: اقساط بنوك | AX2: نصف العلاوة | AY2: ايرادات تربيةوتعليم | AZ2: انقطاع | BA2: للحالات خاصة فقط | BL2: منحة | BM2: بدل معلم اضافى | BN2: بدل معلم | BO2: بدل اعتماد | BP2: حافز 25 % | BQ2: حافز أداء | BR2: الـ91.5 | BS2: ال50% | BT2: ال 33% | BU2: الحد الادنى | CE2: الوظيفة
G3: الرقم القومى | AS3: ناصر | AT3: القاهرة | AU3: الاهلى | AV3: اكتب ما تشاء | AW3: اكتب اسم البنك | BA3: زمالة | BB3: جماعى | BC3: نقابة | BD3: نادى المحافطة | BE3: نادى الادارة | CH3: حافز 25% | CI3: حافزأداء
A4: 1 | B4: محمد1 | C4: =IF(D4="نقابى",1,IF(D4="حالة خاصة",2,0)) -> 1 | D4: نقابى | E4: متزوج+2 | F4: 0 | H4: معلم | I4: 666.98 | J4: 16650 | L4: 62.23 | M4: 62.73 | N4: 66.69 | P4: 4 | Q4: =IF(E4="متزوج",2,IF(E4="متزوج+1",4,IF(E4="متزوج+2",6,IF(E4="متزوجة",2,0)))) -> 6 | R4: 350 | AA4: =BU4 -> 0 | AL4: 1 | AM4: 7.25 | AN4: 15.45 | AQ4: 0 | AW4: khwv | BA4: 5 | BB4: 5 | BC4: 5 | BD4: 5 | BE4: 5 | BL4: =IF(H4="معلم مساعد",10,IF(H4="معلم تعاقد",10,IF(H4="معلم",10,IF(H4="معلم أول",10,IF(H4="معلم أول أ",10,IF(H4="خبير",10,IF(H4="كبير",10,IF(H4="عامل تعاقد",0,"")))))))) -> 10 | BM4: =IF(H4="معلم مساعد",I4*0/100,IF(H4="معلم تعاقد",I4*0/100,IF(H4="معلم",I4*50/100,IF(H4="معلم أول",I4*50/100,IF(H4="معلم أول أ",I4*50/100,IF(H4="خبير",I4*50/100,IF(H4="كبير",I4*50/100,))))))) -> 333.49 | BN4: =IF(H4="معلم مساعد",I4*50/100,IF(H4="عامل تعاقد",I4*0/100,IF(H4="معلم",I4*50/100,IF(H4="معلم أول",I4*50/100,IF(H4="معلم أول أ",I4*50/100,IF(H4="خبير",I4*50/100,IF(H4="كبير",I4*50/100,))))))) -> 333.49 | BO4: =IF(H4="إدارى",I4*0,IF(H4="معلم مساعد",I4*0/100,IF(H4="معلم",I4*50/100,IF(H4="معلم أول",I4*75/100,IF(H4="معلم أول أ",I4*100/100,IF(H4="خبير",I4*125/100,IF(H4="كبير",I4*150/100,))))))) -> 333.49 | BP4: =INT(IF(H4="عامل تعاقد",I4*25/100,IF(H4="معلم مساعد",I4*25/100,IF(H4="معلم",I4*25/100,IF(H4="معلم أول",I4*25/100,IF(H4="معلم أول أ",I4*25/100,IF(H4="خبير",I4*25/100,IF(H4="كبير",I4*25/100,)))))))) -> 166 | BQ4: =INT(IF(H4="إدارى",J4*0/100,IF(H4="معلم مساعد",I4*125/100,IF(H4="معلم",I4*75/100,IF(H4="معلم أول",I4*50/100,IF(H4="معلم أول أ",I4*25/100,IF(H4="خبير",I4*25/100,IF(H4="كبير",I4*25/100,)))))))) -> 500 | BR4: =INT(IF(H4="عامل تعاقد",I4*0.9166,IF(H4="معلم تعاقد",I4*0.9166,0))) -> 0 | BS4: =INT(IF(H4="عامل تعاقد",I4*0.5,IF(H4="معلم تعاقد",I4*0.5,0))) -> 0 | BT4: =INT(IF(F4=1,I4*0.3333,0)) -> 0 | BU4: =IF(H4="عامل تعاقد",225,IF(H4="معلم تعاقد",300,0)) -> 0 | CB4: =IF($B4>0,(SUM(R4:AD4)-50),0) -> 300 | CC4: =IF(CB4<250,(CB4*0.006),IF(CB4<500,(CB4*0.0065),IF(CB4<1000,(CB4*0.007),IF(CB4<5000,(CB4*0.0075),IF(CB4>5000,(CB4*0.008)," " ))))) -> 1.95 | CD4: =CEILING($CC4,0.05) -> 1.95 | CE4: كبير | CI4: =#VALUE! -> 
A5: 2 | B5: محمد2 | C5: =IF(D5="نقابى",1,IF(D5="حالة خاصة",2,0)) -> 1 | D5: نقابى | E5: متزوجة | F5: 0 | H5: معلم أول أ | I5: 666.98 | J5: 1500 | L5: 48.43 | M5: 48.93 | N5: 52.05 | P5: 4 | Q5: =IF(E5="متزوج",2,IF(E5="متزوج+1",4,IF(E5="متزوج+2",6,IF(E5="متزوجة",2,0)))) -> 2 | T5: 0 | AA5: =BU5 -> 0 | AL5: 1 | AM5: 24.14 | AN5: 13.5 | BA5: =COLUMN() -> 53 | BL5: =IF(H5="معلم مساعد",10,IF(H5="معلم تعاقد",10,IF(H5="معلم",10,IF(H5="معلم أول",10,IF(H5="معلم أول أ",10,IF(H5="خبير",10,IF(H5="كبير",10,IF(H5="عامل تعاقد",0,"")))))))) -> 10 | BM5: =IF(H5="عقد مميز",I5*0/100,IF(H5="معلم تعاقد",I5*0/100,IF(H5="معلم",I5*50/100,IF(H5="معلم أول",I5*50/100,IF(H5="معلم أول أ",I5*50/100,IF(H5="خبير",I5*50/100,IF(H5="كبير",I5*50/100,))))))) -> 333.49 | BN5: =IF(H5="معلم مساعد",I5*50/100,IF(H5="عامل تعاقد",I5*0/100,IF(H5="معلم",I5*50/100,IF(H5="معلم أول",I5*50/100,IF(H5="معلم أول أ",I5*50/100,IF(H5="خبير",I5*50/100,IF(H5="كبير",I5*50/100,))))))) -> 333.49 | BO5: =IF(H5="إدارى",I5*0,IF(H5="معلم مساعد",I5*0/100,IF(H5="معلم",I5*50/100,IF(H5="معلم أول",I5*75/100,IF(H5="معلم أول أ",I5*100/100,IF(H5="خبير",I5*125/100,IF(H5="كبير",I5*150/100,))))))) -> 666.98 | BP5: 166 | BQ5: 166 | BR5: 0 | BS5: 0 | BT5: 0 | BU5: 0 | BX5: الحد الاقصي للمتغيرات فى الشهر | CA5: 2800 | CB5: -50 | CC5: -0.3 | CD5: =CEILING($CC5,0.05) ->  | CE5: خبير | CH5: =#VALUE! ->  | CI5: =#VALUE! -> 
A6: 3 | B6: محمد3 | C6: =IF(D6="نقابى",1,IF(D6="حالة خاصة",2,0)) -> 1 | D6: نقابى | E6: متزوج+2 | F6: 0 | H6: معلم | I6: 566.52 | J6: 938.62 | L6: 52.79 | M6: 53.29 | N6: 56.69 | P6: 4 | Q6: 6 | AA6: 0 | AL6: 1 | AM6: 26.73 | AN6: 14.95 | AY6: 4 | BL6: 10 | BM6: 283.26 | BN6: 283.26 | BO6: =IF(H6="إدارى",I6*0,IF(H6="معلم مساعد",I6*0/100,IF(H6="معلم",I6*50/100,IF(H6="معلم أول",I6*75/100,IF(H6="معلم أول أ",I6*100/100,IF(H6="خبير",I6*125/100,IF(H6="كبير",I6*150/100,))))))) -> 283.26 | BP6: 141 | BQ6: 424 | BR6: 0 | BS6: 0 | BT6: 0 | BU6: 0 | CB6: -50 | CC6: -0.3 | CE6: معلم أول أ | CH6: =#VALUE! ->  | CI6: =#VALUE! ->  | EM6: معلم
A7: 4 | B7: محمد4 | C7: =IF(D7="نقابى",1,IF(D7="حالة خاصة",2,0)) -> 1 | D7: نقابى | E7: متزوج+2 | F7: 0 | H7: معلم أول | I7: 511.02 | J7: 854.21 | L7: 47.01 | M7: 47.51 | N7: 51.1 | P7: 4 | Q7: 6 | AA7: 0 | AL7: 1 | AM7: 22.26 | AN7: 13.75 | BL7: 10 | BM7: 255.51 | BN7: 255.51 | BO7: 383.265 | BP7: 127 | BQ7: 255 | BR7: 0 | BS7: 0 | BT7: 0 | BU7: 0 | BX7: الحد الاقصي للمتغيرات فى السنة | CA7: =CA5*12 -> 33600 | CB7: -50 | CC7: -0.3 | CE7: معلم أول | CH7: =#VALUE! ->  | CI7: =#VALUE! ->  | CM7: نقابى | EM7: معلم اول
A8: 5 | B8: محمد5 | C8: =IF(D8="نقابى",1,IF(D8="حالة خاصة",2,0)) -> 1 | D8: نقابى | E8: متزوج+2 | F8: 0 | H8: معلم أول | I8: 536.12 | J8: 891.32 | L8: 49.89 | M8: 50.39 | N8: 53.61 | P8: 4 | Q8: 6 | AA8: 0 | AL8: 1 | AM8: 19.72 | AN8: 14.35 | BL8: 10 | BM8: 268.06 | BN8: 268.06 | BO8: 402.09 | BP8: 134 | BQ8: 268 | BR8: 0 | BS8: 0 | BT8: 0 | BU8: 0 | CB8: -50 | CC8: -0.3 | CE8: معلم | CH8: =#VALUE! ->  | CI8: =#VALUE! ->  | CM8: غير نقابى | EM8: معلم اول ا
A9: 6 | B9: محمد6 | C9: 1 | D9: نقابى | E9: متزوجة | F9: 0 | H9: معلم أول | I9: 559.4 | J9: 926.45 | L9: 52.08 | M9: 52.58 | N9: 55.94 | P9: 4 | Q9: 2 | AA9: 0 | AL9: 1 | AM9: 23.63 | AN9: 14.55 | BL9: 10 | BM9: 279.7 | BN9: 279.7 | BO9: 419.55 | BP9: 139 | BQ9: 279 | BR9: 0 | BS9: 0 | BT9: 0 | BU9: 0 | CB9: -50 | CC9: -0.3 | CE9: معلم مساعد | CH9: =#VALUE! ->  | CI9: =#VALUE! ->  | CM9: حالة خاصة | EM9: معلم خبير
A10: 7 | B10: محمد7 | C10: 1 | D10: نقابى | E10: متزوجة | F10: 0 | H10: معلم أول | I10: 512.18 | J10: 855.89 | L10: 47.12 | M10: 47.62 | N10: 51.21 | P10: 4 | Q10: 2 | AA10: 0 | AL10: 1 | AM10: 22.27 | AN10: 13.95 | BL10: 10 | BM10: 256.09 | BN10: 256.09 | BO10: 384.135 | BP10: 128 | BQ10: 256 | BR10: 0 | BS10: 0 | BT10: 0 | BU10: 0 | BX10: الحد الاقصي للمرتب الاساسي | CA10: 1370 | CB10: -50 | CC10: -0.3 | CE10: عامل تعاقد | CH10: =#VALUE! ->  | CI10: =#VALUE! ->  | EM10: معلم كبير
A11: 8 | B11: محمد8 | C11: 1 | D11: نقابى | E11: متزوجة | F11: 0 | H11: معلم أول | I11: 512.18 | J11: 855.89 | L11: 47.12 | M11: 47.62 | N11: 51.21 | P11: 4 | Q11: 2 | AA11: 0 | AL11: 1 | AM11: 22.27 | AN11: 13.95 | BL11: 10 | BM11: 256.09 | BN11: 256.09 | BO11: 384.135 | BP11: 128 | BQ11: 256 | BR11: 0 | BS11: 0 | BT11: 0 | BU11: 0 | BX11: الاحد الاقصي للجور المتغيرة | CA11: 2800 | CB11: -50 | CC11: -0.3 | CH11: =#VALUE! ->  | CI11: =#VALUE! ->  | EM11: عقد مميز
A12: 9 | B12: محمد9 | C12: 1 | D12: نقابى | E12: متزوجة | F12: 0 | H12: معلم أول | I12: 504.1 | J12: 843.7 | L12: 46.35 | M12: 46.85 | N12: 50.41 | P12: 4 | Q12: 2 | AA12: 0 | AL12: 1 | AM12: 22.01 | AN12: 13.4 | BL12: 10 | BM12: 252.05 | BN12: 252.05 | BO12: 378.075 | BP12: 126 | BQ12: 252 | BR12: 0 | BS12: 0 | BT12: 0 | BU12: 0 | CB12: -50 | CC12: -0.3 | CH12: =#VALUE! ->  | CI12: =#VALUE! -> 
A13: 10 | B13: محمد10 | C13: 1 | D13: نقابى | E13: متزوج+2 | F13: 0 | H13: معلم أول | I13: 546.57 | J13: 906.88 | L13: 50.87 | M13: 51.37 | N13: 54.64 | P13: 4 | Q13: 6 | AA13: 0 | AL13: 1 | AM13: 47.68 | AN13: 15.35 | BL13: 10 | BM13: 273.285 | BN13: 273.285 | BO13: 409.9275 | BP13: 136 | BQ13: 273 | BR13: 0 | BS13: 0 | BT13: 0 | BU13: 0 | CB13: -50 | CC13: -0.3 | CH13: =#VALUE! ->  | CI13: =#VALUE! -> 
A14: 11 | B14: محمد11 | C14: 1 | D14: نقابى | E14: متزوجة | F14: 0 | H14: معلم أول | I14: 504.9 | J14: 844.62 | L14: 46.43 | M14: 46.93 | N14: 50.49 | P14: 4 | Q14: 2 | AA14: 0 | AL14: 1 | AM14: 22.03 | AN14: 13.75 | BL14: 10 | BM14: 252.45 | BN14: 252.45 | BO14: 378.675 | BP14: 126 | BQ14: 252 | BR14: 0 | BS14: 0 | BT14: 0 | BU14: 0 | CB14: -50 | CC14: -0.3 | CH14: =#VALUE! ->  | CI14: =#VALUE! -> 
A15: 12 | B15: محمد12 | C15: 1 | D15: نقابى | E15: متزوج+2 | F15: 0 | H15: معلم أول | I15: 545.64 | J15: 906.5 | L15: 50.82 | M15: 51.32 | N15: 54.56 | P15: 4 | Q15: 6 | AA15: 0 | AL15: 1 | AN15: 12.5 | BL15: 10 | BM15: 272.82 | BN15: 272.82 | BO15: 409.23 | BP15: 136 | BQ15: 272 | BR15: 0 | BS15: 0 | BT15: 0 | BU15: 0 | CB15: -50 | CC15: -0.3 | CH15: =#VALUE! ->  | CI15: =#VALUE! -> 
A16: 13 | B16: محمد13 | C16: 1 | D16: نقابى | E16: متزوجة | F16: 0 | H16: معلم أول | I16: 499.36 | J16: 836.86 | L16: 45.91 | M16: 46.41 | N16: 49.93 | P16: 4 | Q16: 2 | AA16: 0 | AL16: 1 | AM16: 21.73 | AN16: 13.85 | BL16: 10 | BM16: 249.68 | BN16: 249.68 | BO16: 374.52 | BP16: 124 | BQ16: 249 | BR16: 0 | BS16: 0 | BT16: 0 | BU16: 0 | CB16: -50 | CC16: -0.3 | CH16: =#VALUE! ->  | CI16: =#VALUE! -> 
A17: 14 | B17: محمد14 | C17: 1 | D17: نقابى | E17: متزوجة | F17: 0 | H17: معلم أول | I17: 530.54 | J17: 883.67 | L17: 48.85 | M17: 49.35 | N17: 53.05 | P17: 4 | Q17: 2 | AA17: 0 | AL17: 1 | AM17: 22.76 | AN17: 14.95 | BL17: 10 | BM17: 265.27 | BN17: 265.27 | BO17: 397.905 | BP17: 132 | BQ17: 265 | BR17: 0 | BS17: 0 | BT17: 0 | BU17: 0 | CB17: -50 | CC17: -0.3 | CH17: =#VALUE! ->  | CI17: =#VALUE! -> 
A18: 15 | B18: محمد15 | C18: 1 | D18: نقابى | E18: متزوج+2 | F18: 0 | H18: معلم أول | I18: 537.54 | J18: 894.13 | L18: 49.51 | M18: 50.01 | N18: 53.75 | P18: 4 | Q18: 6 | AA18: 0 | AL18: 1 | AM18: 22.64 | AN18: 15 | BL18: 10 | BM18: 268.77 | BN18: 268.77 | BO18: 403.155 | BP18: 134 | BQ18: 268 | BR18: 0 | BS18: 0 | BT18: 0 | BU18: 0 | CB18: -50 | CC18: -0.3 | CH18: =#VALUE! ->  | CI18: =#VALUE! -> 
A19: 16 | B19: محمد16 | C19: 1 | D19: نقابى | E19: متزوجة | F19: 0 | H19: معلم أول | I19: 395.16 | J19: 705.15 | L19: 36.6 | M19: 37.1 | N19: 39.51 | P19: 4 | Q19: 2 | AA19: 0 | AL19: 1 | AM19: 14.76 | AN19: 9.65 | BL19: 10 | BM19: 197.58 | BN19: 197.58 | BO19: 296.37 | BP19: 98 | BQ19: 197 | BR19: 0 | BS19: 0 | BT19: 0 | BU19: 0 | CB19: -50 | CC19: -0.3 | CH19: =#VALUE! ->  | CI19: =#VALUE! -> 
A20: 17 | B20: محمد17 | C20: 1 | D20: نقابى | E20: متزوجة | F20: 0 | H20: معلم أول | I20: 502.5 | J20: 840.34 | L20: 46.73 | M20: 47.23 | N20: 50.25 | P20: 4 | Q20: 2 | AA20: 0 | AL20: 1 | AM20: 25.86 | AN20: 13.45 | BL20: 10 | BM20: 251.25 | BN20: 251.25 | BO20: 376.875 | BP20: 125 | BQ20: 251 | BR20: 0 | BS20: 0 | BT20: 0 | BU20: 0 | CB20: -50 | CC20: -0.3 | CH20: =#VALUE! ->  | CI20: =#VALUE! -> 
A21: 18 | B21: محمد18 | C21: 1 | D21: نقابى | E21: متزوجة | F21: 0 | H21: معلم أول | I21: 510.68 | J21: 854.27 | L21: 46.96 | M21: 47.46 | N21: 51.06 | P21: 4 | Q21: 2 | AA21: 0 | AL21: 1 | AM21: 22.28 | AN21: 13.85 | BL21: 10 | BM21: 255.34 | BN21: 255.34 | BO21: 383.01 | BP21: 127 | BQ21: 255 | BR21: 0 | BS21: 0 | BT21: 0 | BU21: 0 | CB21: -50 | CC21: -0.3 | CH21: =#VALUE! ->  | CI21: =#VALUE! -> 
A22: 19 | B22: محمد19 | C22: 1 | D22: نقابى | E22: متزوجة | F22: 0 | H22: معلم أول | I22: 351.96 | J22: 637.82 | L22: 32.54 | M22: 33.04 | N22: 35.19 | P22: 4 | Q22: 2 | AA22: 0 | AL22: 1 | AM22: 10.81 | AN22: 12 | BL22: 10 | BM22: 175.98 | BN22: 175.98 | BO22: 263.97 | BP22: 87 | BQ22: 175 | BR22: 0 | BS22: 0 | BT22: 0 | BU22: 0 | CB22: -50 | CC22: -0.3 | CH22: =#VALUE! ->  | CI22: =#VALUE! -> 
A23: 20 | B23: محمد20 | C23: 1 | D23: نقابى | E23: متزوج+1 | F23: 0 | H23: معلم أول | I23: 351.96 | J23: 652.6 | L23: 32.54 | M23: 33.04 | N23: 35.19 | P23: 4 | Q23: 4 | AA23: 0 | AL23: 1 | AM23: 10.65 | AN23: 11.15 | BL23: 10 | BM23: 175.98 | BN23: 175.98 | BO23: 263.97 | BP23: 87 | BQ23: 175 | BR23: 0 | BS23: 0 | BT23: 0 | BU23: 0 | CB23: -50 | CC23: -0.3 | CH23: =#VALUE! ->  | CI23: =#VALUE! -> 
A24: 21 | B24: محمد21 | C24: 1 | D24: نقابى | E24: متزوجة | F24: 0 | H24: معلم أول | I24: 356.96 | J24: 652.6 | L24: 32.54 | M24: 33.04 | N24: 35.19 | P24: 4 | Q24: 2 | AA24: 0 | AL24: 1 | AM24: 11.55 | AN24: 11.15 | BL24: 10 | BM24: 178.48 | BN24: 178.48 | BO24: 267.72 | BP24: 89 | BQ24: 178 | BR24: 0 | BS24: 0 | BT24: 0 | BU24: 0 | CB24: -50 | CC24: -0.3 | CH24: =#VALUE! ->  | CI24: =#VALUE! -> 
A25: 22 | B25: محمد22 | C25: 1 | D25: نقابى | F25: 0 | H25: معلم أول | I25: 257.82 | J25: 534.28 | L25: 24.5 | M25: 24.9 | N25: 25.78 | P25: 4 | Q25: 0 | AA25: 0 | AL25: 1 | AN25: 9.25 | BL25: 10 | BM25: 128.91 | BN25: 128.91 | BO25: 193.365 | BP25: 64 | BQ25: 128 | BR25: 0 | BS25: 0 | BT25: 0 | BU25: 0 | CB25: -50 | CC25: -0.3 | CH25: =#VALUE! ->  | CI25: =#VALUE! -> 
A26: 23 | B26: محمد23 | C26: 1 | D26: نقابى | E26: متزوج+2 | F26: 0 | H26: معلم أول | I26: 246 | J26: 460.2 | L26: 7.2 | M26: 4.8 | N26: 4.8 | P26: 4 | Q26: 6 | AA26: 0 | AL26: 1 | AN26: 6 | BL26: 10 | BM26: 123 | BN26: 123 | BO26: 184.5 | BP26: 61 | BQ26: 123 | BR26: 0 | BS26: 0 | BT26: 0 | BU26: 0 | CB26: -50 | CC26: -0.3 | CH26: =#VALUE! ->  | CI26: =#VALUE! -> 
A27: 24 | B27: محمد24 | C27: 1 | D27: نقابى | E27: متزوجة | F27: 0 | H27: معلم أول | I27: 246 | J27: 460.2 | L27: 7.2 | M27: 4.8 | N27: 4.8 | P27: 4 | Q27: 2 | AA27: 0 | AL27: 1 | AN27: 6 | BL27: 10 | BM27: 123 | BN27: 123 | BO27: 184.5 | BP27: 61 | BQ27: 123 | BR27: 0 | BS27: 0 | BT27: 0 | BU27: 0 | CB27: -50 | CC27: -0.3 | CH27: =#VALUE! ->  | CI27: =#VALUE! -> 
A28: 25 | B28: محمد25 | C28: 1 | D28: نقابى | E28: متزوجة | F28: 0 | H28: معلم أول | I28: 246 | J28: 460.2 | L28: 7.2 | M28: 4.8 | N28: 4.8 | P28: 4 | Q28: 2 | AA28: 0 | AL28: 1 | AN28: 6 | BL28: 10 | BM28: 123 | BN28: 123 | BO28: 184.5 | BP28: 61 | BQ28: 123 | BR28: 0 | BS28: 0 | BT28: 0 | BU28: 0 | CB28: -50 | CC28: -0.3 | CH28: =#VALUE! ->  | CI28: =#VALUE! -> 
A29: 26 | B29: محمد26 | C29: 1 | D29: نقابى | E29: متزوجة | F29: 0 | H29: معلم أول | I29: 246 | J29: 460.2 | L29: 7.2 | M29: 4.8 | N29: 4.8 | P29: 4 | Q29: 2 | AA29: 0 | AL29: 1 | AN29: 6 | BL29: 10 | BM29: 123 | BN29: 123 | BO29: 184.5 | BP29: 61 | BQ29: 123 | BR29: 0 | BS29: 0 | BT29: 0 | BU29: 0 | CB29: -50 | CC29: -0.3 | CH29: =#VALUE! ->  | CI29: =#VALUE! -> 
A30: 27 | B30: محمد27 | C30: 1 | D30: نقابى | F30: 0 | I30: 0 | J30: 0 | Q30: 0 | AA30: 0 | BM30: 0 | BN30: 0 | BO30: 0 | BP30: 0 | BQ30: 0 | BR30: 0 | BS30: 0 | BT30: 0 | BU30: 0 | CB30: -50 | CC30: -0.3 | CH30: =#VALUE! ->  | CI30: =#VALUE! -> 
A31: 28 | B31: محمد28 | C31: 1 | D31: نقابى | E31: متزوج+2 | F31: 0 | H31: خبير | I31: 638.55 | J31: 1056.59 | L31: 59.54 | M31: 60.04 | N31: 63.85 | P31: 4 | Q31: 6 | AA31: 0 | AL31: 1 | AM31: 51.65 | AN31: 15 | BL31: 10 | BM31: 319.275 | BN31: 319.275 | BO31: 798.1875 | BP31: 159 | BQ31: 159 | BR31: 0 | BS31: 0 | BT31: 0 | BU31: 0 | CB31: -50 | CC31: -0.3 | CH31: =#VALUE! ->  | CI31: =#VALUE! -> 
A32: 29 | B32: محمد29 | C32: 1 | D32: نقابى | E32: متزوج+2 | F32: 0 | H32: خبير | I32: 546.57 | J32: 906.88 | L32: 50.87 | M32: 51.37 | N32: 54.64 | P32: 4 | Q32: 6 | AA32: 0 | AL32: 1 | AM32: 47.68 | AN32: 15.35 | BL32: 10 | BM32: 273.285 | BN32: 273.285 | BO32: 683.2125 | BP32: 136 | BQ32: 136 | BR32: 0 | BS32: 0 | BT32: 0 | BU32: 0 | CB32: -50 | CC32: -0.3 | CH32: =#VALUE! ->  | CI32: =#VALUE! -> 
A33: 30 | B33: محمد30 | C33: 1 | D33: نقابى | E33: متزوج+2 | F33: 0 | H33: خبير | I33: 574.8 | J33: 951.55 | L33: 53.54 | M33: 54.04 | N33: 57.48 | P33: 4 | Q33: 6 | AA33: 0 | AL33: 1 | AN33: 14.95 | BL33: 10 | BM33: 287.4 | BN33: 287.4 | BO33: 718.5 | BP33: 143 | BQ33: 143 | BR33: 0 | BS33: 0 | BT33: 0 | BU33: 0 | CB33: -50 | CC33: -0.3 | CH33: =#VALUE! ->  | CI33: =#VALUE! -> 
A34: 31 | B34: محمد31 | C34: 1 | D34: نقابى | E34: متزوج+2 | F34: 0 | H34: خبير | I34: 537.56 | J34: 892.61 | L34: 50.03 | M34: 50.53 | N34: 53.75 | P34: 4 | Q34: 6 | AA34: 0 | AL34: 1 | AM34: 38.49 | AN34: 14.35 | BL34: 10 | BM34: 268.78 | BN34: 268.78 | BO34: 671.95 | BP34: 134 | BQ34: 134 | BR34: 0 | BS34: 0 | BT34: 0 | BU34: 0 | CB34: -50 | CC34: -0.3 | CH34: =#VALUE! ->  | CI34: =#VALUE! -> 
A35: 32 | B35: محمد32 | C35: 1 | D35: نقابى | E35: متزوجة | F35: 0 | H35: خبير | I35: 498.56 | J35: 835.37 | L35: 45.83 | M35: 46.33 | N35: 49.85 | P35: 4 | Q35: 2 | AA35: 0 | AL35: 1 | AM35: 21.71 | AN35: 13.85 | BL35: 10 | BM35: 249.28 | BN35: 249.28 | BO35: 623.2 | BP35: 124 | BQ35: 124 | BR35: 0 | BS35: 0 | BT35: 0 | BU35: 0 | CB35: -50 | CC35: -0.3 | CH35: =#VALUE! ->  | CI35: =#VALUE! -> 
A36: 33 | B36: محمد33 | C36: 1 | D36: نقابى | E36: متزوج+2 | F36: 0 | H36: خبير | I36: 566.52 | J36: 938.62 | L36: 52.79 | M36: 53.29 | N36: 56.69 | P36: 4 | Q36: 6 | AA36: 0 | AL36: 1 | AM36: 26.73 | AN36: 14.95 | AY36: 4 | BL36: 10 | BM36: 283.26 | BN36: 283.26 | BO36: 708.15 | BP36: 141 | BQ36: 141 | BR36: 0 | BS36: 0 | BT36: 0 | BU36: 0 | CB36: -50 | CC36: -0.3 | CH36: =#VALUE! ->  | CI36: =#VALUE! -> 
A37: 34 | B37: محمد34 | C37: 1 | D37: نقابى | E37: متزوجة | F37: 0 | H37: خبير | I37: 514.52 | J37: 860.87 | L37: 47.4 | M37: 47.9 | N37: 51.45 | P37: 4 | Q37: 2 | AA37: 0 | AL37: 1 | AN37: 13.85 | BL37: 10 | BM37: 257.26 | BN37: 257.26 | BO37: 643.15 | BP37: 128 | BQ37: 128 | BR37: 0 | BS37: 0 | BT37: 0 | BU37: 0 | CB37: -50 | CC37: -0.3 | CH37: =#VALUE! ->  | CI37: =#VALUE! -> 
A38: 35 | B38: محمد35 | C38: 1 | D38: نقابى | F38: 0 | H38: خبير | J38: 0 | Q38: 0 | AA38: 0 | BL38: 10 | BM38: 0 | BN38: 0 | BO38: 0 | BP38: 0 | BQ38: 0 | BR38: 0 | BS38: 0 | BT38: 0 | BU38: 0 | CB38: -50 | CC38: -0.3 | CH38: =#VALUE! ->  | CI38: =#VALUE! -> 
A39: 36 | B39: محمد36 | C39: 1 | D39: نقابى | F39: 0 | H39: خبير | J39: 0 | Q39: 0 | AA39: 0 | BL39: 10 | BM39: 0 | BN39: 0 | BO39: 0 | BP39: 0 | BQ39: 0 | BR39: 0 | BS39: 0 | BT39: 0 | BU39: 0 | CB39: -50 | CC39: -0.3 | CH39: =#VALUE! ->  | CI39: =#VALUE! -> 
A40: 37 | B40: محمد37 | C40: 1 | D40: نقابى | F40: 0 | H40: خبير | J40: 0 | Q40: 0 | AA40: 0 | BL40: 10 | BM40: 0 | BN40: 0 | BO40: 0 | BP40: 0 | BQ40: 0 | BR40: 0 | BS40: 0 | BT40: 0 | BU40: 0 | CB40: -50 | CC40: -0.3 | CH40: =#VALUE! ->  | CI40: =#VALUE! -> 
A41: 38 | B41: محمد38 | C41: 1 | D41: نقابى | F41: 0 | H41: خبير | J41: 0 | Q41: 0 | AA41: 0 | BL41: 10 | BM41: 0 | BN41: 0 | BO41: 0 | BP41: 0 | BQ41: 0 | BR41: 0 | BS41: 0 | BT41: 0 | BU41: 0 | CB41: -50 | CC41: -0.3 | CH41: =#VALUE! ->  | CI41: =#VALUE! -> 
A42: 39 | B42: محمد39 | C42: 0 | F42: 0 | H42: خبير | J42: 0 | Q42: 0 | AA42: 0 | BL42: 10 | BM42: 0 | BN42: 0 | BO42: 0 | BP42: 0 | BQ42: 0 | BR42: 0 | BS42: 0 | BT42: 0 | BU42: 0 | CB42: -50 | CC42: -0.3 | CH42: =#VALUE! ->  | CI42: =#VALUE! -> 
A43: 40 | B43: محمد40 | C43: 0 | F43: 0 | H43: عامل تعاقد | I43: 150 | J43: 367.5 | L43: 15 | M43: 15 | N43: 15 | Q43: 0 | AA43: 225 | AN43: 6 | BL43: 0 | BM43: 0 | BN43: 0 | BO43: 0 | BP43: 37 | BQ43: 0 | BR43: 137 | BS43: 75 | BT43: 0 | BU43: 225 | CB43: 175 | CC43: 1.05 | CD43: 1.05 | CH43: =#VALUE! ->  | CI43: =#VALUE! -> 
A44: 41 | C44: 0 | F44: 0 | Q44: 0 | AA44: 0 | BM44: 0 | BN44: 0 | BO44: 0 | BP44: 0 | BQ44: 0 | BR44: 0 | BS44: 0 | BT44: 0 | BU44: 0 | CB44: 0 | CC44: 0 | CD44: 0 | CH44: =#VALUE! ->  | CI44: =#VALUE! -> 
A45: 42 | B45: محمد41 | C45: 0 | F45: 0 | Q45: 0 | AA45: 0 | BM45: 0 | BN45: 0 | BO45: 0 | BP45: 0 | BQ45: 0 | BR45: 0 | BS45: 0 | BT45: 0 | BU45: 0 | CB45: -50 | CC45: -0.3 | CH45: =#VALUE! ->  | CI45: =#VALUE! -> 
A46: 43 | C46: 0 | F46: 0 | Q46: 0 | AA46: 0 | BM46: 0 | BN46: 0 | BO46: 0 | BP46: 0 | BQ46: 0 | BR46: 0 | BS46: 0 | BT46: 0 | BU46: 0 | CB46: 0 | CC46: 0 | CD46: 0 | CH46: =#VALUE! ->  | CI46: =#VALUE! -> 
A47: 44 | C47: 0 | F47: 0 | Q47: 0 | AA47: 0 | BM47: 0 | BN47: 0 | BO47: 0 | BP47: 0 | BQ47: 0 | BR47: 0 | BS47: 0 | BT47: 0 | BU47: 0 | CB47: 0 | CC47: 0 | CD47: 0 | CH47: =#VALUE! ->  | CI47: =#VALUE! -> 
A48: 45 | C48: 0 | F48: 0 | Q48: 0 | AA48: 0 | BM48: 0 | BN48: 0 | BO48: 0 | BP48: 0 | BQ48: 0 | BR48: 0 | BS48: 0 | BT48: 0 | BU48: 0 | CB48: 0 | CC48: 0 | CD48: 0 | CH48: =#VALUE! ->  | CI48: =#VALUE! -> 
A49: 46 | C49: 0 | F49: 0 | Q49: 0 | AA49: 0 | BM49: 0 | BN49: 0 | BO49: 0 | BP49: 0 | BQ49: 0 | BR49: 0 | BS49: 0 | BT49: 0 | BU49: 0 | CB49: 0 | CC49: 0 | CD49: 0 | CH49: =#VALUE! ->  | CI49: =#VALUE! -> 
A50: 47 | C50: 0 | F50: 0 | Q50: 0 | AA50: 0 | BM50: 0 | BN50: 0 | BO50: 0 | BP50: 0 | BQ50: 0 | BR50: 0 | BS50: 0 | BT50: 0 | BU50: 0 | CB50: 0 | CC50: 0 | CD50: 0 | CH50: =#VALUE! ->  | CI50: =#VALUE! -> 
A51: 48 | C51: 0 | F51: 0 | Q51: 0 | AA51: 0 | BM51: 0 | BN51: 0 | BO51: 0 | BP51: 0 | BQ51: 0 | BR51: 0 | BS51: 0 | BT51: 0 | BU51: 0 | CB51: 0 | CC51: 0 | CD51: 0 | CH51: =#VALUE! ->  | CI51: =#VALUE! -> 
A52: 49 | C52: 0 | F52: 0 | Q52: 0 | AA52: 0 | BM52: 0 | BN52: 0 | BO52: 0 | BP52: 0 | BQ52: 0 | BR52: 0 | BS52: 0 | BT52: 0 | BU52: 0 | CB52: 0 | CC52: 0 | CD52: 0 | CH52: =#VALUE! ->  | CI52: =#VALUE! -> 
A53: 50 | C53: 0 | F53: 0 | Q53: 0 | AA53: 0 | BM53: 0 | BN53: 0 | BO53: 0 | BP53: 0 | BQ53: 0 | BR53: 0 | BS53: 0 | BT53: 0 | BU53: 0 | CB53: 0 | CC53: 0 | CD53: 0 | CH53: =#VALUE! ->  | CI53: =#VALUE! -> 
A54: 51 | C54: 0 | F54: 0 | Q54: 0 | AA54: 0 | BM54: 0 | BN54: 0 | BO54: 0 | BP54: 0 | BQ54: 0 | BR54: 0 | BS54: 0 | BT54: 0 | BU54: 0 | CB54: 0 | CC54: 0 | CD54: 0 | CH54: =#VALUE! ->  | CI54: =#VALUE! -> 
A55: 52 | C55: 0 | F55: 0 | Q55: 0 | AA55: 0 | BM55: 0 | BN55: 0 | BO55: 0 | BP55: 0 | BQ55: 0 | BR55: 0 | BS55: 0 | BT55: 0 | BU55: 0 | CB55: 0 | CC55: 0 | CD55: 0 | CH55: =#VALUE! ->  | CI55: =#VALUE! -> 
A56: 53 | C56: 0 | F56: 0 | Q56: 0 | AA56: 0 | BM56: 0 | BN56: 0 | BO56: 0 | BP56: 0 | BQ56: 0 | BR56: 0 | BS56: 0 | BT56: 0 | BU56: 0 | CB56: 0 | CC56: 0 | CD56: 0 | CH56: =#VALUE! ->  | CI56: =#VALUE! -> 
A57: 54 | C57: 0 | F57: 0 | Q57: 0 | AA57: 0 | BM57: 0 | BN57: 0 | BO57: 0 | BP57: 0 | BQ57: 0 | BR57: 0 | BS57: 0 | BT57: 0 | BU57: 0 | CB57: 0 | CC57: 0 | CD57: 0 | CH57: =#VALUE! ->  | CI57: =#VALUE! -> 
A58: 55 | C58: 0 | F58: 0 | Q58: 0 | AA58: 0 | BM58: 0 | BN58: 0 | BO58: 0 | BP58: 0 | BQ58: 0 | BR58: 0 | BS58: 0 | BT58: 0 | BU58: 0 | CB58: 0 | CC58: 0 | CD58: 0 | CH58: =#VALUE! ->  | CI58: =#VALUE! -> 
A59: 56 | C59: 0 | F59: 0 | Q59: 0 | AA59: 0 | BM59: 0 | BN59: 0 | BO59: 0 | BP59: 0 | BQ59: 0 | BR59: 0 | BS59: 0 | BT59: 0 | BU59: 0 | CB59: 0 | CC59: 0 | CD59: 0 | CH59: =#VALUE! ->  | CI59: =#VALUE! -> 
A60: 57 | C60: 0 | F60: 0 | Q60: 0 | AA60: 0 | BM60: 0 | BN60: 0 | BO60: 0 | BP60: 0 | BQ60: 0 | BR60: 0 | BS60: 0 | BT60: 0 | BU60: 0 | CB60: 0 | CC60: 0 | CD60: 0 | CH60: =#VALUE! ->  | CI60: =#VALUE! -> 
A61: 58 | C61: 0 | F61: 0 | Q61: 0 | AA61: 0 | BM61: 0 | BN61: 0 | BO61: 0 | BP61: 0 | BQ61: 0 | BR61: 0 | BS61: 0 | BT61: 0 | BU61: 0 | CB61: 0 | CC61: 0 | CD61: 0 | CH61: =#VALUE! ->  | CI61: =#VALUE! -> 
A62: 59 | C62: 0 | F62: 0 | Q62: 0 | AA62: 0 | BM62: 0 | BN62: 0 | BO62: 0 | BP62: 0 | BQ62: 0 | BR62: 0 | BS62: 0 | BT62: 0 | BU62: 0 | CB62: 0 | CC62: 0 | CD62: 0 | CH62: =#VALUE! ->  | CI62: =#VALUE! -> 
A63: 60 | C63: 0 | F63: 0 | Q63: 0 | AA63: 0 | BM63: 0 | BN63: 0 | BO63: 0 | BP63: 0 | BQ63: 0 | BR63: 0 | BS63: 0 | BT63: 0 | BU63: 0 | CB63: 0 | CC63: 0 | CD63: 0 | CH63: =#VALUE! ->  | CI63: =#VALUE! -> 
A64: 61 | C64: 0 | F64: 0 | Q64: 0 | AA64: 0 | BM64: 0 | BN64: 0 | BO64: 0 | BP64: 0 | BQ64: 0 | BR64: 0 | BS64: 0 | BT64: 0 | BU64: 0 | CB64: 0 | CC64: 0 | CD64: 0 | CH64: =#VALUE! ->  | CI64: =#VALUE! -> 
A65: 62 | C65: 0 | F65: 0 | Q65: 0 | AA65: 0 | BM65: 0 | BN65: 0 | BO65: 0 | BP65: 0 | BQ65: 0 | BR65: 0 | BS65: 0 | BT65: 0 | BU65: 0 | CB65: 0 | CC65: 0 | CD65: 0 | CH65: =#VALUE! ->  | CI65: =#VALUE! -> 
A66: 63 | C66: 0 | F66: 0 | Q66: 0 | AA66: 0 | BM66: 0 | BN66: 0 | BO66: 0 | BP66: 0 | BQ66: 0 | BR66: 0 | BS66: 0 | BT66: 0 | BU66: 0 | CB66: 0 | CC66: 0 | CD66: 0 | CH66: =#VALUE! ->  | CI66: =#VALUE! -> 
A67: 64 | C67: 0 | F67: 0 | Q67: 0 | AA67: 0 | BM67: 0 | BN67: 0 | BO67: 0 | BP67: 0 | BQ67: 0 | BR67: 0 | BS67: 0 | BT67: 0 | BU67: 0 | CB67: 0 | CC67: 0 | CD67: 0 | CH67: =#VALUE! ->  | CI67: =#VALUE! -> 
A68: 65 | C68: 0 | F68: 0 | Q68: 0 | AA68: 0 | BM68: 0 | BN68: 0 | BO68: 0 | BP68: =INT(IF(H68="عامل تعاقد",I68*25/100,IF(H68="معلم مساعد",I68*25/100,IF(H68="معلم",I68*25/100,IF(H68="معلم أول",I68*25/100,IF(H68="معلم أول أ",I68*25/100,IF(H68="خبير",I68*25/100,IF(H68="كبير",I68*25/100,)))))))) -> 0 | BQ68: =INT(IF(H68="إدارى",J68*0/100,IF(H68="معلم مساعد",I68*125/100,IF(H68="معلم",I68*75/100,IF(H68="معلم أول",I68*50/100,IF(H68="معلم أول أ",I68*25/100,IF(H68="خبير",I68*25/100,IF(H68="كبير",I68*25/100,)))))))) -> 0 | BR68: =INT(IF(H68="عامل تعاقد",I68*0.9166,IF(H68="معلم تعاقد",I68*0.9166,0))) -> 0 | BS68: =INT(IF(H68="عامل تعاقد",I68*0.5,IF(H68="معلم تعاقد",I68*0.5,0))) -> 0 | BT68: =INT(IF(F68=1,I68*0.3333,0)) -> 0 | BU68: =IF(H68="عامل تعاقد",225,IF(H68="معلم تعاقد",300,0)) -> 0 | CB68: =IF($B68>0,(SUM(R68:AD68)-50),0) -> 0 | CC68: =IF(CB68<250,(CB68*0.006),IF(CB68<500,(CB68*0.0065),IF(CB68<1000,(CB68*0.007),IF(CB68<5000,(CB68*0.0075),IF(CB68>5000,(CB68*0.008)," " ))))) -> 0 | CD68: 0 | CH68: =#VALUE! ->  | CI68: =#VALUE! -> 
A69: 66 | C69: 0 | F69: 0 | Q69: =IF(E69="متزوج",2,IF(E69="متزوج+1",4,IF(E69="متزوج+2",6,IF(E69="متزوجة",2,0)))) -> 0 | AA69: =BU69 -> 0 | BL69: =IF(H69="معلم مساعد",10,IF(H69="معلم تعاقد",10,IF(H69="معلم",10,IF(H69="معلم أول",10,IF(H69="معلم أول أ",10,IF(H69="خبير",10,IF(H69="كبير",10,IF(H69="عامل تعاقد",0,"")))))))) ->  | BM69: =IF(H69="عقد مميز",I69*0/100,IF(H69="معلم تعاقد",I69*0/100,IF(H69="معلم",I69*50/100,IF(H69="معلم أول",I69*50/100,IF(H69="معلم أول أ",I69*50/100,IF(H69="خبير",I69*50/100,IF(H69="كبير",I69*50/100,))))))) -> 0 | BN69: =IF(H69="معلم مساعد",I69*50/100,IF(H69="عامل تعاقد",I69*0/100,IF(H69="معلم",I69*50/100,IF(H69="معلم أول",I69*50/100,IF(H69="معلم أول أ",I69*50/100,IF(H69="خبير",I69*50/100,IF(H69="كبير",I69*50/100,))))))) -> 0 | BO69: 0 | BP69: 0 | BQ69: 0 | BR69: 0 | BS69: 0 | BT69: 0 | BU69: 0 | CB69: 0 | CC69: 0 | CD69: =CEILING($CC69,0.05) -> 0 | CH69: =#VALUE! ->  | CI69: =#VALUE! -> 
A70: 67 | C70: 0 | F70: 0 | Q70: 0 | AA70: 0 | BM70: 0 | BN70: 0 | BO70: =IF(H70="إدارى",I70*0,IF(H70="معلم مساعد",I70*0/100,IF(H70="معلم",I70*50/100,IF(H70="معلم أول",I70*75/100,IF(H70="معلم أول أ",I70*100/100,IF(H70="خبير",I70*125/100,IF(H70="كبير",I70*150/100,))))))) -> 0 | BP70: 0 | BQ70: 0 | BR70: 0 | BS70: 0 | BT70: 0 | BU70: 0 | CB70: 0 | CC70: 0 | CD70: 0 | CH70: =#VALUE! ->  | CI70: =#VALUE! -> 
A71: 68 | C71: 0 | F71: 0 | Q71: 0 | AA71: 0 | BM71: 0 | BN71: 0 | BO71: 0 | BP71: 0 | BQ71: 0 | BR71: 0 | BS71: 0 | BT71: 0 | BU71: 0 | CB71: 0 | CC71: 0 | CD71: 0 | CH71: =#VALUE! ->  | CI71: =#VALUE! -> 
A72: 69 | C72: =IF(D72="نقابى",1,IF(D72="حالة خاصة",2,0)) -> 0 | F72: 0 | Q72: 0 | AA72: 0 | BM72: 0 | BN72: 0 | BO72: 0 | BP72: 0 | BQ72: 0 | BR72: 0 | BS72: 0 | BT72: 0 | BU72: 0 | CB72: 0 | CC72: 0 | CD72: 0 | CH72: =#VALUE! ->  | CI72: =#VALUE! -> 
A73: 70 | C73: 0 | F73: 0 | Q73: 0 | AA73: 0 | BM73: 0 | BN73: 0 | BO73: 0 | BP73: 0 | BQ73: 0 | BR73: 0 | BS73: 0 | BT73: 0 | BU73: 0 | CB73: 0 | CC73: 0 | CD73: 0 | CH73: =#VALUE! ->  | CI73: =#VALUE! -> 
A74: 71 | C74: 0 | F74: 0 | Q74: 0 | AA74: 0 | BM74: 0 | BN74: 0 | BO74: 0 | BP74: 0 | BQ74: 0 | BR74: 0 | BS74: 0 | BT74: 0 | BU74: 0 | CB74: 0 | CC74: 0 | CD74: 0 | CH74: =#VALUE! ->  | CI74: =#VALUE! -> 
A75: 72 | C75: 0 | F75: 0 | Q75: 0 | AA75: 0 | BM75: 0 | BN75: 0 | BO75: 0 | BP75: 0 | BQ75: 0 | BR75: 0 | BS75: 0 | BT75: 0 | BU75: 0 | CB75: 0 | CC75: 0 | CD75: 0 | CH75: =#VALUE! ->  | CI75: =#VALUE! -> 
A76: 73 | C76: 0 | F76: 0 | Q76: 0 | AA76: 0 | BM76: 0 | BN76: 0 | BO76: 0 | BP76: 0 | BQ76: 0 | BR76: 0 | BS76: 0 | BT76: 0 | BU76: 0 | CB76: 0 | CC76: 0 | CD76: 0 | CH76: =#VALUE! ->  | CI76: =#VALUE! -> 
A77: 74 | C77: 0 | F77: 0 | Q77: 0 | AA77: 0 | BM77: 0 | BN77: 0 | BO77: 0 | BP77: 0 | BQ77: 0 | BR77: 0 | BS77: 0 | BT77: 0 | BU77: 0 | CB77: 0 | CC77: 0 | CD77: 0 | CH77: =#VALUE! ->  | CI77: =#VALUE! -> 
A78: 75 | C78: 0 | F78: 0 | Q78: 0 | AA78: 0 | BM78: 0 | BN78: 0 | BO78: 0 | BP78: 0 | BQ78: 0 | BR78: 0 | BS78: 0 | BT78: 0 | BU78: 0 | CB78: 0 | CC78: 0 | CD78: 0 | CH78: =#VALUE! ->  | CI78: =#VALUE! -> 
A79: 76 | C79: 0 | F79: 0 | Q79: 0 | AA79: 0 | BM79: 0 | BN79: 0 | BO79: 0 | BP79: 0 | BQ79: 0 | BR79: 0 | BS79: 0 | BT79: 0 | BU79: 0 | CB79: 0 | CC79: 0 | CD79: 0 | CH79: =#VALUE! ->  | CI79: =#VALUE! -> 
A80: 77 | C80: 0 | F80: 0 | Q80: 0 | AA80: 0 | BM80: 0 | BN80: 0 | BO80: 0 | BP80: 0 | BQ80: 0 | BR80: 0 | BS80: 0 | BT80: 0 | BU80: 0 | CB80: 0 | CC80: 0 | CD80: 0 | CH80: =#VALUE! ->  | CI80: =#VALUE! -> 
A81: 78 | C81: 0 | F81: 0 | Q81: 0 | AA81: 0 | BM81: 0 | BN81: 0 | BO81: 0 | BP81: 0 | BQ81: 0 | BR81: 0 | BS81: 0 | BT81: 0 | BU81: 0 | CB81: 0 | CC81: 0 | CD81: 0 | CH81: =#VALUE! ->  | CI81: =#VALUE! -> 
A82: 79 | C82: 0 | F82: 0 | Q82: 0 | AA82: 0 | BM82: 0 | BN82: 0 | BO82: 0 | BP82: 0 | BQ82: 0 | BR82: 0 | BS82: 0 | BT82: 0 | BU82: 0 | CB82: 0 | CC82: 0 | CD82: 0 | CH82: =#VALUE! ->  | CI82: =#VALUE! -> 
A83: 80 | C83: 0 | F83: 0 | Q83: 0 | AA83: 0 | BM83: 0 | BN83: 0 | BO83: 0 | BP83: 0 | BQ83: 0 | BR83: 0 | BS83: 0 | BT83: 0 | BU83: 0 | CB83: 0 | CC83: 0 | CD83: 0 | CH83: =#VALUE! ->  | CI83: =#VALUE! -> 
A84: 81 | C84: 0 | F84: 0 | Q84: 0 | AA84: 0 | BM84: 0 | BN84: 0 | BO84: 0 | BP84: 0 | BQ84: 0 | BR84: 0 | BS84: 0 | BT84: 0 | BU84: 0 | CB84: 0 | CC84: 0 | CD84: 0 | CH84: =#VALUE! ->  | CI84: =#VALUE! -> 
A85: 82 | C85: 0 | F85: 0 | Q85: 0 | AA85: 0 | BM85: 0 | BN85: 0 | BO85: 0 | BP85: 0 | BQ85: 0 | BR85: 0 | BS85: 0 | BT85: 0 | BU85: 0 | CB85: 0 | CC85: 0 | CD85: 0 | CH85: =#VALUE! ->  | CI85: =#VALUE! -> 
A86: 83 | C86: 0 | F86: 0 | Q86: 0 | AA86: 0 | BM86: 0 | BN86: 0 | BO86: 0 | BP86: 0 | BQ86: 0 | BR86: 0 | BS86: 0 | BT86: 0 | BU86: 0 | CB86: 0 | CC86: 0 | CD86: 0 | CH86: =#VALUE! ->  | CI86: =#VALUE! -> 
A87: 84 | C87: 0 | F87: 0 | Q87: 0 | AA87: 0 | BM87: 0 | BN87: 0 | BO87: 0 | BP87: 0 | BQ87: 0 | BR87: 0 | BS87: 0 | BT87: 0 | BU87: 0 | CB87: 0 | CC87: 0 | CD87: 0 | CH87: =#VALUE! ->  | CI87: =#VALUE! -> 
A88: 85 | C88: 0 | F88: 0 | Q88: 0 | AA88: 0 | BM88: 0 | BN88: 0 | BO88: 0 | BP88: 0 | BQ88: 0 | BR88: 0 | BS88: 0 | BT88: 0 | BU88: 0 | CB88: 0 | CC88: 0 | CD88: 0 | CH88: =#VALUE! ->  | CI88: =#VALUE! -> 
A89: 83 | C89: 0 | F89: 0 | Q89: 0 | AA89: 0 | BM89: 0 | BN89: 0 | BO89: 0 | BP89: 0 | BQ89: 0 | BR89: 0 | BS89: 0 | BT89: 0 | BU89: 0 | CB89: 0 | CC89: 0 | CD89: 0 | CH89: =#VALUE! ->  | CI89: =#VALUE! -> 
A90: 84 | C90: 0 | F90: 0 | Q90: 0 | AA90: 0 | BM90: 0 | BN90: 0 | BO90: 0 | BP90: 0 | BQ90: 0 | BR90: 0 | BS90: 0 | BT90: 0 | BU90: 0 | CB90: 0 | CC90: 0 | CD90: 0 | CH90: =#VALUE! ->  | CI90: =#VALUE! -> 
A91: 88 | C91: 0 | F91: 0 | Q91: 0 | AA91: 0 | BM91: 0 | BN91: 0 | BO91: 0 | BP91: 0 | BQ91: 0 | BR91: 0 | BS91: 0 | BT91: 0 | BU91: 0 | CB91: 0 | CC91: 0 | CD91: 0 | CH91: =#VALUE! ->  | CI91: =#VALUE! -> 
A92: 89 | C92: 0 | F92: 0 | Q92: 0 | AA92: 0 | BM92: 0 | BN92: 0 | BO92: 0 | BP92: 0 | BQ92: 0 | BR92: 0 | BS92: 0 | BT92: 0 | BU92: 0 | CB92: 0 | CC92: 0 | CD92: 0 | CH92: =#VALUE! ->  | CI92: =#VALUE! -> 
A93: 90 | C93: 0 | F93: 0 | Q93: 0 | AA93: 0 | BM93: 0 | BN93: 0 | BO93: 0 | BP93: 0 | BQ93: 0 | BR93: 0 | BS93: 0 | BT93: 0 | BU93: 0 | CB93: 0 | CC93: 0 | CD93: 0 | CH93: =#VALUE! ->  | CI93: =#VALUE! -> 
A94: 91 | C94: 0 | F94: 0 | Q94: 0 | AA94: 0 | BM94: 0 | BN94: 0 | BO94: 0 | BP94: 0 | BQ94: 0 | BR94: 0 | BS94: 0 | BT94: 0 | BU94: 0 | CB94: 0 | CC94: 0 | CD94: 0 | CH94: =#VALUE! ->  | CI94: =#VALUE! -> 
A95: 92 | C95: 0 | F95: 0 | Q95: 0 | AA95: 0 | BM95: 0 | BN95: 0 | BO95: 0 | BP95: 0 | BQ95: 0 | BR95: 0 | BS95: 0 | BT95: 0 | BU95: 0 | CB95: 0 | CC95: 0 | CD95: 0 | CH95: =#VALUE! ->  | CI95: =#VALUE! -> 
A96: 93 | C96: 0 | F96: 0 | Q96: 0 | AA96: 0 | BM96: 0 | BN96: 0 | BO96: 0 | BP96: 0 | BQ96: 0 | BR96: 0 | BS96: 0 | BT96: 0 | BU96: 0 | CB96: 0 | CC96: 0 | CD96: 0 | CH96: =#VALUE! ->  | CI96: =#VALUE! -> 
A97: 94 | C97: 0 | F97: 0 | Q97: 0 | AA97: 0 | BM97: 0 | BN97: 0 | BO97: 0 | BP97: 0 | BQ97: 0 | BR97: 0 | BS97: 0 | BT97: 0 | BU97: 0 | CB97: 0 | CC97: 0 | CD97: 0 | CH97: =#VALUE! ->  | CI97: =#VALUE! -> 
A98: 95 | C98: 0 | F98: 0 | Q98: 0 | AA98: 0 | BM98: 0 | BN98: 0 | BO98: 0 | BP98: 0 | BQ98: 0 | BR98: 0 | BS98: 0 | BT98: 0 | BU98: 0 | CB98: 0 | CC98: 0 | CD98: 0 | CH98: =#VALUE! ->  | CI98: =#VALUE! -> 
A99: 96 | C99: 0 | F99: 0 | Q99: 0 | AA99: 0 | BM99: 0 | BN99: 0 | BO99: 0 | BP99: 0 | BQ99: 0 | BR99: 0 | BS99: 0 | BT99: 0 | BU99: 0 | CB99: 0 | CC99: 0 | CD99: 0 | CH99: =#VALUE! ->  | CI99: =#VALUE! -> 
A100: 97 | C100: 0 | F100: 0 | Q100: 0 | AA100: 0 | BM100: 0 | BN100: 0 | BO100: 0 | BP100: 0 | BQ100: 0 | BR100: 0 | BS100: 0 | BT100: 0 | BU100: 0 | CB100: 0 | CC100: 0 | CD100: 0 | CH100: =#VALUE! ->  | CI100: =#VALUE! -> 
A101: 98 | C101: 0 | F101: 0 | Q101: 0 | AA101: 0 | BM101: 0 | BN101: 0 | BO101: 0 | BP101: 0 | BQ101: 0 | BR101: 0 | BS101: 0 | BT101: 0 | BU101: 0 | CB101: 0 | CC101: 0 | CD101: 0 | CH101: =#VALUE! ->  | CI101: =#VALUE! -> 
A102: 99 | C102: 0 | F102: 0 | Q102: 0 | AA102: 0 | BM102: 0 | BN102: 0 | BO102: 0 | BP102: 0 | BQ102: 0 | BR102: 0 | BS102: 0 | BT102: 0 | BU102: 0 | CB102: 0 | CC102: 0 | CD102: 0 | CH102: =#VALUE! ->  | CI102: =#VALUE! -> 
A103: 100 | C103: 0 | F103: 0 | Q103: 0 | AA103: 0 | BM103: 0 | BN103: 0 | BO103: 0 | BP103: 0 | BQ103: 0 | BR103: 0 | BS103: 0 | BT103: 0 | BU103: 0 | CB103: 0 | CC103: 0 | CD103: 0 | CH103: =#VALUE! ->  | CI103: =#VALUE! -> 
C104: 0 | F104: 0 | Q104: 0 | AA104: 0 | BM104: 0 | BN104: 0 | BO104: 0 | BP104: 0 | BQ104: 0 | BR104: 0 | BS104: 0 | BT104: 0 | BU104: 0 | CB104: 0 | CC104: 0 | CD104: 0 | CH104: =#VALUE! ->  | CI104: =#VALUE! -> 
C105: 0 | F105: 0 | Q105: 0 | AA105: 0 | BM105: 0 | BN105: 0 | BO105: 0 | BP105: 0 | BQ105: 0 | BR105: 0 | BS105: 0 | BT105: 0 | BU105: 0 | CB105: 0 | CC105: 0 | CD105: 0 | CH105: =#VALUE! ->  | CI105: =#VALUE! -> 
C106: 0 | F106: 0 | Q106: 0 | AA106: 0 | BM106: 0 | BN106: 0 | BO106: 0 | BP106: 0 | BQ106: 0 | BR106: 0 | BS106: 0 | BT106: 0 | BU106: 0 | CB106: 0 | CC106: 0 | CD106: 0 | CH106: =#VALUE! ->  | CI106: =#VALUE! -> 
C107: 0 | F107: 0 | Q107: 0 | AA107: 0 | BM107: 0 | BN107: 0 | BO107: 0 | BP107: 0 | BQ107: 0 | BR107: 0 | BS107: 0 | BT107: 0 | BU107: 0 | CB107: 0 | CC107: 0 | CD107: 0 | CH107: =#VALUE! ->  | CI107: =#VALUE! -> 
C108: 0 | F108: 0 | Q108: 0 | AA108: 0 | BM108: 0 | BN108: 0 | BO108: 0 | BP108: 0 | BQ108: 0 | BR108: 0 | BS108: 0 | BT108: 0 | BU108: 0 | CB108: 0 | CC108: 0 | CD108: 0 | CH108: =#VALUE! ->  | CI108: =#VALUE! -> 
C109: 0 | F109: 0 | Q109: 0 | AA109: 0 | BM109: 0 | BN109: 0 | BO109: 0 | BP109: 0 | BQ109: 0 | BR109: 0 | BS109: 0 | BT109: 0 | BU109: 0 | CB109: 0 | CC109: 0 | CD109: 0 | CH109: =#VALUE! ->  | CI109: =#VALUE! -> 
C110: 0 | F110: 0 | Q110: 0 | AA110: 0 | BM110: 0 | BN110: 0 | BO110: 0 | BP110: 0 | BQ110: 0 | BR110: 0 | BS110: 0 | BT110: 0 | BU110: 0 | CB110: 0 | CC110: 0 | CD110: 0 | CH110: =#VALUE! ->  | CI110: =#VALUE! -> 
C111: 0 | F111: 0 | Q111: 0 | AA111: 0 | BM111: 0 | BN111: 0 | BO111: 0 | BP111: 0 | BQ111: 0 | BR111: 0 | BS111: 0 | BT111: 0 | BU111: 0 | CB111: 0 | CC111: 0 | CD111: 0 | CH111: =#VALUE! ->  | CI111: =#VALUE! -> 
C112: 0 | F112: 0 | Q112: 0 | AA112: 0 | BM112: 0 | BN112: 0 | BO112: 0 | BP112: 0 | BQ112: 0 | BR112: 0 | BS112: 0 | BT112: 0 | BU112: 0 | CB112: 0 | CC112: 0 | CD112: 0 | CH112: =#VALUE! ->  | CI112: =#VALUE! -> 
C113: 0 | F113: 0 | Q113: 0 | AA113: 0 | BM113: 0 | BN113: 0 | BO113: 0 | BP113: 0 | BQ113: 0 | BR113: 0 | BS113: 0 | BT113: 0 | BU113: 0 | CB113: 0 | CC113: 0 | CD113: 0 | CH113: =#VALUE! ->  | CI113: =#VALUE! -> 
C114: 0 | F114: 0 | Q114: 0 | AA114: 0 | BM114: 0 | BN114: 0 | BO114: 0 | BP114: 0 | BQ114: 0 | BR114: 0 | BS114: 0 | BT114: 0 | BU114: 0 | CB114: 0 | CC114: 0 | CD114: 0 | CH114: =#VALUE! ->  | CI114: =#VALUE! -> 
C115: 0 | F115: 0 | Q115: 0 | AA115: 0 | BM115: 0 | BN115: 0 | BO115: 0 | BP115: 0 | BQ115: 0 | BR115: 0 | BS115: 0 | BT115: 0 | BU115: 0 | CB115: 0 | CC115: 0 | CD115: 0 | CH115: =#VALUE! ->  | CI115: =#VALUE! -> 
C116: 0 | F116: 0 | Q116: 0 | AA116: 0 | BM116: 0 | BN116: 0 | BO116: 0 | BP116: 0 | BQ116: 0 | BR116: 0 | BS116: 0 | BT116: 0 | BU116: 0 | CB116: 0 | CC116: 0 | CD116: 0 | CH116: =#VALUE! ->  | CI116: =#VALUE! -> 
C117: 0 | D117: غير نقابى | F117: 0 | Q117: 0 | AA117: 0 | BM117: 0 | BN117: 0 | BO117: 0 | BP117: 0 | BQ117: 0 | BR117: 0 | BS117: 0 | BT117: 0 | BU117: 0 | CB117: 0 | CC117: 0 | CD117: 0 | CH117: =#VALUE! ->  | CI117: =#VALUE! -> 
C118: 0 | F118: 0 | Q118: 0 | AA118: 0 | BM118: 0 | BN118: 0 | BO118: 0 | BP118: 0 | BQ118: 0 | BR118: 0 | BS118: 0 | BT118: 0 | BU118: 0 | CB118: 0 | CC118: 0 | CD118: 0 | CH118: =#VALUE! ->  | CI118: =#VALUE! -> 
C119: 0 | F119: 0 | Q119: 0 | AA119: 0 | BM119: 0 | BN119: 0 | BO119: 0 | BP119: 0 | BQ119: 0 | BR119: 0 | BS119: 0 | BT119: 0 | BU119: 0 | CB119: 0 | CC119: 0 | CD119: 0 | CH119: =#VALUE! ->  | CI119: =#VALUE! -> 
C120: 0 | F120: 0 | Q120: 0 | AA120: 0 | BM120: 0 | BN120: 0 | BO120: 0 | BP120: 0 | BQ120: 0 | BR120: 0 | BS120: 0 | BT120: 0 | BU120: 0 | CB120: 0 | CC120: 0 | CD120: 0 | CH120: =#VALUE! ->  | CI120: =#VALUE! -> 
C121: 0 | F121: 0 | Q121: 0 | AA121: 0 | BM121: 0 | BN121: 0 | BO121: 0 | BP121: 0 | BQ121: 0 | BR121: 0 | BS121: 0 | BT121: 0 | BU121: 0 | CB121: 0 | CC121: 0 | CD121: 0 | CH121: =#VALUE! ->  | CI121: =#VALUE! -> 
C122: 0 | F122: 0 | Q122: 0 | AA122: 0 | BM122: 0 | BN122: 0 | BO122: 0 | BP122: 0 | BQ122: 0 | BR122: 0 | BS122: 0 | BT122: 0 | BU122: 0 | CB122: 0 | CC122: 0 | CD122: 0 | CH122: =#VALUE! ->  | CI122: =#VALUE! -> 
C123: 0 | F123: 0 | Q123: 0 | AA123: 0 | BM123: 0 | BN123: 0 | BO123: 0 | BP123: 0 | BQ123: 0 | BR123: 0 | BS123: 0 | BT123: 0 | BU123: 0 | CB123: 0 | CC123: 0 | CD123: 0 | CH123: =#VALUE! ->  | CI123: =#VALUE! -> 
C124: 0 | F124: 0 | Q124: 0 | AA124: 0 | BM124: 0 | BN124: 0 | BO124: 0 | BP124: 0 | BQ124: 0 | BR124: 0 | BS124: 0 | BT124: 0 | BU124: 0 | CB124: 0 | CC124: 0 | CD124: 0 | CH124: =#VALUE! ->  | CI124: =#VALUE! -> 
C125: 0 | F125: 0 | Q125: 0 | AA125: 0 | BM125: 0 | BN125: 0 | BO125: 0 | BP125: 0 | BQ125: 0 | BR125: 0 | BS125: 0 | BT125: 0 | BU125: 0 | CB125: 0 | CC125: 0 | CD125: 0 | CH125: =#VALUE! ->  | CI125: =#VALUE! -> 
C126: 0 | F126: 0 | Q126: 0 | AA126: 0 | BM126: 0 | BN126: 0 | BO126: 0 | BP126: 0 | BQ126: 0 | BR126: 0 | BS126: 0 | BT126: 0 | BU126: 0 | CB126: 0 | CC126: 0 | CD126: 0 | CH126: =#VALUE! ->  | CI126: =#VALUE! -> 
C127: 0 | F127: 0 | Q127: 0 | AA127: 0 | BM127: 0 | BN127: 0 | BO127: 0 | BP127: 0 | BQ127: 0 | BR127: 0 | BS127: 0 | BT127: 0 | BU127: 0 | CB127: 0 | CC127: 0 | CD127: 0 | CH127: =#VALUE! ->  | CI127: =#VALUE! -> 
C128: 0 | F128: 0 | Q128: 0 | AA128: 0 | BM128: 0 | BN128: 0 | BO128: 0 | BP128: 0 | BQ128: 0 | BR128: 0 | BS128: 0 | BT128: 0 | BU128: 0 | CB128: 0 | CC128: 0 | CD128: 0 | CH128: =#VALUE! ->  | CI128: =#VALUE! -> 
C129: 0 | F129: 0 | Q129: 0 | AA129: 0 | BM129: 0 | BN129: 0 | BO129: 0 | BP129: 0 | BQ129: 0 | BR129: 0 | BS129: 0 | BT129: 0 | BU129: 0 | CB129: 0 | CC129: 0 | CD129: 0 | CH129: =#VALUE! ->  | CI129: =#VALUE! -> 
C130: 0 | F130: 0 | Q130: 0 | AA130: 0 | BM130: 0 | BN130: 0 | BO130: 0 | BP130: 0 | BQ130: 0 | BR130: 0 | BS130: 0 | BT130: 0 | BU130: 0 | CB130: 0 | CC130: 0 | CD130: 0 | CH130: =#VALUE! ->  | CI130: =#VALUE! -> 
C131: 0 | F131: 0 | Q131: 0 | AA131: 0 | BM131: 0 | BN131: 0 | BO131: 0 | BP131: 0 | BQ131: 0 | BR131: 0 | BS131: 0 | BT131: 0 | BU131: 0 | CB131: 0 | CC131: 0 | CD131: 0 | CH131: =#VALUE! ->  | CI131: =#VALUE! -> 
C132: 0 | F132: 0 | Q132: 0 | AA132: 0 | BM132: 0 | BN132: 0 | BO132: 0 | BP132: =INT(IF(H132="عامل تعاقد",I132*25/100,IF(H132="معلم مساعد",I132*25/100,IF(H132="معلم",I132*25/100,IF(H132="معلم أول",I132*25/100,IF(H132="معلم أول أ",I132*25/100,IF(H132="خبير",I132*25/100,IF(H132="كبير",I132*25/100,)))))))) -> 0 | BQ132: =INT(IF(H132="إدارى",J132*0/100,IF(H132="معلم مساعد",I132*125/100,IF(H132="معلم",I132*75/100,IF(H132="معلم أول",I132*50/100,IF(H132="معلم أول أ",I132*25/100,IF(H132="خبير",I132*25/100,IF(H132="كبير",I132*25/100,)))))))) -> 0 | BR132: =INT(IF(H132="عامل تعاقد",I132*0.9166,IF(H132="معلم تعاقد",I132*0.9166,0))) -> 0 | BS132: =INT(IF(H132="عامل تعاقد",I132*0.5,IF(H132="معلم تعاقد",I132*0.5,0))) -> 0 | BT132: =INT(IF(F132=1,I132*0.3333,0)) -> 0 | BU132: =IF(H132="عامل تعاقد",225,IF(H132="معلم تعاقد",300,0)) -> 0 | CB132: =IF($B132>0,(SUM(R132:AD132)-50),0) -> 0 | CC132: =IF(CB132<250,(CB132*0.006),IF(CB132<500,(CB132*0.0065),IF(CB132<1000,(CB132*0.007),IF(CB132<5000,(CB132*0.0075),IF(CB132>5000,(CB132*0.008)," " ))))) -> 0 | CD132: 0 | CH132: =#VALUE! ->  | CI132: =#VALUE! -> 
C133: 0 | F133: 0 | Q133: =IF(E133="متزوج",2,IF(E133="متزوج+1",4,IF(E133="متزوج+2",6,IF(E133="متزوجة",2,0)))) -> 0 | AA133: =BU133 -> 0 | BL133: =IF(H133="معلم مساعد",10,IF(H133="معلم تعاقد",10,IF(H133="معلم",10,IF(H133="معلم أول",10,IF(H133="معلم أول أ",10,IF(H133="خبير",10,IF(H133="كبير",10,IF(H133="عامل تعاقد",0,"")))))))) ->  | BM133: =IF(H133="عقد مميز",I133*0/100,IF(H133="معلم تعاقد",I133*0/100,IF(H133="معلم",I133*50/100,IF(H133="معلم أول",I133*50/100,IF(H133="معلم أول أ",I133*50/100,IF(H133="خبير",I133*50/100,IF(H133="كبير",I133*50/100,))))))) -> 0 | BN133: =IF(H133="معلم مساعد",I133*50/100,IF(H133="عامل تعاقد",I133*0/100,IF(H133="معلم",I133*50/100,IF(H133="معلم أول",I133*50/100,IF(H133="معلم أول أ",I133*50/100,IF(H133="خبير",I133*50/100,IF(H133="كبير",I133*50/100,))))))) -> 0 | BO133: 0 | BP133: 0 | BQ133: 0 | BR133: 0 | BS133: 0 | BT133: 0 | BU133: 0 | CB133: 0 | CC133: 0 | CD133: =CEILING($CC133,0.05) -> 0 | CH133: =#VALUE! ->  | CI133: =#VALUE! -> 
C134: 0 | F134: 0 | Q134: 0 | AA134: 0 | BM134: 0 | BN134: 0 | BO134: =IF(H134="إدارى",I134*0,IF(H134="معلم مساعد",I134*0/100,IF(H134="معلم",I134*50/100,IF(H134="معلم أول",I134*75/100,IF(H134="معلم أول أ",I134*100/100,IF(H134="خبير",I134*125/100,IF(H134="كبير",I134*150/100,))))))) -> 0 | BP134: 0 | BQ134: 0 | BR134: 0 | BS134: 0 | BT134: 0 | BU134: 0 | CB134: 0 | CC134: 0 | CD134: 0 | CH134: =#VALUE! ->  | CI134: =#VALUE! -> 
C135: 0 | F135: 0 | Q135: 0 | AA135: 0 | BM135: 0 | BN135: 0 | BO135: 0 | BP135: 0 | BQ135: 0 | BR135: 0 | BS135: 0 | BT135: 0 | BU135: 0 | CB135: 0 | CC135: 0 | CD135: 0 | CH135: =#VALUE! ->  | CI135: =#VALUE! -> 
C136: =IF(D136="نقابى",1,IF(D136="حالة خاصة",2,0)) -> 0 | F136: 0 | Q136: 0 | AA136: 0 | BM136: 0 | BN136: 0 | BO136: 0 | BP136: 0 | BQ136: 0 | BR136: 0 | BS136: 0 | BT136: 0 | BU136: 0 | CB136: 0 | CC136: 0 | CD136: 0 | CH136: =#VALUE! ->  | CI136: =#VALUE! -> 
C137: 0 | F137: 0 | Q137: 0 | AA137: 0 | BM137: 0 | BN137: 0 | BO137: 0 | BP137: 0 | BQ137: 0 | BR137: 0 | BS137: 0 | BT137: 0 | BU137: 0 | CB137: 0 | CC137: 0 | CD137: 0 | CH137: =#VALUE! ->  | CI137: =#VALUE! -> 
C138: 0 | F138: 0 | Q138: 0 | AA138: 0 | BM138: 0 | BN138: 0 | BO138: 0 | BP138: 0 | BQ138: 0 | BR138: 0 | BS138: 0 | BT138: 0 | BU138: 0 | CB138: 0 | CC138: 0 | CD138: 0 | CH138: =#VALUE! ->  | CI138: =#VALUE! -> 
C139: 0 | F139: 0 | Q139: 0 | AA139: 0 | BM139: 0 | BN139: 0 | BO139: 0 | BP139: 0 | BQ139: 0 | BR139: 0 | BS139: 0 | BT139: 0 | BU139: 0 | CB139: 0 | CC139: 0 | CD139: 0 | CH139: =#VALUE! ->  | CI139: =#VALUE! -> 
C140: 0 | F140: 0 | Q140: 0 | AA140: 0 | BM140: 0 | BN140: 0 | BO140: 0 | BP140: 0 | BQ140: 0 | BR140: 0 | BS140: 0 | BT140: 0 | BU140: 0 | CB140: 0 | CC140: 0 | CD140: 0 | CH140: =#VALUE! ->  | CI140: =#VALUE! -> 
C141: 0 | F141: 0 | Q141: 0 | AA141: 0 | BM141: 0 | BN141: 0 | BO141: 0 | BP141: 0 | BQ141: 0 | BR141: 0 | BS141: 0 | BT141: 0 | BU141: 0 | CB141: 0 | CC141: 0 | CD141: 0 | CH141: =#VALUE! ->  | CI141: =#VALUE! -> 
C142: 0 | F142: 0 | Q142: 0 | AA142: 0 | BM142: 0 | BN142: 0 | BO142: 0 | BP142: 0 | BQ142: 0 | BR142: 0 | BS142: 0 | BT142: 0 | BU142: 0 | CB142: 0 | CC142: 0 | CD142: 0 | CH142: =#VALUE! ->  | CI142: =#VALUE! -> 
C143: 0 | F143: 0 | Q143: 0 | AA143: 0 | BM143: 0 | BN143: 0 | BO143: 0 | BP143: 0 | BQ143: 0 | BR143: 0 | BS143: 0 | BT143: 0 | BU143: 0 | CB143: 0 | CC143: 0 | CD143: 0 | CH143: =#VALUE! ->  | CI143: =#VALUE! -> 
C144: 0 | F144: 0 | Q144: 0 | AA144: 0 | BM144: 0 | BN144: 0 | BO144: 0 | BP144: 0 | BQ144: 0 | BR144: 0 | BS144: 0 | BT144: 0 | BU144: 0 | CB144: 0 | CC144: 0 | CD144: 0 | CH144: =#VALUE! ->  | CI144: =#VALUE! -> 
C145: 0 | F145: 0 | Q145: 0 | AA145: 0 | BM145: 0 | BN145: 0 | BO145: 0 | BP145: 0 | BQ145: 0 | BR145: 0 | BS145: 0 | BT145: 0 | BU145: 0 | CB145: 0 | CC145: 0 | CD145: 0 | CH145: =#VALUE! ->  | CI145: =#VALUE! -> 
C146: 0 | F146: 0 | Q146: 0 | AA146: 0 | BM146: 0 | BN146: 0 | BO146: 0 | BP146: 0 | BQ146: 0 | BR146: 0 | BS146: 0 | BT146: 0 | BU146: 0 | CB146: 0 | CC146: 0 | CD146: 0 | CH146: =#VALUE! ->  | CI146: =#VALUE! -> 
C147: 0 | F147: 0 | Q147: 0 | AA147: 0 | BM147: 0 | BN147: 0 | BO147: 0 | BP147: 0 | BQ147: 0 | BR147: 0 | BS147: 0 | BT147: 0 | BU147: 0 | CB147: 0 | CC147: 0 | CD147: 0 | CH147: =#VALUE! ->  | CI147: =#VALUE! -> 
C148: 0 | F148: 0 | Q148: 0 | AA148: 0 | BM148: 0 | BN148: 0 | BO148: 0 | BP148: 0 | BQ148: 0 | BR148: 0 | BS148: 0 | BT148: 0 | BU148: 0 | CB148: 0 | CC148: 0 | CD148: 0 | CH148: =#VALUE! ->  | CI148: =#VALUE! -> 
C149: 0 | F149: 0 | Q149: 0 | AA149: 0 | BM149: 0 | BN149: 0 | BO149: 0 | BP149: 0 | BQ149: 0 | BR149: 0 | BS149: 0 | BT149: 0 | BU149: 0 | CB149: 0 | CC149: 0 | CD149: 0 | CH149: =#VALUE! ->  | CI149: =#VALUE! -> 
C150: 0 | F150: 0 | Q150: 0 | AA150: 0 | BM150: 0 | BN150: 0 | BO150: 0 | BP150: 0 | BQ150: 0 | BR150: 0 | BS150: 0 | BT150: 0 | BU150: 0 | CB150: 0 | CC150: 0 | CD150: 0 | CH150: =#VALUE! ->  | CI150: =#VALUE! -> 
C151: 0 | F151: 0 | Q151: 0 | AA151: 0 | BM151: 0 | BN151: 0 | BO151: 0 | BP151: 0 | BQ151: 0 | BR151: 0 | BS151: 0 | BT151: 0 | BU151: 0 | CB151: 0 | CC151: 0 | CD151: 0 | CH151: =#VALUE! ->  | CI151: =#VALUE! -> 
C152: 0 | F152: 0 | Q152: 0 | AA152: 0 | BM152: 0 | BN152: 0 | BO152: 0 | BP152: 0 | BQ152: 0 | BR152: 0 | BS152: 0 | BT152: 0 | BU152: 0 | CB152: 0 | CC152: 0 | CD152: 0 | CH152: =#VALUE! ->  | CI152: =#VALUE! -> 
C153: 0 | F153: 0 | Q153: 0 | AA153: 0 | BM153: 0 | BN153: 0 | BO153: 0 | BP153: 0 | BQ153: 0 | BR153: 0 | BS153: 0 | BT153: 0 | BU153: 0 | CB153: 0 | CC153: 0 | CD153: 0 | CH153: =#VALUE! ->  | CI153: =#VALUE! -> 
C154: 0 | F154: 0 | Q154: 0 | AA154: 0 | BM154: 0 | BN154: 0 | BO154: 0 | BP154: 0 | BQ154: 0 | BR154: 0 | BS154: 0 | BT154: 0 | BU154: 0 | CB154: 0 | CC154: 0 | CD154: 0 | CH154: =#VALUE! ->  | CI154: =#VALUE! -> 
C155: 0 | F155: 0 | Q155: 0 | AA155: 0 | BM155: 0 | BN155: 0 | BO155: 0 | BP155: 0 | BQ155: 0 | BR155: 0 | BS155: 0 | BT155: 0 | BU155: 0 | CB155: 0 | CC155: 0 | CD155: 0 | CH155: =#VALUE! ->  | CI155: =#VALUE! -> 
C156: 0 | F156: 0 | Q156: 0 | AA156: 0 | BM156: 0 | BN156: 0 | BO156: 0 | BP156: 0 | BQ156: 0 | BR156: 0 | BS156: 0 | BT156: 0 | BU156: 0 | CB156: 0 | CC156: 0 | CD156: 0 | CH156: =#VALUE! ->  | CI156: =#VALUE! -> 
C157: 0 | F157: 0 | Q157: 0 | AA157: 0 | BM157: 0 | BN157: 0 | BO157: 0 | BP157: 0 | BQ157: 0 | BR157: 0 | BS157: 0 | BT157: 0 | BU157: 0 | CB157: 0 | CC157: 0 | CD157: 0 | CH157: =#VALUE! ->  | CI157: =#VALUE! -> 
C158: 0 | F158: 0 | Q158: 0 | AA158: 0 | BM158: 0 | BN158: 0 | BO158: 0 | BP158: 0 | BQ158: 0 | BR158: 0 | BS158: 0 | BT158: 0 | BU158: 0 | CB158: 0 | CC158: 0 | CD158: 0 | CH158: =#VALUE! ->  | CI158: =#VALUE! -> 
C159: 0 | F159: 0 | Q159: 0 | AA159: 0 | BM159: 0 | BN159: 0 | BO159: 0 | BP159: 0 | BQ159: 0 | BR159: 0 | BS159: 0 | BT159: 0 | BU159: 0 | CB159: 0 | CC159: 0 | CD159: 0 | CH159: =#VALUE! ->  | CI159: =#VALUE! -> 
C160: 0 | F160: 0 | Q160: 0 | AA160: 0 | BM160: 0 | BN160: 0 | BO160: 0 | BP160: 0 | BQ160: 0 | BR160: 0 | BS160: 0 | BT160: 0 | BU160: 0 | CB160: 0 | CC160: 0 | CD160: 0 | CH160: =#VALUE! ->  | CI160: =#VALUE! -> 
C161: 0 | F161: 0 | Q161: 0 | AA161: 0 | BM161: 0 | BN161: 0 | BO161: 0 | BP161: 0 | BQ161: 0 | BR161: 0 | BS161: 0 | BT161: 0 | BU161: 0 | CB161: 0 | CC161: 0 | CD161: 0 | CH161: =#VALUE! ->  | CI161: =#VALUE! -> 
C162: 0 | F162: 0 | Q162: 0 | AA162: 0 | BM162: 0 | BN162: 0 | BO162: 0 | BP162: 0 | BQ162: 0 | BR162: 0 | BS162: 0 | BT162: 0 | BU162: 0 | CB162: 0 | CC162: 0 | CD162: 0 | CH162: =#VALUE! ->  | CI162: =#VALUE! -> 
C163: 0 | F163: 0 | Q163: 0 | AA163: 0 | BM163: 0 | BN163: 0 | BO163: 0 | BP163: 0 | BQ163: 0 | BR163: 0 | BS163: 0 | BT163: 0 | BU163: 0 | CB163: 0 | CC163: 0 | CD163: 0 | CH163: =#VALUE! ->  | CI163: =#VALUE! -> 
C164: 0 | F164: 0 | Q164: 0 | AA164: 0 | BM164: 0 | BN164: 0 | BO164: 0 | BP164: 0 | BQ164: 0 | BR164: 0 | BS164: 0 | BT164: 0 | BU164: 0 | CB164: 0 | CC164: 0 | CD164: 0 | CH164: =#VALUE! ->  | CI164: =#VALUE! -> 
C165: 0 | F165: 0 | Q165: 0 | AA165: 0 | BM165: 0 | BN165: 0 | BO165: 0 | BP165: 0 | BQ165: 0 | BR165: 0 | BS165: 0 | BT165: 0 | BU165: 0 | CB165: 0 | CC165: 0 | CD165: 0 | CH165: =#VALUE! ->  | CI165: =#VALUE! -> 
C166: 0 | F166: 0 | Q166: 0 | AA166: 0 | BM166: 0 | BN166: 0 | BO166: 0 | BP166: 0 | BQ166: 0 | BR166: 0 | BS166: 0 | BT166: 0 | BU166: 0 | CB166: 0 | CC166: 0 | CD166: 0 | CH166: =#VALUE! ->  | CI166: =#VALUE! -> 
C167: 0 | F167: 0 | Q167: 0 | AA167: 0 | BM167: 0 | BN167: 0 | BO167: 0 | BP167: 0 | BQ167: 0 | BR167: 0 | BS167: 0 | BT167: 0 | BU167: 0 | CB167: 0 | CC167: 0 | CD167: 0 | CH167: =#VALUE! ->  | CI167: =#VALUE! -> 
C168: 0 | F168: 0 | Q168: 0 | AA168: 0 | BM168: 0 | BN168: 0 | BO168: 0 | BP168: 0 | BQ168: 0 | BR168: 0 | BS168: 0 | BT168: 0 | BU168: 0 | CB168: 0 | CC168: 0 | CD168: 0 | CH168: =#VALUE! ->  | CI168: =#VALUE! -> 
C169: 0 | F169: 0 | Q169: 0 | AA169: 0 | BM169: 0 | BN169: 0 | BO169: 0 | BP169: 0 | BQ169: 0 | BR169: 0 | BS169: 0 | BT169: 0 | BU169: 0 | CB169: 0 | CC169: 0 | CD169: 0 | CH169: =#VALUE! ->  | CI169: =#VALUE! -> 
C170: 0 | F170: 0 | Q170: 0 | AA170: 0 | BM170: 0 | BN170: 0 | BO170: 0 | BP170: 0 | BQ170: 0 | BR170: 0 | BS170: 0 | BT170: 0 | BU170: 0 | CB170: 0 | CC170: 0 | CD170: 0 | CH170: =#VALUE! ->  | CI170: =#VALUE! -> 
C171: 0 | F171: 0 | Q171: 0 | AA171: 0 | BM171: 0 | BN171: 0 | BO171: 0 | BP171: 0 | BQ171: 0 | BR171: 0 | BS171: 0 | BT171: 0 | BU171: 0 | CB171: 0 | CC171: 0 | CD171: 0 | CH171: =#VALUE! ->  | CI171: =#VALUE! -> 
C172: 0 | F172: 0 | Q172: 0 | AA172: 0 | BM172: 0 | BN172: 0 | BO172: 0 | BP172: 0 | BQ172: 0 | BR172: 0 | BS172: 0 | BT172: 0 | BU172: 0 | CB172: 0 | CC172: 0 | CD172: 0 | CH172: =#VALUE! ->  | CI172: =#VALUE! -> 
C173: 0 | F173: 0 | Q173: 0 | AA173: 0 | BM173: 0 | BN173: 0 | BO173: 0 | BP173: 0 | BQ173: 0 | BR173: 0 | BS173: 0 | BT173: 0 | BU173: 0 | CB173: 0 | CC173: 0 | CD173: 0 | CH173: =#VALUE! ->  | CI173: =#VALUE! -> 
C174: 0 | F174: 0 | Q174: 0 | AA174: 0 | BM174: 0 | BN174: 0 | BO174: 0 | BP174: 0 | BQ174: 0 | BR174: 0 | BS174: 0 | BT174: 0 | BU174: 0 | CB174: 0 | CC174: 0 | CD174: 0 | CH174: =#VALUE! ->  | CI174: =#VALUE! -> 
C175: 0 | F175: 0 | Q175: 0 | AA175: 0 | BM175: 0 | BN175: 0 | BO175: 0 | BP175: 0 | BQ175: 0 | BR175: 0 | BS175: 0 | BT175: 0 | BU175: 0 | CB175: 0 | CC175: 0 | CD175: 0 | CH175: =#VALUE! ->  | CI175: =#VALUE! -> 
C176: 0 | F176: 0 | Q176: 0 | AA176: 0 | BM176: 0 | BN176: 0 | BO176: 0 | BP176: 0 | BQ176: 0 | BR176: 0 | BS176: 0 | BT176: 0 | BU176: 0 | CB176: 0 | CC176: 0 | CD176: 0 | CH176: =#VALUE! ->  | CI176: =#VALUE! -> 
C177: 0 | F177: 0 | Q177: 0 | AA177: 0 | BM177: 0 | BN177: 0 | BO177: 0 | BP177: 0 | BQ177: 0 | BR177: 0 | BS177: 0 | BT177: 0 | BU177: 0 | CB177: 0 | CC177: 0 | CD177: 0 | CH177: =#VALUE! ->  | CI177: =#VALUE! -> 
C178: 0 | F178: 0 | Q178: 0 | AA178: 0 | BM178: 0 | BN178: 0 | BO178: 0 | BP178: 0 | BQ178: 0 | BR178: 0 | BS178: 0 | BT178: 0 | BU178: 0 | CB178: 0 | CC178: 0 | CD178: 0 | CH178: =#VALUE! ->  | CI178: =#VALUE! -> 
C179: 0 | F179: 0 | Q179: 0 | AA179: 0 | BM179: 0 | BN179: 0 | BO179: 0 | BP179: 0 | BQ179: 0 | BR179: 0 | BS179: 0 | BT179: 0 | BU179: 0 | CB179: 0 | CC179: 0 | CD179: 0 | CH179: =#VALUE! ->  | CI179: =#VALUE! -> 
C180: 0 | F180: 0 | Q180: 0 | AA180: 0 | BM180: 0 | BN180: 0 | BO180: 0 | BP180: 0 | BQ180: 0 | BR180: 0 | BS180: 0 | BT180: 0 | BU180: 0 | CB180: 0 | CC180: 0 | CD180: 0 | CH180: =#VALUE! ->  | CI180: =#VALUE! -> 
C181: 0 | F181: 0 | Q181: 0 | AA181: 0 | BM181: 0 | BN181: 0 | BO181: 0 | BP181: 0 | BQ181: 0 | BR181: 0 | BS181: 0 | BT181: 0 | BU181: 0 | CB181: 0 | CC181: 0 | CD181: 0 | CH181: =#VALUE! ->  | CI181: =#VALUE! -> 
C182: 0 | F182: 0 | Q182: 0 | AA182: 0 | BM182: 0 | BN182: 0 | BO182: 0 | BP182: 0 | BQ182: 0 | BR182: 0 | BS182: 0 | BT182: 0 | BU182: 0 | CB182: 0 | CC182: 0 | CD182: 0 | CH182: =#VALUE! ->  | CI182: =#VALUE! -> 
C183: 0 | F183: 0 | Q183: 0 | AA183: 0 | BM183: 0 | BN183: 0 | BO183: 0 | BP183: 0 | BQ183: 0 | BR183: 0 | BS183: 0 | BT183: 0 | BU183: 0 | CB183: 0 | CC183: 0 | CD183: 0 | CH183: =#VALUE! ->  | CI183: =#VALUE! -> 
C184: 0 | F184: 0 | Q184: 0 | AA184: 0 | BM184: 0 | BN184: 0 | BO184: 0 | BP184: 0 | BQ184: 0 | BR184: 0 | BS184: 0 | BT184: 0 | BU184: 0 | CB184: 0 | CC184: 0 | CD184: 0 | CH184: =#VALUE! ->  | CI184: =#VALUE! -> 
C185: 0 | F185: 0 | Q185: 0 | AA185: 0 | BM185: 0 | BN185: 0 | BO185: 0 | BP185: 0 | BQ185: 0 | BR185: 0 | BS185: 0 | BT185: 0 | BU185: 0 | CB185: 0 | CC185: 0 | CD185: 0 | CH185: =#VALUE! ->  | CI185: =#VALUE! -> 
C186: 0 | F186: 0 | Q186: 0 | AA186: 0 | BM186: 0 | BN186: 0 | BO186: 0 | BP186: 0 | BQ186: 0 | BR186: 0 | BS186: 0 | BT186: 0 | BU186: 0 | CB186: 0 | CC186: 0 | CD186: 0 | CH186: =#VALUE! ->  | CI186: =#VALUE! -> 
C187: 0 | F187: 0 | Q187: 0 | AA187: 0 | BM187: 0 | BN187: 0 | BO187: 0 | BP187: 0 | BQ187: 0 | BR187: 0 | BS187: 0 | BT187: 0 | BU187: 0 | CB187: 0 | CC187: 0 | CD187: 0 | CH187: =#VALUE! ->  | CI187: =#VALUE! -> 
C188: 0 | F188: 0 | Q188: 0 | AA188: 0 | BM188: 0 | BN188: 0 | BO188: 0 | BP188: 0 | BQ188: 0 | BR188: 0 | BS188: 0 | BT188: 0 | BU188: 0 | CB188: 0 | CC188: 0 | CD188: 0 | CH188: =#VALUE! ->  | CI188: =#VALUE! -> 
C189: 0 | F189: 0 | Q189: 0 | AA189: 0 | BM189: 0 | BN189: 0 | BO189: 0 | BP189: 0 | BQ189: 0 | BR189: 0 | BS189: 0 | BT189: 0 | BU189: 0 | CB189: 0 | CC189: 0 | CD189: 0 | CH189: =#VALUE! ->  | CI189: =#VALUE! -> 
C190: 0 | F190: 0 | Q190: 0 | AA190: 0 | BM190: 0 | BN190: 0 | BO190: 0 | BP190: 0 | BQ190: 0 | BR190: 0 | BS190: 0 | BT190: 0 | BU190: 0 | CB190: 0 | CC190: 0 | CD190: 0 | CH190: =#VALUE! ->  | CI190: =#VALUE! -> 
C191: 0 | F191: 0 | Q191: 0 | AA191: 0 | BM191: 0 | BN191: 0 | BO191: 0 | BP191: 0 | BQ191: 0 | BR191: 0 | BS191: 0 | BT191: 0 | BU191: 0 | CB191: 0 | CC191: 0 | CD191: 0 | CH191: =#VALUE! ->  | CI191: =#VALUE! -> 
C192: 0 | F192: 0 | Q192: 0 | AA192: 0 | BM192: 0 | BN192: 0 | BO192: 0 | BP192: 0 | BQ192: 0 | BR192: 0 | BS192: 0 | BT192: 0 | BU192: 0 | CB192: 0 | CC192: 0 | CD192: 0 | CH192: =#VALUE! ->  | CI192: =#VALUE! -> 
C193: 0 | F193: 0 | Q193: 0 | AA193: 0 | BM193: 0 | BN193: 0 | BO193: 0 | BP193: 0 | BQ193: 0 | BR193: 0 | BS193: 0 | BT193: 0 | BU193: 0 | CB193: 0 | CC193: 0 | CD193: 0 | CH193: =#VALUE! ->  | CI193: =#VALUE! -> 
C194: 0 | F194: 0 | Q194: 0 | AA194: 0 | BM194: 0 | BN194: 0 | BO194: 0 | BP194: 0 | BQ194: 0 | BR194: 0 | BS194: 0 | BT194: 0 | BU194: 0 | CB194: 0 | CC194: 0 | CD194: 0 | CH194: =#VALUE! ->  | CI194: =#VALUE! -> 
C195: 0 | F195: 0 | Q195: 0 | AA195: 0 | BM195: 0 | BN195: 0 | BO195: 0 | BP195: 0 | BQ195: 0 | BR195: 0 | BS195: 0 | BT195: 0 | BU195: 0 | CB195: 0 | CC195: 0 | CD195: 0 | CH195: =#VALUE! ->  | CI195: =#VALUE! -> 
C196: 0 | F196: 0 | Q196: 0 | AA196: 0 | BM196: 0 | BN196: 0 | BO196: 0 | BP196: =INT(IF(H196="عامل تعاقد",I196*25/100,IF(H196="معلم مساعد",I196*25/100,IF(H196="معلم",I196*25/100,IF(H196="معلم أول",I196*25/100,IF(H196="معلم أول أ",I196*25/100,IF(H196="خبير",I196*25/100,IF(H196="كبير",I196*25/100,)))))))) -> 0 | BQ196: =INT(IF(H196="إدارى",J196*0/100,IF(H196="معلم مساعد",I196*125/100,IF(H196="معلم",I196*75/100,IF(H196="معلم أول",I196*50/100,IF(H196="معلم أول أ",I196*25/100,IF(H196="خبير",I196*25/100,IF(H196="كبير",I196*25/100,)))))))) -> 0 | BR196: =INT(IF(H196="عامل تعاقد",I196*0.9166,IF(H196="معلم تعاقد",I196*0.9166,0))) -> 0 | BS196: =INT(IF(H196="عامل تعاقد",I196*0.5,IF(H196="معلم تعاقد",I196*0.5,0))) -> 0 | BT196: =INT(IF(F196=1,I196*0.3333,0)) -> 0 | BU196: =IF(H196="عامل تعاقد",225,IF(H196="معلم تعاقد",300,0)) -> 0 | CB196: =IF($B196>0,(SUM(R196:AD196)-50),0) -> 0 | CC196: =IF(CB196<250,(CB196*0.006),IF(CB196<500,(CB196*0.0065),IF(CB196<1000,(CB196*0.007),IF(CB196<5000,(CB196*0.0075),IF(CB196>5000,(CB196*0.008)," " ))))) -> 0 | CD196: 0 | CH196: =#VALUE! ->  | CI196: =#VALUE! -> 
C197: 0 | F197: 0 | Q197: =IF(E197="متزوج",2,IF(E197="متزوج+1",4,IF(E197="متزوج+2",6,IF(E197="متزوجة",2,0)))) -> 0 | AA197: =BU197 -> 0 | BL197: =IF(H197="معلم مساعد",10,IF(H197="معلم تعاقد",10,IF(H197="معلم",10,IF(H197="معلم أول",10,IF(H197="معلم أول أ",10,IF(H197="خبير",10,IF(H197="كبير",10,IF(H197="عامل تعاقد",0,"")))))))) ->  | BM197: =IF(H197="عقد مميز",I197*0/100,IF(H197="معلم تعاقد",I197*0/100,IF(H197="معلم",I197*50/100,IF(H197="معلم أول",I197*50/100,IF(H197="معلم أول أ",I197*50/100,IF(H197="خبير",I197*50/100,IF(H197="كبير",I197*50/100,))))))) -> 0 | BN197: =IF(H197="معلم مساعد",I197*50/100,IF(H197="عامل تعاقد",I197*0/100,IF(H197="معلم",I197*50/100,IF(H197="معلم أول",I197*50/100,IF(H197="معلم أول أ",I197*50/100,IF(H197="خبير",I197*50/100,IF(H197="كبير",I197*50/100,))))))) -> 0 | BO197: 0 | BP197: 0 | BQ197: 0 | BR197: 0 | BS197: 0 | BT197: 0 | BU197: 0 | CB197: 0 | CC197: 0 | CD197: =CEILING($CC197,0.05) -> 0 | CH197: =#VALUE! ->  | CI197: =#VALUE! -> 
C198: 0 | F198: 0 | Q198: 0 | AA198: 0 | BM198: 0 | BN198: 0 | BO198: =IF(H198="إدارى",I198*0,IF(H198="معلم مساعد",I198*0/100,IF(H198="معلم",I198*50/100,IF(H198="معلم أول",I198*75/100,IF(H198="معلم أول أ",I198*100/100,IF(H198="خبير",I198*125/100,IF(H198="كبير",I198*150/100,))))))) -> 0 | BP198: 0 | BQ198: 0 | BR198: 0 | BS198: 0 | BT198: 0 | BU198: 0 | CB198: 0 | CC198: 0 | CD198: 0 | CH198: =#VALUE! ->  | CI198: =#VALUE! -> 
C199: 0 | F199: 0 | Q199: 0 | AA199: 0 | BM199: 0 | BN199: 0 | BO199: 0 | BP199: 0 | BQ199: 0 | BR199: 0 | BS199: 0 | BT199: 0 | BU199: 0 | CB199: 0 | CC199: 0 | CD199: 0 | CH199: =#VALUE! ->  | CI199: =#VALUE! -> 
C200: =IF(D200="نقابى",1,IF(D200="حالة خاصة",2,0)) -> 0 | F200: 0 | Q200: 0 | AA200: 0 | BM200: 0 | BN200: 0 | BO200: 0 | BP200: 0 | BQ200: 0 | BR200: 0 | BS200: 0 | BT200: 0 | BU200: 0 | CB200: 0 | CC200: 0 | CD200: 0 | CH200: =#VALUE! ->  | CI200: =#VALUE! -> 
... 263 more rows

Sheet كشف1
M1: ='العاملين '!BA9 -> 0 | N1: كشــــــــــــــــــــــــــــــف المرتبات عن شــــــــــــــــــــــــــــــــهر / | AQ1: =ورقة1!C3 -> مارس 2018 | AY1: =ورقة1!C3 -> مارس 2018 | BF1: ســــــــــــــــــــــــــــــــنة / | BL1: =IF($CG14>0,ورقة1!$C$5,0) -> 2018 | BR1: م | BU1: كشف 1
A2: =ورقة1!C1 -> الشهداء التعليمية | AY2: مدرسة / | BD2: =IF($CG14>0,ورقة1!$C$2," ") -> الادارة | CH2: =FLOOR(CM14,0.05) -> 0
A3: ='العاملين '!CA10 -> 1370 | B3: الاســــــــــــــــــــــــــتحـــــــــــــــــــــــــــــــــقــــــــــــــــــــــــــــــــــــــــــــــــــــــــــــــــــــــــــاقـــــــــــــــــــــــــــــــــــات | AX3: جملة الاستــــحقــاقات | AY3: الأســـــــــــــــــــــــــــــــــــــتـــــــقـــــــــــــــــطاعـــــــــــــــــات | CE3: جملة الأستقطاعات | CF3: الصافي المستحق | CG3: الاســـــــــــــــــــم | CH3: التوقيع بالاســــــــــــتلام | CI3: صافي الشهر السابق | CK3: اسم البنك
A4: م | B4: الاجور الاســــــــــــــــــــــــــاسية | G4: الجملة | H4: الاجور المتغيرة الخاضعة بكامل قيمتها للتأمينات والمعاشات | M4: الجملة | N4: الاجور المتغيرة الاخري بنسبة % | AO4: الجملة | AP4: ='العاملين '!CA5 -> 2800 | AQ4: غير خاضع | AR4: حصص الاجور المتغيرة | AU4: الجملة | AV4: منحة | AW4: انقطاع | AY4: لحســــــــــــــــــــاب الهيئة القوميـــــــــــــــــــــة للتـــــــــــــــــأمين الإجتـــــــــــــــــــــــــماعي | BR4: لحساب جاري دائنة مصلحة الضرائب | BU4: لحساب دائنين مختلفين
AP5: خاضع | AY5: استقطاعات الأجور الاســــــــــــــــــاسية | BG5: استقطاعات الأجور المتغيرة | BL5: الأقساط الخاصة عن الأجور الأساسية | BR5: ضريبة دخل | BS5: دمغة عادية | BT5: دمغة نسبية
B6: المرتب | C6: حصة الحكومة 15% | D6: 0.01 | E6: أل 2 % | F6: أ ل3 % | H6: علاوة 2012 | I6: علاوة 2013 | J6: علاوة 2014 | K6: علاوة 2015 | L6: علاوة 2016 | N6: ='العاملين '!P2 -> ع اجتماعية | O6: ='العاملين '!Q2 -> ع اجتماعيةاضافية | P6: ='العاملين '!R2 -> أعباء وظيفية | Q6: ='العاملين '!AA2 -> الحدالادنى | R6: ='العاملين '!S2 -> بدل نظارة | S6: ='العاملين '!T2 -> حافز مدير | T6: ='العاملين '!U2 -> بدل تفرغ | U6: ='العاملين '!V2 -> بدل تجاريين | V6: ='العاملين '!W2 -> بدل عدوي | W6: ='العاملين '!X2 -> حافز ماجستير | X6: ='العاملين '!Y2 -> حافزدكتوراة | Y6: ='العاملين '!Z2 -> بدل تسكين | Z6: ='العاملين '!BM2 -> بدل معلم اضافى | AA6: ='العاملين '!BN2 -> بدل معلم | AB6: ='العاملين '!BO2 -> بدل اعتماد | AC6: ='العاملين '!BP2 -> حافز 25 % | AD6: ='العاملين '!BQ2 -> حافز أداء | AE6: ='العاملين '!BR2 -> الـ91.5 | AF6: ='العاملين '!BS2 -> ال50% | AG6: ='العاملين '!BT2 -> ال 33% | AH6: الاجر الوظيفي | AI6: الاجر المكمل | AJ6: الحافزالتعويضي | AK6: ='العاملين '!AD2 -> اكتب ما تشاء | AL6: ='العاملين '!AE2 -> اكتب ما تشاء | AM6: ='العاملين '!AF2 -> اكتب ما تشاء | AN6: ='العاملين '!AG2 -> اكتب ما تشاء | AR6: ألـ 15 % | AS6: ألـ 1 % | AT6: ألـ 3% | AY6: حصة الحكومة 15% | AZ6: إصابة عمل 1% | BA6: الـ 2% | BC6: حصة الموظف 10% | BD6: ال8% | BE6: ألـ 3% | BF6: ألـ 1 % | BG6: حصة الحكومة 15% | BH6: إصابة عمل 1% | BI6: حصة الموظف 10% | BJ6: ال3% | BK6: ال1% | BL6: زمالة 7 % | BM6: زمالة جماعى | BN6: نقابه | BO6: رابطة | BP6: نادى محافظة | BQ6: نادي الادارة | BU6: ='العاملين '!AP2 -> أرباب عهد | BV6: ='العاملين '!AQ2 -> خدمات عمالية | BW6: ='العاملين '!AR2 -> نقابة بحث علمى 5% | BX6: ='العاملين '!AS3 -> ناصر | BY6: ='العاملين '!AT3 -> القاهرة | BZ6: ='العاملين '!AU3 -> الاهلى | CA6: ='العاملين '!AV3 -> اكتب ما تشاء | CB6: ='العاملين '!AV3 -> اكتب ما تشاء | CC6: ='العاملين '!AX2 -> نصف العلاوة | CD6: كسر قرش | CN6: ='العاملين '!CA10 -> 1370
A7: 1 | B7: =IF($CH7>0,VLOOKUP($CH7,'العاملين '!$A$3:$AR$260,10),0) -> 652.6 | C7: =ROUND(IF(B7<=$CN$6,B7*0.15,$CN$6*0.15),2) -> 97.89 | D7: =ROUND(IF(B7<$A$3,B7*$D$6,IF(B7>=$A$3,$D$6*$A$3)),2) -> 6.53 | E7: =ROUND(IF(B7<=$CN$6,B7*0.02,$CN$6*0.02),2) -> 13.05 | F7: =ROUND(IF(B7<=$CN$6,B7*0.03,$CN$6*0.03),2) -> 19.58 | G7: =IF($B7>0,SUM(B7:F7)," ") -> 789.65 | H7: =IF($CH7>0,VLOOKUP($CH7,'العاملين '!$A$3:$AR$260,11),0) -> 0 | I7: =IF($CH7>0,VLOOKUP($CH7,'العاملين '!$A$3:$AR$260,12),0) -> 32.54 | J7: =IF($CH7>0,VLOOKUP($CH7,'العاملين '!$A$3:$AR$260,13),0) -> 33.04 | K7: =IF($CH7>0,VLOOKUP($CH7,'العاملين '!$A$3:$AR$260,14),0) -> 35.19 | L7: =IF($CH7>0,VLOOKUP($CH7,'العاملين '!$A$3:$AR$260,15),0) -> 0 | M7: =IF($B7>0,SUM(H7:L7),0) -> 100.77 | N7: =IF($CH7>0,VLOOKUP($CH7,'العاملين '!$A$3:$AR$260,16),0) -> 4 | O7: =IF($CH7>0,VLOOKUP($CH7,'العاملين '!$A$3:$AR$260,17),0) -> 4 | P7: =IF($CH7>0,VLOOKUP($CH7,'العاملين '!$A$3:$AR$260,18),0) -> 0 | Q7: =IF($CH7>0,VLOOKUP($CH7,'العاملين '!$A$3:$AR$260,27),0) -> 0 | R7: =IF($CH7>0,VLOOKUP($CH7,'العاملين '!$A$3:$AR$260,19),0) -> 0 | S7: =IF($CH7>0,VLOOKUP($CH7,'العاملين '!$A$3:$AR$260,20),0) -> 0 | T7: =IF($CH7>0,VLOOKUP($CH7,'العاملين '!$A$3:$AR$260,21),0) -> 0 | U7: =IF($CH7>0,VLOOKUP($CH7,'العاملين '!$A$3:$AR$260,22),0) -> 0 | V7: =IF($CH7>0,VLOOKUP($CH7,'العاملين '!$A$3:$AR$260,23),0) -> 0 | W7: =IF($CH7>0,VLOOKUP($CH7,'العاملين '!$A$3:$AR$260,24),0) -> 0 | X7: =IF($CH7>0,VLOOKUP($CH7,'العاملين '!$A$3:$AR$260,25),0) -> 0 | Y7: =IF($CH7>0,VLOOKUP($CH7,'العاملين '!$A$3:$AR$260,26),0) -> 0 | Z7: =IF($CH7>0,VLOOKUP($CH7,'العاملين '!$A$3:$CR$260,65),0) -> 175.98 | AA7: =IF($CH7>0,VLOOKUP($CH7,'العاملين '!$A$3:$CR$260,66),0) -> 175.98 | AB7: =IF($CH7>0,VLOOKUP($CH7,'العاملين '!$A$3:$CR$260,67),0) -> 263.97 | AC7: =IF($CH7>0,VLOOKUP($CH7,'العاملين '!$A$3:$CR$260,68),0) -> 87 | AD7: =IF($CH7>0,VLOOKUP($CH7,'العاملين '!$A$3:$CR$260,69),0) -> 175 | AE7: =IF($CH7>0,VLOOKUP($CH7,'العاملين '!$A$3:$CR$260,70),0) -> 0 | AF7: =IF($CH7>0,VLOOKUP($CH7,'العاملين '!$A$3:$CR$260,71),0) -> 0 | AG7: =IF($CH7>0,VLOOKUP($CH7,'العاملين '!$A$3:$CR$260,72),0) -> 0 | AN7: =IF($CH7>0,VLOOKUP($CH7,'العاملين '!$A$3:$AR$260,25),0) -> 0 | AO7: =SUM(M7:AN7) -> 986.7 | AP7: =IF(AO7>$AP$4,$AP$4,AO7) -> 986.7 | AQ7: =AO7-AP7 -> 0 | AR7: =ROUND(($AP7)*15%,2) -> 148.01 | AS7: =ROUND(($AP7)*1%,2) -> 9.87 | AT7: =ROUND(($AP7)*3%,2) -> 29.6 | AU7: =SUM(AR7:AT7) -> 187.48 | AV7: =IF($CH7>0,VLOOKUP($CH7,'العاملين '!$A$3:$CR$260,64),0) -> 10 | AW7: =IF($CH7>0,VLOOKUP($CH7,'العاملين '!$A$3:$CR$260,52),0) -> 0 | AX7: =SUM(AV7,AU7,AO7,G7,AW7) -> 1973.83 | AY7: =ROUND(IF(B7<=$CN$6,B7*0.15,$CN$6*0.15),2) -> 97.89 | AZ7: =ROUND(IF(B7<=$CN$6,B7*0.01,$CN$6*0.01),2) -> 6.53 | BA7: =ROUND(IF(B7<=$CN$6,B7*0.02,$CN$6*0.02),2) -> 13.05 | BC7: =IF($B7>0,ROUND(($B7)*10%,2)," ") -> 65.26 | BD7: =ROUND(IF(B7<=$CN$6,B7*0.08,$CN$6*0.08),2) -> 52.21 | BE7: =ROUND(IF(B7<=$CN$6,B7*0.03,$CN$6*0.03),2) -> 19.58 | BF7: =ROUND(IF(B7<=$CN$6,B7*0.01,$CN$6*0.01),2) -> 6.53 | BG7: =AR7 -> 148.01 | BH7: =AS7 -> 9.87 | BI7: =ROUND(($AP7)*10%,2) -> 98.67 | BJ7: =AT7 -> 29.6 | BK7: =AS7 -> 9.87 | BL7: =IF($CJ7=1,ROUND(($B7)*7%,2),IF($CJ7=2,VLOOKUP($CH7,'العاملين '!$A$3:$CT$260,53),0)) -> 45.68 | BM7: =IF($CJ7=1,0.5,IF($CJ7=2,VLOOKUP($CH7,'العاملين '!$A$3:$CS$260,54),0)) -> 0.5 | BN7: =IF($CJ7=1,4.5,IF($CJ7=2,VLOOKUP($CH7,'العاملين '!$A$3:$CT$260,55),0)) -> 4.5 | BO7: =IF($CH7>0,VLOOKUP($CH7,'العاملين '!$A$3:$AR$260,38),0) -> 1 | BP7: =IF($CJ7=1,0.2,IF($CJ7=2,VLOOKUP($CH7,'العاملين '!$A$3:$CT$260,55),0)) -> 0.2 | BQ7: =IF($CJ7=1,0.05,IF($CJ7=2,VLOOKUP($CH7,'العاملين '!$A$3:$CT$260,55),0)) -> 0.05 | BR7: =IF($CH7>0,VLOOKUP($CH7,'العاملين '!$A$3:$AR$260,39),0) -> 10.65 | BS7: =IF($CH7>0,VLOOKUP($CH7,'العاملين '!$A$3:$AR$260,40),0) -> 11.15 | BT7: =IF($CH7>0,VLOOKUP($CH7,'العاملين '!$A$3:$AR$260,41),0) -> 0 | BU7: =IF($CH7>0,VLOOKUP($CH7,'العاملين '!$A$3:$AR$260,42),0) -> 0 | BV7: =IF($CH7>0,VLOOKUP($CH7,'العاملين '!$A$3:$AR$260,43),0) -> 0 | BW7: =IF($CH7>0,VLOOKUP($CH7,'العاملين '!$A$3:$AR$260,44),0) -> 0 | BX7: =IF($CH7>0,VLOOKUP($CH7,'العاملين '!$A$3:$CR$260,45),0) -> 0 | BY7: =IF($CH7>0,VLOOKUP($CH7,'العاملين '!$A$3:$CR$260,46),0) -> 0 | BZ7: =IF($CH7>0,VLOOKUP($CH7,'العاملين '!$A$3:$CR$260,47),0) -> 0 | CA7: =IF($CH7>0,VLOOKUP($CH7,'العاملين '!$A$3:$CR$260,48),0) -> 0 | CC7: =IF($CH7>0,VLOOKUP($CH7,'العاملين '!$A$3:$AR$260,41),0) -> 0 | CD7: =CL7-CF7 -> 0.03 | CE7: =SUM(AY7:CD7) -> 630.83 | CF7: =FLOOR(CL7,0.05) -> 1343 | CG7: =IF($CH7>0,VLOOKUP($CH7,'العاملين '!$A$3:$AR$260,2),0) -> محمد20 | CH7: 20 | CJ7: =IF($CH7>0,VLOOKUP($CH7,'العاملين '!$A$3:$CR$260,3),0) -> 1 | CK7: =IF($CH7>0,VLOOKUP($CH7,'العاملين '!$A$3:$CR$260,49),0) -> 0 | CL7: =AX7-SUM(AY7:CC7) -> 1343.03 | CN7: ='العاملين '!BA10 -> 0
A8: 2 | B8: =IF($CH8>0,VLOOKUP($CH8,'العاملين '!$A$3:$AR$260,10),0) -> 652.6 | C8: =ROUND(IF(B8<=$CN$6,B8*0.15,$CN$6*0.15),2) -> 97.89 | D8: =ROUND(IF(B8<$A$3,B8*$D$6,IF(B8>=$A$3,$D$6*$A$3)),2) -> 6.53 | E8: =ROUND(IF(B8<=$CN$6,B8*0.02,$CN$6*0.02),2) -> 13.05 | F8: =ROUND(IF(B8<=$CN$6,B8*0.03,$CN$6*0.03),2) -> 19.58 | G8: =IF($B8>0,SUM(B8:F8)," ") -> 789.65 | H8: =IF($CH8>0,VLOOKUP($CH8,'العاملين '!$A$3:$AR$260,11),0) -> 0 | I8: =IF($CH8>0,VLOOKUP($CH8,'العاملين '!$A$3:$AR$260,12),0) -> 32.54 | J8: =IF($CH8>0,VLOOKUP($CH8,'العاملين '!$A$3:$AR$260,13),0) -> 33.04 | K8: =IF($CH8>0,VLOOKUP($CH8,'العاملين '!$A$3:$AR$260,14),0) -> 35.19 | L8: =IF($CH8>0,VLOOKUP($CH8,'العاملين '!$A$3:$AR$260,15),0) -> 0 | M8: =IF($B8>0,SUM(H8:L8),0) -> 100.77 | N8: =IF($CH8>0,VLOOKUP($CH8,'العاملين '!$A$3:$AR$260,16),0) -> 4 | O8: =IF($CH8>0,VLOOKUP($CH8,'العاملين '!$A$3:$AR$260,17),0) -> 4 | P8: =IF($CH8>0,VLOOKUP($CH8,'العاملين '!$A$3:$AR$260,18),0) -> 0 | Q8: =IF($CH8>0,VLOOKUP($CH8,'العاملين '!$A$3:$AR$260,27),0) -> 0 | R8: =IF($CH8>0,VLOOKUP($CH8,'العاملين '!$A$3:$AR$260,19),0) -> 0 | S8: =IF($CH8>0,VLOOKUP($CH8,'العاملين '!$A$3:$AR$260,20),0) -> 0 | T8: =IF($CH8>0,VLOOKUP($CH8,'العاملين '!$A$3:$AR$260,21),0) -> 0 | U8: =IF($CH8>0,VLOOKUP($CH8,'العاملين '!$A$3:$AR$260,22),0) -> 0 | V8: =IF($CH8>0,VLOOKUP($CH8,'العاملين '!$A$3:$AR$260,23),0) -> 0 | W8: =IF($CH8>0,VLOOKUP($CH8,'العاملين '!$A$3:$AR$260,24),0) -> 0 | X8: =IF($CH8>0,VLOOKUP($CH8,'العاملين '!$A$3:$AR$260,25),0) -> 0 | Y8: =IF($CH8>0,VLOOKUP($CH8,'العاملين '!$A$3:$AR$260,26),0) -> 0 | Z8: =IF($CH8>0,VLOOKUP($CH8,'العاملين '!$A$3:$CR$260,65),0) -> 175.98 | AA8: =IF($CH8>0,VLOOKUP($CH8,'العاملين '!$A$3:$CR$260,66),0) -> 175.98 | AB8: =IF($CH8>0,VLOOKUP($CH8,'العاملين '!$A$3:$CR$260,67),0) -> 263.97 | AC8: =IF($CH8>0,VLOOKUP($CH8,'العاملين '!$A$3:$CR$260,68),0) -> 87 | AD8: =IF($CH8>0,VLOOKUP($CH8,'العاملين '!$A$3:$CR$260,69),0) -> 175 | AE8: =IF($CH8>0,VLOOKUP($CH8,'العاملين '!$A$3:$CR$260,70),0) -> 0 | AF8: =IF($CH8>0,VLOOKUP($CH8,'العاملين '!$A$3:$CR$260,71),0) -> 0 | AG8: =IF($CH8>0,VLOOKUP($CH8,'العاملين '!$A$3:$CR$260,72),0) -> 0 | AN8: =IF($CH8>0,VLOOKUP($CH8,'العاملين '!$A$3:$AR$260,25),0) -> 0 | AO8: =SUM(M8:AN8) -> 986.7 | AP8: =IF(AO8>$AP$4,$AP$4,AO8) -> 986.7 | AQ8: =AO8-AP8 -> 0 | AR8: =ROUND(($AP8)*15%,2) -> 148.01 | AS8: =ROUND(($AP8)*1%,2) -> 9.87 | AT8: =ROUND(($AP8)*3%,2) -> 29.6 | AU8: =SUM(AR8:AT8) -> 187.48 | AV8: =IF($CH8>0,VLOOKUP($CH8,'العاملين '!$A$3:$CR$260,64),0) -> 10 | AW8: =IF($CH8>0,VLOOKUP($CH8,'العاملين '!$A$3:$CR$260,52),0) -> 0 | AX8: =SUM(AV8,AU8,AO8,G8,AW8) -> 1973.83 | AY8: =ROUND(IF(B8<=$CN$6,B8*0.15,$CN$6*0.15),2) -> 97.89 | AZ8: =ROUND(IF(B8<=$CN$6,B8*0.01,$CN$6*0.01),2) -> 6.53 | BA8: =ROUND(IF(B8<=$CN$6,B8*0.02,$CN$6*0.02),2) -> 13.05 | BC8: =IF($B8>0,ROUND(($B8)*10%,2)," ") -> 65.26 | BD8: =ROUND(IF(B8<=$CN$6,B8*0.08,$CN$6*0.08),2) -> 52.21 | BE8: =ROUND(IF(B8<=$CN$6,B8*0.03,$CN$6*0.03),2) -> 19.58 | BF8: =ROUND(IF(B8<=$CN$6,B8*0.01,$CN$6*0.01),2) -> 6.53 | BG8: =AR8 -> 148.01 | BH8: 9.87 | BI8: 98.67 | BJ8: =AT8 -> 29.6 | BK8: =AS8 -> 9.87 | BL8: =IF($CJ8=1,ROUND(($B8)*7%,2),IF($CJ8=2,VLOOKUP($CH8,'العاملين '!$A$3:$CT$260,53),0)) -> 45.68 | BM8: =IF($CJ8=1,0.5,IF($CJ8=2,VLOOKUP($CH8,'العاملين '!$A$3:$CS$260,54),0)) -> 0.5 | BN8: =IF($CJ8=1,4.5,IF($CJ8=2,VLOOKUP($CH8,'العاملين '!$A$3:$CT$260,55),0)) -> 4.5 | BO8: =IF($CH8>0,VLOOKUP($CH8,'العاملين '!$A$3:$AR$260,38),0) -> 1 | BP8: =IF($CJ8=1,0.2,IF($CJ8=2,VLOOKUP($CH8,'العاملين '!$A$3:$CT$260,55),0)) -> 0.2 | BQ8: =IF($CJ8=1,0.05,IF($CJ8=2,VLOOKUP($CH8,'العاملين '!$A$3:$CT$260,55),0)) -> 0.05 | BR8: =IF($CH8>0,VLOOKUP($CH8,'العاملين '!$A$3:$AR$260,39),0) -> 10.65 | BS8: =IF($CH8>0,VLOOKUP($CH8,'العاملين '!$A$3:$AR$260,40),0) -> 11.15 | BT8: =IF($CH8>0,VLOOKUP($CH8,'العاملين '!$A$3:$AR$260,41),0) -> 0 | BU8: =IF($CH8>0,VLOOKUP($CH8,'العاملين '!$A$3:$AR$260,42),0) -> 0 | BV8: =IF($CH8>0,VLOOKUP($CH8,'العاملين '!$A$3:$AR$260,43),0) -> 0 | BW8: =IF($CH8>0,VLOOKUP($CH8,'العاملين '!$A$3:$AR$260,44),0) -> 0 | BX8: =IF($CH8>0,VLOOKUP($CH8,'العاملين '!$A$3:$CR$260,45),0) -> 0 | BY8: =IF($CH8>0,VLOOKUP($CH8,'العاملين '!$A$3:$CR$260,46),0) -> 0 | BZ8: =IF($CH8>0,VLOOKUP($CH8,'العاملين '!$A$3:$CR$260,47),0) -> 0 | CA8: =IF($CH8>0,VLOOKUP($CH8,'العاملين '!$A$3:$CR$260,48),0) -> 0 | CC8: =IF($CH8>0,VLOOKUP($CH8,'العاملين '!$A$3:$AR$260,41),0) -> 0 | CD8: =CL8-CF8 -> 0.03 | CE8: =SUM(AY8:CD8) -> 630.83 | CF8: =FLOOR(CL8,0.05) -> 1343 | CG8: =IF($CH8>0,VLOOKUP($CH8,'العاملين '!$A$3:$AR$260,2),0) -> محمد20 | CH8: 20 | CJ8: =IF($CH8>0,VLOOKUP($CH8,'العاملين '!$A$3:$CR$260,3),0) -> 1 | CK8: =IF($CH8>0,VLOOKUP($CH8,'العاملين '!$A$3:$CR$260,49),0) -> 0 | CL8: =AX8-SUM(AY8:CC8) -> 1343.03
A9: 3 | B9: =IF($CH9>0,VLOOKUP($CH9,'العاملين '!$A$3:$AR$260,10),0) -> 652.6 | C9: 97.89 | D9: =ROUND(IF(B9<$A$3,B9*$D$6,IF(B9>=$A$3,$D$6*$A$3)),2) -> 6.53 | E9: 13.05 | F9: 19.58 | G9: 789.65 | H9: =IF($CH9>0,VLOOKUP($CH9,'العاملين '!$A$3:$AR$260,11),0) -> 0 | I9: =IF($CH9>0,VLOOKUP($CH9,'العاملين '!$A$3:$AR$260,12),0) -> 32.54 | J9: =IF($CH9>0,VLOOKUP($CH9,'العاملين '!$A$3:$AR$260,13),0) -> 33.04 | K9: =IF($CH9>0,VLOOKUP($CH9,'العاملين '!$A$3:$AR$260,14),0) -> 35.19 | L9: =IF($CH9>0,VLOOKUP($CH9,'العاملين '!$A$3:$AR$260,15),0) -> 0 | M9: 100.77 | N9: =IF($CH9>0,VLOOKUP($CH9,'العاملين '!$A$3:$AR$260,16),0) -> 4 | O9: =IF($CH9>0,VLOOKUP($CH9,'العاملين '!$A$3:$AR$260,17),0) -> 4 | P9: =IF($CH9>0,VLOOKUP($CH9,'العاملين '!$A$3:$AR$260,18),0) -> 0 | Q9: =IF($CH9>0,VLOOKUP($CH9,'العاملين '!$A$3:$AR$260,27),0) -> 0 | R9: =IF($CH9>0,VLOOKUP($CH9,'العاملين '!$A$3:$AR$260,19),0) -> 0 | S9: =IF($CH9>0,VLOOKUP($CH9,'العاملين '!$A$3:$AR$260,20),0) -> 0 | T9: =IF($CH9>0,VLOOKUP($CH9,'العاملين '!$A$3:$AR$260,21),0) -> 0 | U9: =IF($CH9>0,VLOOKUP($CH9,'العاملين '!$A$3:$AR$260,22),0) -> 0 | V9: =IF($CH9>0,VLOOKUP($CH9,'العاملين '!$A$3:$AR$260,23),0) -> 0 | W9: =IF($CH9>0,VLOOKUP($CH9,'العاملين '!$A$3:$AR$260,24),0) -> 0 | X9: =IF($CH9>0,VLOOKUP($CH9,'العاملين '!$A$3:$AR$260,25),0) -> 0 | Y9: =IF($CH9>0,VLOOKUP($CH9,'العاملين '!$A$3:$AR$260,26),0) -> 0 | Z9: =IF($CH9>0,VLOOKUP($CH9,'العاملين '!$A$3:$CR$260,65),0) -> 175.98 | AA9: =IF($CH9>0,VLOOKUP($CH9,'العاملين '!$A$3:$CR$260,66),0) -> 175.98 | AB9: =IF($CH9>0,VLOOKUP($CH9,'العاملين '!$A$3:$CR$260,67),0) -> 263.97 | AC9: =IF($CH9>0,VLOOKUP($CH9,'العاملين '!$A$3:$CR$260,68),0) -> 87 | AD9: =IF($CH9>0,VLOOKUP($CH9,'العاملين '!$A$3:$CR$260,69),0) -> 175 | AE9: =IF($CH9>0,VLOOKUP($CH9,'العاملين '!$A$3:$CR$260,70),0) -> 0 | AF9: =IF($CH9>0,VLOOKUP($CH9,'العاملين '!$A$3:$CR$260,71),0) -> 0 | AG9: =IF($CH9>0,VLOOKUP($CH9,'العاملين '!$A$3:$CR$260,72),0) -> 0 | AN9: =IF($CH9>0,VLOOKUP($CH9,'العاملين '!$A$3:$AR$260,25),0) -> 0 | AO9: 986.7 | AP9: 986.7 | AQ9: 0 | AR9: 148.01 | AS9: 9.87 | AT9: 29.6 | AU9: 187.48 | AV9: =IF($CH9>0,VLOOKUP($CH9,'العاملين '!$A$3:$CR$260,64),0) -> 10 | AW9: =IF($CH9>0,VLOOKUP($CH9,'العاملين '!$A$3:$CR$260,52),0) -> 0 | AX9: 1973.83 | AY9: 97.89 | AZ9: 6.53 | BA9: 13.05 | BC9: 65.26 | BD9: 52.21 | BE9: 19.58 | BF9: 6.53 | BG9: 148.01 | BH9: 9.87 | BI9: 98.67 | BJ9: 29.6 | BK9: 9.87 | BL9: =IF($CJ9=1,ROUND(($B9)*7%,2),IF($CJ9=2,VLOOKUP($CH9,'العاملين '!$A$3:$CT$260,53),0)) -> 45.68 | BM9: =IF($CJ9=1,0.5,IF($CJ9=2,VLOOKUP($CH9,'العاملين '!$A$3:$CS$260,54),0)) -> 0.5 | BN9: =IF($CJ9=1,4.5,IF($CJ9=2,VLOOKUP($CH9,'العاملين '!$A$3:$CT$260,55),0)) -> 4.5 | BO9: =IF($CH9>0,VLOOKUP($CH9,'العاملين '!$A$3:$AR$260,38),0) -> 1 | BP9: =IF($CJ9=1,0.2,IF($CJ9=2,VLOOKUP($CH9,'العاملين '!$A$3:$CT$260,55),0)) -> 0.2 | BQ9: =IF($CJ9=1,0.05,IF($CJ9=2,VLOOKUP($CH9,'العاملين '!$A$3:$CT$260,55),0)) -> 0.05 | BR9: =IF($CH9>0,VLOOKUP($CH9,'العاملين '!$A$3:$AR$260,39),0) -> 10.65 | BS9: =IF($CH9>0,VLOOKUP($CH9,'العاملين '!$A$3:$AR$260,40),0) -> 11.15 | BT9: =IF($CH9>0,VLOOKUP($CH9,'العاملين '!$A$3:$AR$260,41),0) -> 0 | BU9: =IF($CH9>0,VLOOKUP($CH9,'العاملين '!$A$3:$AR$260,42),0) -> 0 | BV9: =IF($CH9>0,VLOOKUP($CH9,'العاملين '!$A$3:$AR$260,43),0) -> 0 | BW9: =IF($CH9>0,VLOOKUP($CH9,'العاملين '!$A$3:$AR$260,44),0) -> 0 | BX9: =IF($CH9>0,VLOOKUP($CH9,'العاملين '!$A$3:$CR$260,45),0) -> 0 | BY9: =IF($CH9>0,VLOOKUP($CH9,'العاملين '!$A$3:$CR$260,46),0) -> 0 | BZ9: =IF($CH9>0,VLOOKUP($CH9,'العاملين '!$A$3:$CR$260,47),0) -> 0 | CA9: =IF($CH9>0,VLOOKUP($CH9,'العاملين '!$A$3:$CR$260,48),0) -> 0 | CC9: =IF($CH9>0,VLOOKUP($CH9,'العاملين '!$A$3:$AR$260,41),0) -> 0 | CD9: 0.03 | CE9: 630.83 | CF9: 1343 | CG9: =IF($CH9>0,VLOOKUP($CH9,'العاملين '!$A$3:$AR$260,2),0) -> محمد20 | CH9: 20 | CJ9: =IF($CH9>0,VLOOKUP($CH9,'العاملين '!$A$3:$CR$260,3),0) -> 1 | CK9: =IF($CH9>0,VLOOKUP($CH9,'العاملين '!$A$3:$CR$260,49),0) -> 0 | CL9: =AX9-SUM(AY9:CC9) -> 1343.03
A10: 4 | B10: =IF($CH10>0,VLOOKUP($CH10,'العاملين '!$A$3:$AR$260,10),0) -> 652.6 | C10: 97.89 | D10: =ROUND(IF(B10<$A$3,B10*$D$6,IF(B10>=$A$3,$D$6*$A$3)),2) -> 6.53 | E10: 13.05 | F10: 19.58 | G10: 789.65 | H10: =IF($CH10>0,VLOOKUP($CH10,'العاملين '!$A$3:$AR$260,11),0) -> 0 | I10: =IF($CH10>0,VLOOKUP($CH10,'العاملين '!$A$3:$AR$260,12),0) -> 32.54 | J10: =IF($CH10>0,VLOOKUP($CH10,'العاملين '!$A$3:$AR$260,13),0) -> 33.04 | K10: =IF($CH10>0,VLOOKUP($CH10,'العاملين '!$A$3:$AR$260,14),0) -> 35.19 | L10: =IF($CH10>0,VLOOKUP($CH10,'العاملين '!$A$3:$AR$260,15),0) -> 0 | M10: 100.77 | N10: =IF($CH10>0,VLOOKUP($CH10,'العاملين '!$A$3:$AR$260,16),0) -> 4 | O10: =IF($CH10>0,VLOOKUP($CH10,'العاملين '!$A$3:$AR$260,17),0) -> 4 | P10: =IF($CH10>0,VLOOKUP($CH10,'العاملين '!$A$3:$AR$260,18),0) -> 0 | Q10: =IF($CH10>0,VLOOKUP($CH10,'العاملين '!$A$3:$AR$260,27),0) -> 0 | R10: =IF($CH10>0,VLOOKUP($CH10,'العاملين '!$A$3:$AR$260,19),0) -> 0 | S10: =IF($CH10>0,VLOOKUP($CH10,'العاملين '!$A$3:$AR$260,20),0) -> 0 | T10: =IF($CH10>0,VLOOKUP($CH10,'العاملين '!$A$3:$AR$260,21),0) -> 0 | U10: =IF($CH10>0,VLOOKUP($CH10,'العاملين '!$A$3:$AR$260,22),0) -> 0 | V10: =IF($CH10>0,VLOOKUP($CH10,'العاملين '!$A$3:$AR$260,23),0) -> 0 | W10: =IF($CH10>0,VLOOKUP($CH10,'العاملين '!$A$3:$AR$260,24),0) -> 0 | X10: =IF($CH10>0,VLOOKUP($CH10,'العاملين '!$A$3:$AR$260,25),0) -> 0 | Y10: =IF($CH10>0,VLOOKUP($CH10,'العاملين '!$A$3:$AR$260,26),0) -> 0 | Z10: =IF($CH10>0,VLOOKUP($CH10,'العاملين '!$A$3:$CR$260,65),0) -> 175.98 | AA10: =IF($CH10>0,VLOOKUP($CH10,'العاملين '!$A$3:$CR$260,66),0) -> 175.98 | AB10: =IF($CH10>0,VLOOKUP($CH10,'العاملين '!$A$3:$CR$260,67),0) -> 263.97 | AC10: =IF($CH10>0,VLOOKUP($CH10,'العاملين '!$A$3:$CR$260,68),0) -> 87 | AD10: =IF($CH10>0,VLOOKUP($CH10,'العاملين '!$A$3:$CR$260,69),0) -> 175 | AE10: =IF($CH10>0,VLOOKUP($CH10,'العاملين '!$A$3:$CR$260,70),0) -> 0 | AF10: =IF($CH10>0,VLOOKUP($CH10,'العاملين '!$A$3:$CR$260,71),0) -> 0 | AG10: =IF($CH10>0,VLOOKUP($CH10,'العاملين '!$A$3:$CR$260,72),0) -> 0 | AN10: =IF($CH10>0,VLOOKUP($CH10,'العاملين '!$A$3:$AR$260,25),0) -> 0 | AO10: 986.7 | AP10: 986.7 | AQ10: 0 | AR10: 148.01 | AS10: 9.87 | AT10: 29.6 | AU10: 187.48 | AV10: =IF($CH10>0,VLOOKUP($CH10,'العاملين '!$A$3:$CR$260,64),0) -> 10 | AW10: =IF($CH10>0,VLOOKUP($CH10,'العاملين '!$A$3:$CR$260,52),0) -> 0 | AX10: 1973.83 | AY10: 97.89 | AZ10: 6.53 | BA10: 13.05 | BC10: 65.26 | BD10: 52.21 | BE10: 19.58 | BF10: 6.53 | BG10: 148.01 | BH10: 9.87 | BI10: 98.67 | BJ10: 29.6 | BK10: 9.87 | BL10: =IF($CJ10=1,ROUND(($B10)*7%,2),IF($CJ10=2,VLOOKUP($CH10,'العاملين '!$A$3:$CT$260,53),0)) -> 45.68 | BM10: =IF($CJ10=1,0.5,IF($CJ10=2,VLOOKUP($CH10,'العاملين '!$A$3:$CS$260,54),0)) -> 0.5 | BN10: =IF($CJ10=1,4.5,IF($CJ10=2,VLOOKUP($CH10,'العاملين '!$A$3:$CT$260,55),0)) -> 4.5 | BO10: =IF($CH10>0,VLOOKUP($CH10,'العاملين '!$A$3:$AR$260,38),0) -> 1 | BP10: =IF($CJ10=1,0.2,IF($CJ10=2,VLOOKUP($CH10,'العاملين '!$A$3:$CT$260,55),0)) -> 0.2 | BQ10: =IF($CJ10=1,0.05,IF($CJ10=2,VLOOKUP($CH10,'العاملين '!$A$3:$CT$260,55),0)) -> 0.05 | BR10: =IF($CH10>0,VLOOKUP($CH10,'العاملين '!$A$3:$AR$260,39),0) -> 10.65 | BS10: =IF($CH10>0,VLOOKUP($CH10,'العاملين '!$A$3:$AR$260,40),0) -> 11.15 | BT10: =IF($CH10>0,VLOOKUP($CH10,'العاملين '!$A$3:$AR$260,41),0) -> 0 | BU10: =IF($CH10>0,VLOOKUP($CH10,'العاملين '!$A$3:$AR$260,42),0) -> 0 | BV10: =IF($CH10>0,VLOOKUP($CH10,'العاملين '!$A$3:$AR$260,43),0) -> 0 | BW10: =IF($CH10>0,VLOOKUP($CH10,'العاملين '!$A$3:$AR$260,44),0) -> 0 | BX10: =IF($CH10>0,VLOOKUP($CH10,'العاملين '!$A$3:$CR$260,45),0) -> 0 | BY10: =IF($CH10>0,VLOOKUP($CH10,'العاملين '!$A$3:$CR$260,46),0) -> 0 | BZ10: =IF($CH10>0,VLOOKUP($CH10,'العاملين '!$A$3:$CR$260,47),0) -> 0 | CA10: =IF($CH10>0,VLOOKUP($CH10,'العاملين '!$A$3:$CR$260,48),0) -> 0 | CC10: =IF($CH10>0,VLOOKUP($CH10,'العاملين '!$A$3:$AR$260,41),0) -> 0 | CD10: 0.03 | CE10: 630.83 | CF10: 1343 | CG10: =IF($CH10>0,VLOOKUP($CH10,'العاملين '!$A$3:$AR$260,2),0) -> محمد20 | CH10: 20 | CJ10: =IF($CH10>0,VLOOKUP($CH10,'العاملين '!$A$3:$CR$260,3),0) -> 1 | CK10: =IF($CH10>0,VLOOKUP($CH10,'العاملين '!$A$3:$CR$260,49),0) -> 0 | CL10: 1343.03
A11: 5 | B11: =IF($CH11>0,VLOOKUP($CH11,'العاملين '!$A$3:$AR$260,10),0) -> 652.6 | C11: 97.89 | D11: 6.53 | E11: 13.05 | F11: 19.58 | G11: 789.65 | H11: =IF($CH11>0,VLOOKUP($CH11,'العاملين '!$A$3:$AR$260,11),0) -> 0 | I11: =IF($CH11>0,VLOOKUP($CH11,'العاملين '!$A$3:$AR$260,12),0) -> 32.54 | J11: =IF($CH11>0,VLOOKUP($CH11,'العاملين '!$A$3:$AR$260,13),0) -> 33.04 | K11: =IF($CH11>0,VLOOKUP($CH11,'العاملين '!$A$3:$AR$260,14),0) -> 35.19 | L11: =IF($CH11>0,VLOOKUP($CH11,'العاملين '!$A$3:$AR$260,15),0) -> 0 | M11: 100.77 | N11: =IF($CH11>0,VLOOKUP($CH11,'العاملين '!$A$3:$AR$260,16),0) -> 4 | O11: =IF($CH11>0,VLOOKUP($CH11,'العاملين '!$A$3:$AR$260,17),0) -> 4 | P11: =IF($CH11>0,VLOOKUP($CH11,'العاملين '!$A$3:$AR$260,18),0) -> 0 | Q11: =IF($CH11>0,VLOOKUP($CH11,'العاملين '!$A$3:$AR$260,27),0) -> 0 | R11: =IF($CH11>0,VLOOKUP($CH11,'العاملين '!$A$3:$AR$260,19),0) -> 0 | S11: =IF($CH11>0,VLOOKUP($CH11,'العاملين '!$A$3:$AR$260,20),0) -> 0 | T11: =IF($CH11>0,VLOOKUP($CH11,'العاملين '!$A$3:$AR$260,21),0) -> 0 | U11: =IF($CH11>0,VLOOKUP($CH11,'العاملين '!$A$3:$AR$260,22),0) -> 0 | V11: =IF($CH11>0,VLOOKUP($CH11,'العاملين '!$A$3:$AR$260,23),0) -> 0 | W11: =IF($CH11>0,VLOOKUP($CH11,'العاملين '!$A$3:$AR$260,24),0) -> 0 | X11: =IF($CH11>0,VLOOKUP($CH11,'العاملين '!$A$3:$AR$260,25),0) -> 0 | Y11: =IF($CH11>0,VLOOKUP($CH11,'العاملين '!$A$3:$AR$260,26),0) -> 0 | Z11: =IF($CH11>0,VLOOKUP($CH11,'العاملين '!$A$3:$CR$260,65),0) -> 175.98 | AA11: =IF($CH11>0,VLOOKUP($CH11,'العاملين '!$A$3:$CR$260,66),0) -> 175.98 | AB11: =IF($CH11>0,VLOOKUP($CH11,'العاملين '!$A$3:$CR$260,67),0) -> 263.97 | AC11: =IF($CH11>0,VLOOKUP($CH11,'العاملين '!$A$3:$CR$260,68),0) -> 87 | AD11: =IF($CH11>0,VLOOKUP($CH11,'العاملين '!$A$3:$CR$260,69),0) -> 175 | AE11: =IF($CH11>0,VLOOKUP($CH11,'العاملين '!$A$3:$CR$260,70),0) -> 0 | AF11: =IF($CH11>0,VLOOKUP($CH11,'العاملين '!$A$3:$CR$260,71),0) -> 0 | AG11: =IF($CH11>0,VLOOKUP($CH11,'العاملين '!$A$3:$CR$260,72),0) -> 0 | AN11: =IF($CH11>0,VLOOKUP($CH11,'العاملين '!$A$3:$AR$260,25),0) -> 0 | AO11: 986.7 | AP11: 986.7 | AQ11: 0 | AR11: 148.01 | AS11: 9.87 | AT11: 29.6 | AU11: 187.48 | AV11: =IF($CH11>0,VLOOKUP($CH11,'العاملين '!$A$3:$CR$260,64),0) -> 10 | AW11: =IF($CH11>0,VLOOKUP($CH11,'العاملين '!$A$3:$CR$260,52),0) -> 0 | AX11: 1973.83 | AY11: 97.89 | AZ11: 6.53 | BA11: 13.05 | BC11: 65.26 | BD11: 52.21 | BE11: 19.58 | BF11: 6.53 | BG11: 148.01 | BH11: 9.87 | BI11: 98.67 | BJ11: 29.6 | BK11: 9.87 | BL11: =IF($CJ11=1,ROUND(($B11)*7%,2),IF($CJ11=2,VLOOKUP($CH11,'العاملين '!$A$3:$CT$260,53),0)) -> 45.68 | BM11: =IF($CJ11=1,0.5,IF($CJ11=2,VLOOKUP($CH11,'العاملين '!$A$3:$CS$260,54),0)) -> 0.5 | BN11: =IF($CJ11=1,4.5,IF($CJ11=2,VLOOKUP($CH11,'العاملين '!$A$3:$CT$260,55),0)) -> 4.5 | BO11: =IF($CH11>0,VLOOKUP($CH11,'العاملين '!$A$3:$AR$260,38),0) -> 1 | BP11: =IF($CJ11=1,0.2,IF($CJ11=2,VLOOKUP($CH11,'العاملين '!$A$3:$CT$260,55),0)) -> 0.2 | BQ11: =IF($CJ11=1,0.05,IF($CJ11=2,VLOOKUP($CH11,'العاملين '!$A$3:$CT$260,55),0)) -> 0.05 | BR11: =IF($CH11>0,VLOOKUP($CH11,'العاملين '!$A$3:$AR$260,39),0) -> 10.65 | BS11: =IF($CH11>0,VLOOKUP($CH11,'العاملين '!$A$3:$AR$260,40),0) -> 11.15 | BT11: =IF($CH11>0,VLOOKUP($CH11,'العاملين '!$A$3:$AR$260,41),0) -> 0 | BU11: =IF($CH11>0,VLOOKUP($CH11,'العاملين '!$A$3:$AR$260,42),0) -> 0 | BV11: =IF($CH11>0,VLOOKUP($CH11,'العاملين '!$A$3:$AR$260,43),0) -> 0 | BW11: =IF($CH11>0,VLOOKUP($CH11,'العاملين '!$A$3:$AR$260,44),0) -> 0 | BX11: =IF($CH11>0,VLOOKUP($CH11,'العاملين '!$A$3:$CR$260,45),0) -> 0 | BY11: =IF($CH11>0,VLOOKUP($CH11,'العاملين '!$A$3:$CR$260,46),0) -> 0 | BZ11: =IF($CH11>0,VLOOKUP($CH11,'العاملين '!$A$3:$CR$260,47),0) -> 0 | CA11: =IF($CH11>0,VLOOKUP($CH11,'العاملين '!$A$3:$CR$260,48),0) -> 0 | CC11: =IF($CH11>0,VLOOKUP($CH11,'العاملين '!$A$3:$AR$260,41),0) -> 0 | CD11: 0.03 | CE11: 630.83 | CF11: 1343 | CG11: =IF($CH11>0,VLOOKUP($CH11,'العاملين '!$A$3:$AR$260,2),0) -> محمد20 | CH11: 20 | CJ11: =IF($CH11>0,VLOOKUP($CH11,'العاملين '!$A$3:$CR$260,3),0) -> 1 | CK11: =IF($CH11>0,VLOOKUP($CH11,'العاملين '!$A$3:$CR$260,49),0) -> 0 | CL11: 1343.03
A12: 6 | B12: =IF($CH12>0,VLOOKUP($CH12,'العاملين '!$A$3:$AR$260,10),0) -> 652.6 | C12: 97.89 | D12: 6.53 | E12: 13.05 | F12: 19.58 | G12: 789.65 | H12: =IF($CH12>0,VLOOKUP($CH12,'العاملين '!$A$3:$AR$260,11),0) -> 0 | I12: =IF($CH12>0,VLOOKUP($CH12,'العاملين '!$A$3:$AR$260,12),0) -> 32.54 | J12: =IF($CH12>0,VLOOKUP($CH12,'العاملين '!$A$3:$AR$260,13),0) -> 33.04 | K12: =IF($CH12>0,VLOOKUP($CH12,'العاملين '!$A$3:$AR$260,14),0) -> 35.19 | L12: =IF($CH12>0,VLOOKUP($CH12,'العاملين '!$A$3:$AR$260,15),0) -> 0 | M12: 100.77 | N12: =IF($CH12>0,VLOOKUP($CH12,'العاملين '!$A$3:$AR$260,16),0) -> 4 | O12: =IF($CH12>0,VLOOKUP($CH12,'العاملين '!$A$3:$AR$260,17),0) -> 4 | P12: =IF($CH12>0,VLOOKUP($CH12,'العاملين '!$A$3:$AR$260,18),0) -> 0 | Q12: =IF($CH12>0,VLOOKUP($CH12,'العاملين '!$A$3:$AR$260,27),0) -> 0 | R12: =IF($CH12>0,VLOOKUP($CH12,'العاملين '!$A$3:$AR$260,19),0) -> 0 | S12: =IF($CH12>0,VLOOKUP($CH12,'العاملين '!$A$3:$AR$260,20),0) -> 0 | T12: =IF($CH12>0,VLOOKUP($CH12,'العاملين '!$A$3:$AR$260,21),0) -> 0 | U12: =IF($CH12>0,VLOOKUP($CH12,'العاملين '!$A$3:$AR$260,22),0) -> 0 | V12: =IF($CH12>0,VLOOKUP($CH12,'العاملين '!$A$3:$AR$260,23),0) -> 0 | W12: =IF($CH12>0,VLOOKUP($CH12,'العاملين '!$A$3:$AR$260,24),0) -> 0 | X12: =IF($CH12>0,VLOOKUP($CH12,'العاملين '!$A$3:$AR$260,25),0) -> 0 | Y12: =IF($CH12>0,VLOOKUP($CH12,'العاملين '!$A$3:$AR$260,26),0) -> 0 | Z12: =IF($CH12>0,VLOOKUP($CH12,'العاملين '!$A$3:$CR$260,65),0) -> 175.98 | AA12: =IF($CH12>0,VLOOKUP($CH12,'العاملين '!$A$3:$CR$260,66),0) -> 175.98 | AB12: =IF($CH12>0,VLOOKUP($CH12,'العاملين '!$A$3:$CR$260,67),0) -> 263.97 | AC12: =IF($CH12>0,VLOOKUP($CH12,'العاملين '!$A$3:$CR$260,68),0) -> 87 | AD12: =IF($CH12>0,VLOOKUP($CH12,'العاملين '!$A$3:$CR$260,69),0) -> 175 | AE12: =IF($CH12>0,VLOOKUP($CH12,'العاملين '!$A$3:$CR$260,70),0) -> 0 | AF12: =IF($CH12>0,VLOOKUP($CH12,'العاملين '!$A$3:$CR$260,71),0) -> 0 | AG12: =IF($CH12>0,VLOOKUP($CH12,'العاملين '!$A$3:$CR$260,72),0) -> 0 | AN12: =IF($CH12>0,VLOOKUP($CH12,'العاملين '!$A$3:$AR$260,25),0) -> 0 | AO12: 986.7 | AP12: 986.7 | AQ12: 0 | AR12: 148.01 | AS12: 9.87 | AT12: 29.6 | AU12: 187.48 | AV12: =IF($CH12>0,VLOOKUP($CH12,'العاملين '!$A$3:$CR$260,64),0) -> 10 | AW12: =IF($CH12>0,VLOOKUP($CH12,'العاملين '!$A$3:$CR$260,52),0) -> 0 | AX12: 1973.83 | AY12: 97.89 | AZ12: 6.53 | BA12: 13.05 | BC12: 65.26 | BD12: 52.21 | BE12: 19.58 | BF12: 6.53 | BG12: 148.01 | BH12: 9.87 | BI12: 98.67 | BJ12: 29.6 | BK12: 9.87 | BL12: =IF($CJ12=1,ROUND(($B12)*7%,2),IF($CJ12=2,VLOOKUP($CH12,'العاملين '!$A$3:$CT$260,53),0)) -> 45.68 | BM12: =IF($CJ12=1,0.5,IF($CJ12=2,VLOOKUP($CH12,'العاملين '!$A$3:$CS$260,54),0)) -> 0.5 | BN12: =IF($CJ12=1,4.5,IF($CJ12=2,VLOOKUP($CH12,'العاملين '!$A$3:$CT$260,55),0)) -> 4.5 | BO12: =IF($CH12>0,VLOOKUP($CH12,'العاملين '!$A$3:$AR$260,38),0) -> 1 | BP12: =IF($CJ12=1,0.2,IF($CJ12=2,VLOOKUP($CH12,'العاملين '!$A$3:$CT$260,55),0)) -> 0.2 | BQ12: =IF($CJ12=1,0.05,IF($CJ12=2,VLOOKUP($CH12,'العاملين '!$A$3:$CT$260,55),0)) -> 0.05 | BR12: =IF($CH12>0,VLOOKUP($CH12,'العاملين '!$A$3:$AR$260,39),0) -> 10.65 | BS12: =IF($CH12>0,VLOOKUP($CH12,'العاملين '!$A$3:$AR$260,40),0) -> 11.15 | BT12: =IF($CH12>0,VLOOKUP($CH12,'العاملين '!$A$3:$AR$260,41),0) -> 0 | BU12: =IF($CH12>0,VLOOKUP($CH12,'العاملين '!$A$3:$AR$260,42),0) -> 0 | BV12: =IF($CH12>0,VLOOKUP($CH12,'العاملين '!$A$3:$AR$260,43),0) -> 0 | BW12: =IF($CH12>0,VLOOKUP($CH12,'العاملين '!$A$3:$AR$260,44),0) -> 0 | BX12: =IF($CH12>0,VLOOKUP($CH12,'العاملين '!$A$3:$CR$260,45),0) -> 0 | BY12: =IF($CH12>0,VLOOKUP($CH12,'العاملين '!$A$3:$CR$260,46),0) -> 0 | BZ12: =IF($CH12>0,VLOOKUP($CH12,'العاملين '!$A$3:$CR$260,47),0) -> 0 | CA12: =IF($CH12>0,VLOOKUP($CH12,'العاملين '!$A$3:$CR$260,48),0) -> 0 | CC12: =IF($CH12>0,VLOOKUP($CH12,'العاملين '!$A$3:$AR$260,41),0) -> 0 | CD12: 0.03 | CE12: 630.83 | CF12: 1343 | CG12: =IF($CH12>0,VLOOKUP($CH12,'العاملين '!$A$3:$AR$260,2),0) -> محمد20 | CH12: 20 | CJ12: =IF($CH12>0,VLOOKUP($CH12,'العاملين '!$A$3:$CR$260,3),0) -> 1 | CK12: =IF($CH12>0,VLOOKUP($CH12,'العاملين '!$A$3:$CR$260,49),0) -> 0 | CL12: 1343.03
A13: 7 | B13: =IF($CH13>0,VLOOKUP($CH13,'العاملين '!$A$3:$AR$260,10),0) -> 652.6 | C13: 97.89 | D13: 6.53 | E13: 13.05 | F13: 19.58 | G13: 789.65 | H13: =IF($CH13>0,VLOOKUP($CH13,'العاملين '!$A$3:$AR$260,11),0) -> 0 | I13: =IF($CH13>0,VLOOKUP($CH13,'العاملين '!$A$3:$AR$260,12),0) -> 32.54 | J13: =IF($CH13>0,VLOOKUP($CH13,'العاملين '!$A$3:$AR$260,13),0) -> 33.04 | K13: =IF($CH13>0,VLOOKUP($CH13,'العاملين '!$A$3:$AR$260,14),0) -> 35.19 | L13: =IF($CH13>0,VLOOKUP($CH13,'العاملين '!$A$3:$AR$260,15),0) -> 0 | M13: 100.77 | N13: =IF($CH13>0,VLOOKUP($CH13,'العاملين '!$A$3:$AR$260,16),0) -> 4 | O13: =IF($CH13>0,VLOOKUP($CH13,'العاملين '!$A$3:$AR$260,17),0) -> 4 | P13: =IF($CH13>0,VLOOKUP($CH13,'العاملين '!$A$3:$AR$260,18),0) -> 0 | Q13: =IF($CH13>0,VLOOKUP($CH13,'العاملين '!$A$3:$AR$260,27),0) -> 0 | R13: =IF($CH13>0,VLOOKUP($CH13,'العاملين '!$A$3:$AR$260,19),0) -> 0 | S13: =IF($CH13>0,VLOOKUP($CH13,'العاملين '!$A$3:$AR$260,20),0) -> 0 | T13: =IF($CH13>0,VLOOKUP($CH13,'العاملين '!$A$3:$AR$260,21),0) -> 0 | U13: =IF($CH13>0,VLOOKUP($CH13,'العاملين '!$A$3:$AR$260,22),0) -> 0 | V13: =IF($CH13>0,VLOOKUP($CH13,'العاملين '!$A$3:$AR$260,23),0) -> 0 | W13: =IF($CH13>0,VLOOKUP($CH13,'العاملين '!$A$3:$AR$260,24),0) -> 0 | X13: =IF($CH13>0,VLOOKUP($CH13,'العاملين '!$A$3:$AR$260,25),0) -> 0 | Y13: =IF($CH13>0,VLOOKUP($CH13,'العاملين '!$A$3:$AR$260,26),0) -> 0 | Z13: =IF($CH13>0,VLOOKUP($CH13,'العاملين '!$A$3:$CR$260,65),0) -> 175.98 | AA13: =IF($CH13>0,VLOOKUP($CH13,'العاملين '!$A$3:$CR$260,66),0) -> 175.98 | AB13: =IF($CH13>0,VLOOKUP($CH13,'العاملين '!$A$3:$CR$260,67),0) -> 263.97 | AC13: =IF($CH13>0,VLOOKUP($CH13,'العاملين '!$A$3:$CR$260,68),0) -> 87 | AD13: =IF($CH13>0,VLOOKUP($CH13,'العاملين '!$A$3:$CR$260,69),0) -> 175 | AE13: =IF($CH13>0,VLOOKUP($CH13,'العاملين '!$A$3:$CR$260,70),0) -> 0 | AF13: =IF($CH13>0,VLOOKUP($CH13,'العاملين '!$A$3:$CR$260,71),0) -> 0 | AG13: =IF($CH13>0,VLOOKUP($CH13,'العاملين '!$A$3:$CR$260,72),0) -> 0 | AN13: =IF($CH13>0,VLOOKUP($CH13,'العاملين '!$A$3:$AR$260,25),0) -> 0 | AO13: 986.7 | AP13: 986.7 | AQ13: 0 | AR13: 148.01 | AS13: 9.87 | AT13: 29.6 | AU13: 187.48 | AV13: =IF($CH13>0,VLOOKUP($CH13,'العاملين '!$A$3:$CR$260,64),0) -> 10 | AW13: =IF($CH13>0,VLOOKUP($CH13,'العاملين '!$A$3:$CR$260,52),0) -> 0 | AX13: 1973.83 | AY13: 97.89 | AZ13: 6.53 | BA13: 13.05 | BC13: 65.26 | BD13: 52.21 | BE13: 19.58 | BF13: 6.53 | BG13: 148.01 | BH13: 9.87 | BI13: 98.67 | BJ13: 29.6 | BK13: 9.87 | BL13: =IF($CJ13=1,ROUND(($B13)*7%,2),IF($CJ13=2,VLOOKUP($CH13,'العاملين '!$A$3:$CT$260,53),0)) -> 45.68 | BM13: =IF($CJ13=1,0.5,IF($CJ13=2,VLOOKUP($CH13,'العاملين '!$A$3:$CS$260,54),0)) -> 0.5 | BN13: =IF($CJ13=1,4.5,IF($CJ13=2,VLOOKUP($CH13,'العاملين '!$A$3:$CT$260,55),0)) -> 4.5 | BO13: =IF($CH13>0,VLOOKUP($CH13,'العاملين '!$A$3:$AR$260,38),0) -> 1 | BP13: =IF($CJ13=1,0.2,IF($CJ13=2,VLOOKUP($CH13,'العاملين '!$A$3:$CT$260,55),0)) -> 0.2 | BQ13: =IF($CJ13=1,0.05,IF($CJ13=2,VLOOKUP($CH13,'العاملين '!$A$3:$CT$260,55),0)) -> 0.05 | BR13: =IF($CH13>0,VLOOKUP($CH13,'العاملين '!$A$3:$AR$260,39),0) -> 10.65 | BS13: =IF($CH13>0,VLOOKUP($CH13,'العاملين '!$A$3:$AR$260,40),0) -> 11.15 | BT13: =IF($CH13>0,VLOOKUP($CH13,'العاملين '!$A$3:$AR$260,41),0) -> 0 | BU13: =IF($CH13>0,VLOOKUP($CH13,'العاملين '!$A$3:$AR$260,42),0) -> 0 | BV13: =IF($CH13>0,VLOOKUP($CH13,'العاملين '!$A$3:$AR$260,43),0) -> 0 | BW13: =IF($CH13>0,VLOOKUP($CH13,'العاملين '!$A$3:$AR$260,44),0) -> 0 | BX13: =IF($CH13>0,VLOOKUP($CH13,'العاملين '!$A$3:$CR$260,45),0) -> 0 | BY13: =IF($CH13>0,VLOOKUP($CH13,'العاملين '!$A$3:$CR$260,46),0) -> 0 | BZ13: =IF($CH13>0,VLOOKUP($CH13,'العاملين '!$A$3:$CR$260,47),0) -> 0 | CA13: =IF($CH13>0,VLOOKUP($CH13,'العاملين '!$A$3:$CR$260,48),0) -> 0 | CC13: =IF($CH13>0,VLOOKUP($CH13,'العاملين '!$A$3:$AR$260,41),0) -> 0 | CD13: 0.03 | CE13: 630.83 | CF13: 1343 | CG13: =IF($CH13>0,VLOOKUP($CH13,'العاملين '!$A$3:$AR$260,2),0) -> محمد20 | CH13: 20 | CJ13: =IF($CH13>0,VLOOKUP($CH13,'العاملين '!$A$3:$CR$260,3),0) -> 1 | CK13: =IF($CH13>0,VLOOKUP($CH13,'العاملين '!$A$3:$CR$260,49),0) -> 0 | CL13: =AX13-SUM(AY13:CC13) -> 1343.03
A14: 8 | B14: =IF($CH14>0,VLOOKUP($CH14,'العاملين '!$A$3:$AR$260,10),0) -> 652.6 | C14: 97.89 | D14: 6.53 | E14: 13.05 | F14: 19.58 | G14: 789.65 | H14: =IF($CH14>0,VLOOKUP($CH14,'العاملين '!$A$3:$AR$260,11),0) -> 0 | I14: =IF($CH14>0,VLOOKUP($CH14,'العاملين '!$A$3:$AR$260,12),0) -> 32.54 | J14: =IF($CH14>0,VLOOKUP($CH14,'العاملين '!$A$3:$AR$260,13),0) -> 33.04 | K14: =IF($CH14>0,VLOOKUP($CH14,'العاملين '!$A$3:$AR$260,14),0) -> 35.19 | L14: =IF($CH14>0,VLOOKUP($CH14,'العاملين '!$A$3:$AR$260,15),0) -> 0 | M14: 100.77 | N14: =IF($CH14>0,VLOOKUP($CH14,'العاملين '!$A$3:$AR$260,16),0) -> 4 | O14: =IF($CH14>0,VLOOKUP($CH14,'العاملين '!$A$3:$AR$260,17),0) -> 4 | P14: =IF($CH14>0,VLOOKUP($CH14,'العاملين '!$A$3:$AR$260,18),0) -> 0 | Q14: =IF($CH14>0,VLOOKUP($CH14,'العاملين '!$A$3:$AR$260,27),0) -> 0 | R14: =IF($CH14>0,VLOOKUP($CH14,'العاملين '!$A$3:$AR$260,19),0) -> 0 | S14: =IF($CH14>0,VLOOKUP($CH14,'العاملين '!$A$3:$AR$260,20),0) -> 0 | T14: =IF($CH14>0,VLOOKUP($CH14,'العاملين '!$A$3:$AR$260,21),0) -> 0 | U14: =IF($CH14>0,VLOOKUP($CH14,'العاملين '!$A$3:$AR$260,22),0) -> 0 | V14: =IF($CH14>0,VLOOKUP($CH14,'العاملين '!$A$3:$AR$260,23),0) -> 0 | W14: =IF($CH14>0,VLOOKUP($CH14,'العاملين '!$A$3:$AR$260,24),0) -> 0 | X14: =IF($CH14>0,VLOOKUP($CH14,'العاملين '!$A$3:$AR$260,25),0) -> 0 | Y14: =IF($CH14>0,VLOOKUP($CH14,'العاملين '!$A$3:$AR$260,26),0) -> 0 | Z14: =IF($CH14>0,VLOOKUP($CH14,'العاملين '!$A$3:$CR$260,65),0) -> 175.98 | AA14: =IF($CH14>0,VLOOKUP($CH14,'العاملين '!$A$3:$CR$260,66),0) -> 175.98 | AB14: =IF($CH14>0,VLOOKUP($CH14,'العاملين '!$A$3:$CR$260,67),0) -> 263.97 | AC14: =IF($CH14>0,VLOOKUP($CH14,'العاملين '!$A$3:$CR$260,68),0) -> 87 | AD14: =IF($CH14>0,VLOOKUP($CH14,'العاملين '!$A$3:$CR$260,69),0) -> 175 | AE14: =IF($CH14>0,VLOOKUP($CH14,'العاملين '!$A$3:$CR$260,70),0) -> 0 | AF14: =IF($CH14>0,VLOOKUP($CH14,'العاملين '!$A$3:$CR$260,71),0) -> 0 | AG14: =IF($CH14>0,VLOOKUP($CH14,'العاملين '!$A$3:$CR$260,72),0) -> 0 | AN14: =IF($CH14>0,VLOOKUP($CH14,'العاملين '!$A$3:$AR$260,25),0) -> 0 | AO14: 986.7 | AP14: 986.7 | AQ14: 0 | AR14: 148.01 | AS14: 9.87 | AT14: 29.6 | AU14: 187.48 | AV14: =IF($CH14>0,VLOOKUP($CH14,'العاملين '!$A$3:$CR$260,64),0) -> 10 | AW14: =IF($CH14>0,VLOOKUP($CH14,'العاملين '!$A$3:$CR$260,52),0) -> 0 | AX14: 1973.83 | AY14: 97.89 | AZ14: 6.53 | BA14: 13.05 | BC14: 65.26 | BD14: 52.21 | BE14: 19.58 | BF14: 6.53 | BG14: 148.01 | BH14: 9.87 | BI14: 98.67 | BJ14: 29.6 | BK14: 9.87 | BL14: =IF($CJ14=1,ROUND(($B14)*7%,2),IF($CJ14=2,VLOOKUP($CH14,'العاملين '!$A$3:$CT$260,53),0)) -> 45.68 | BM14: =IF($CJ14=1,0.5,IF($CJ14=2,VLOOKUP($CH14,'العاملين '!$A$3:$CS$260,54),0)) -> 0.5 | BN14: =IF($CJ14=1,4.5,IF($CJ14=2,VLOOKUP($CH14,'العاملين '!$A$3:$CT$260,55),0)) -> 4.5 | BO14: =IF($CH14>0,VLOOKUP($CH14,'العاملين '!$A$3:$AR$260,38),0) -> 1 | BP14: =IF($CJ14=1,0.2,IF($CJ14=2,VLOOKUP($CH14,'العاملين '!$A$3:$CT$260,55),0)) -> 0.2 | BQ14: =IF($CJ14=1,0.05,IF($CJ14=2,VLOOKUP($CH14,'العاملين '!$A$3:$CT$260,55),0)) -> 0.05 | BR14: =IF($CH14>0,VLOOKUP($CH14,'العاملين '!$A$3:$AR$260,39),0) -> 10.65 | BS14: =IF($CH14>0,VLOOKUP($CH14,'العاملين '!$A$3:$AR$260,40),0) -> 11.15 | BT14: =IF($CH14>0,VLOOKUP($CH14,'العاملين '!$A$3:$AR$260,41),0) -> 0 | BU14: =IF($CH14>0,VLOOKUP($CH14,'العاملين '!$A$3:$AR$260,42),0) -> 0 | BV14: =IF($CH14>0,VLOOKUP($CH14,'العاملين '!$A$3:$AR$260,43),0) -> 0 | BW14: =IF($CH14>0,VLOOKUP($CH14,'العاملين '!$A$3:$AR$260,44),0) -> 0 | BX14: =IF($CH14>0,VLOOKUP($CH14,'العاملين '!$A$3:$CR$260,45),0) -> 0 | BY14: =IF($CH14>0,VLOOKUP($CH14,'العاملين '!$A$3:$CR$260,46),0) -> 0 | BZ14: =IF($CH14>0,VLOOKUP($CH14,'العاملين '!$A$3:$CR$260,47),0) -> 0 | CA14: =IF($CH14>0,VLOOKUP($CH14,'العاملين '!$A$3:$CR$260,48),0) -> 0 | CC14: =IF($CH14>0,VLOOKUP($CH14,'العاملين '!$A$3:$AR$260,41),0) -> 0 | CD14: 0.03 | CE14: 630.83 | CF14: 1343 | CG14: =IF($CH14>0,VLOOKUP($CH14,'العاملين '!$A$3:$AR$260,2),0) -> محمد20 | CH14: 20 | CJ14: =IF($CH14>0,VLOOKUP($CH14,'العاملين '!$A$3:$CR$260,3),0) -> 1 | CK14: =IF($CH14>0,VLOOKUP($CH14,'العاملين '!$A$3:$CR$260,49),0) -> 0 | CL14: =AX14-SUM(AY14:CC14) -> 1343.03
A15: 9 | B15: =IF($CH15>0,VLOOKUP($CH15,'العاملين '!$A$3:$AR$260,10),0) -> 652.6 | C15: 97.89 | D15: 6.53 | E15: 13.05 | F15: 19.58 | G15: 789.65 | H15: =IF($CH15>0,VLOOKUP($CH15,'العاملين '!$A$3:$AR$260,11),0) -> 0 | I15: =IF($CH15>0,VLOOKUP($CH15,'العاملين '!$A$3:$AR$260,12),0) -> 32.54 | J15: =IF($CH15>0,VLOOKUP($CH15,'العاملين '!$A$3:$AR$260,13),0) -> 33.04 | K15: =IF($CH15>0,VLOOKUP($CH15,'العاملين '!$A$3:$AR$260,14),0) -> 35.19 | L15: =IF($CH15>0,VLOOKUP($CH15,'العاملين '!$A$3:$AR$260,15),0) -> 0 | M15: 100.77 | N15: =IF($CH15>0,VLOOKUP($CH15,'العاملين '!$A$3:$AR$260,16),0) -> 4 | O15: =IF($CH15>0,VLOOKUP($CH15,'العاملين '!$A$3:$AR$260,17),0) -> 4 | P15: =IF($CH15>0,VLOOKUP($CH15,'العاملين '!$A$3:$AR$260,18),0) -> 0 | Q15: =IF($CH15>0,VLOOKUP($CH15,'العاملين '!$A$3:$AR$260,27),0) -> 0 | R15: =IF($CH15>0,VLOOKUP($CH15,'العاملين '!$A$3:$AR$260,19),0) -> 0 | S15: =IF($CH15>0,VLOOKUP($CH15,'العاملين '!$A$3:$AR$260,20),0) -> 0 | T15: =IF($CH15>0,VLOOKUP($CH15,'العاملين '!$A$3:$AR$260,21),0) -> 0 | U15: =IF($CH15>0,VLOOKUP($CH15,'العاملين '!$A$3:$AR$260,22),0) -> 0 | V15: =IF($CH15>0,VLOOKUP($CH15,'العاملين '!$A$3:$AR$260,23),0) -> 0 | W15: =IF($CH15>0,VLOOKUP($CH15,'العاملين '!$A$3:$AR$260,24),0) -> 0 | X15: =IF($CH15>0,VLOOKUP($CH15,'العاملين '!$A$3:$AR$260,25),0) -> 0 | Y15: =IF($CH15>0,VLOOKUP($CH15,'العاملين '!$A$3:$AR$260,26),0) -> 0 | Z15: =IF($CH15>0,VLOOKUP($CH15,'العاملين '!$A$3:$CR$260,65),0) -> 175.98 | AA15: =IF($CH15>0,VLOOKUP($CH15,'العاملين '!$A$3:$CR$260,66),0) -> 175.98 | AB15: =IF($CH15>0,VLOOKUP($CH15,'العاملين '!$A$3:$CR$260,67),0) -> 263.97 | AC15: =IF($CH15>0,VLOOKUP($CH15,'العاملين '!$A$3:$CR$260,68),0) -> 87 | AD15: =IF($CH15>0,VLOOKUP($CH15,'العاملين '!$A$3:$CR$260,69),0) -> 175 | AE15: =IF($CH15>0,VLOOKUP($CH15,'العاملين '!$A$3:$CR$260,70),0) -> 0 | AF15: =IF($CH15>0,VLOOKUP($CH15,'العاملين '!$A$3:$CR$260,71),0) -> 0 | AG15: =IF($CH15>0,VLOOKUP($CH15,'العاملين '!$A$3:$CR$260,72),0) -> 0 | AN15: =IF($CH15>0,VLOOKUP($CH15,'العاملين '!$A$3:$AR$260,25),0) -> 0 | AO15: 986.7 | AP15: 986.7 | AQ15: 0 | AR15: 148.01 | AS15: 9.87 | AT15: 29.6 | AU15: 187.48 | AV15: =IF($CH15>0,VLOOKUP($CH15,'العاملين '!$A$3:$CR$260,64),0) -> 10 | AW15: =IF($CH15>0,VLOOKUP($CH15,'العاملين '!$A$3:$CR$260,52),0) -> 0 | AX15: 1973.83 | AY15: 97.89 | AZ15: 6.53 | BA15: 13.05 | BC15: 65.26 | BD15: 52.21 | BE15: 19.58 | BF15: 6.53 | BG15: 148.01 | BH15: 9.87 | BI15: 98.67 | BJ15: 29.6 | BK15: 9.87 | BL15: =IF($CJ15=1,ROUND(($B15)*7%,2),IF($CJ15=2,VLOOKUP($CH15,'العاملين '!$A$3:$CT$260,53),0)) -> 45.68 | BM15: =IF($CJ15=1,0.5,IF($CJ15=2,VLOOKUP($CH15,'العاملين '!$A$3:$CS$260,54),0)) -> 0.5 | BN15: =IF($CJ15=1,4.5,IF($CJ15=2,VLOOKUP($CH15,'العاملين '!$A$3:$CT$260,55),0)) -> 4.5 | BO15: =IF($CH15>0,VLOOKUP($CH15,'العاملين '!$A$3:$AR$260,38),0) -> 1 | BP15: =IF($CJ15=1,0.2,IF($CJ15=2,VLOOKUP($CH15,'العاملين '!$A$3:$CT$260,55),0)) -> 0.2 | BQ15: =IF($CJ15=1,0.05,IF($CJ15=2,VLOOKUP($CH15,'العاملين '!$A$3:$CT$260,55),0)) -> 0.05 | BR15: =IF($CH15>0,VLOOKUP($CH15,'العاملين '!$A$3:$AR$260,39),0) -> 10.65 | BS15: =IF($CH15>0,VLOOKUP($CH15,'العاملين '!$A$3:$AR$260,40),0) -> 11.15 | BT15: =IF($CH15>0,VLOOKUP($CH15,'العاملين '!$A$3:$AR$260,41),0) -> 0 | BU15: =IF($CH15>0,VLOOKUP($CH15,'العاملين '!$A$3:$AR$260,42),0) -> 0 | BV15: =IF($CH15>0,VLOOKUP($CH15,'العاملين '!$A$3:$AR$260,43),0) -> 0 | BW15: =IF($CH15>0,VLOOKUP($CH15,'العاملين '!$A$3:$AR$260,44),0) -> 0 | BX15: =IF($CH15>0,VLOOKUP($CH15,'العاملين '!$A$3:$CR$260,45),0) -> 0 | BY15: =IF($CH15>0,VLOOKUP($CH15,'العاملين '!$A$3:$CR$260,46),0) -> 0 | BZ15: =IF($CH15>0,VLOOKUP($CH15,'العاملين '!$A$3:$CR$260,47),0) -> 0 | CA15: =IF($CH15>0,VLOOKUP($CH15,'العاملين '!$A$3:$CR$260,48),0) -> 0 | CC15: =IF($CH15>0,VLOOKUP($CH15,'العاملين '!$A$3:$AR$260,41),0) -> 0 | CD15: 0.03 | CE15: 630.83 | CF15: 1343 | CG15: =IF($CH15>0,VLOOKUP($CH15,'العاملين '!$A$3:$AR$260,2),0) -> محمد20 | CH15: 20 | CJ15: =IF($CH15>0,VLOOKUP($CH15,'العاملين '!$A$3:$CR$260,3),0) -> 1 | CK15: =IF($CH15>0,VLOOKUP($CH15,'العاملين '!$A$3:$CR$260,49),0) -> 0 | CL15: 1343.03
A16: 10 | B16: =IF($CH16>0,VLOOKUP($CH16,'العاملين '!$A$3:$AR$260,10),0) -> 652.6 | C16: 97.89 | D16: 6.53 | E16: 13.05 | F16: 19.58 | G16: 789.65 | H16: =IF($CH16>0,VLOOKUP($CH16,'العاملين '!$A$3:$AR$260,11),0) -> 0 | I16: =IF($CH16>0,VLOOKUP($CH16,'العاملين '!$A$3:$AR$260,12),0) -> 32.54 | J16: =IF($CH16>0,VLOOKUP($CH16,'العاملين '!$A$3:$AR$260,13),0) -> 33.04 | K16: =IF($CH16>0,VLOOKUP($CH16,'العاملين '!$A$3:$AR$260,14),0) -> 35.19 | L16: =IF($CH16>0,VLOOKUP($CH16,'العاملين '!$A$3:$AR$260,15),0) -> 0 | M16: 100.77 | N16: =IF($CH16>0,VLOOKUP($CH16,'العاملين '!$A$3:$AR$260,16),0) -> 4 | O16: =IF($CH16>0,VLOOKUP($CH16,'العاملين '!$A$3:$AR$260,17),0) -> 4 | P16: =IF($CH16>0,VLOOKUP($CH16,'العاملين '!$A$3:$AR$260,18),0) -> 0 | Q16: =IF($CH16>0,VLOOKUP($CH16,'العاملين '!$A$3:$AR$260,27),0) -> 0 | R16: =IF($CH16>0,VLOOKUP($CH16,'العاملين '!$A$3:$AR$260,19),0) -> 0 | S16: =IF($CH16>0,VLOOKUP($CH16,'العاملين '!$A$3:$AR$260,20),0) -> 0 | T16: =IF($CH16>0,VLOOKUP($CH16,'العاملين '!$A$3:$AR$260,21),0) -> 0 | U16: =IF($CH16>0,VLOOKUP($CH16,'العاملين '!$A$3:$AR$260,22),0) -> 0 | V16: =IF($CH16>0,VLOOKUP($CH16,'العاملين '!$A$3:$AR$260,23),0) -> 0 | W16: =IF($CH16>0,VLOOKUP($CH16,'العاملين '!$A$3:$AR$260,24),0) -> 0 | X16: =IF($CH16>0,VLOOKUP($CH16,'العاملين '!$A$3:$AR$260,25),0) -> 0 | Y16: =IF($CH16>0,VLOOKUP($CH16,'العاملين '!$A$3:$AR$260,26),0) -> 0 | Z16: =IF($CH16>0,VLOOKUP($CH16,'العاملين '!$A$3:$CR$260,65),0) -> 175.98 | AA16: =IF($CH16>0,VLOOKUP($CH16,'العاملين '!$A$3:$CR$260,66),0) -> 175.98 | AB16: =IF($CH16>0,VLOOKUP($CH16,'العاملين '!$A$3:$CR$260,67),0) -> 263.97 | AC16: =IF($CH16>0,VLOOKUP($CH16,'العاملين '!$A$3:$CR$260,68),0) -> 87 | AD16: =IF($CH16>0,VLOOKUP($CH16,'العاملين '!$A$3:$CR$260,69),0) -> 175 | AE16: =IF($CH16>0,VLOOKUP($CH16,'العاملين '!$A$3:$CR$260,70),0) -> 0 | AF16: =IF($CH16>0,VLOOKUP($CH16,'العاملين '!$A$3:$CR$260,71),0) -> 0 | AG16: =IF($CH16>0,VLOOKUP($CH16,'العاملين '!$A$3:$CR$260,72),0) -> 0 | AN16: =IF($CH16>0,VLOOKUP($CH16,'العاملين '!$A$3:$AR$260,25),0) -> 0 | AO16: 986.7 | AP16: 986.7 | AQ16: 0 | AR16: 148.01 | AS16: 9.87 | AT16: 29.6 | AU16: 187.48 | AV16: =IF($CH16>0,VLOOKUP($CH16,'العاملين '!$A$3:$CR$260,64),0) -> 10 | AW16: =IF($CH16>0,VLOOKUP($CH16,'العاملين '!$A$3:$CR$260,52),0) -> 0 | AX16: 1973.83 | AY16: 97.89 | AZ16: 6.53 | BA16: 13.05 | BC16: 65.26 | BD16: 52.21 | BE16: 19.58 | BF16: 6.53 | BG16: 148.01 | BH16: 9.87 | BI16: 98.67 | BJ16: 29.6 | BK16: 9.87 | BL16: =IF($CJ16=1,ROUND(($B16)*7%,2),IF($CJ16=2,VLOOKUP($CH16,'العاملين '!$A$3:$CT$260,53),0)) -> 45.68 | BM16: =IF($CJ16=1,0.5,IF($CJ16=2,VLOOKUP($CH16,'العاملين '!$A$3:$CS$260,54),0)) -> 0.5 | BN16: =IF($CJ16=1,4.5,IF($CJ16=2,VLOOKUP($CH16,'العاملين '!$A$3:$CT$260,55),0)) -> 4.5 | BO16: =IF($CH16>0,VLOOKUP($CH16,'العاملين '!$A$3:$AR$260,38),0) -> 1 | BP16: =IF($CJ16=1,0.2,IF($CJ16=2,VLOOKUP($CH16,'العاملين '!$A$3:$CT$260,55),0)) -> 0.2 | BQ16: =IF($CJ16=1,0.05,IF($CJ16=2,VLOOKUP($CH16,'العاملين '!$A$3:$CT$260,55),0)) -> 0.05 | BR16: =IF($CH16>0,VLOOKUP($CH16,'العاملين '!$A$3:$AR$260,39),0) -> 10.65 | BS16: =IF($CH16>0,VLOOKUP($CH16,'العاملين '!$A$3:$AR$260,40),0) -> 11.15 | BT16: =IF($CH16>0,VLOOKUP($CH16,'العاملين '!$A$3:$AR$260,41),0) -> 0 | BU16: =IF($CH16>0,VLOOKUP($CH16,'العاملين '!$A$3:$AR$260,42),0) -> 0 | BV16: =IF($CH16>0,VLOOKUP($CH16,'العاملين '!$A$3:$AR$260,43),0) -> 0 | BW16: =IF($CH16>0,VLOOKUP($CH16,'العاملين '!$A$3:$AR$260,44),0) -> 0 | BX16: =IF($CH16>0,VLOOKUP($CH16,'العاملين '!$A$3:$CR$260,45),0) -> 0 | BY16: =IF($CH16>0,VLOOKUP($CH16,'العاملين '!$A$3:$CR$260,46),0) -> 0 | BZ16: =IF($CH16>0,VLOOKUP($CH16,'العاملين '!$A$3:$CR$260,47),0) -> 0 | CA16: =IF($CH16>0,VLOOKUP($CH16,'العاملين '!$A$3:$CR$260,48),0) -> 0 | CC16: =IF($CH16>0,VLOOKUP($CH16,'العاملين '!$A$3:$AR$260,41),0) -> 0 | CD16: 0.03 | CE16: 630.83 | CF16: 1343 | CG16: =IF($CH16>0,VLOOKUP($CH16,'العاملين '!$A$3:$AR$260,2),0) -> محمد20 | CH16: 20 | CJ16: =IF($CH16>0,VLOOKUP($CH16,'العاملين '!$A$3:$CR$260,3),0) -> 1 | CK16: =IF($CH16>0,VLOOKUP($CH16,'العاملين '!$A$3:$CR$260,49),0) -> 0 | CL16: 1343.03
A17: 11 | B17: =IF($CH17>0,VLOOKUP($CH17,'العاملين '!$A$3:$AR$260,10),0) -> 652.6 | C17: 97.89 | D17: 6.53 | E17: 13.05 | F17: 19.58 | G17: 789.65 | H17: =IF($CH17>0,VLOOKUP($CH17,'العاملين '!$A$3:$AR$260,11),0) -> 0 | I17: =IF($CH17>0,VLOOKUP($CH17,'العاملين '!$A$3:$AR$260,12),0) -> 32.54 | J17: =IF($CH17>0,VLOOKUP($CH17,'العاملين '!$A$3:$AR$260,13),0) -> 33.04 | K17: =IF($CH17>0,VLOOKUP($CH17,'العاملين '!$A$3:$AR$260,14),0) -> 35.19 | L17: =IF($CH17>0,VLOOKUP($CH17,'العاملين '!$A$3:$AR$260,15),0) -> 0 | M17: 100.77 | N17: =IF($CH17>0,VLOOKUP($CH17,'العاملين '!$A$3:$AR$260,16),0) -> 4 | O17: =IF($CH17>0,VLOOKUP($CH17,'العاملين '!$A$3:$AR$260,17),0) -> 4 | P17: =IF($CH17>0,VLOOKUP($CH17,'العاملين '!$A$3:$AR$260,18),0) -> 0 | Q17: =IF($CH17>0,VLOOKUP($CH17,'العاملين '!$A$3:$AR$260,27),0) -> 0 | R17: =IF($CH17>0,VLOOKUP($CH17,'العاملين '!$A$3:$AR$260,19),0) -> 0 | S17: =IF($CH17>0,VLOOKUP($CH17,'العاملين '!$A$3:$AR$260,20),0) -> 0 | T17: =IF($CH17>0,VLOOKUP($CH17,'العاملين '!$A$3:$AR$260,21),0) -> 0 | U17: =IF($CH17>0,VLOOKUP($CH17,'العاملين '!$A$3:$AR$260,22),0) -> 0 | V17: =IF($CH17>0,VLOOKUP($CH17,'العاملين '!$A$3:$AR$260,23),0) -> 0 | W17: =IF($CH17>0,VLOOKUP($CH17,'العاملين '!$A$3:$AR$260,24),0) -> 0 | X17: =IF($CH17>0,VLOOKUP($CH17,'العاملين '!$A$3:$AR$260,25),0) -> 0 | Y17: =IF($CH17>0,VLOOKUP($CH17,'العاملين '!$A$3:$AR$260,26),0) -> 0 | Z17: =IF($CH17>0,VLOOKUP($CH17,'العاملين '!$A$3:$CR$260,65),0) -> 175.98 | AA17: =IF($CH17>0,VLOOKUP($CH17,'العاملين '!$A$3:$CR$260,66),0) -> 175.98 | AB17: =IF($CH17>0,VLOOKUP($CH17,'العاملين '!$A$3:$CR$260,67),0) -> 263.97 | AC17: =IF($CH17>0,VLOOKUP($CH17,'العاملين '!$A$3:$CR$260,68),0) -> 87 | AD17: =IF($CH17>0,VLOOKUP($CH17,'العاملين '!$A$3:$CR$260,69),0) -> 175 | AE17: =IF($CH17>0,VLOOKUP($CH17,'العاملين '!$A$3:$CR$260,70),0) -> 0 | AF17: =IF($CH17>0,VLOOKUP($CH17,'العاملين '!$A$3:$CR$260,71),0) -> 0 | AG17: =IF($CH17>0,VLOOKUP($CH17,'العاملين '!$A$3:$CR$260,72),0) -> 0 | AN17: =IF($CH17>0,VLOOKUP($CH17,'العاملين '!$A$3:$AR$260,25),0) -> 0 | AO17: 986.7 | AP17: 986.7 | AQ17: 0 | AR17: 148.01 | AS17: 9.87 | AT17: 29.6 | AU17: 187.48 | AV17: =IF($CH17>0,VLOOKUP($CH17,'العاملين '!$A$3:$CR$260,64),0) -> 10 | AW17: =IF($CH17>0,VLOOKUP($CH17,'العاملين '!$A$3:$CR$260,52),0) -> 0 | AX17: 1973.83 | AY17: 97.89 | AZ17: 6.53 | BA17: 13.05 | BC17: 65.26 | BD17: 52.21 | BE17: 19.58 | BF17: 6.53 | BG17: 148.01 | BH17: 9.87 | BI17: 98.67 | BJ17: 29.6 | BK17: 9.87 | BL17: =IF($CJ17=1,ROUND(($B17)*7%,2),IF($CJ17=2,VLOOKUP($CH17,'العاملين '!$A$3:$CT$260,53),0)) -> 45.68 | BM17: =IF($CJ17=1,0.5,IF($CJ17=2,VLOOKUP($CH17,'العاملين '!$A$3:$CS$260,54),0)) -> 0.5 | BN17: =IF($CJ17=1,4.5,IF($CJ17=2,VLOOKUP($CH17,'العاملين '!$A$3:$CT$260,55),0)) -> 4.5 | BO17: =IF($CH17>0,VLOOKUP($CH17,'العاملين '!$A$3:$AR$260,38),0) -> 1 | BP17: =IF($CJ17=1,0.2,IF($CJ17=2,VLOOKUP($CH17,'العاملين '!$A$3:$CT$260,55),0)) -> 0.2 | BQ17: =IF($CJ17=1,0.05,IF($CJ17=2,VLOOKUP($CH17,'العاملين '!$A$3:$CT$260,55),0)) -> 0.05 | BR17: =IF($CH17>0,VLOOKUP($CH17,'العاملين '!$A$3:$AR$260,39),0) -> 10.65 | BS17: =IF($CH17>0,VLOOKUP($CH17,'العاملين '!$A$3:$AR$260,40),0) -> 11.15 | BT17: =IF($CH17>0,VLOOKUP($CH17,'العاملين '!$A$3:$AR$260,41),0) -> 0 | BU17: =IF($CH17>0,VLOOKUP($CH17,'العاملين '!$A$3:$AR$260,42),0) -> 0 | BV17: =IF($CH17>0,VLOOKUP($CH17,'العاملين '!$A$3:$AR$260,43),0) -> 0 | BW17: =IF($CH17>0,VLOOKUP($CH17,'العاملين '!$A$3:$AR$260,44),0) -> 0 | BX17: =IF($CH17>0,VLOOKUP($CH17,'العاملين '!$A$3:$CR$260,45),0) -> 0 | BY17: =IF($CH17>0,VLOOKUP($CH17,'العاملين '!$A$3:$CR$260,46),0) -> 0 | BZ17: =IF($CH17>0,VLOOKUP($CH17,'العاملين '!$A$3:$CR$260,47),0) -> 0 | CA17: =IF($CH17>0,VLOOKUP($CH17,'العاملين '!$A$3:$CR$260,48),0) -> 0 | CC17: =IF($CH17>0,VLOOKUP($CH17,'العاملين '!$A$3:$AR$260,41),0) -> 0 | CD17: 0.03 | CE17: 630.83 | CF17: 1343 | CG17: =IF($CH17>0,VLOOKUP($CH17,'العاملين '!$A$3:$AR$260,2),0) -> محمد20 | CH17: 20 | CJ17: =IF($CH17>0,VLOOKUP($CH17,'العاملين '!$A$3:$CR$260,3),0) -> 1 | CK17: =IF($CH17>0,VLOOKUP($CH17,'العاملين '!$A$3:$CR$260,49),0) -> 0 | CL17: 1343.03
A18: 12 | B18: =IF($CH18>0,VLOOKUP($CH18,'العاملين '!$A$3:$AR$260,10),0) -> 652.6 | C18: 97.89 | D18: 6.53 | E18: 13.05 | F18: 19.58 | G18: 789.65 | H18: =IF($CH18>0,VLOOKUP($CH18,'العاملين '!$A$3:$AR$260,11),0) -> 0 | I18: =IF($CH18>0,VLOOKUP($CH18,'العاملين '!$A$3:$AR$260,12),0) -> 32.54 | J18: =IF($CH18>0,VLOOKUP($CH18,'العاملين '!$A$3:$AR$260,13),0) -> 33.04 | K18: =IF($CH18>0,VLOOKUP($CH18,'العاملين '!$A$3:$AR$260,14),0) -> 35.19 | L18: =IF($CH18>0,VLOOKUP($CH18,'العاملين '!$A$3:$AR$260,15),0) -> 0 | M18: 100.77 | N18: =IF($CH18>0,VLOOKUP($CH18,'العاملين '!$A$3:$AR$260,16),0) -> 4 | O18: =IF($CH18>0,VLOOKUP($CH18,'العاملين '!$A$3:$AR$260,17),0) -> 4 | P18: =IF($CH18>0,VLOOKUP($CH18,'العاملين '!$A$3:$AR$260,18),0) -> 0 | Q18: =IF($CH18>0,VLOOKUP($CH18,'العاملين '!$A$3:$AR$260,27),0) -> 0 | R18: =IF($CH18>0,VLOOKUP($CH18,'العاملين '!$A$3:$AR$260,19),0) -> 0 | S18: =IF($CH18>0,VLOOKUP($CH18,'العاملين '!$A$3:$AR$260,20),0) -> 0 | T18: =IF($CH18>0,VLOOKUP($CH18,'العاملين '!$A$3:$AR$260,21),0) -> 0 | U18: =IF($CH18>0,VLOOKUP($CH18,'العاملين '!$A$3:$AR$260,22),0) -> 0 | V18: =IF($CH18>0,VLOOKUP($CH18,'العاملين '!$A$3:$AR$260,23),0) -> 0 | W18: =IF($CH18>0,VLOOKUP($CH18,'العاملين '!$A$3:$AR$260,24),0) -> 0 | X18: =IF($CH18>0,VLOOKUP($CH18,'العاملين '!$A$3:$AR$260,25),0) -> 0 | Y18: =IF($CH18>0,VLOOKUP($CH18,'العاملين '!$A$3:$AR$260,26),0) -> 0 | Z18: =IF($CH18>0,VLOOKUP($CH18,'العاملين '!$A$3:$CR$260,65),0) -> 175.98 | AA18: =IF($CH18>0,VLOOKUP($CH18,'العاملين '!$A$3:$CR$260,66),0) -> 175.98 | AB18: =IF($CH18>0,VLOOKUP($CH18,'العاملين '!$A$3:$CR$260,67),0) -> 263.97 | AC18: =IF($CH18>0,VLOOKUP($CH18,'العاملين '!$A$3:$CR$260,68),0) -> 87 | AD18: =IF($CH18>0,VLOOKUP($CH18,'العاملين '!$A$3:$CR$260,69),0) -> 175 | AE18: =IF($CH18>0,VLOOKUP($CH18,'العاملين '!$A$3:$CR$260,70),0) -> 0 | AF18: =IF($CH18>0,VLOOKUP($CH18,'العاملين '!$A$3:$CR$260,71),0) -> 0 | AG18: =IF($CH18>0,VLOOKUP($CH18,'العاملين '!$A$3:$CR$260,72),0) -> 0 | AN18: =IF($CH18>0,VLOOKUP($CH18,'العاملين '!$A$3:$AR$260,25),0) -> 0 | AO18: 986.7 | AP18: 986.7 | AQ18: 0 | AR18: 148.01 | AS18: 9.87 | AT18: 29.6 | AU18: 187.48 | AV18: =IF($CH18>0,VLOOKUP($CH18,'العاملين '!$A$3:$CR$260,64),0) -> 10 | AW18: =IF($CH18>0,VLOOKUP($CH18,'العاملين '!$A$3:$CR$260,52),0) -> 0 | AX18: 1973.83 | AY18: 97.89 | AZ18: 6.53 | BA18: 13.05 | BC18: 65.26 | BD18: 52.21 | BE18: 19.58 | BF18: 6.53 | BG18: 148.01 | BH18: 9.87 | BI18: 98.67 | BJ18: 29.6 | BK18: 9.87 | BL18: =IF($CJ18=1,ROUND(($B18)*7%,2),IF($CJ18=2,VLOOKUP($CH18,'العاملين '!$A$3:$CT$260,53),0)) -> 45.68 | BM18: =IF($CJ18=1,0.5,IF($CJ18=2,VLOOKUP($CH18,'العاملين '!$A$3:$CS$260,54),0)) -> 0.5 | BN18: =IF($CJ18=1,4.5,IF($CJ18=2,VLOOKUP($CH18,'العاملين '!$A$3:$CT$260,55),0)) -> 4.5 | BO18: =IF($CH18>0,VLOOKUP($CH18,'العاملين '!$A$3:$AR$260,38),0) -> 1 | BP18: =IF($CJ18=1,0.2,IF($CJ18=2,VLOOKUP($CH18,'العاملين '!$A$3:$CT$260,55),0)) -> 0.2 | BQ18: =IF($CJ18=1,0.05,IF($CJ18=2,VLOOKUP($CH18,'العاملين '!$A$3:$CT$260,55),0)) -> 0.05 | BR18: =IF($CH18>0,VLOOKUP($CH18,'العاملين '!$A$3:$AR$260,39),0) -> 10.65 | BS18: =IF($CH18>0,VLOOKUP($CH18,'العاملين '!$A$3:$AR$260,40),0) -> 11.15 | BT18: =IF($CH18>0,VLOOKUP($CH18,'العاملين '!$A$3:$AR$260,41),0) -> 0 | BU18: =IF($CH18>0,VLOOKUP($CH18,'العاملين '!$A$3:$AR$260,42),0) -> 0 | BV18: =IF($CH18>0,VLOOKUP($CH18,'العاملين '!$A$3:$AR$260,43),0) -> 0 | BW18: =IF($CH18>0,VLOOKUP($CH18,'العاملين '!$A$3:$AR$260,44),0) -> 0 | BX18: =IF($CH18>0,VLOOKUP($CH18,'العاملين '!$A$3:$CR$260,45),0) -> 0 | BY18: =IF($CH18>0,VLOOKUP($CH18,'العاملين '!$A$3:$CR$260,46),0) -> 0 | BZ18: =IF($CH18>0,VLOOKUP($CH18,'العاملين '!$A$3:$CR$260,47),0) -> 0 | CA18: =IF($CH18>0,VLOOKUP($CH18,'العاملين '!$A$3:$CR$260,48),0) -> 0 | CC18: =IF($CH18>0,VLOOKUP($CH18,'العاملين '!$A$3:$AR$260,41),0) -> 0 | CD18: 0.03 | CE18: 630.83 | CF18: 1343 | CG18: =IF($CH18>0,VLOOKUP($CH18,'العاملين '!$A$3:$AR$260,2),0) -> محمد20 | CH18: 20 | CJ18: =IF($CH18>0,VLOOKUP($CH18,'العاملين '!$A$3:$CR$260,3),0) -> 1 | CK18: =IF($CH18>0,VLOOKUP($CH18,'العاملين '!$A$3:$CR$260,49),0) -> 0 | CL18: 1343.03
A19: 13 | B19: =IF($CH19>0,VLOOKUP($CH19,'العاملين '!$A$3:$AR$260,10),0) -> 652.6 | C19: 97.89 | D19: 6.53 | E19: 13.05 | F19: 19.58 | G19: 789.65 | H19: =IF($CH19>0,VLOOKUP($CH19,'العاملين '!$A$3:$AR$260,11),0) -> 0 | I19: =IF($CH19>0,VLOOKUP($CH19,'العاملين '!$A$3:$AR$260,12),0) -> 32.54 | J19: =IF($CH19>0,VLOOKUP($CH19,'العاملين '!$A$3:$AR$260,13),0) -> 33.04 | K19: =IF($CH19>0,VLOOKUP($CH19,'العاملين '!$A$3:$AR$260,14),0) -> 35.19 | L19: =IF($CH19>0,VLOOKUP($CH19,'العاملين '!$A$3:$AR$260,15),0) -> 0 | M19: 100.77 | N19: =IF($CH19>0,VLOOKUP($CH19,'العاملين '!$A$3:$AR$260,16),0) -> 4 | O19: =IF($CH19>0,VLOOKUP($CH19,'العاملين '!$A$3:$AR$260,17),0) -> 4 | P19: =IF($CH19>0,VLOOKUP($CH19,'العاملين '!$A$3:$AR$260,18),0) -> 0 | Q19: =IF($CH19>0,VLOOKUP($CH19,'العاملين '!$A$3:$AR$260,27),0) -> 0 | R19: =IF($CH19>0,VLOOKUP($CH19,'العاملين '!$A$3:$AR$260,19),0) -> 0 | S19: =IF($CH19>0,VLOOKUP($CH19,'العاملين '!$A$3:$AR$260,20),0) -> 0 | T19: =IF($CH19>0,VLOOKUP($CH19,'العاملين '!$A$3:$AR$260,21),0) -> 0 | U19: =IF($CH19>0,VLOOKUP($CH19,'العاملين '!$A$3:$AR$260,22),0) -> 0 | V19: =IF($CH19>0,VLOOKUP($CH19,'العاملين '!$A$3:$AR$260,23),0) -> 0 | W19: =IF($CH19>0,VLOOKUP($CH19,'العاملين '!$A$3:$AR$260,24),0) -> 0 | X19: =IF($CH19>0,VLOOKUP($CH19,'العاملين '!$A$3:$AR$260,25),0) -> 0 | Y19: =IF($CH19>0,VLOOKUP($CH19,'العاملين '!$A$3:$AR$260,26),0) -> 0 | Z19: =IF($CH19>0,VLOOKUP($CH19,'العاملين '!$A$3:$CR$260,65),0) -> 175.98 | AA19: =IF($CH19>0,VLOOKUP($CH19,'العاملين '!$A$3:$CR$260,66),0) -> 175.98 | AB19: =IF($CH19>0,VLOOKUP($CH19,'العاملين '!$A$3:$CR$260,67),0) -> 263.97 | AC19: =IF($CH19>0,VLOOKUP($CH19,'العاملين '!$A$3:$CR$260,68),0) -> 87 | AD19: =IF($CH19>0,VLOOKUP($CH19,'العاملين '!$A$3:$CR$260,69),0) -> 175 | AE19: =IF($CH19>0,VLOOKUP($CH19,'العاملين '!$A$3:$CR$260,70),0) -> 0 | AF19: =IF($CH19>0,VLOOKUP($CH19,'العاملين '!$A$3:$CR$260,71),0) -> 0 | AG19: =IF($CH19>0,VLOOKUP($CH19,'العاملين '!$A$3:$CR$260,72),0) -> 0 | AN19: =IF($CH19>0,VLOOKUP($CH19,'العاملين '!$A$3:$AR$260,25),0) -> 0 | AO19: 986.7 | AP19: 986.7 | AQ19: 0 | AR19: 148.01 | AS19: 9.87 | AT19: 29.6 | AU19: 187.48 | AV19: =IF($CH19>0,VLOOKUP($CH19,'العاملين '!$A$3:$CR$260,64),0) -> 10 | AW19: =IF($CH19>0,VLOOKUP($CH19,'العاملين '!$A$3:$CR$260,52),0) -> 0 | AX19: 1973.83 | AY19: 97.89 | AZ19: 6.53 | BA19: 13.05 | BC19: 65.26 | BD19: 52.21 | BE19: 19.58 | BF19: 6.53 | BG19: 148.01 | BH19: 9.87 | BI19: 98.67 | BJ19: 29.6 | BK19: 9.87 | BL19: =IF($CJ19=1,ROUND(($B19)*7%,2),IF($CJ19=2,VLOOKUP($CH19,'العاملين '!$A$3:$CT$260,53),0)) -> 45.68 | BM19: =IF($CJ19=1,0.5,IF($CJ19=2,VLOOKUP($CH19,'العاملين '!$A$3:$CS$260,54),0)) -> 0.5 | BN19: =IF($CJ19=1,4.5,IF($CJ19=2,VLOOKUP($CH19,'العاملين '!$A$3:$CT$260,55),0)) -> 4.5 | BO19: =IF($CH19>0,VLOOKUP($CH19,'العاملين '!$A$3:$AR$260,38),0) -> 1 | BP19: =IF($CJ19=1,0.2,IF($CJ19=2,VLOOKUP($CH19,'العاملين '!$A$3:$CT$260,55),0)) -> 0.2 | BQ19: =IF($CJ19=1,0.05,IF($CJ19=2,VLOOKUP($CH19,'العاملين '!$A$3:$CT$260,55),0)) -> 0.05 | BR19: =IF($CH19>0,VLOOKUP($CH19,'العاملين '!$A$3:$AR$260,39),0) -> 10.65 | BS19: =IF($CH19>0,VLOOKUP($CH19,'العاملين '!$A$3:$AR$260,40),0) -> 11.15 | BT19: =IF($CH19>0,VLOOKUP($CH19,'العاملين '!$A$3:$AR$260,41),0) -> 0 | BU19: =IF($CH19>0,VLOOKUP($CH19,'العاملين '!$A$3:$AR$260,42),0) -> 0 | BV19: =IF($CH19>0,VLOOKUP($CH19,'العاملين '!$A$3:$AR$260,43),0) -> 0 | BW19: =IF($CH19>0,VLOOKUP($CH19,'العاملين '!$A$3:$AR$260,44),0) -> 0 | BX19: =IF($CH19>0,VLOOKUP($CH19,'العاملين '!$A$3:$CR$260,45),0) -> 0 | BY19: =IF($CH19>0,VLOOKUP($CH19,'العاملين '!$A$3:$CR$260,46),0) -> 0 | BZ19: =IF($CH19>0,VLOOKUP($CH19,'العاملين '!$A$3:$CR$260,47),0) -> 0 | CA19: =IF($CH19>0,VLOOKUP($CH19,'العاملين '!$A$3:$CR$260,48),0) -> 0 | CC19: =IF($CH19>0,VLOOKUP($CH19,'العاملين '!$A$3:$AR$260,41),0) -> 0 | CD19: 0.03 | CE19: 630.83 | CF19: 1343 | CG19: =IF($CH19>0,VLOOKUP($CH19,'العاملين '!$A$3:$AR$260,2),0) -> محمد20 | CH19: 20 | CJ19: =IF($CH19>0,VLOOKUP($CH19,'العاملين '!$A$3:$CR$260,3),0) -> 1 | CK19: =IF($CH19>0,VLOOKUP($CH19,'العاملين '!$A$3:$CR$260,49),0) -> 0 | CL19: 1343.03
A20: 14 | B20: =IF($CH20>0,VLOOKUP($CH20,'العاملين '!$A$3:$AR$260,10),0) -> 652.6 | C20: 97.89 | D20: 6.53 | E20: 13.05 | F20: 19.58 | G20: 789.65 | H20: =IF($CH20>0,VLOOKUP($CH20,'العاملين '!$A$3:$AR$260,11),0) -> 0 | I20: =IF($CH20>0,VLOOKUP($CH20,'العاملين '!$A$3:$AR$260,12),0) -> 32.54 | J20: =IF($CH20>0,VLOOKUP($CH20,'العاملين '!$A$3:$AR$260,13),0) -> 33.04 | K20: =IF($CH20>0,VLOOKUP($CH20,'العاملين '!$A$3:$AR$260,14),0) -> 35.19 | L20: =IF($CH20>0,VLOOKUP($CH20,'العاملين '!$A$3:$AR$260,15),0) -> 0 | M20: 100.77 | N20: =IF($CH20>0,VLOOKUP($CH20,'العاملين '!$A$3:$AR$260,16),0) -> 4 | O20: =IF($CH20>0,VLOOKUP($CH20,'العاملين '!$A$3:$AR$260,17),0) -> 4 | P20: =IF($CH20>0,VLOOKUP($CH20,'العاملين '!$A$3:$AR$260,18),0) -> 0 | Q20: =IF($CH20>0,VLOOKUP($CH20,'العاملين '!$A$3:$AR$260,27),0) -> 0 | R20: =IF($CH20>0,VLOOKUP($CH20,'العاملين '!$A$3:$AR$260,19),0) -> 0 | S20: =IF($CH20>0,VLOOKUP($CH20,'العاملين '!$A$3:$AR$260,20),0) -> 0 | T20: =IF($CH20>0,VLOOKUP($CH20,'العاملين '!$A$3:$AR$260,21),0) -> 0 | U20: =IF($CH20>0,VLOOKUP($CH20,'العاملين '!$A$3:$AR$260,22),0) -> 0 | V20: =IF($CH20>0,VLOOKUP($CH20,'العاملين '!$A$3:$AR$260,23),0) -> 0 | W20: =IF($CH20>0,VLOOKUP($CH20,'العاملين '!$A$3:$AR$260,24),0) -> 0 | X20: =IF($CH20>0,VLOOKUP($CH20,'العاملين '!$A$3:$AR$260,25),0) -> 0 | Y20: =IF($CH20>0,VLOOKUP($CH20,'العاملين '!$A$3:$AR$260,26),0) -> 0 | Z20: =IF($CH20>0,VLOOKUP($CH20,'العاملين '!$A$3:$CR$260,65),0) -> 175.98 | AA20: =IF($CH20>0,VLOOKUP($CH20,'العاملين '!$A$3:$CR$260,66),0) -> 175.98 | AB20: =IF($CH20>0,VLOOKUP($CH20,'العاملين '!$A$3:$CR$260,67),0) -> 263.97 | AC20: =IF($CH20>0,VLOOKUP($CH20,'العاملين '!$A$3:$CR$260,68),0) -> 87 | AD20: =IF($CH20>0,VLOOKUP($CH20,'العاملين '!$A$3:$CR$260,69),0) -> 175 | AE20: =IF($CH20>0,VLOOKUP($CH20,'العاملين '!$A$3:$CR$260,70),0) -> 0 | AF20: =IF($CH20>0,VLOOKUP($CH20,'العاملين '!$A$3:$CR$260,71),0) -> 0 | AG20: =IF($CH20>0,VLOOKUP($CH20,'العاملين '!$A$3:$CR$260,72),0) -> 0 | AN20: =IF($CH20>0,VLOOKUP($CH20,'العاملين '!$A$3:$AR$260,25),0) -> 0 | AO20: 986.7 | AP20: 986.7 | AQ20: 0 | AR20: 148.01 | AS20: 9.87 | AT20: 29.6 | AU20: 187.48 | AV20: =IF($CH20>0,VLOOKUP($CH20,'العاملين '!$A$3:$CR$260,64),0) -> 10 | AW20: =IF($CH20>0,VLOOKUP($CH20,'العاملين '!$A$3:$CR$260,52),0) -> 0 | AX20: 1973.83 | AY20: 97.89 | AZ20: 6.53 | BA20: 13.05 | BC20: 65.26 | BD20: 52.21 | BE20: 19.58 | BF20: 6.53 | BG20: 148.01 | BH20: 9.87 | BI20: 98.67 | BJ20: 29.6 | BK20: 9.87 | BL20: =IF($CJ20=1,ROUND(($B20)*7%,2),IF($CJ20=2,VLOOKUP($CH20,'العاملين '!$A$3:$CT$260,53),0)) -> 45.68 | BM20: =IF($CJ20=1,0.5,IF($CJ20=2,VLOOKUP($CH20,'العاملين '!$A$3:$CS$260,54),0)) -> 0.5 | BN20: =IF($CJ20=1,4.5,IF($CJ20=2,VLOOKUP($CH20,'العاملين '!$A$3:$CT$260,55),0)) -> 4.5 | BO20: =IF($CH20>0,VLOOKUP($CH20,'العاملين '!$A$3:$AR$260,38),0) -> 1 | BP20: =IF($CJ20=1,0.2,IF($CJ20=2,VLOOKUP($CH20,'العاملين '!$A$3:$CT$260,55),0)) -> 0.2 | BQ20: =IF($CJ20=1,0.05,IF($CJ20=2,VLOOKUP($CH20,'العاملين '!$A$3:$CT$260,55),0)) -> 0.05 | BR20: =IF($CH20>0,VLOOKUP($CH20,'العاملين '!$A$3:$AR$260,39),0) -> 10.65 | BS20: =IF($CH20>0,VLOOKUP($CH20,'العاملين '!$A$3:$AR$260,40),0) -> 11.15 | BT20: =IF($CH20>0,VLOOKUP($CH20,'العاملين '!$A$3:$AR$260,41),0) -> 0 | BU20: =IF($CH20>0,VLOOKUP($CH20,'العاملين '!$A$3:$AR$260,42),0) -> 0 | BV20: =IF($CH20>0,VLOOKUP($CH20,'العاملين '!$A$3:$AR$260,43),0) -> 0 | BW20: =IF($CH20>0,VLOOKUP($CH20,'العاملين '!$A$3:$AR$260,44),0) -> 0 | BX20: =IF($CH20>0,VLOOKUP($CH20,'العاملين '!$A$3:$CR$260,45),0) -> 0 | BY20: =IF($CH20>0,VLOOKUP($CH20,'العاملين '!$A$3:$CR$260,46),0) -> 0 | BZ20: =IF($CH20>0,VLOOKUP($CH20,'العاملين '!$A$3:$CR$260,47),0) -> 0 | CA20: =IF($CH20>0,VLOOKUP($CH20,'العاملين '!$A$3:$CR$260,48),0) -> 0 | CC20: =IF($CH20>0,VLOOKUP($CH20,'العاملين '!$A$3:$AR$260,41),0) -> 0 | CD20: 0.03 | CE20: 630.83 | CF20: 1343 | CG20: =IF($CH20>0,VLOOKUP($CH20,'العاملين '!$A$3:$AR$260,2),0) -> محمد20 | CH20: 20 | CJ20: =IF($CH20>0,VLOOKUP($CH20,'العاملين '!$A$3:$CR$260,3),0) -> 1 | CK20: =IF($CH20>0,VLOOKUP($CH20,'العاملين '!$A$3:$CR$260,49),0) -> 0 | CL20: 1343.03
A21: 15 | B21: =IF($CH21>0,VLOOKUP($CH21,'العاملين '!$A$3:$AR$260,10),0) -> 652.6 | C21: 97.89 | D21: 6.53 | E21: 13.05 | F21: 19.58 | G21: 789.65 | H21: =IF($CH21>0,VLOOKUP($CH21,'العاملين '!$A$3:$AR$260,11),0) -> 0 | I21: =IF($CH21>0,VLOOKUP($CH21,'العاملين '!$A$3:$AR$260,12),0) -> 32.54 | J21: =IF($CH21>0,VLOOKUP($CH21,'العاملين '!$A$3:$AR$260,13),0) -> 33.04 | K21: =IF($CH21>0,VLOOKUP($CH21,'العاملين '!$A$3:$AR$260,14),0) -> 35.19 | L21: =IF($CH21>0,VLOOKUP($CH21,'العاملين '!$A$3:$AR$260,15),0) -> 0 | M21: 100.77 | N21: =IF($CH21>0,VLOOKUP($CH21,'العاملين '!$A$3:$AR$260,16),0) -> 4 | O21: =IF($CH21>0,VLOOKUP($CH21,'العاملين '!$A$3:$AR$260,17),0) -> 4 | P21: =IF($CH21>0,VLOOKUP($CH21,'العاملين '!$A$3:$AR$260,18),0) -> 0 | Q21: =IF($CH21>0,VLOOKUP($CH21,'العاملين '!$A$3:$AR$260,27),0) -> 0 | R21: =IF($CH21>0,VLOOKUP($CH21,'العاملين '!$A$3:$AR$260,19),0) -> 0 | S21: =IF($CH21>0,VLOOKUP($CH21,'العاملين '!$A$3:$AR$260,20),0) -> 0 | T21: =IF($CH21>0,VLOOKUP($CH21,'العاملين '!$A$3:$AR$260,21),0) -> 0 | U21: =IF($CH21>0,VLOOKUP($CH21,'العاملين '!$A$3:$AR$260,22),0) -> 0 | V21: =IF($CH21>0,VLOOKUP($CH21,'العاملين '!$A$3:$AR$260,23),0) -> 0 | W21: =IF($CH21>0,VLOOKUP($CH21,'العاملين '!$A$3:$AR$260,24),0) -> 0 | X21: =IF($CH21>0,VLOOKUP($CH21,'العاملين '!$A$3:$AR$260,25),0) -> 0 | Y21: =IF($CH21>0,VLOOKUP($CH21,'العاملين '!$A$3:$AR$260,26),0) -> 0 | Z21: =IF($CH21>0,VLOOKUP($CH21,'العاملين '!$A$3:$CR$260,65),0) -> 175.98 | AA21: =IF($CH21>0,VLOOKUP($CH21,'العاملين '!$A$3:$CR$260,66),0) -> 175.98 | AB21: =IF($CH21>0,VLOOKUP($CH21,'العاملين '!$A$3:$CR$260,67),0) -> 263.97 | AC21: =IF($CH21>0,VLOOKUP($CH21,'العاملين '!$A$3:$CR$260,68),0) -> 87 | AD21: =IF($CH21>0,VLOOKUP($CH21,'العاملين '!$A$3:$CR$260,69),0) -> 175 | AE21: =IF($CH21>0,VLOOKUP($CH21,'العاملين '!$A$3:$CR$260,70),0) -> 0 | AF21: =IF($CH21>0,VLOOKUP($CH21,'العاملين '!$A$3:$CR$260,71),0) -> 0 | AG21: =IF($CH21>0,VLOOKUP($CH21,'العاملين '!$A$3:$CR$260,72),0) -> 0 | AN21: =IF($CH21>0,VLOOKUP($CH21,'العاملين '!$A$3:$AR$260,25),0) -> 0 | AO21: 986.7 | AP21: 986.7 | AQ21: 0 | AR21: 148.01 | AS21: 9.87 | AT21: 29.6 | AU21: 187.48 | AV21: =IF($CH21>0,VLOOKUP($CH21,'العاملين '!$A$3:$CR$260,64),0) -> 10 | AW21: =IF($CH21>0,VLOOKUP($CH21,'العاملين '!$A$3:$CR$260,52),0) -> 0 | AX21: 1973.83 | AY21: 97.89 | AZ21: 6.53 | BA21: 13.05 | BC21: 65.26 | BD21: 52.21 | BE21: 19.58 | BF21: 6.53 | BG21: 148.01 | BH21: 9.87 | BI21: 98.67 | BJ21: 29.6 | BK21: 9.87 | BL21: =IF($CJ21=1,ROUND(($B21)*7%,2),IF($CJ21=2,VLOOKUP($CH21,'العاملين '!$A$3:$CT$260,53),0)) -> 45.68 | BM21: =IF($CJ21=1,0.5,IF($CJ21=2,VLOOKUP($CH21,'العاملين '!$A$3:$CS$260,54),0)) -> 0.5 | BN21: =IF($CJ21=1,4.5,IF($CJ21=2,VLOOKUP($CH21,'العاملين '!$A$3:$CT$260,55),0)) -> 4.5 | BO21: =IF($CH21>0,VLOOKUP($CH21,'العاملين '!$A$3:$AR$260,38),0) -> 1 | BP21: =IF($CJ21=1,0.2,IF($CJ21=2,VLOOKUP($CH21,'العاملين '!$A$3:$CT$260,55),0)) -> 0.2 | BQ21: =IF($CJ21=1,0.05,IF($CJ21=2,VLOOKUP($CH21,'العاملين '!$A$3:$CT$260,55),0)) -> 0.05 | BR21: =IF($CH21>0,VLOOKUP($CH21,'العاملين '!$A$3:$AR$260,39),0) -> 10.65 | BS21: =IF($CH21>0,VLOOKUP($CH21,'العاملين '!$A$3:$AR$260,40),0) -> 11.15 | BT21: =IF($CH21>0,VLOOKUP($CH21,'العاملين '!$A$3:$AR$260,41),0) -> 0 | BU21: =IF($CH21>0,VLOOKUP($CH21,'العاملين '!$A$3:$AR$260,42),0) -> 0 | BV21: =IF($CH21>0,VLOOKUP($CH21,'العاملين '!$A$3:$AR$260,43),0) -> 0 | BW21: =IF($CH21>0,VLOOKUP($CH21,'العاملين '!$A$3:$AR$260,44),0) -> 0 | BX21: =IF($CH21>0,VLOOKUP($CH21,'العاملين '!$A$3:$CR$260,45),0) -> 0 | BY21: =IF($CH21>0,VLOOKUP($CH21,'العاملين '!$A$3:$CR$260,46),0) -> 0 | BZ21: =IF($CH21>0,VLOOKUP($CH21,'العاملين '!$A$3:$CR$260,47),0) -> 0 | CA21: =IF($CH21>0,VLOOKUP($CH21,'العاملين '!$A$3:$CR$260,48),0) -> 0 | CC21: =IF($CH21>0,VLOOKUP($CH21,'العاملين '!$A$3:$AR$260,41),0) -> 0 | CD21: 0.03 | CE21: 630.83 | CF21: 1343 | CG21: =IF($CH21>0,VLOOKUP($CH21,'العاملين '!$A$3:$AR$260,2),0) -> محمد20 | CH21: 20 | CJ21: =IF($CH21>0,VLOOKUP($CH21,'العاملين '!$A$3:$CR$260,3),0) -> 1 | CK21: =IF($CH21>0,VLOOKUP($CH21,'العاملين '!$A$3:$CR$260,49),0) -> 0 | CL21: 1343.03
A22: 16 | B22: =IF($CH22>0,VLOOKUP($CH22,'العاملين '!$A$3:$AR$260,10),0) -> 652.6 | C22: 97.89 | D22: 6.53 | E22: 13.05 | F22: 19.58 | G22: 789.65 | H22: =IF($CH22>0,VLOOKUP($CH22,'العاملين '!$A$3:$AR$260,11),0) -> 0 | I22: =IF($CH22>0,VLOOKUP($CH22,'العاملين '!$A$3:$AR$260,12),0) -> 32.54 | J22: =IF($CH22>0,VLOOKUP($CH22,'العاملين '!$A$3:$AR$260,13),0) -> 33.04 | K22: =IF($CH22>0,VLOOKUP($CH22,'العاملين '!$A$3:$AR$260,14),0) -> 35.19 | L22: =IF($CH22>0,VLOOKUP($CH22,'العاملين '!$A$3:$AR$260,15),0) -> 0 | M22: 100.77 | N22: =IF($CH22>0,VLOOKUP($CH22,'العاملين '!$A$3:$AR$260,16),0) -> 4 | O22: =IF($CH22>0,VLOOKUP($CH22,'العاملين '!$A$3:$AR$260,17),0) -> 4 | P22: =IF($CH22>0,VLOOKUP($CH22,'العاملين '!$A$3:$AR$260,18),0) -> 0 | Q22: =IF($CH22>0,VLOOKUP($CH22,'العاملين '!$A$3:$AR$260,27),0) -> 0 | R22: =IF($CH22>0,VLOOKUP($CH22,'العاملين '!$A$3:$AR$260,19),0) -> 0 | S22: =IF($CH22>0,VLOOKUP($CH22,'العاملين '!$A$3:$AR$260,20),0) -> 0 | T22: =IF($CH22>0,VLOOKUP($CH22,'العاملين '!$A$3:$AR$260,21),0) -> 0 | U22: =IF($CH22>0,VLOOKUP($CH22,'العاملين '!$A$3:$AR$260,22),0) -> 0 | V22: =IF($CH22>0,VLOOKUP($CH22,'العاملين '!$A$3:$AR$260,23),0) -> 0 | W22: =IF($CH22>0,VLOOKUP($CH22,'العاملين '!$A$3:$AR$260,24),0) -> 0 | X22: =IF($CH22>0,VLOOKUP($CH22,'العاملين '!$A$3:$AR$260,25),0) -> 0 | Y22: =IF($CH22>0,VLOOKUP($CH22,'العاملين '!$A$3:$AR$260,26),0) -> 0 | Z22: =IF($CH22>0,VLOOKUP($CH22,'العاملين '!$A$3:$CR$260,65),0) -> 175.98 | AA22: =IF($CH22>0,VLOOKUP($CH22,'العاملين '!$A$3:$CR$260,66),0) -> 175.98 | AB22: =IF($CH22>0,VLOOKUP($CH22,'العاملين '!$A$3:$CR$260,67),0) -> 263.97 | AC22: =IF($CH22>0,VLOOKUP($CH22,'العاملين '!$A$3:$CR$260,68),0) -> 87 | AD22: =IF($CH22>0,VLOOKUP($CH22,'العاملين '!$A$3:$CR$260,69),0) -> 175 | AE22: =IF($CH22>0,VLOOKUP($CH22,'العاملين '!$A$3:$CR$260,70),0) -> 0 | AF22: =IF($CH22>0,VLOOKUP($CH22,'العاملين '!$A$3:$CR$260,71),0) -> 0 | AG22: =IF($CH22>0,VLOOKUP($CH22,'العاملين '!$A$3:$CR$260,72),0) -> 0 | AN22: =IF($CH22>0,VLOOKUP($CH22,'العاملين '!$A$3:$AR$260,25),0) -> 0 | AO22: 986.7 | AP22: 986.7 | AQ22: 0 | AR22: 148.01 | AS22: 9.87 | AT22: 29.6 | AU22: 187.48 | AV22: =IF($CH22>0,VLOOKUP($CH22,'العاملين '!$A$3:$CR$260,64),0) -> 10 | AW22: =IF($CH22>0,VLOOKUP($CH22,'العاملين '!$A$3:$CR$260,52),0) -> 0 | AX22: 1973.83 | AY22: 97.89 | AZ22: 6.53 | BA22: 13.05 | BC22: 65.26 | BD22: 52.21 | BE22: 19.58 | BF22: 6.53 | BG22: 148.01 | BH22: 9.87 | BI22: 98.67 | BJ22: 29.6 | BK22: 9.87 | BL22: =IF($CJ22=1,ROUND(($B22)*7%,2),IF($CJ22=2,VLOOKUP($CH22,'العاملين '!$A$3:$CT$260,53),0)) -> 45.68 | BM22: =IF($CJ22=1,0.5,IF($CJ22=2,VLOOKUP($CH22,'العاملين '!$A$3:$CS$260,54),0)) -> 0.5 | BN22: =IF($CJ22=1,4.5,IF($CJ22=2,VLOOKUP($CH22,'العاملين '!$A$3:$CT$260,55),0)) -> 4.5 | BO22: =IF($CH22>0,VLOOKUP($CH22,'العاملين '!$A$3:$AR$260,38),0) -> 1 | BP22: =IF($CJ22=1,0.2,IF($CJ22=2,VLOOKUP($CH22,'العاملين '!$A$3:$CT$260,55),0)) -> 0.2 | BQ22: =IF($CJ22=1,0.05,IF($CJ22=2,VLOOKUP($CH22,'العاملين '!$A$3:$CT$260,55),0)) -> 0.05 | BR22: =IF($CH22>0,VLOOKUP($CH22,'العاملين '!$A$3:$AR$260,39),0) -> 10.65 | BS22: =IF($CH22>0,VLOOKUP($CH22,'العاملين '!$A$3:$AR$260,40),0) -> 11.15 | BT22: =IF($CH22>0,VLOOKUP($CH22,'العاملين '!$A$3:$AR$260,41),0) -> 0 | BU22: =IF($CH22>0,VLOOKUP($CH22,'العاملين '!$A$3:$AR$260,42),0) -> 0 | BV22: =IF($CH22>0,VLOOKUP($CH22,'العاملين '!$A$3:$AR$260,43),0) -> 0 | BW22: =IF($CH22>0,VLOOKUP($CH22,'العاملين '!$A$3:$AR$260,44),0) -> 0 | BX22: =IF($CH22>0,VLOOKUP($CH22,'العاملين '!$A$3:$CR$260,45),0) -> 0 | BY22: =IF($CH22>0,VLOOKUP($CH22,'العاملين '!$A$3:$CR$260,46),0) -> 0 | BZ22: =IF($CH22>0,VLOOKUP($CH22,'العاملين '!$A$3:$CR$260,47),0) -> 0 | CA22: =IF($CH22>0,VLOOKUP($CH22,'العاملين '!$A$3:$CR$260,48),0) -> 0 | CC22: =IF($CH22>0,VLOOKUP($CH22,'العاملين '!$A$3:$AR$260,41),0) -> 0 | CD22: 0.03 | CE22: 630.83 | CF22: 1343 | CG22: =IF($CH22>0,VLOOKUP($CH22,'العاملين '!$A$3:$AR$260,2),0) -> محمد20 | CH22: 20 | CJ22: =IF($CH22>0,VLOOKUP($CH22,'العاملين '!$A$3:$CR$260,3),0) -> 1 | CK22: =IF($CH22>0,VLOOKUP($CH22,'العاملين '!$A$3:$CR$260,49),0) -> 0 | CL22: 1343.03
A23: 17 | B23: =IF($CH23>0,VLOOKUP($CH23,'العاملين '!$A$3:$AR$260,10),0) -> 652.6 | C23: 97.89 | D23: 6.53 | E23: 13.05 | F23: 19.58 | G23: 789.65 | H23: =IF($CH23>0,VLOOKUP($CH23,'العاملين '!$A$3:$AR$260,11),0) -> 0 | I23: =IF($CH23>0,VLOOKUP($CH23,'العاملين '!$A$3:$AR$260,12),0) -> 32.54 | J23: =IF($CH23>0,VLOOKUP($CH23,'العاملين '!$A$3:$AR$260,13),0) -> 33.04 | K23: =IF($CH23>0,VLOOKUP($CH23,'العاملين '!$A$3:$AR$260,14),0) -> 35.19 | L23: =IF($CH23>0,VLOOKUP($CH23,'العاملين '!$A$3:$AR$260,15),0) -> 0 | M23: 100.77 | N23: =IF($CH23>0,VLOOKUP($CH23,'العاملين '!$A$3:$AR$260,16),0) -> 4 | O23: =IF($CH23>0,VLOOKUP($CH23,'العاملين '!$A$3:$AR$260,17),0) -> 4 | P23: =IF($CH23>0,VLOOKUP($CH23,'العاملين '!$A$3:$AR$260,18),0) -> 0 | Q23: =IF($CH23>0,VLOOKUP($CH23,'العاملين '!$A$3:$AR$260,27),0) -> 0 | R23: =IF($CH23>0,VLOOKUP($CH23,'العاملين '!$A$3:$AR$260,19),0) -> 0 | S23: =IF($CH23>0,VLOOKUP($CH23,'العاملين '!$A$3:$AR$260,20),0) -> 0 | T23: =IF($CH23>0,VLOOKUP($CH23,'العاملين '!$A$3:$AR$260,21),0) -> 0 | U23: =IF($CH23>0,VLOOKUP($CH23,'العاملين '!$A$3:$AR$260,22),0) -> 0 | V23: =IF($CH23>0,VLOOKUP($CH23,'العاملين '!$A$3:$AR$260,23),0) -> 0 | W23: =IF($CH23>0,VLOOKUP($CH23,'العاملين '!$A$3:$AR$260,24),0) -> 0 | X23: =IF($CH23>0,VLOOKUP($CH23,'العاملين '!$A$3:$AR$260,25),0) -> 0 | Y23: =IF($CH23>0,VLOOKUP($CH23,'العاملين '!$A$3:$AR$260,26),0) -> 0 | Z23: =IF($CH23>0,VLOOKUP($CH23,'العاملين '!$A$3:$CR$260,65),0) -> 175.98 | AA23: =IF($CH23>0,VLOOKUP($CH23,'العاملين '!$A$3:$CR$260,66),0) -> 175.98 | AB23: =IF($CH23>0,VLOOKUP($CH23,'العاملين '!$A$3:$CR$260,67),0) -> 263.97 | AC23: =IF($CH23>0,VLOOKUP($CH23,'العاملين '!$A$3:$CR$260,68),0) -> 87 | AD23: =IF($CH23>0,VLOOKUP($CH23,'العاملين '!$A$3:$CR$260,69),0) -> 175 | AE23: =IF($CH23>0,VLOOKUP($CH23,'العاملين '!$A$3:$CR$260,70),0) -> 0 | AF23: =IF($CH23>0,VLOOKUP($CH23,'العاملين '!$A$3:$CR$260,71),0) -> 0 | AG23: =IF($CH23>0,VLOOKUP($CH23,'العاملين '!$A$3:$CR$260,72),0) -> 0 | AN23: =IF($CH23>0,VLOOKUP($CH23,'العاملين '!$A$3:$AR$260,25),0) -> 0 | AO23: 986.7 | AP23: 986.7 | AQ23: 0 | AR23: 148.01 | AS23: 9.87 | AT23: 29.6 | AU23: 187.48 | AV23: =IF($CH23>0,VLOOKUP($CH23,'العاملين '!$A$3:$CR$260,64),0) -> 10 | AW23: =IF($CH23>0,VLOOKUP($CH23,'العاملين '!$A$3:$CR$260,52),0) -> 0 | AX23: 1973.83 | AY23: 97.89 | AZ23: 6.53 | BA23: 13.05 | BC23: 65.26 | BD23: 52.21 | BE23: 19.58 | BF23: 6.53 | BG23: 148.01 | BH23: 9.87 | BI23: 98.67 | BJ23: 29.6 | BK23: 9.87 | BL23: =IF($CJ23=1,ROUND(($B23)*7%,2),IF($CJ23=2,VLOOKUP($CH23,'العاملين '!$A$3:$CT$260,53),0)) -> 45.68 | BM23: =IF($CJ23=1,0.5,IF($CJ23=2,VLOOKUP($CH23,'العاملين '!$A$3:$CS$260,54),0)) -> 0.5 | BN23: =IF($CJ23=1,4.5,IF($CJ23=2,VLOOKUP($CH23,'العاملين '!$A$3:$CT$260,55),0)) -> 4.5 | BO23: =IF($CH23>0,VLOOKUP($CH23,'العاملين '!$A$3:$AR$260,38),0) -> 1 | BP23: =IF($CJ23=1,0.2,IF($CJ23=2,VLOOKUP($CH23,'العاملين '!$A$3:$CT$260,55),0)) -> 0.2 | BQ23: =IF($CJ23=1,0.05,IF($CJ23=2,VLOOKUP($CH23,'العاملين '!$A$3:$CT$260,55),0)) -> 0.05 | BR23: =IF($CH23>0,VLOOKUP($CH23,'العاملين '!$A$3:$AR$260,39),0) -> 10.65 | BS23: =IF($CH23>0,VLOOKUP($CH23,'العاملين '!$A$3:$AR$260,40),0) -> 11.15 | BT23: =IF($CH23>0,VLOOKUP($CH23,'العاملين '!$A$3:$AR$260,41),0) -> 0 | BU23: =IF($CH23>0,VLOOKUP($CH23,'العاملين '!$A$3:$AR$260,42),0) -> 0 | BV23: =IF($CH23>0,VLOOKUP($CH23,'العاملين '!$A$3:$AR$260,43),0) -> 0 | BW23: =IF($CH23>0,VLOOKUP($CH23,'العاملين '!$A$3:$AR$260,44),0) -> 0 | BX23: =IF($CH23>0,VLOOKUP($CH23,'العاملين '!$A$3:$CR$260,45),0) -> 0 | BY23: =IF($CH23>0,VLOOKUP($CH23,'العاملين '!$A$3:$CR$260,46),0) -> 0 | BZ23: =IF($CH23>0,VLOOKUP($CH23,'العاملين '!$A$3:$CR$260,47),0) -> 0 | CA23: =IF($CH23>0,VLOOKUP($CH23,'العاملين '!$A$3:$CR$260,48),0) -> 0 | CC23: =IF($CH23>0,VLOOKUP($CH23,'العاملين '!$A$3:$AR$260,41),0) -> 0 | CD23: 0.03 | CE23: 630.83 | CF23: 1343 | CG23: =IF($CH23>0,VLOOKUP($CH23,'العاملين '!$A$3:$AR$260,2),0) -> محمد20 | CH23: 20 | CJ23: =IF($CH23>0,VLOOKUP($CH23,'العاملين '!$A$3:$CR$260,3),0) -> 1 | CK23: =IF($CH23>0,VLOOKUP($CH23,'العاملين '!$A$3:$CR$260,49),0) -> 0 | CL23: 1343.03
A24: 18 | B24: =IF($CH24>0,VLOOKUP($CH24,'العاملين '!$A$3:$AR$260,10),0) -> 652.6 | C24: 97.89 | D24: 6.53 | E24: 13.05 | F24: 19.58 | G24: 789.65 | H24: =IF($CH24>0,VLOOKUP($CH24,'العاملين '!$A$3:$AR$260,11),0) -> 0 | I24: =IF($CH24>0,VLOOKUP($CH24,'العاملين '!$A$3:$AR$260,12),0) -> 32.54 | J24: =IF($CH24>0,VLOOKUP($CH24,'العاملين '!$A$3:$AR$260,13),0) -> 33.04 | K24: =IF($CH24>0,VLOOKUP($CH24,'العاملين '!$A$3:$AR$260,14),0) -> 35.19 | L24: =IF($CH24>0,VLOOKUP($CH24,'العاملين '!$A$3:$AR$260,15),0) -> 0 | M24: 100.77 | N24: =IF($CH24>0,VLOOKUP($CH24,'العاملين '!$A$3:$AR$260,16),0) -> 4 | O24: =IF($CH24>0,VLOOKUP($CH24,'العاملين '!$A$3:$AR$260,17),0) -> 4 | P24: =IF($CH24>0,VLOOKUP($CH24,'العاملين '!$A$3:$AR$260,18),0) -> 0 | Q24: =IF($CH24>0,VLOOKUP($CH24,'العاملين '!$A$3:$AR$260,27),0) -> 0 | R24: =IF($CH24>0,VLOOKUP($CH24,'العاملين '!$A$3:$AR$260,19),0) -> 0 | S24: =IF($CH24>0,VLOOKUP($CH24,'العاملين '!$A$3:$AR$260,20),0) -> 0 | T24: =IF($CH24>0,VLOOKUP($CH24,'العاملين '!$A$3:$AR$260,21),0) -> 0 | U24: =IF($CH24>0,VLOOKUP($CH24,'العاملين '!$A$3:$AR$260,22),0) -> 0 | V24: =IF($CH24>0,VLOOKUP($CH24,'العاملين '!$A$3:$AR$260,23),0) -> 0 | W24: =IF($CH24>0,VLOOKUP($CH24,'العاملين '!$A$3:$AR$260,24),0) -> 0 | X24: =IF($CH24>0,VLOOKUP($CH24,'العاملين '!$A$3:$AR$260,25),0) -> 0 | Y24: =IF($CH24>0,VLOOKUP($CH24,'العاملين '!$A$3:$AR$260,26),0) -> 0 | Z24: =IF($CH24>0,VLOOKUP($CH24,'العاملين '!$A$3:$CR$260,65),0) -> 175.98 | AA24: =IF($CH24>0,VLOOKUP($CH24,'العاملين '!$A$3:$CR$260,66),0) -> 175.98 | AB24: =IF($CH24>0,VLOOKUP($CH24,'العاملين '!$A$3:$CR$260,67),0) -> 263.97 | AC24: =IF($CH24>0,VLOOKUP($CH24,'العاملين '!$A$3:$CR$260,68),0) -> 87 | AD24: =IF($CH24>0,VLOOKUP($CH24,'العاملين '!$A$3:$CR$260,69),0) -> 175 | AE24: =IF($CH24>0,VLOOKUP($CH24,'العاملين '!$A$3:$CR$260,70),0) -> 0 | AF24: =IF($CH24>0,VLOOKUP($CH24,'العاملين '!$A$3:$CR$260,71),0) -> 0 | AG24: =IF($CH24>0,VLOOKUP($CH24,'العاملين '!$A$3:$CR$260,72),0) -> 0 | AN24: =IF($CH24>0,VLOOKUP($CH24,'العاملين '!$A$3:$AR$260,25),0) -> 0 | AO24: 986.7 | AP24: 986.7 | AQ24: 0 | AR24: 148.01 | AS24: 9.87 | AT24: 29.6 | AU24: 187.48 | AV24: =IF($CH24>0,VLOOKUP($CH24,'العاملين '!$A$3:$CR$260,64),0) -> 10 | AW24: =IF($CH24>0,VLOOKUP($CH24,'العاملين '!$A$3:$CR$260,52),0) -> 0 | AX24: 1973.83 | AY24: 97.89 | AZ24: 6.53 | BA24: 13.05 | BC24: 65.26 | BD24: 52.21 | BE24: 19.58 | BF24: 6.53 | BG24: 148.01 | BH24: 9.87 | BI24: 98.67 | BJ24: 29.6 | BK24: 9.87 | BL24: =IF($CJ24=1,ROUND(($B24)*7%,2),IF($CJ24=2,VLOOKUP($CH24,'العاملين '!$A$3:$CT$260,53),0)) -> 45.68 | BM24: =IF($CJ24=1,0.5,IF($CJ24=2,VLOOKUP($CH24,'العاملين '!$A$3:$CS$260,54),0)) -> 0.5 | BN24: =IF($CJ24=1,4.5,IF($CJ24=2,VLOOKUP($CH24,'العاملين '!$A$3:$CT$260,55),0)) -> 4.5 | BO24: =IF($CH24>0,VLOOKUP($CH24,'العاملين '!$A$3:$AR$260,38),0) -> 1 | BP24: =IF($CJ24=1,0.2,IF($CJ24=2,VLOOKUP($CH24,'العاملين '!$A$3:$CT$260,55),0)) -> 0.2 | BQ24: =IF($CJ24=1,0.05,IF($CJ24=2,VLOOKUP($CH24,'العاملين '!$A$3:$CT$260,55),0)) -> 0.05 | BR24: =IF($CH24>0,VLOOKUP($CH24,'العاملين '!$A$3:$AR$260,39),0) -> 10.65 | BS24: =IF($CH24>0,VLOOKUP($CH24,'العاملين '!$A$3:$AR$260,40),0) -> 11.15 | BT24: =IF($CH24>0,VLOOKUP($CH24,'العاملين '!$A$3:$AR$260,41),0) -> 0 | BU24: =IF($CH24>0,VLOOKUP($CH24,'العاملين '!$A$3:$AR$260,42),0) -> 0 | BV24: =IF($CH24>0,VLOOKUP($CH24,'العاملين '!$A$3:$AR$260,43),0) -> 0 | BW24: =IF($CH24>0,VLOOKUP($CH24,'العاملين '!$A$3:$AR$260,44),0) -> 0 | BX24: =IF($CH24>0,VLOOKUP($CH24,'العاملين '!$A$3:$CR$260,45),0) -> 0 | BY24: =IF($CH24>0,VLOOKUP($CH24,'العاملين '!$A$3:$CR$260,46),0) -> 0 | BZ24: =IF($CH24>0,VLOOKUP($CH24,'العاملين '!$A$3:$CR$260,47),0) -> 0 | CA24: =IF($CH24>0,VLOOKUP($CH24,'العاملين '!$A$3:$CR$260,48),0) -> 0 | CC24: =IF($CH24>0,VLOOKUP($CH24,'العاملين '!$A$3:$AR$260,41),0) -> 0 | CD24: 0.03 | CE24: 630.83 | CF24: 1343 | CG24: =IF($CH24>0,VLOOKUP($CH24,'العاملين '!$A$3:$AR$260,2),0) -> محمد20 | CH24: 20 | CJ24: =IF($CH24>0,VLOOKUP($CH24,'العاملين '!$A$3:$CR$260,3),0) -> 1 | CK24: =IF($CH24>0,VLOOKUP($CH24,'العاملين '!$A$3:$CR$260,49),0) -> 0 | CL24: 1343.03
A25: 19 | B25: =IF($CH25>0,VLOOKUP($CH25,'العاملين '!$A$3:$AR$260,10),0) -> 652.6 | C25: 97.89 | D25: 6.53 | E25: 13.05 | F25: 19.58 | G25: 789.65 | H25: =IF($CH25>0,VLOOKUP($CH25,'العاملين '!$A$3:$AR$260,11),0) -> 0 | I25: =IF($CH25>0,VLOOKUP($CH25,'العاملين '!$A$3:$AR$260,12),0) -> 32.54 | J25: =IF($CH25>0,VLOOKUP($CH25,'العاملين '!$A$3:$AR$260,13),0) -> 33.04 | K25: =IF($CH25>0,VLOOKUP($CH25,'العاملين '!$A$3:$AR$260,14),0) -> 35.19 | L25: =IF($CH25>0,VLOOKUP($CH25,'العاملين '!$A$3:$AR$260,15),0) -> 0 | M25: 100.77 | N25: =IF($CH25>0,VLOOKUP($CH25,'العاملين '!$A$3:$AR$260,16),0) -> 4 | O25: =IF($CH25>0,VLOOKUP($CH25,'العاملين '!$A$3:$AR$260,17),0) -> 4 | P25: =IF($CH25>0,VLOOKUP($CH25,'العاملين '!$A$3:$AR$260,18),0) -> 0 | Q25: =IF($CH25>0,VLOOKUP($CH25,'العاملين '!$A$3:$AR$260,27),0) -> 0 | R25: =IF($CH25>0,VLOOKUP($CH25,'العاملين '!$A$3:$AR$260,19),0) -> 0 | S25: =IF($CH25>0,VLOOKUP($CH25,'العاملين '!$A$3:$AR$260,20),0) -> 0 | T25: =IF($CH25>0,VLOOKUP($CH25,'العاملين '!$A$3:$AR$260,21),0) -> 0 | U25: =IF($CH25>0,VLOOKUP($CH25,'العاملين '!$A$3:$AR$260,22),0) -> 0 | V25: =IF($CH25>0,VLOOKUP($CH25,'العاملين '!$A$3:$AR$260,23),0) -> 0 | W25: =IF($CH25>0,VLOOKUP($CH25,'العاملين '!$A$3:$AR$260,24),0) -> 0 | X25: =IF($CH25>0,VLOOKUP($CH25,'العاملين '!$A$3:$AR$260,25),0) -> 0 | Y25: =IF($CH25>0,VLOOKUP($CH25,'العاملين '!$A$3:$AR$260,26),0) -> 0 | Z25: =IF($CH25>0,VLOOKUP($CH25,'العاملين '!$A$3:$CR$260,65),0) -> 175.98 | AA25: =IF($CH25>0,VLOOKUP($CH25,'العاملين '!$A$3:$CR$260,66),0) -> 175.98 | AB25: =IF($CH25>0,VLOOKUP($CH25,'العاملين '!$A$3:$CR$260,67),0) -> 263.97 | AC25: =IF($CH25>0,VLOOKUP($CH25,'العاملين '!$A$3:$CR$260,68),0) -> 87 | AD25: =IF($CH25>0,VLOOKUP($CH25,'العاملين '!$A$3:$CR$260,69),0) -> 175 | AE25: =IF($CH25>0,VLOOKUP($CH25,'العاملين '!$A$3:$CR$260,70),0) -> 0 | AF25: =IF($CH25>0,VLOOKUP($CH25,'العاملين '!$A$3:$CR$260,71),0) -> 0 | AG25: =IF($CH25>0,VLOOKUP($CH25,'العاملين '!$A$3:$CR$260,72),0) -> 0 | AN25: =IF($CH25>0,VLOOKUP($CH25,'العاملين '!$A$3:$AR$260,25),0) -> 0 | AO25: 986.7 | AP25: 986.7 | AQ25: 0 | AR25: 148.01 | AS25: 9.87 | AT25: 29.6 | AU25: 187.48 | AV25: =IF($CH25>0,VLOOKUP($CH25,'العاملين '!$A$3:$CR$260,64),0) -> 10 | AW25: =IF($CH25>0,VLOOKUP($CH25,'العاملين '!$A$3:$CR$260,52),0) -> 0 | AX25: 1973.83 | AY25: 97.89 | AZ25: 6.53 | BA25: 13.05 | BC25: 65.26 | BD25: 52.21 | BE25: 19.58 | BF25: 6.53 | BG25: 148.01 | BH25: 9.87 | BI25: 98.67 | BJ25: 29.6 | BK25: 9.87 | BL25: =IF($CJ25=1,ROUND(($B25)*7%,2),IF($CJ25=2,VLOOKUP($CH25,'العاملين '!$A$3:$CT$260,53),0)) -> 45.68 | BM25: =IF($CJ25=1,0.5,IF($CJ25=2,VLOOKUP($CH25,'العاملين '!$A$3:$CS$260,54),0)) -> 0.5 | BN25: =IF($CJ25=1,4.5,IF($CJ25=2,VLOOKUP($CH25,'العاملين '!$A$3:$CT$260,55),0)) -> 4.5 | BO25: =IF($CH25>0,VLOOKUP($CH25,'العاملين '!$A$3:$AR$260,38),0) -> 1 | BP25: =IF($CJ25=1,0.2,IF($CJ25=2,VLOOKUP($CH25,'العاملين '!$A$3:$CT$260,55),0)) -> 0.2 | BQ25: =IF($CJ25=1,0.05,IF($CJ25=2,VLOOKUP($CH25,'العاملين '!$A$3:$CT$260,55),0)) -> 0.05 | BR25: =IF($CH25>0,VLOOKUP($CH25,'العاملين '!$A$3:$AR$260,39),0) -> 10.65 | BS25: =IF($CH25>0,VLOOKUP($CH25,'العاملين '!$A$3:$AR$260,40),0) -> 11.15 | BT25: =IF($CH25>0,VLOOKUP($CH25,'العاملين '!$A$3:$AR$260,41),0) -> 0 | BU25: =IF($CH25>0,VLOOKUP($CH25,'العاملين '!$A$3:$AR$260,42),0) -> 0 | BV25: =IF($CH25>0,VLOOKUP($CH25,'العاملين '!$A$3:$AR$260,43),0) -> 0 | BW25: =IF($CH25>0,VLOOKUP($CH25,'العاملين '!$A$3:$AR$260,44),0) -> 0 | BX25: =IF($CH25>0,VLOOKUP($CH25,'العاملين '!$A$3:$CR$260,45),0) -> 0 | BY25: =IF($CH25>0,VLOOKUP($CH25,'العاملين '!$A$3:$CR$260,46),0) -> 0 | BZ25: =IF($CH25>0,VLOOKUP($CH25,'العاملين '!$A$3:$CR$260,47),0) -> 0 | CA25: =IF($CH25>0,VLOOKUP($CH25,'العاملين '!$A$3:$CR$260,48),0) -> 0 | CC25: =IF($CH25>0,VLOOKUP($CH25,'العاملين '!$A$3:$AR$260,41),0) -> 0 | CD25: 0.03 | CE25: 630.83 | CF25: 1343 | CG25: =IF($CH25>0,VLOOKUP($CH25,'العاملين '!$A$3:$AR$260,2),0) -> محمد20 | CH25: 20 | CJ25: =IF($CH25>0,VLOOKUP($CH25,'العاملين '!$A$3:$CR$260,3),0) -> 1 | CK25: =IF($CH25>0,VLOOKUP($CH25,'العاملين '!$A$3:$CR$260,49),0) -> 0 | CL25: 1343.03
A26: 20 | B26: =IF($CH26>0,VLOOKUP($CH26,'العاملين '!$A$3:$AR$260,10),0) -> 652.6 | C26: 97.89 | D26: 6.53 | E26: 13.05 | F26: 19.58 | G26: 789.65 | H26: =IF($CH26>0,VLOOKUP($CH26,'العاملين '!$A$3:$AR$260,11),0) -> 0 | I26: =IF($CH26>0,VLOOKUP($CH26,'العاملين '!$A$3:$AR$260,12),0) -> 32.54 | J26: =IF($CH26>0,VLOOKUP($CH26,'العاملين '!$A$3:$AR$260,13),0) -> 33.04 | K26: =IF($CH26>0,VLOOKUP($CH26,'العاملين '!$A$3:$AR$260,14),0) -> 35.19 | L26: =IF($CH26>0,VLOOKUP($CH26,'العاملين '!$A$3:$AR$260,15),0) -> 0 | M26: 100.77 | N26: =IF($CH26>0,VLOOKUP($CH26,'العاملين '!$A$3:$AR$260,16),0) -> 4 | O26: =IF($CH26>0,VLOOKUP($CH26,'العاملين '!$A$3:$AR$260,17),0) -> 4 | P26: =IF($CH26>0,VLOOKUP($CH26,'العاملين '!$A$3:$AR$260,18),0) -> 0 | Q26: =IF($CH26>0,VLOOKUP($CH26,'العاملين '!$A$3:$AR$260,27),0) -> 0 | R26: =IF($CH26>0,VLOOKUP($CH26,'العاملين '!$A$3:$AR$260,19),0) -> 0 | S26: =IF($CH26>0,VLOOKUP($CH26,'العاملين '!$A$3:$AR$260,20),0) -> 0 | T26: =IF($CH26>0,VLOOKUP($CH26,'العاملين '!$A$3:$AR$260,21),0) -> 0 | U26: =IF($CH26>0,VLOOKUP($CH26,'العاملين '!$A$3:$AR$260,22),0) -> 0 | V26: =IF($CH26>0,VLOOKUP($CH26,'العاملين '!$A$3:$AR$260,23),0) -> 0 | W26: =IF($CH26>0,VLOOKUP($CH26,'العاملين '!$A$3:$AR$260,24),0) -> 0 | X26: =IF($CH26>0,VLOOKUP($CH26,'العاملين '!$A$3:$AR$260,25),0) -> 0 | Y26: =IF($CH26>0,VLOOKUP($CH26,'العاملين '!$A$3:$AR$260,26),0) -> 0 | Z26: =IF($CH26>0,VLOOKUP($CH26,'العاملين '!$A$3:$CR$260,65),0) -> 175.98 | AA26: =IF($CH26>0,VLOOKUP($CH26,'العاملين '!$A$3:$CR$260,66),0) -> 175.98 | AB26: =IF($CH26>0,VLOOKUP($CH26,'العاملين '!$A$3:$CR$260,67),0) -> 263.97 | AC26: =IF($CH26>0,VLOOKUP($CH26,'العاملين '!$A$3:$CR$260,68),0) -> 87 | AD26: =IF($CH26>0,VLOOKUP($CH26,'العاملين '!$A$3:$CR$260,69),0) -> 175 | AE26: =IF($CH26>0,VLOOKUP($CH26,'العاملين '!$A$3:$CR$260,70),0) -> 0 | AF26: =IF($CH26>0,VLOOKUP($CH26,'العاملين '!$A$3:$CR$260,71),0) -> 0 | AG26: =IF($CH26>0,VLOOKUP($CH26,'العاملين '!$A$3:$CR$260,72),0) -> 0 | AN26: =IF($CH26>0,VLOOKUP($CH26,'العاملين '!$A$3:$AR$260,25),0) -> 0 | AO26: 986.7 | AP26: 986.7 | AQ26: 0 | AR26: 148.01 | AS26: 9.87 | AT26: 29.6 | AU26: 187.48 | AV26: =IF($CH26>0,VLOOKUP($CH26,'العاملين '!$A$3:$CR$260,64),0) -> 10 | AW26: =IF($CH26>0,VLOOKUP($CH26,'العاملين '!$A$3:$CR$260,52),0) -> 0 | AX26: 1973.83 | AY26: 97.89 | AZ26: 6.53 | BA26: 13.05 | BC26: 65.26 | BD26: 52.21 | BE26: 19.58 | BF26: 6.53 | BG26: 148.01 | BH26: 9.87 | BI26: 98.67 | BJ26: 29.6 | BK26: 9.87 | BL26: =IF($CJ26=1,ROUND(($B26)*7%,2),IF($CJ26=2,VLOOKUP($CH26,'العاملين '!$A$3:$CT$260,53),0)) -> 45.68 | BM26: =IF($CJ26=1,0.5,IF($CJ26=2,VLOOKUP($CH26,'العاملين '!$A$3:$CS$260,54),0)) -> 0.5 | BN26: =IF($CJ26=1,4.5,IF($CJ26=2,VLOOKUP($CH26,'العاملين '!$A$3:$CT$260,55),0)) -> 4.5 | BO26: =IF($CH26>0,VLOOKUP($CH26,'العاملين '!$A$3:$AR$260,38),0) -> 1 | BP26: =IF($CJ26=1,0.2,IF($CJ26=2,VLOOKUP($CH26,'العاملين '!$A$3:$CT$260,55),0)) -> 0.2 | BQ26: =IF($CJ26=1,0.05,IF($CJ26=2,VLOOKUP($CH26,'العاملين '!$A$3:$CT$260,55),0)) -> 0.05 | BR26: =IF($CH26>0,VLOOKUP($CH26,'العاملين '!$A$3:$AR$260,39),0) -> 10.65 | BS26: =IF($CH26>0,VLOOKUP($CH26,'العاملين '!$A$3:$AR$260,40),0) -> 11.15 | BT26: =IF($CH26>0,VLOOKUP($CH26,'العاملين '!$A$3:$AR$260,41),0) -> 0 | BU26: =IF($CH26>0,VLOOKUP($CH26,'العاملين '!$A$3:$AR$260,42),0) -> 0 | BV26: =IF($CH26>0,VLOOKUP($CH26,'العاملين '!$A$3:$AR$260,43),0) -> 0 | BW26: =IF($CH26>0,VLOOKUP($CH26,'العاملين '!$A$3:$AR$260,44),0) -> 0 | BX26: =IF($CH26>0,VLOOKUP($CH26,'العاملين '!$A$3:$CR$260,45),0) -> 0 | BY26: =IF($CH26>0,VLOOKUP($CH26,'العاملين '!$A$3:$CR$260,46),0) -> 0 | BZ26: =IF($CH26>0,VLOOKUP($CH26,'العاملين '!$A$3:$CR$260,47),0) -> 0 | CA26: =IF($CH26>0,VLOOKUP($CH26,'العاملين '!$A$3:$CR$260,48),0) -> 0 | CC26: =IF($CH26>0,VLOOKUP($CH26,'العاملين '!$A$3:$AR$260,41),0) -> 0 | CD26: 0.03 | CE26: 630.83 | CF26: 1343 | CG26: =IF($CH26>0,VLOOKUP($CH26,'العاملين '!$A$3:$AR$260,2),0) -> محمد20 | CH26: 20 | CJ26: =IF($CH26>0,VLOOKUP($CH26,'العاملين '!$A$3:$CR$260,3),0) -> 1 | CK26: =IF($CH26>0,VLOOKUP($CH26,'العاملين '!$A$3:$CR$260,49),0) -> 0 | CL26: 1343.03
A27: 21 | B27: =IF($CH27>0,VLOOKUP($CH27,'العاملين '!$A$3:$AR$260,10),0) -> 652.6 | C27: 97.89 | D27: 6.53 | E27: 13.05 | F27: 19.58 | G27: 789.65 | H27: =IF($CH27>0,VLOOKUP($CH27,'العاملين '!$A$3:$AR$260,11),0) -> 0 | I27: =IF($CH27>0,VLOOKUP($CH27,'العاملين '!$A$3:$AR$260,12),0) -> 32.54 | J27: =IF($CH27>0,VLOOKUP($CH27,'العاملين '!$A$3:$AR$260,13),0) -> 33.04 | K27: =IF($CH27>0,VLOOKUP($CH27,'العاملين '!$A$3:$AR$260,14),0) -> 35.19 | L27: =IF($CH27>0,VLOOKUP($CH27,'العاملين '!$A$3:$AR$260,15),0) -> 0 | M27: 100.77 | N27: =IF($CH27>0,VLOOKUP($CH27,'العاملين '!$A$3:$AR$260,16),0) -> 4 | O27: =IF($CH27>0,VLOOKUP($CH27,'العاملين '!$A$3:$AR$260,17),0) -> 4 | P27: =IF($CH27>0,VLOOKUP($CH27,'العاملين '!$A$3:$AR$260,18),0) -> 0 | Q27: =IF($CH27>0,VLOOKUP($CH27,'العاملين '!$A$3:$AR$260,27),0) -> 0 | R27: =IF($CH27>0,VLOOKUP($CH27,'العاملين '!$A$3:$AR$260,19),0) -> 0 | S27: =IF($CH27>0,VLOOKUP($CH27,'العاملين '!$A$3:$AR$260,20),0) -> 0 | T27: =IF($CH27>0,VLOOKUP($CH27,'العاملين '!$A$3:$AR$260,21),0) -> 0 | U27: =IF($CH27>0,VLOOKUP($CH27,'العاملين '!$A$3:$AR$260,22),0) -> 0 | V27: =IF($CH27>0,VLOOKUP($CH27,'العاملين '!$A$3:$AR$260,23),0) -> 0 | W27: =IF($CH27>0,VLOOKUP($CH27,'العاملين '!$A$3:$AR$260,24),0) -> 0 | X27: =IF($CH27>0,VLOOKUP($CH27,'العاملين '!$A$3:$AR$260,25),0) -> 0 | Y27: =IF($CH27>0,VLOOKUP($CH27,'العاملين '!$A$3:$AR$260,26),0) -> 0 | Z27: =IF($CH27>0,VLOOKUP($CH27,'العاملين '!$A$3:$CR$260,65),0) -> 175.98 | AA27: =IF($CH27>0,VLOOKUP($CH27,'العاملين '!$A$3:$CR$260,66),0) -> 175.98 | AB27: =IF($CH27>0,VLOOKUP($CH27,'العاملين '!$A$3:$CR$260,67),0) -> 263.97 | AC27: =IF($CH27>0,VLOOKUP($CH27,'العاملين '!$A$3:$CR$260,68),0) -> 87 | AD27: =IF($CH27>0,VLOOKUP($CH27,'العاملين '!$A$3:$CR$260,69),0) -> 175 | AE27: =IF($CH27>0,VLOOKUP($CH27,'العاملين '!$A$3:$CR$260,70),0) -> 0 | AF27: =IF($CH27>0,VLOOKUP($CH27,'العاملين '!$A$3:$CR$260,71),0) -> 0 | AG27: =IF($CH27>0,VLOOKUP($CH27,'العاملين '!$A$3:$CR$260,72),0) -> 0 | AN27: =IF($CH27>0,VLOOKUP($CH27,'العاملين '!$A$3:$AR$260,25),0) -> 0 | AO27: 986.7 | AP27: 986.7 | AQ27: 0 | AR27: 148.01 | AS27: 9.87 | AT27: 29.6 | AU27: 187.48 | AV27: =IF($CH27>0,VLOOKUP($CH27,'العاملين '!$A$3:$CR$260,64),0) -> 10 | AW27: =IF($CH27>0,VLOOKUP($CH27,'العاملين '!$A$3:$CR$260,52),0) -> 0 | AX27: 1973.83 | AY27: 97.89 | AZ27: 6.53 | BA27: 13.05 | BC27: 65.26 | BD27: 52.21 | BE27: 19.58 | BF27: 6.53 | BG27: 148.01 | BH27: 9.87 | BI27: 98.67 | BJ27: 29.6 | BK27: 9.87 | BL27: =IF($CJ27=1,ROUND(($B27)*7%,2),IF($CJ27=2,VLOOKUP($CH27,'العاملين '!$A$3:$CT$260,53),0)) -> 45.68 | BM27: =IF($CJ27=1,0.5,IF($CJ27=2,VLOOKUP($CH27,'العاملين '!$A$3:$CS$260,54),0)) -> 0.5 | BN27: =IF($CJ27=1,4.5,IF($CJ27=2,VLOOKUP($CH27,'العاملين '!$A$3:$CT$260,55),0)) -> 4.5 | BO27: =IF($CH27>0,VLOOKUP($CH27,'العاملين '!$A$3:$AR$260,38),0) -> 1 | BP27: =IF($CJ27=1,0.2,IF($CJ27=2,VLOOKUP($CH27,'العاملين '!$A$3:$CT$260,55),0)) -> 0.2 | BQ27: =IF($CJ27=1,0.05,IF($CJ27=2,VLOOKUP($CH27,'العاملين '!$A$3:$CT$260,55),0)) -> 0.05 | BR27: =IF($CH27>0,VLOOKUP($CH27,'العاملين '!$A$3:$AR$260,39),0) -> 10.65 | BS27: =IF($CH27>0,VLOOKUP($CH27,'العاملين '!$A$3:$AR$260,40),0) -> 11.15 | BT27: =IF($CH27>0,VLOOKUP($CH27,'العاملين '!$A$3:$AR$260,41),0) -> 0 | BU27: =IF($CH27>0,VLOOKUP($CH27,'العاملين '!$A$3:$AR$260,42),0) -> 0 | BV27: =IF($CH27>0,VLOOKUP($CH27,'العاملين '!$A$3:$AR$260,43),0) -> 0 | BW27: =IF($CH27>0,VLOOKUP($CH27,'العاملين '!$A$3:$AR$260,44),0) -> 0 | BX27: =IF($CH27>0,VLOOKUP($CH27,'العاملين '!$A$3:$CR$260,45),0) -> 0 | BY27: =IF($CH27>0,VLOOKUP($CH27,'العاملين '!$A$3:$CR$260,46),0) -> 0 | BZ27: =IF($CH27>0,VLOOKUP($CH27,'العاملين '!$A$3:$CR$260,47),0) -> 0 | CA27: =IF($CH27>0,VLOOKUP($CH27,'العاملين '!$A$3:$CR$260,48),0) -> 0 | CC27: =IF($CH27>0,VLOOKUP($CH27,'العاملين '!$A$3:$AR$260,41),0) -> 0 | CD27: 0.03 | CE27: 630.83 | CF27: 1343 | CG27: =IF($CH27>0,VLOOKUP($CH27,'العاملين '!$A$3:$AR$260,2),0) -> محمد20 | CH27: 20 | CJ27: =IF($CH27>0,VLOOKUP($CH27,'العاملين '!$A$3:$CR$260,3),0) -> 1 | CK27: =IF($CH27>0,VLOOKUP($CH27,'العاملين '!$A$3:$CR$260,49),0) -> 0 | CL27: 1343.03
A28: 22 | B28: =IF($CH28>0,VLOOKUP($CH28,'العاملين '!$A$3:$AR$260,10),0) -> 652.6 | C28: 97.89 | D28: 6.53 | E28: 13.05 | F28: 19.58 | G28: 789.65 | H28: =IF($CH28>0,VLOOKUP($CH28,'العاملين '!$A$3:$AR$260,11),0) -> 0 | I28: =IF($CH28>0,VLOOKUP($CH28,'العاملين '!$A$3:$AR$260,12),0) -> 32.54 | J28: =IF($CH28>0,VLOOKUP($CH28,'العاملين '!$A$3:$AR$260,13),0) -> 33.04 | K28: =IF($CH28>0,VLOOKUP($CH28,'العاملين '!$A$3:$AR$260,14),0) -> 35.19 | L28: =IF($CH28>0,VLOOKUP($CH28,'العاملين '!$A$3:$AR$260,15),0) -> 0 | M28: 100.77 | N28: =IF($CH28>0,VLOOKUP($CH28,'العاملين '!$A$3:$AR$260,16),0) -> 4 | O28: =IF($CH28>0,VLOOKUP($CH28,'العاملين '!$A$3:$AR$260,17),0) -> 4 | P28: =IF($CH28>0,VLOOKUP($CH28,'العاملين '!$A$3:$AR$260,18),0) -> 0 | Q28: =IF($CH28>0,VLOOKUP($CH28,'العاملين '!$A$3:$AR$260,27),0) -> 0 | R28: =IF($CH28>0,VLOOKUP($CH28,'العاملين '!$A$3:$AR$260,19),0) -> 0 | S28: =IF($CH28>0,VLOOKUP($CH28,'العاملين '!$A$3:$AR$260,20),0) -> 0 | T28: =IF($CH28>0,VLOOKUP($CH28,'العاملين '!$A$3:$AR$260,21),0) -> 0 | U28: =IF($CH28>0,VLOOKUP($CH28,'العاملين '!$A$3:$AR$260,22),0) -> 0 | V28: =IF($CH28>0,VLOOKUP($CH28,'العاملين '!$A$3:$AR$260,23),0) -> 0 | W28: =IF($CH28>0,VLOOKUP($CH28,'العاملين '!$A$3:$AR$260,24),0) -> 0 | X28: =IF($CH28>0,VLOOKUP($CH28,'العاملين '!$A$3:$AR$260,25),0) -> 0 | Y28: =IF($CH28>0,VLOOKUP($CH28,'العاملين '!$A$3:$AR$260,26),0) -> 0 | Z28: =IF($CH28>0,VLOOKUP($CH28,'العاملين '!$A$3:$CR$260,65),0) -> 175.98 | AA28: =IF($CH28>0,VLOOKUP($CH28,'العاملين '!$A$3:$CR$260,66),0) -> 175.98 | AB28: =IF($CH28>0,VLOOKUP($CH28,'العاملين '!$A$3:$CR$260,67),0) -> 263.97 | AC28: =IF($CH28>0,VLOOKUP($CH28,'العاملين '!$A$3:$CR$260,68),0) -> 87 | AD28: =IF($CH28>0,VLOOKUP($CH28,'العاملين '!$A$3:$CR$260,69),0) -> 175 | AE28: =IF($CH28>0,VLOOKUP($CH28,'العاملين '!$A$3:$CR$260,70),0) -> 0 | AF28: =IF($CH28>0,VLOOKUP($CH28,'العاملين '!$A$3:$CR$260,71),0) -> 0 | AG28: =IF($CH28>0,VLOOKUP($CH28,'العاملين '!$A$3:$CR$260,72),0) -> 0 | AN28: =IF($CH28>0,VLOOKUP($CH28,'العاملين '!$A$3:$AR$260,25),0) -> 0 | AO28: 986.7 | AP28: 986.7 | AQ28: 0 | AR28: 148.01 | AS28: 9.87 | AT28: 29.6 | AU28: 187.48 | AV28: =IF($CH28>0,VLOOKUP($CH28,'العاملين '!$A$3:$CR$260,64),0) -> 10 | AW28: =IF($CH28>0,VLOOKUP($CH28,'العاملين '!$A$3:$CR$260,52),0) -> 0 | AX28: 1973.83 | AY28: 97.89 | AZ28: 6.53 | BA28: 13.05 | BC28: 65.26 | BD28: 52.21 | BE28: 19.58 | BF28: 6.53 | BG28: 148.01 | BH28: 9.87 | BI28: 98.67 | BJ28: 29.6 | BK28: 9.87 | BL28: =IF($CJ28=1,ROUND(($B28)*7%,2),IF($CJ28=2,VLOOKUP($CH28,'العاملين '!$A$3:$CT$260,53),0)) -> 45.68 | BM28: =IF($CJ28=1,0.5,IF($CJ28=2,VLOOKUP($CH28,'العاملين '!$A$3:$CS$260,54),0)) -> 0.5 | BN28: =IF($CJ28=1,4.5,IF($CJ28=2,VLOOKUP($CH28,'العاملين '!$A$3:$CT$260,55),0)) -> 4.5 | BO28: =IF($CH28>0,VLOOKUP($CH28,'العاملين '!$A$3:$AR$260,38),0) -> 1 | BP28: =IF($CJ28=1,0.2,IF($CJ28=2,VLOOKUP($CH28,'العاملين '!$A$3:$CT$260,55),0)) -> 0.2 | BQ28: =IF($CJ28=1,0.05,IF($CJ28=2,VLOOKUP($CH28,'العاملين '!$A$3:$CT$260,55),0)) -> 0.05 | BR28: =IF($CH28>0,VLOOKUP($CH28,'العاملين '!$A$3:$AR$260,39),0) -> 10.65 | BS28: =IF($CH28>0,VLOOKUP($CH28,'العاملين '!$A$3:$AR$260,40),0) -> 11.15 | BT28: =IF($CH28>0,VLOOKUP($CH28,'العاملين '!$A$3:$AR$260,41),0) -> 0 | BU28: =IF($CH28>0,VLOOKUP($CH28,'العاملين '!$A$3:$AR$260,42),0) -> 0 | BV28: =IF($CH28>0,VLOOKUP($CH28,'العاملين '!$A$3:$AR$260,43),0) -> 0 | BW28: =IF($CH28>0,VLOOKUP($CH28,'العاملين '!$A$3:$AR$260,44),0) -> 0 | BX28: =IF($CH28>0,VLOOKUP($CH28,'العاملين '!$A$3:$CR$260,45),0) -> 0 | BY28: =IF($CH28>0,VLOOKUP($CH28,'العاملين '!$A$3:$CR$260,46),0) -> 0 | BZ28: =IF($CH28>0,VLOOKUP($CH28,'العاملين '!$A$3:$CR$260,47),0) -> 0 | CA28: =IF($CH28>0,VLOOKUP($CH28,'العاملين '!$A$3:$CR$260,48),0) -> 0 | CC28: =IF($CH28>0,VLOOKUP($CH28,'العاملين '!$A$3:$AR$260,41),0) -> 0 | CD28: 0.03 | CE28: 630.83 | CF28: 1343 | CG28: =IF($CH28>0,VLOOKUP($CH28,'العاملين '!$A$3:$AR$260,2),0) -> محمد20 | CH28: 20 | CJ28: =IF($CH28>0,VLOOKUP($CH28,'العاملين '!$A$3:$CR$260,3),0) -> 1 | CK28: =IF($CH28>0,VLOOKUP($CH28,'العاملين '!$A$3:$CR$260,49),0) -> 0 | CL28: 1343.03
A29: 23 | B29: =IF($CH29>0,VLOOKUP($CH29,'العاملين '!$A$3:$AR$260,10),0) -> 652.6 | C29: 97.89 | D29: 6.53 | E29: 13.05 | F29: 19.58 | G29: 789.65 | H29: =IF($CH29>0,VLOOKUP($CH29,'العاملين '!$A$3:$AR$260,11),0) -> 0 | I29: =IF($CH29>0,VLOOKUP($CH29,'العاملين '!$A$3:$AR$260,12),0) -> 32.54 | J29: =IF($CH29>0,VLOOKUP($CH29,'العاملين '!$A$3:$AR$260,13),0) -> 33.04 | K29: =IF($CH29>0,VLOOKUP($CH29,'العاملين '!$A$3:$AR$260,14),0) -> 35.19 | L29: =IF($CH29>0,VLOOKUP($CH29,'العاملين '!$A$3:$AR$260,15),0) -> 0 | M29: 100.77 | N29: =IF($CH29>0,VLOOKUP($CH29,'العاملين '!$A$3:$AR$260,16),0) -> 4 | O29: =IF($CH29>0,VLOOKUP($CH29,'العاملين '!$A$3:$AR$260,17),0) -> 4 | P29: =IF($CH29>0,VLOOKUP($CH29,'العاملين '!$A$3:$AR$260,18),0) -> 0 | Q29: =IF($CH29>0,VLOOKUP($CH29,'العاملين '!$A$3:$AR$260,27),0) -> 0 | R29: =IF($CH29>0,VLOOKUP($CH29,'العاملين '!$A$3:$AR$260,19),0) -> 0 | S29: =IF($CH29>0,VLOOKUP($CH29,'العاملين '!$A$3:$AR$260,20),0) -> 0 | T29: =IF($CH29>0,VLOOKUP($CH29,'العاملين '!$A$3:$AR$260,21),0) -> 0 | U29: =IF($CH29>0,VLOOKUP($CH29,'العاملين '!$A$3:$AR$260,22),0) -> 0 | V29: =IF($CH29>0,VLOOKUP($CH29,'العاملين '!$A$3:$AR$260,23),0) -> 0 | W29: =IF($CH29>0,VLOOKUP($CH29,'العاملين '!$A$3:$AR$260,24),0) -> 0 | X29: =IF($CH29>0,VLOOKUP($CH29,'العاملين '!$A$3:$AR$260,25),0) -> 0 | Y29: =IF($CH29>0,VLOOKUP($CH29,'العاملين '!$A$3:$AR$260,26),0) -> 0 | Z29: =IF($CH29>0,VLOOKUP($CH29,'العاملين '!$A$3:$CR$260,65),0) -> 175.98 | AA29: =IF($CH29>0,VLOOKUP($CH29,'العاملين '!$A$3:$CR$260,66),0) -> 175.98 | AB29: =IF($CH29>0,VLOOKUP($CH29,'العاملين '!$A$3:$CR$260,67),0) -> 263.97 | AC29: =IF($CH29>0,VLOOKUP($CH29,'العاملين '!$A$3:$CR$260,68),0) -> 87 | AD29: =IF($CH29>0,VLOOKUP($CH29,'العاملين '!$A$3:$CR$260,69),0) -> 175 | AE29: =IF($CH29>0,VLOOKUP($CH29,'العاملين '!$A$3:$CR$260,70),0) -> 0 | AF29: =IF($CH29>0,VLOOKUP($CH29,'العاملين '!$A$3:$CR$260,71),0) -> 0 | AG29: =IF($CH29>0,VLOOKUP($CH29,'العاملين '!$A$3:$CR$260,72),0) -> 0 | AN29: =IF($CH29>0,VLOOKUP($CH29,'العاملين '!$A$3:$AR$260,25),0) -> 0 | AO29: 986.7 | AP29: 986.7 | AQ29: 0 | AR29: 148.01 | AS29: 9.87 | AT29: 29.6 | AU29: 187.48 | AV29: =IF($CH29>0,VLOOKUP($CH29,'العاملين '!$A$3:$CR$260,64),0) -> 10 | AW29: =IF($CH29>0,VLOOKUP($CH29,'العاملين '!$A$3:$CR$260,52),0) -> 0 | AX29: 1973.83 | AY29: 97.89 | AZ29: 6.53 | BA29: 13.05 | BC29: 65.26 | BD29: 52.21 | BE29: 19.58 | BF29: 6.53 | BG29: 148.01 | BH29: 9.87 | BI29: 98.67 | BJ29: 29.6 | BK29: 9.87 | BL29: =IF($CJ29=1,ROUND(($B29)*7%,2),IF($CJ29=2,VLOOKUP($CH29,'العاملين '!$A$3:$CT$260,53),0)) -> 45.68 | BM29: =IF($CJ29=1,0.5,IF($CJ29=2,VLOOKUP($CH29,'العاملين '!$A$3:$CS$260,54),0)) -> 0.5 | BN29: =IF($CJ29=1,4.5,IF($CJ29=2,VLOOKUP($CH29,'العاملين '!$A$3:$CT$260,55),0)) -> 4.5 | BO29: =IF($CH29>0,VLOOKUP($CH29,'العاملين '!$A$3:$AR$260,38),0) -> 1 | BP29: =IF($CJ29=1,0.2,IF($CJ29=2,VLOOKUP($CH29,'العاملين '!$A$3:$CT$260,55),0)) -> 0.2 | BQ29: =IF($CJ29=1,0.05,IF($CJ29=2,VLOOKUP($CH29,'العاملين '!$A$3:$CT$260,55),0)) -> 0.05 | BR29: =IF($CH29>0,VLOOKUP($CH29,'العاملين '!$A$3:$AR$260,39),0) -> 10.65 | BS29: =IF($CH29>0,VLOOKUP($CH29,'العاملين '!$A$3:$AR$260,40),0) -> 11.15 | BT29: =IF($CH29>0,VLOOKUP($CH29,'العاملين '!$A$3:$AR$260,41),0) -> 0 | BU29: =IF($CH29>0,VLOOKUP($CH29,'العاملين '!$A$3:$AR$260,42),0) -> 0 | BV29: =IF($CH29>0,VLOOKUP($CH29,'العاملين '!$A$3:$AR$260,43),0) -> 0 | BW29: =IF($CH29>0,VLOOKUP($CH29,'العاملين '!$A$3:$AR$260,44),0) -> 0 | BX29: =IF($CH29>0,VLOOKUP($CH29,'العاملين '!$A$3:$CR$260,45),0) -> 0 | BY29: =IF($CH29>0,VLOOKUP($CH29,'العاملين '!$A$3:$CR$260,46),0) -> 0 | BZ29: =IF($CH29>0,VLOOKUP($CH29,'العاملين '!$A$3:$CR$260,47),0) -> 0 | CA29: =IF($CH29>0,VLOOKUP($CH29,'العاملين '!$A$3:$CR$260,48),0) -> 0 | CC29: =IF($CH29>0,VLOOKUP($CH29,'العاملين '!$A$3:$AR$260,41),0) -> 0 | CD29: 0.03 | CE29: 630.83 | CF29: 1343 | CG29: =IF($CH29>0,VLOOKUP($CH29,'العاملين '!$A$3:$AR$260,2),0) -> محمد20 | CH29: 20 | CJ29: =IF($CH29>0,VLOOKUP($CH29,'العاملين '!$A$3:$CR$260,3),0) -> 1 | CK29: =IF($CH29>0,VLOOKUP($CH29,'العاملين '!$A$3:$CR$260,49),0) -> 0 | CL29: 1343.03
A30: 24 | B30: =IF($CH30>0,VLOOKUP($CH30,'العاملين '!$A$3:$AR$260,10),0) -> 652.6 | C30: 97.89 | D30: 6.53 | E30: 13.05 | F30: 19.58 | G30: 789.65 | H30: =IF($CH30>0,VLOOKUP($CH30,'العاملين '!$A$3:$AR$260,11),0) -> 0 | I30: =IF($CH30>0,VLOOKUP($CH30,'العاملين '!$A$3:$AR$260,12),0) -> 32.54 | J30: =IF($CH30>0,VLOOKUP($CH30,'العاملين '!$A$3:$AR$260,13),0) -> 33.04 | K30: =IF($CH30>0,VLOOKUP($CH30,'العاملين '!$A$3:$AR$260,14),0) -> 35.19 | L30: =IF($CH30>0,VLOOKUP($CH30,'العاملين '!$A$3:$AR$260,15),0) -> 0 | M30: 100.77 | N30: =IF($CH30>0,VLOOKUP($CH30,'العاملين '!$A$3:$AR$260,16),0) -> 4 | O30: =IF($CH30>0,VLOOKUP($CH30,'العاملين '!$A$3:$AR$260,17),0) -> 4 | P30: =IF($CH30>0,VLOOKUP($CH30,'العاملين '!$A$3:$AR$260,18),0) -> 0 | Q30: =IF($CH30>0,VLOOKUP($CH30,'العاملين '!$A$3:$AR$260,27),0) -> 0 | R30: =IF($CH30>0,VLOOKUP($CH30,'العاملين '!$A$3:$AR$260,19),0) -> 0 | S30: =IF($CH30>0,VLOOKUP($CH30,'العاملين '!$A$3:$AR$260,20),0) -> 0 | T30: =IF($CH30>0,VLOOKUP($CH30,'العاملين '!$A$3:$AR$260,21),0) -> 0 | U30: =IF($CH30>0,VLOOKUP($CH30,'العاملين '!$A$3:$AR$260,22),0) -> 0 | V30: =IF($CH30>0,VLOOKUP($CH30,'العاملين '!$A$3:$AR$260,23),0) -> 0 | W30: =IF($CH30>0,VLOOKUP($CH30,'العاملين '!$A$3:$AR$260,24),0) -> 0 | X30: =IF($CH30>0,VLOOKUP($CH30,'العاملين '!$A$3:$AR$260,25),0) -> 0 | Y30: =IF($CH30>0,VLOOKUP($CH30,'العاملين '!$A$3:$AR$260,26),0) -> 0 | Z30: =IF($CH30>0,VLOOKUP($CH30,'العاملين '!$A$3:$CR$260,65),0) -> 175.98 | AA30: =IF($CH30>0,VLOOKUP($CH30,'العاملين '!$A$3:$CR$260,66),0) -> 175.98 | AB30: =IF($CH30>0,VLOOKUP($CH30,'العاملين '!$A$3:$CR$260,67),0) -> 263.97 | AC30: =IF($CH30>0,VLOOKUP($CH30,'العاملين '!$A$3:$CR$260,68),0) -> 87 | AD30: =IF($CH30>0,VLOOKUP($CH30,'العاملين '!$A$3:$CR$260,69),0) -> 175 | AE30: =IF($CH30>0,VLOOKUP($CH30,'العاملين '!$A$3:$CR$260,70),0) -> 0 | AF30: =IF($CH30>0,VLOOKUP($CH30,'العاملين '!$A$3:$CR$260,71),0) -> 0 | AG30: =IF($CH30>0,VLOOKUP($CH30,'العاملين '!$A$3:$CR$260,72),0) -> 0 | AN30: =IF($CH30>0,VLOOKUP($CH30,'العاملين '!$A$3:$AR$260,25),0) -> 0 | AO30: 986.7 | AP30: 986.7 | AQ30: 0 | AR30: 148.01 | AS30: 9.87 | AT30: 29.6 | AU30: 187.48 | AV30: =IF($CH30>0,VLOOKUP($CH30,'العاملين '!$A$3:$CR$260,64),0) -> 10 | AW30: =IF($CH30>0,VLOOKUP($CH30,'العاملين '!$A$3:$CR$260,52),0) -> 0 | AX30: 1973.83 | AY30: 97.89 | AZ30: 6.53 | BA30: 13.05 | BC30: 65.26 | BD30: 52.21 | BE30: 19.58 | BF30: 6.53 | BG30: 148.01 | BH30: 9.87 | BI30: 98.67 | BJ30: 29.6 | BK30: 9.87 | BL30: =IF($CJ30=1,ROUND(($B30)*7%,2),IF($CJ30=2,VLOOKUP($CH30,'العاملين '!$A$3:$CT$260,53),0)) -> 45.68 | BM30: =IF($CJ30=1,0.5,IF($CJ30=2,VLOOKUP($CH30,'العاملين '!$A$3:$CS$260,54),0)) -> 0.5 | BN30: =IF($CJ30=1,4.5,IF($CJ30=2,VLOOKUP($CH30,'العاملين '!$A$3:$CT$260,55),0)) -> 4.5 | BO30: =IF($CH30>0,VLOOKUP($CH30,'العاملين '!$A$3:$AR$260,38),0) -> 1 | BP30: =IF($CJ30=1,0.2,IF($CJ30=2,VLOOKUP($CH30,'العاملين '!$A$3:$CT$260,55),0)) -> 0.2 | BQ30: =IF($CJ30=1,0.05,IF($CJ30=2,VLOOKUP($CH30,'العاملين '!$A$3:$CT$260,55),0)) -> 0.05 | BR30: =IF($CH30>0,VLOOKUP($CH30,'العاملين '!$A$3:$AR$260,39),0) -> 10.65 | BS30: =IF($CH30>0,VLOOKUP($CH30,'العاملين '!$A$3:$AR$260,40),0) -> 11.15 | BT30: =IF($CH30>0,VLOOKUP($CH30,'العاملين '!$A$3:$AR$260,41),0) -> 0 | BU30: =IF($CH30>0,VLOOKUP($CH30,'العاملين '!$A$3:$AR$260,42),0) -> 0 | BV30: =IF($CH30>0,VLOOKUP($CH30,'العاملين '!$A$3:$AR$260,43),0) -> 0 | BW30: =IF($CH30>0,VLOOKUP($CH30,'العاملين '!$A$3:$AR$260,44),0) -> 0 | BX30: =IF($CH30>0,VLOOKUP($CH30,'العاملين '!$A$3:$CR$260,45),0) -> 0 | BY30: =IF($CH30>0,VLOOKUP($CH30,'العاملين '!$A$3:$CR$260,46),0) -> 0 | BZ30: =IF($CH30>0,VLOOKUP($CH30,'العاملين '!$A$3:$CR$260,47),0) -> 0 | CA30: =IF($CH30>0,VLOOKUP($CH30,'العاملين '!$A$3:$CR$260,48),0) -> 0 | CC30: =IF($CH30>0,VLOOKUP($CH30,'العاملين '!$A$3:$AR$260,41),0) -> 0 | CD30: 0.03 | CE30: 630.83 | CF30: 1343 | CG30: =IF($CH30>0,VLOOKUP($CH30,'العاملين '!$A$3:$AR$260,2),0) -> محمد20 | CH30: 20 | CJ30: =IF($CH30>0,VLOOKUP($CH30,'العاملين '!$A$3:$CR$260,3),0) -> 1 | CK30: =IF($CH30>0,VLOOKUP($CH30,'العاملين '!$A$3:$CR$260,49),0) -> 0 | CL30: 1343.03
A31: 25 | B31: =IF($CH31>0,VLOOKUP($CH31,'العاملين '!$A$3:$AR$260,10),0) -> 652.6 | C31: 97.89 | D31: 6.53 | E31: 13.05 | F31: 19.58 | G31: 789.65 | H31: =IF($CH31>0,VLOOKUP($CH31,'العاملين '!$A$3:$AR$260,11),0) -> 0 | I31: =IF($CH31>0,VLOOKUP($CH31,'العاملين '!$A$3:$AR$260,12),0) -> 32.54 | J31: =IF($CH31>0,VLOOKUP($CH31,'العاملين '!$A$3:$AR$260,13),0) -> 33.04 | K31: =IF($CH31>0,VLOOKUP($CH31,'العاملين '!$A$3:$AR$260,14),0) -> 35.19 | L31: =IF($CH31>0,VLOOKUP($CH31,'العاملين '!$A$3:$AR$260,15),0) -> 0 | M31: 100.77 | N31: =IF($CH31>0,VLOOKUP($CH31,'العاملين '!$A$3:$AR$260,16),0) -> 4 | O31: =IF($CH31>0,VLOOKUP($CH31,'العاملين '!$A$3:$AR$260,17),0) -> 4 | P31: =IF($CH31>0,VLOOKUP($CH31,'العاملين '!$A$3:$AR$260,18),0) -> 0 | Q31: =IF($CH31>0,VLOOKUP($CH31,'العاملين '!$A$3:$AR$260,27),0) -> 0 | R31: =IF($CH31>0,VLOOKUP($CH31,'العاملين '!$A$3:$AR$260,19),0) -> 0 | S31: =IF($CH31>0,VLOOKUP($CH31,'العاملين '!$A$3:$AR$260,20),0) -> 0 | T31: =IF($CH31>0,VLOOKUP($CH31,'العاملين '!$A$3:$AR$260,21),0) -> 0 | U31: =IF($CH31>0,VLOOKUP($CH31,'العاملين '!$A$3:$AR$260,22),0) -> 0 | V31: =IF($CH31>0,VLOOKUP($CH31,'العاملين '!$A$3:$AR$260,23),0) -> 0 | W31: =IF($CH31>0,VLOOKUP($CH31,'العاملين '!$A$3:$AR$260,24),0) -> 0 | X31: =IF($CH31>0,VLOOKUP($CH31,'العاملين '!$A$3:$AR$260,25),0) -> 0 | Y31: =IF($CH31>0,VLOOKUP($CH31,'العاملين '!$A$3:$AR$260,26),0) -> 0 | Z31: =IF($CH31>0,VLOOKUP($CH31,'العاملين '!$A$3:$CR$260,65),0) -> 175.98 | AA31: =IF($CH31>0,VLOOKUP($CH31,'العاملين '!$A$3:$CR$260,66),0) -> 175.98 | AB31: =IF($CH31>0,VLOOKUP($CH31,'العاملين '!$A$3:$CR$260,67),0) -> 263.97 | AC31: =IF($CH31>0,VLOOKUP($CH31,'العاملين '!$A$3:$CR$260,68),0) -> 87 | AD31: =IF($CH31>0,VLOOKUP($CH31,'العاملين '!$A$3:$CR$260,69),0) -> 175 | AE31: =IF($CH31>0,VLOOKUP($CH31,'العاملين '!$A$3:$CR$260,70),0) -> 0 | AF31: =IF($CH31>0,VLOOKUP($CH31,'العاملين '!$A$3:$CR$260,71),0) -> 0 | AG31: =IF($CH31>0,VLOOKUP($CH31,'العاملين '!$A$3:$CR$260,72),0) -> 0 | AN31: =IF($CH31>0,VLOOKUP($CH31,'العاملين '!$A$3:$AR$260,25),0) -> 0 | AO31: 986.7 | AP31: 986.7 | AQ31: 0 | AR31: 148.01 | AS31: 9.87 | AT31: 29.6 | AU31: 187.48 | AV31: =IF($CH31>0,VLOOKUP($CH31,'العاملين '!$A$3:$CR$260,64),0) -> 10 | AW31: =IF($CH31>0,VLOOKUP($CH31,'العاملين '!$A$3:$CR$260,52),0) -> 0 | AX31: 1973.83 | AY31: 97.89 | AZ31: 6.53 | BA31: 13.05 | BC31: 65.26 | BD31: 52.21 | BE31: 19.58 | BF31: 6.53 | BG31: 148.01 | BH31: 9.87 | BI31: 98.67 | BJ31: 29.6 | BK31: 9.87 | BL31: =IF($CJ31=1,ROUND(($B31)*7%,2),IF($CJ31=2,VLOOKUP($CH31,'العاملين '!$A$3:$CT$260,53),0)) -> 45.68 | BM31: =IF($CJ31=1,0.5,IF($CJ31=2,VLOOKUP($CH31,'العاملين '!$A$3:$CS$260,54),0)) -> 0.5 | BN31: =IF($CJ31=1,4.5,IF($CJ31=2,VLOOKUP($CH31,'العاملين '!$A$3:$CT$260,55),0)) -> 4.5 | BO31: =IF($CH31>0,VLOOKUP($CH31,'العاملين '!$A$3:$AR$260,38),0) -> 1 | BP31: =IF($CJ31=1,0.2,IF($CJ31=2,VLOOKUP($CH31,'العاملين '!$A$3:$CT$260,55),0)) -> 0.2 | BQ31: =IF($CJ31=1,0.05,IF($CJ31=2,VLOOKUP($CH31,'العاملين '!$A$3:$CT$260,55),0)) -> 0.05 | BR31: =IF($CH31>0,VLOOKUP($CH31,'العاملين '!$A$3:$AR$260,39),0) -> 10.65 | BS31: =IF($CH31>0,VLOOKUP($CH31,'العاملين '!$A$3:$AR$260,40),0) -> 11.15 | BT31: =IF($CH31>0,VLOOKUP($CH31,'العاملين '!$A$3:$AR$260,41),0) -> 0 | BU31: =IF($CH31>0,VLOOKUP($CH31,'العاملين '!$A$3:$AR$260,42),0) -> 0 | BV31: =IF($CH31>0,VLOOKUP($CH31,'العاملين '!$A$3:$AR$260,43),0) -> 0 | BW31: =IF($CH31>0,VLOOKUP($CH31,'العاملين '!$A$3:$AR$260,44),0) -> 0 | BX31: =IF($CH31>0,VLOOKUP($CH31,'العاملين '!$A$3:$CR$260,45),0) -> 0 | BY31: =IF($CH31>0,VLOOKUP($CH31,'العاملين '!$A$3:$CR$260,46),0) -> 0 | BZ31: =IF($CH31>0,VLOOKUP($CH31,'العاملين '!$A$3:$CR$260,47),0) -> 0 | CA31: =IF($CH31>0,VLOOKUP($CH31,'العاملين '!$A$3:$CR$260,48),0) -> 0 | CC31: =IF($CH31>0,VLOOKUP($CH31,'العاملين '!$A$3:$AR$260,41),0) -> 0 | CD31: 0.03 | CE31: 630.83 | CF31: 1343 | CG31: =IF($CH31>0,VLOOKUP($CH31,'العاملين '!$A$3:$AR$260,2),0) -> محمد20 | CH31: 20 | CJ31: =IF($CH31>0,VLOOKUP($CH31,'العاملين '!$A$3:$CR$260,3),0) -> 1 | CK31: =IF($CH31>0,VLOOKUP($CH31,'العاملين '!$A$3:$CR$260,49),0) -> 0 | CL31: 1343.03
B32: =SUM(B7:B31) -> 16315 | C32: =SUM(C7:C31) -> 2447.25 | D32: 163.25 | E32: 326.25 | F32: 489.5 | G32: 19741.25 | H32: 0 | I32: 813.5 | J32: 826 | K32: 879.75 | L32: 0 | M32: 2519.25 | N32: 100 | O32: 100 | P32: 0 | Q32: 0 | R32: 0 | S32: 0 | T32: 0 | U32: 0 | V32: 0 | W32: 0 | X32: 0 | Y32: 0 | Z32: 4399.5 | AA32: 4399.5 | AB32: 6599.25 | AC32: 2175 | AD32: 4375 | AE32: 0 | AF32: 0 | AG32: 0 | AH32: 0 | AI32: 0 | AJ32: 0 | AK32: 0 | AL32: 0 | AM32: 0 | AN32: 0 | AO32: 24667.5 | AP32: 24667.5 | AQ32: 0 | AR32: 3700.25 | AS32: 246.75 | AT32: 740 | AU32: 4687 | AV32: 250 | AW32: 0 | AX32: 49345.75 | AY32: 2447.25 | AZ32: 163.25 | BA32: 326.25 | BB32: 0 | BC32: 1631.5 | BD32: 1305.25 | BE32: 489.5 | BF32: 163.25 | BG32: 3700.25 | BH32: 246.75 | BI32: 2466.75 | BJ32: 740 | BK32: 246.75 | BL32: 1142 | BM32: 12.5 | BN32: 112.5 | BO32: =SUM(BO7:BO31) -> 25 | BP32: 5 | BQ32: 1.25 | BR32: 266.25 | BS32: 278.75 | BT32: 0 | BU32: 0 | BV32: 0 | BW32: 0 | BX32: 0 | BY32: 0 | BZ32: 0 | CA32: 0 | CB32: 0 | CC32: 0 | CD32: 0.75 | CE32: 15770.75 | CF32: 33575 | CL32: =AX32-SUM(AY32:CC32) -> 33575.75
CG33: مع تحيات أ / محمد عبد الصمد ـــ وأ / محمد زكي مرسي المزين | CL33: =AX33-SUM(AY33:CC33) -> 0
A34: كشــــــــــــــــــــــــــــــف المرتبات عن شــــــــــــــــــــــــــــــــهر / | AY34: =ورقة1!C3 -> مارس 2018 | BF34: ســــــــــــــــــــــــــــــــنة / | BL34: =IF($CG47>0,ورقة1!$C$5,0) -> 0 | BR34: م
A35: =ورقة1!C1 -> الشهداء التعليمية | AY35: مدرسة / | BD35: =IF($CG47>0,ورقة1!$C$2," ") ->  | CH35: =FLOOR(CM47,0.05) -> 0
A36: م | B36: الاســــــــــــــــــــــــــتحـــــــــــــــــــــــــــــــــقــــــــــــــــــــــــــــــــــــــــــــــــــــــــــــــــــــــــــاقـــــــــــــــــــــــــــــــــــات | AX36: جملة الاستــــحقــاقات | AY36: الأســـــــــــــــــــــــــــــــــــــتـــــــقـــــــــــــــــطاعـــــــــــــــــات | CE36: جملة الأستقطاعات | CF36: الصافي المستحق | CG36: الاســـــــــــــــــــم | CH36: التوقيع بالاســــــــــــتلام | CI36: صافي الشهر السابق | CK36: اسم البنك
B37: الاجور الاســــــــــــــــــــــــــاسية | G37: الجملة | H37: الاجور المتغيرة الخاضعة بكامل قيمتها للتأمينات والمعاشات | M37: الجملة | N37: الاجور المتغيرة الاخري بنسبة % | AO37: الجملة | AP37: ='العاملين '!BA37 -> 0 | AQ37: غير خاضع | AR37: حصص الاجور المتغيرة | AU37: الجملة | AV37: منحة | AW37: ='العاملين '!$AA$1 -> 0 | AY37: لحســــــــــــــــــــاب الهيئة القوميـــــــــــــــــــــة للتـــــــــــــــــأمين الإجتـــــــــــــــــــــــــماعي | BR37: لحساب جاري دائنة مصلحة الضرائب | BU37: لحساب دائنين مختلفين
AP38: خاضع | AY38: استقطاعات الأجور الاســــــــــــــــــاسية | BG38: استقطاعات الأجور المتغيرة | BL38: الأقساط الخاصة عن الأجور الأساسية | BR38: ضريبة دخل | BS38: دمغة عادية
B39: المرتب | C39: حصة الحكومة 15% | D39: إصابة عمل 1% | E39: أ 2 % | F39: أ 3 % | H39: علاوة 2012 | I39: علاوة 2013 | J39: علاوة 2014 | K39: علاوة 2015 | L39: علاوة 2016 | N39: ='العاملين '!$N$1 -> 0 | O39: ='العاملين '!$O$1 -> 0 | P39: ='العاملين '!$P$1 -> 0 | Q39: ='العاملين '!$Q$1 -> 0 | R39: ='العاملين '!$R$1 -> 0 | S39: ='العاملين '!#REF! ->  | T39: ='العاملين '!$S$1 -> 0 | U39: ='العاملين '!$T$1 -> 0 | V39: ='العاملين '!$U$1 -> 0 | W39: ='العاملين '!$V$1 -> 0 | X39: ='العاملين '!$W$1 -> 0 | Y39: الحد الادنى | AN39: ='العاملين '!$X$1 -> 0 | AR39: ألـ 15 % | AS39: ألـ 1 % | AT39: ألـ 3% | AY39: حصة الحكومة 15% | AZ39: إصابة عمل 1% | BA39: الـ 2% | BC39: حصة الموظف 10% | BD39: 0.08 | BE39: ألـ 3% | BF39: ألـ 1 % | BG39: حصة الحكومة 15% | BH39: إصابة عمل 1% | BI39: حصة الموظف 10% | BJ39: 0.03 | BK39: 0.01 | BL39: زمالة 7 % | BM39: زمالة جماعى | BN39: نقابه | BO39: رابطة | BP39: نادى محافظة | BQ39: نادي الادارة | BU39: ='العاملين '!$AF$1 -> 0 | BV39: ='العاملين '!$AG$1 -> 0 | BW39: ='العاملين '!$AH$1 -> 0 | BX39: ='العاملين '!$AI$1 -> 0 | BY39: ='العاملين '!$AJ$1 -> 0 | BZ39: ='العاملين '!$AK$1 -> 0 | CA39: ='العاملين '!$AL$1 -> 0 | CB39: ='العاملين '!$AM$1 -> 0 | CC39: ='العاملين '!$AN$1 -> 0 | CD39: كسر قرش
A40: 1 | B40: =IF($CH40>0,VLOOKUP($CH40,'العاملين '!$A$3:$AR$260,8),0) -> معلم | C40: =IF($B40>0,ROUND(($B40)*15%,2)," ") ->  | D40: =IF($B40>0,ROUND(($B40)*1%,2)," ") ->  | E40: =IF($B40>0,ROUND(($B40)*2%,2)," ") ->  | F40: =IF($B40>0,ROUND(($B40)*3%,2)," ") ->  | G40: =IF($B40>0,SUM(B40:F40)," ") ->  | H40: =IF($CH40>0,VLOOKUP($CH40,'العاملين '!$A$3:$AR$260,9),0) -> 566.52 | I40: =IF($CH40>0,VLOOKUP($CH40,'العاملين '!$A$3:$AR$260,10),0) -> 938.62 | J40: =IF($CH40>0,VLOOKUP($CH40,'العاملين '!$A$3:$AR$260,11),0) -> 0 | K40: =IF($CH40>0,VLOOKUP($CH40,'العاملين '!$A$3:$AR$260,12),0) -> 52.79 | L40: =IF($CH40>0,VLOOKUP($CH40,'العاملين '!$A$3:$AR$260,13),0) -> 53.29 | M40: =IF($B40>0,SUM(H40:L40),0) -> 1611.22 | N40: =IF($CH40>0,VLOOKUP($CH40,'العاملين '!$A$3:$AR$260,14),0) -> 56.69 | O40: =IF($CH40>0,VLOOKUP($CH40,'العاملين '!$A$3:$AR$260,15),0) -> 0 | P40: =IF($CH40>0,VLOOKUP($CH40,'العاملين '!$A$3:$AR$260,16),0) -> 4 | Q40: =IF($CH40>0,VLOOKUP($CH40,'العاملين '!$A$3:$AR$260,17),0) -> 6 | R40: =IF($CH40>0,VLOOKUP($CH40,'العاملين '!$A$3:$AR$260,18),0) -> 0 | S40: =IF($CH40>0,VLOOKUP($CH40,'العاملين '!$A$3:$AR$260,19),0) -> 0 | T40: =IF($CH40>0,VLOOKUP($CH40,'العاملين '!$A$3:$AR$260,20),0) -> 0 | U40: =IF($CH40>0,VLOOKUP($CH40,'العاملين '!$A$3:$AR$260,21),0) -> 0 | V40: =IF($CH40>0,VLOOKUP($CH40,'العاملين '!$A$3:$AR$260,22),0) -> 0 | W40: =IF($CH40>0,VLOOKUP($CH40,'العاملين '!$A$3:$AR$260,23),0) -> 0 | X40: =IF($CH40>0,VLOOKUP($CH40,'العاملين '!$A$3:$AR$260,24),0) -> 0 | Y40: =IF($CH40>0,VLOOKUP($CH40,'العاملين '!$A$3:$AR$260,26),0) -> 0 | AN40: =IF($CH40>0,VLOOKUP($CH40,'العاملين '!$A$3:$AR$260,25),0) -> 0 | AO40: =SUM(M40:AN40) -> 1677.91 | AP40: =IF(AO40>$AP$4,$AP$4,AO40) -> 1677.91 | AQ40: =AO40-AP40 -> 0 | AR40: =ROUND(($AP40)*15%,2) -> 251.69 | AS40: =ROUND(($AP40)*1%,2) -> 16.78 | AT40: =ROUND(($AP40)*3%,2) -> 50.34 | AU40: =SUM(AR40:AT40) -> 318.81 | AV40: =IF(B40>0,10,"") -> 10 | AW40: =IF($CH40>0,VLOOKUP($CH40,'العاملين '!$A$3:$AR$260,28),0) -> 0 | AX40: =SUM(AV40,AU40,AO40,G40,AW40) ->  | AY40: =IF($B40>0,ROUND(($B40)*15%,2)," ") ->  | AZ40: =IF($B40>0,ROUND(($B40)*1%,2)," ") ->  | BA40: =IF($B40>0,ROUND(($B40)*2%,2)," ") ->  | BC40: =IF($B40>0,ROUND(($B40)*10%,2)," ") ->  | BD40: =IF($B40>0,ROUND(($B40)*8%,2)," ") ->  | BE40: =IF($B40>0,ROUND(($B40)*3%,2)," ") ->  | BF40: =IF($B40>0,ROUND(($B40)*1%,2)," ") ->  | BG40: =AR40 -> 251.69 | BH40: 16.78 | BI40: =ROUND(($AP40)*10%,2) -> 167.79 | BJ40: =AT40 -> 50.34 | BK40: =AS40 -> 16.78 | BL40: =IF($CJ40=1,ROUND(($B40)*7%,2),IF($CJ40=2,VLOOKUP($CH40,'العاملين '!$A$3:$AS$260,44),0)) ->  | BM40: =IF($CJ40=1,0.5,IF($CJ40=2,VLOOKUP($CH40,'العاملين '!$A$3:$AS$260,45),0)) -> 0.5 | BN40: =IF($CJ40=1,4.5,IF($CJ40=2,VLOOKUP($CH40,'العاملين '!$A$3:$AS$260,46),0)) -> 4.5 | BO40: =IF($CH40>0,VLOOKUP($CH40,'العاملين '!$A$3:$AR$260,29),0) -> 0 | BP40: =IF($CJ40=1,0.2,IF($CJ40=2,VLOOKUP($CH40,'العاملين '!$A$3:$AU$260,47),0)) -> 0.2 | BQ40: =IF($CJ40=1,0.05,IF($CJ40=2,VLOOKUP($CH40,'العاملين '!$A$3:$AU$260,47),0)) -> 0.05 | BR40: =IF($CH40>0,VLOOKUP($CH40,'العاملين '!$A$3:$AR$260,30),0) -> 0 | BS40: =IF($CH40>0,VLOOKUP($CH40,'العاملين '!$A$3:$AR$260,31),0) -> 0 | BU40: =IF($CH40>0,VLOOKUP($CH40,'العاملين '!$A$3:$AR$260,33),0) -> 0 | BV40: =IF($CH40>0,VLOOKUP($CH40,'العاملين '!$A$3:$AR$260,34),0) -> 0 | BW40: =IF($CH40>0,VLOOKUP($CH40,'العاملين '!$A$3:$AR$260,35),0) -> 0 | BX40: =IF($CH40>0,VLOOKUP($CH40,'العاملين '!$A$3:$AR$260,36),0) -> 0 | BY40: =IF($CH40>0,VLOOKUP($CH40,'العاملين '!$A$3:$AR$260,37),0) -> 0 | BZ40: =IF($CH40>0,VLOOKUP($CH40,'العاملين '!$A$3:$AR$260,38),0) -> 1 | CA40: =IF($CH40>0,VLOOKUP($CH40,'العاملين '!$A$3:$AR$260,39),0) -> 26.73 | CB40: =IF($CH40>0,VLOOKUP($CH40,'العاملين '!$A$3:$AR$260,40),0) -> 14.95 | CC40: =IF($CH40>0,VLOOKUP($CH40,'العاملين '!$A$3:$AR$260,41),0) -> 0 | CD40: =CL40-CF40 ->  | CE40: =SUM(AY40:CD40) ->  | CF40: =FLOOR(CL40,0.05) ->  | CG40: =IF($CH40>0,VLOOKUP($CH40,'العاملين '!$A$3:$AR$260,2),0) -> محمد3 | CH40: 3 | CJ40: =IF($CH40>0,VLOOKUP($CH40,'العاملين '!$A$3:$AR$260,3),0) -> 1 | CK40: =IF($CH40>0,VLOOKUP($CH40,'العاملين '!$A$3:$AR$260,43),0) -> 0 | CL40: =AX40-SUM(AY40:CC40) -> 
A41: 2 | B41: =IF($CH41>0,VLOOKUP($CH41,'العاملين '!$A$3:$AR$260,8),0) -> خبير | H41: =IF($CH41>0,VLOOKUP($CH41,'العاملين '!$A$3:$AR$260,9),0) -> 537.56 | I41: =IF($CH41>0,VLOOKUP($CH41,'العاملين '!$A$3:$AR$260,10),0) -> 892.61 | J41: =IF($CH41>0,VLOOKUP($CH41,'العاملين '!$A$3:$AR$260,11),0) -> 0 | K41: =IF($CH41>0,VLOOKUP($CH41,'العاملين '!$A$3:$AR$260,12),0) -> 50.03 | L41: =IF($CH41>0,VLOOKUP($CH41,'العاملين '!$A$3:$AR$260,13),0) -> 50.53 | M41: 1530.73 | N41: =IF($CH41>0,VLOOKUP($CH41,'العاملين '!$A$3:$AR$260,14),0) -> 53.75 | O41: =IF($CH41>0,VLOOKUP($CH41,'العاملين '!$A$3:$AR$260,15),0) -> 0 | P41: =IF($CH41>0,VLOOKUP($CH41,'العاملين '!$A$3:$AR$260,16),0) -> 4 | Q41: =IF($CH41>0,VLOOKUP($CH41,'العاملين '!$A$3:$AR$260,17),0) -> 6 | R41: =IF($CH41>0,VLOOKUP($CH41,'العاملين '!$A$3:$AR$260,18),0) -> 0 | S41: =IF($CH41>0,VLOOKUP($CH41,'العاملين '!$A$3:$AR$260,19),0) -> 0 | T41: =IF($CH41>0,VLOOKUP($CH41,'العاملين '!$A$3:$AR$260,20),0) -> 0 | U41: =IF($CH41>0,VLOOKUP($CH41,'العاملين '!$A$3:$AR$260,21),0) -> 0 | V41: =IF($CH41>0,VLOOKUP($CH41,'العاملين '!$A$3:$AR$260,22),0) -> 0 | W41: =IF($CH41>0,VLOOKUP($CH41,'العاملين '!$A$3:$AR$260,23),0) -> 0 | X41: =IF($CH41>0,VLOOKUP($CH41,'العاملين '!$A$3:$AR$260,24),0) -> 0 | Y41: =IF($CH41>0,VLOOKUP($CH41,'العاملين '!$A$3:$AR$260,26),0) -> 0 | AN41: =IF($CH41>0,VLOOKUP($CH41,'العاملين '!$A$3:$AR$260,25),0) -> 0 | AO41: 1594.48 | AP41: 1594.48 | AQ41: 0 | AR41: 239.17 | AS41: 15.94 | AT41: 47.83 | AU41: 302.94 | AV41: 10 | AW41: =IF($CH41>0,VLOOKUP($CH41,'العاملين '!$A$3:$AR$260,28),0) -> 0 | BG41: 239.17 | BH41: 15.94 | BI41: 159.45 | BJ41: 47.83 | BK41: 15.94 | BL41: =IF($CJ41=1,ROUND(($B41)*7%,2),IF($CJ41=2,VLOOKUP($CH41,'العاملين '!$A$3:$AS$260,44),0)) ->  | BM41: =IF($CJ41=1,0.5,IF($CJ41=2,VLOOKUP($CH41,'العاملين '!$A$3:$AS$260,45),0)) -> 0.5 | BN41: =IF($CJ41=1,4.5,IF($CJ41=2,VLOOKUP($CH41,'العاملين '!$A$3:$AS$260,46),0)) -> 4.5 | BO41: =IF($CH41>0,VLOOKUP($CH41,'العاملين '!$A$3:$AR$260,29),0) -> 0 | BP41: =IF($CJ41=1,0.2,IF($CJ41=2,VLOOKUP($CH41,'العاملين '!$A$3:$AU$260,47),0)) -> 0.2 | BQ41: =IF($CJ41=1,0.05,IF($CJ41=2,VLOOKUP($CH41,'العاملين '!$A$3:$AU$260,47),0)) -> 0.05 | BR41: =IF($CH41>0,VLOOKUP($CH41,'العاملين '!$A$3:$AR$260,30),0) -> 0 | BS41: =IF($CH41>0,VLOOKUP($CH41,'العاملين '!$A$3:$AR$260,31),0) -> 0 | BU41: =IF($CH41>0,VLOOKUP($CH41,'العاملين '!$A$3:$AR$260,33),0) -> 0 | BV41: =IF($CH41>0,VLOOKUP($CH41,'العاملين '!$A$3:$AR$260,34),0) -> 0 | BW41: =IF($CH41>0,VLOOKUP($CH41,'العاملين '!$A$3:$AR$260,35),0) -> 0 | BX41: =IF($CH41>0,VLOOKUP($CH41,'العاملين '!$A$3:$AR$260,36),0) -> 0 | BY41: =IF($CH41>0,VLOOKUP($CH41,'العاملين '!$A$3:$AR$260,37),0) -> 0 | BZ41: =IF($CH41>0,VLOOKUP($CH41,'العاملين '!$A$3:$AR$260,38),0) -> 1 | CA41: =IF($CH41>0,VLOOKUP($CH41,'العاملين '!$A$3:$AR$260,39),0) -> 38.49 | CB41: =IF($CH41>0,VLOOKUP($CH41,'العاملين '!$A$3:$AR$260,40),0) -> 14.35 | CC41: =IF($CH41>0,VLOOKUP($CH41,'العاملين '!$A$3:$AR$260,41),0) -> 0 | CG41: =IF($CH41>0,VLOOKUP($CH41,'العاملين '!$A$3:$AR$260,2),0) -> محمد31 | CH41: 31 | CJ41: =IF($CH41>0,VLOOKUP($CH41,'العاملين '!$A$3:$AR$260,3),0) -> 1 | CK41: =IF($CH41>0,VLOOKUP($CH41,'العاملين '!$A$3:$AR$260,43),0) -> 0
A42: 3 | B42: =IF($CH42>0,VLOOKUP($CH42,'العاملين '!$A$3:$AR$260,8),0) -> 0 | H42: =IF($CH42>0,VLOOKUP($CH42,'العاملين '!$A$3:$AR$260,9),0) -> 0 | I42: =IF($CH42>0,VLOOKUP($CH42,'العاملين '!$A$3:$AR$260,10),0) -> 0 | J42: =IF($CH42>0,VLOOKUP($CH42,'العاملين '!$A$3:$AR$260,11),0) -> 0 | K42: =IF($CH42>0,VLOOKUP($CH42,'العاملين '!$A$3:$AR$260,12),0) -> 0 | L42: =IF($CH42>0,VLOOKUP($CH42,'العاملين '!$A$3:$AR$260,13),0) -> 0 | M42: 0 | N42: =IF($CH42>0,VLOOKUP($CH42,'العاملين '!$A$3:$AR$260,14),0) -> 0 | O42: =IF($CH42>0,VLOOKUP($CH42,'العاملين '!$A$3:$AR$260,15),0) -> 0 | P42: =IF($CH42>0,VLOOKUP($CH42,'العاملين '!$A$3:$AR$260,16),0) -> 0 | Q42: =IF($CH42>0,VLOOKUP($CH42,'العاملين '!$A$3:$AR$260,17),0) -> 0 | R42: =IF($CH42>0,VLOOKUP($CH42,'العاملين '!$A$3:$AR$260,18),0) -> 0 | S42: =IF($CH42>0,VLOOKUP($CH42,'العاملين '!$A$3:$AR$260,19),0) -> 0 | T42: =IF($CH42>0,VLOOKUP($CH42,'العاملين '!$A$3:$AR$260,20),0) -> 0 | U42: =IF($CH42>0,VLOOKUP($CH42,'العاملين '!$A$3:$AR$260,21),0) -> 0 | V42: =IF($CH42>0,VLOOKUP($CH42,'العاملين '!$A$3:$AR$260,22),0) -> 0 | W42: =IF($CH42>0,VLOOKUP($CH42,'العاملين '!$A$3:$AR$260,23),0) -> 0 | X42: =IF($CH42>0,VLOOKUP($CH42,'العاملين '!$A$3:$AR$260,24),0) -> 0 | Y42: =IF($CH42>0,VLOOKUP($CH42,'العاملين '!$A$3:$AR$260,26),0) -> 0 | AN42: =IF($CH42>0,VLOOKUP($CH42,'العاملين '!$A$3:$AR$260,25),0) -> 0 | AO42: 0 | AP42: 0 | AQ42: 0 | AR42: 0 | AS42: 0 | AT42: 0 | AU42: 0 | AW42: =IF($CH42>0,VLOOKUP($CH42,'العاملين '!$A$3:$AR$260,28),0) -> 0 | AX42: 0 | BG42: 0 | BH42: 0 | BI42: 0 | BJ42: 0 | BK42: 0 | BL42: =IF($CJ42=1,ROUND(($B42)*7%,2),IF($CJ42=2,VLOOKUP($CH42,'العاملين '!$A$3:$AS$260,44),0)) -> 0 | BM42: =IF($CJ42=1,0.5,IF($CJ42=2,VLOOKUP($CH42,'العاملين '!$A$3:$AS$260,45),0)) -> 0 | BN42: =IF($CJ42=1,4.5,IF($CJ42=2,VLOOKUP($CH42,'العاملين '!$A$3:$AS$260,46),0)) -> 0 | BO42: =IF($CH42>0,VLOOKUP($CH42,'العاملين '!$A$3:$AR$260,29),0) -> 0 | BP42: =IF($CJ42=1,0.2,IF($CJ42=2,VLOOKUP($CH42,'العاملين '!$A$3:$AU$260,47),0)) -> 0 | BQ42: =IF($CJ42=1,0.05,IF($CJ42=2,VLOOKUP($CH42,'العاملين '!$A$3:$AU$260,47),0)) -> 0 | BR42: =IF($CH42>0,VLOOKUP($CH42,'العاملين '!$A$3:$AR$260,30),0) -> 0 | BS42: =IF($CH42>0,VLOOKUP($CH42,'العاملين '!$A$3:$AR$260,31),0) -> 0 | BU42: =IF($CH42>0,VLOOKUP($CH42,'العاملين '!$A$3:$AR$260,33),0) -> 0 | BV42: =IF($CH42>0,VLOOKUP($CH42,'العاملين '!$A$3:$AR$260,34),0) -> 0 | BW42: =IF($CH42>0,VLOOKUP($CH42,'العاملين '!$A$3:$AR$260,35),0) -> 0 | BX42: =IF($CH42>0,VLOOKUP($CH42,'العاملين '!$A$3:$AR$260,36),0) -> 0 | BY42: =IF($CH42>0,VLOOKUP($CH42,'العاملين '!$A$3:$AR$260,37),0) -> 0 | BZ42: =IF($CH42>0,VLOOKUP($CH42,'العاملين '!$A$3:$AR$260,38),0) -> 0 | CA42: =IF($CH42>0,VLOOKUP($CH42,'العاملين '!$A$3:$AR$260,39),0) -> 0 | CB42: =IF($CH42>0,VLOOKUP($CH42,'العاملين '!$A$3:$AR$260,40),0) -> 0 | CC42: =IF($CH42>0,VLOOKUP($CH42,'العاملين '!$A$3:$AR$260,41),0) -> 0 | CD42: 0 | CE42: 0 | CF42: 0 | CG42: =IF($CH42>0,VLOOKUP($CH42,'العاملين '!$A$3:$AR$260,2),0) -> 0 | CH42: 0 | CJ42: =IF($CH42>0,VLOOKUP($CH42,'العاملين '!$A$3:$AR$260,3),0) -> 0 | CK42: =IF($CH42>0,VLOOKUP($CH42,'العاملين '!$A$3:$AR$260,43),0) -> 0 | CL42: 0
A43: 4 | B43: =IF($CH43>0,VLOOKUP($CH43,'العاملين '!$A$3:$AR$260,8),0) -> خبير | H43: =IF($CH43>0,VLOOKUP($CH43,'العاملين '!$A$3:$AR$260,9),0) -> 0 | I43: =IF($CH43>0,VLOOKUP($CH43,'العاملين '!$A$3:$AR$260,10),0) -> 0 | J43: =IF($CH43>0,VLOOKUP($CH43,'العاملين '!$A$3:$AR$260,11),0) -> 0 | K43: =IF($CH43>0,VLOOKUP($CH43,'العاملين '!$A$3:$AR$260,12),0) -> 0 | L43: =IF($CH43>0,VLOOKUP($CH43,'العاملين '!$A$3:$AR$260,13),0) -> 0 | M43: 0 | N43: =IF($CH43>0,VLOOKUP($CH43,'العاملين '!$A$3:$AR$260,14),0) -> 0 | O43: =IF($CH43>0,VLOOKUP($CH43,'العاملين '!$A$3:$AR$260,15),0) -> 0 | P43: =IF($CH43>0,VLOOKUP($CH43,'العاملين '!$A$3:$AR$260,16),0) -> 0 | Q43: =IF($CH43>0,VLOOKUP($CH43,'العاملين '!$A$3:$AR$260,17),0) -> 0 | R43: =IF($CH43>0,VLOOKUP($CH43,'العاملين '!$A$3:$AR$260,18),0) -> 0 | S43: =IF($CH43>0,VLOOKUP($CH43,'العاملين '!$A$3:$AR$260,19),0) -> 0 | T43: =IF($CH43>0,VLOOKUP($CH43,'العاملين '!$A$3:$AR$260,20),0) -> 0 | U43: =IF($CH43>0,VLOOKUP($CH43,'العاملين '!$A$3:$AR$260,21),0) -> 0 | V43: =IF($CH43>0,VLOOKUP($CH43,'العاملين '!$A$3:$AR$260,22),0) -> 0 | W43: =IF($CH43>0,VLOOKUP($CH43,'العاملين '!$A$3:$AR$260,23),0) -> 0 | X43: =IF($CH43>0,VLOOKUP($CH43,'العاملين '!$A$3:$AR$260,24),0) -> 0 | Y43: =IF($CH43>0,VLOOKUP($CH43,'العاملين '!$A$3:$AR$260,26),0) -> 0 | AN43: =IF($CH43>0,VLOOKUP($CH43,'العاملين '!$A$3:$AR$260,25),0) -> 0 | AO43: 0 | AP43: 0 | AQ43: 0 | AR43: 0 | AS43: 0 | AT43: 0 | AU43: 0 | AV43: 10 | AW43: =IF($CH43>0,VLOOKUP($CH43,'العاملين '!$A$3:$AR$260,28),0) -> 0 | BG43: 0 | BH43: 0 | BI43: 0 | BJ43: 0 | BK43: 0 | BL43: =IF($CJ43=1,ROUND(($B43)*7%,2),IF($CJ43=2,VLOOKUP($CH43,'العاملين '!$A$3:$AS$260,44),0)) ->  | BM43: =IF($CJ43=1,0.5,IF($CJ43=2,VLOOKUP($CH43,'العاملين '!$A$3:$AS$260,45),0)) -> 0.5 | BN43: =IF($CJ43=1,4.5,IF($CJ43=2,VLOOKUP($CH43,'العاملين '!$A$3:$AS$260,46),0)) -> 4.5 | BO43: =IF($CH43>0,VLOOKUP($CH43,'العاملين '!$A$3:$AR$260,29),0) -> 0 | BP43: =IF($CJ43=1,0.2,IF($CJ43=2,VLOOKUP($CH43,'العاملين '!$A$3:$AU$260,47),0)) -> 0.2 | BQ43: =IF($CJ43=1,0.05,IF($CJ43=2,VLOOKUP($CH43,'العاملين '!$A$3:$AU$260,47),0)) -> 0.05 | BR43: =IF($CH43>0,VLOOKUP($CH43,'العاملين '!$A$3:$AR$260,30),0) -> 0 | BS43: =IF($CH43>0,VLOOKUP($CH43,'العاملين '!$A$3:$AR$260,31),0) -> 0 | BU43: =IF($CH43>0,VLOOKUP($CH43,'العاملين '!$A$3:$AR$260,33),0) -> 0 | BV43: =IF($CH43>0,VLOOKUP($CH43,'العاملين '!$A$3:$AR$260,34),0) -> 0 | BW43: =IF($CH43>0,VLOOKUP($CH43,'العاملين '!$A$3:$AR$260,35),0) -> 0 | BX43: =IF($CH43>0,VLOOKUP($CH43,'العاملين '!$A$3:$AR$260,36),0) -> 0 | BY43: =IF($CH43>0,VLOOKUP($CH43,'العاملين '!$A$3:$AR$260,37),0) -> 0 | BZ43: =IF($CH43>0,VLOOKUP($CH43,'العاملين '!$A$3:$AR$260,38),0) -> 0 | CA43: =IF($CH43>0,VLOOKUP($CH43,'العاملين '!$A$3:$AR$260,39),0) -> 0 | CB43: =IF($CH43>0,VLOOKUP($CH43,'العاملين '!$A$3:$AR$260,40),0) -> 0 | CC43: =IF($CH43>0,VLOOKUP($CH43,'العاملين '!$A$3:$AR$260,41),0) -> 0 | CG43: =IF($CH43>0,VLOOKUP($CH43,'العاملين '!$A$3:$AR$260,2),0) -> محمد35 | CH43: 35 | CJ43: =IF($CH43>0,VLOOKUP($CH43,'العاملين '!$A$3:$AR$260,3),0) -> 1 | CK43: =IF($CH43>0,VLOOKUP($CH43,'العاملين '!$A$3:$AR$260,43),0) -> 0
A44: 5 | B44: =IF($CH44>0,VLOOKUP($CH44,'العاملين '!$A$3:$AR$260,8),0) -> 0 | H44: =IF($CH44>0,VLOOKUP($CH44,'العاملين '!$A$3:$AR$260,9),0) -> 0 | I44: =IF($CH44>0,VLOOKUP($CH44,'العاملين '!$A$3:$AR$260,10),0) -> 0 | J44: =IF($CH44>0,VLOOKUP($CH44,'العاملين '!$A$3:$AR$260,11),0) -> 0 | K44: =IF($CH44>0,VLOOKUP($CH44,'العاملين '!$A$3:$AR$260,12),0) -> 0 | L44: =IF($CH44>0,VLOOKUP($CH44,'العاملين '!$A$3:$AR$260,13),0) -> 0 | M44: 0 | N44: =IF($CH44>0,VLOOKUP($CH44,'العاملين '!$A$3:$AR$260,14),0) -> 0 | O44: =IF($CH44>0,VLOOKUP($CH44,'العاملين '!$A$3:$AR$260,15),0) -> 0 | P44: =IF($CH44>0,VLOOKUP($CH44,'العاملين '!$A$3:$AR$260,16),0) -> 0 | Q44: =IF($CH44>0,VLOOKUP($CH44,'العاملين '!$A$3:$AR$260,17),0) -> 0 | R44: =IF($CH44>0,VLOOKUP($CH44,'العاملين '!$A$3:$AR$260,18),0) -> 0 | S44: =IF($CH44>0,VLOOKUP($CH44,'العاملين '!$A$3:$AR$260,19),0) -> 0 | T44: =IF($CH44>0,VLOOKUP($CH44,'العاملين '!$A$3:$AR$260,20),0) -> 0 | U44: =IF($CH44>0,VLOOKUP($CH44,'العاملين '!$A$3:$AR$260,21),0) -> 0 | V44: =IF($CH44>0,VLOOKUP($CH44,'العاملين '!$A$3:$AR$260,22),0) -> 0 | W44: =IF($CH44>0,VLOOKUP($CH44,'العاملين '!$A$3:$AR$260,23),0) -> 0 | X44: =IF($CH44>0,VLOOKUP($CH44,'العاملين '!$A$3:$AR$260,24),0) -> 0 | Y44: =IF($CH44>0,VLOOKUP($CH44,'العاملين '!$A$3:$AR$260,26),0) -> 0 | AN44: =IF($CH44>0,VLOOKUP($CH44,'العاملين '!$A$3:$AR$260,25),0) -> 0 | AO44: 0 | AP44: 0 | AQ44: 0 | AR44: 0 | AS44: 0 | AT44: 0 | AU44: 0 | AW44: =IF($CH44>0,VLOOKUP($CH44,'العاملين '!$A$3:$AR$260,28),0) -> 0 | AX44: 0 | BG44: 0 | BH44: 0 | BI44: 0 | BJ44: 0 | BK44: 0 | BL44: =IF($CJ44=1,ROUND(($B44)*7%,2),IF($CJ44=2,VLOOKUP($CH44,'العاملين '!$A$3:$AS$260,44),0)) -> 0 | BM44: =IF($CJ44=1,0.5,IF($CJ44=2,VLOOKUP($CH44,'العاملين '!$A$3:$AS$260,45),0)) -> 0 | BN44: =IF($CJ44=1,4.5,IF($CJ44=2,VLOOKUP($CH44,'العاملين '!$A$3:$AS$260,46),0)) -> 0 | BO44: =IF($CH44>0,VLOOKUP($CH44,'العاملين '!$A$3:$AR$260,29),0) -> 0 | BP44: =IF($CJ44=1,0.2,IF($CJ44=2,VLOOKUP($CH44,'العاملين '!$A$3:$AU$260,47),0)) -> 0 | BQ44: =IF($CJ44=1,0.05,IF($CJ44=2,VLOOKUP($CH44,'العاملين '!$A$3:$AU$260,47),0)) -> 0 | BR44: =IF($CH44>0,VLOOKUP($CH44,'العاملين '!$A$3:$AR$260,30),0) -> 0 | BS44: =IF($CH44>0,VLOOKUP($CH44,'العاملين '!$A$3:$AR$260,31),0) -> 0 | BU44: =IF($CH44>0,VLOOKUP($CH44,'العاملين '!$A$3:$AR$260,33),0) -> 0 | BV44: =IF($CH44>0,VLOOKUP($CH44,'العاملين '!$A$3:$AR$260,34),0) -> 0 | BW44: =IF($CH44>0,VLOOKUP($CH44,'العاملين '!$A$3:$AR$260,35),0) -> 0 | BX44: =IF($CH44>0,VLOOKUP($CH44,'العاملين '!$A$3:$AR$260,36),0) -> 0 | BY44: =IF($CH44>0,VLOOKUP($CH44,'العاملين '!$A$3:$AR$260,37),0) -> 0 | BZ44: =IF($CH44>0,VLOOKUP($CH44,'العاملين '!$A$3:$AR$260,38),0) -> 0 | CA44: =IF($CH44>0,VLOOKUP($CH44,'العاملين '!$A$3:$AR$260,39),0) -> 0 | CB44: =IF($CH44>0,VLOOKUP($CH44,'العاملين '!$A$3:$AR$260,40),0) -> 0 | CC44: =IF($CH44>0,VLOOKUP($CH44,'العاملين '!$A$3:$AR$260,41),0) -> 0 | CD44: 0 | CE44: 0 | CF44: 0 | CG44: =IF($CH44>0,VLOOKUP($CH44,'العاملين '!$A$3:$AR$260,2),0) -> 0 | CH44: 0 | CJ44: =IF($CH44>0,VLOOKUP($CH44,'العاملين '!$A$3:$AR$260,3),0) -> 0 | CK44: =IF($CH44>0,VLOOKUP($CH44,'العاملين '!$A$3:$AR$260,43),0) -> 0 | CL44: 0
A45: 6 | B45: =IF($CH45>0,VLOOKUP($CH45,'العاملين '!$A$3:$AR$260,8),0) -> 0 | H45: =IF($CH45>0,VLOOKUP($CH45,'العاملين '!$A$3:$AR$260,9),0) -> 0 | I45: =IF($CH45>0,VLOOKUP($CH45,'العاملين '!$A$3:$AR$260,10),0) -> 0 | J45: =IF($CH45>0,VLOOKUP($CH45,'العاملين '!$A$3:$AR$260,11),0) -> 0 | K45: =IF($CH45>0,VLOOKUP($CH45,'العاملين '!$A$3:$AR$260,12),0) -> 0 | L45: =IF($CH45>0,VLOOKUP($CH45,'العاملين '!$A$3:$AR$260,13),0) -> 0 | M45: 0 | N45: =IF($CH45>0,VLOOKUP($CH45,'العاملين '!$A$3:$AR$260,14),0) -> 0 | O45: =IF($CH45>0,VLOOKUP($CH45,'العاملين '!$A$3:$AR$260,15),0) -> 0 | P45: =IF($CH45>0,VLOOKUP($CH45,'العاملين '!$A$3:$AR$260,16),0) -> 0 | Q45: =IF($CH45>0,VLOOKUP($CH45,'العاملين '!$A$3:$AR$260,17),0) -> 0 | R45: =IF($CH45>0,VLOOKUP($CH45,'العاملين '!$A$3:$AR$260,18),0) -> 0 | S45: =IF($CH45>0,VLOOKUP($CH45,'العاملين '!$A$3:$AR$260,19),0) -> 0 | T45: =IF($CH45>0,VLOOKUP($CH45,'العاملين '!$A$3:$AR$260,20),0) -> 0 | U45: =IF($CH45>0,VLOOKUP($CH45,'العاملين '!$A$3:$AR$260,21),0) -> 0 | V45: =IF($CH45>0,VLOOKUP($CH45,'العاملين '!$A$3:$AR$260,22),0) -> 0 | W45: =IF($CH45>0,VLOOKUP($CH45,'العاملين '!$A$3:$AR$260,23),0) -> 0 | X45: =IF($CH45>0,VLOOKUP($CH45,'العاملين '!$A$3:$AR$260,24),0) -> 0 | Y45: =IF($CH45>0,VLOOKUP($CH45,'العاملين '!$A$3:$AR$260,26),0) -> 0 | AN45: =IF($CH45>0,VLOOKUP($CH45,'العاملين '!$A$3:$AR$260,25),0) -> 0 | AO45: 0 | AP45: 0 | AQ45: 0 | AR45: 0 | AS45: 0 | AT45: 0 | AU45: 0 | AW45: =IF($CH45>0,VLOOKUP($CH45,'العاملين '!$A$3:$AR$260,28),0) -> 0 | AX45: 0 | BG45: 0 | BH45: 0 | BI45: 0 | BJ45: 0 | BK45: 0 | BL45: =IF($CJ45=1,ROUND(($B45)*7%,2),IF($CJ45=2,VLOOKUP($CH45,'العاملين '!$A$3:$AS$260,44),0)) -> 0 | BM45: =IF($CJ45=1,0.5,IF($CJ45=2,VLOOKUP($CH45,'العاملين '!$A$3:$AS$260,45),0)) -> 0 | BN45: =IF($CJ45=1,4.5,IF($CJ45=2,VLOOKUP($CH45,'العاملين '!$A$3:$AS$260,46),0)) -> 0 | BO45: =IF($CH45>0,VLOOKUP($CH45,'العاملين '!$A$3:$AR$260,29),0) -> 0 | BP45: =IF($CJ45=1,0.2,IF($CJ45=2,VLOOKUP($CH45,'العاملين '!$A$3:$AU$260,47),0)) -> 0 | BQ45: =IF($CJ45=1,0.05,IF($CJ45=2,VLOOKUP($CH45,'العاملين '!$A$3:$AU$260,47),0)) -> 0 | BR45: =IF($CH45>0,VLOOKUP($CH45,'العاملين '!$A$3:$AR$260,30),0) -> 0 | BS45: =IF($CH45>0,VLOOKUP($CH45,'العاملين '!$A$3:$AR$260,31),0) -> 0 | BU45: =IF($CH45>0,VLOOKUP($CH45,'العاملين '!$A$3:$AR$260,33),0) -> 0 | BV45: =IF($CH45>0,VLOOKUP($CH45,'العاملين '!$A$3:$AR$260,34),0) -> 0 | BW45: =IF($CH45>0,VLOOKUP($CH45,'العاملين '!$A$3:$AR$260,35),0) -> 0 | BX45: =IF($CH45>0,VLOOKUP($CH45,'العاملين '!$A$3:$AR$260,36),0) -> 0 | BY45: =IF($CH45>0,VLOOKUP($CH45,'العاملين '!$A$3:$AR$260,37),0) -> 0 | BZ45: =IF($CH45>0,VLOOKUP($CH45,'العاملين '!$A$3:$AR$260,38),0) -> 0 | CA45: =IF($CH45>0,VLOOKUP($CH45,'العاملين '!$A$3:$AR$260,39),0) -> 0 | CB45: =IF($CH45>0,VLOOKUP($CH45,'العاملين '!$A$3:$AR$260,40),0) -> 0 | CC45: =IF($CH45>0,VLOOKUP($CH45,'العاملين '!$A$3:$AR$260,41),0) -> 0 | CD45: 0 | CE45: 0 | CF45: 0 | CG45: =IF($CH45>0,VLOOKUP($CH45,'العاملين '!$A$3:$AR$260,2),0) -> 0 | CH45: 0 | CJ45: =IF($CH45>0,VLOOKUP($CH45,'العاملين '!$A$3:$AR$260,3),0) -> 0 | CK45: =IF($CH45>0,VLOOKUP($CH45,'العاملين '!$A$3:$AR$260,43),0) -> 0 | CL45: 0
A46: 7 | B46: =IF($CH46>0,VLOOKUP($CH46,'العاملين '!$A$3:$AR$260,8),0) -> 0 | C46: =IF($B46>0,ROUND(($B46)*15%,2)," ") ->  | D46: =IF($B46>0,ROUND(($B46)*1%,2)," ") ->  | E46: =IF($B46>0,ROUND(($B46)*2%,2)," ") ->  | F46: =IF($B46>0,ROUND(($B46)*3%,2)," ") ->  | G46: =IF($B46>0,SUM(B46:F46)," ") ->  | H46: =IF($CH46>0,VLOOKUP($CH46,'العاملين '!$A$3:$AR$260,9),0) -> 0 | I46: =IF($CH46>0,VLOOKUP($CH46,'العاملين '!$A$3:$AR$260,10),0) -> 0 | J46: =IF($CH46>0,VLOOKUP($CH46,'العاملين '!$A$3:$AR$260,11),0) -> 0 | K46: =IF($CH46>0,VLOOKUP($CH46,'العاملين '!$A$3:$AR$260,12),0) -> 0 | L46: =IF($CH46>0,VLOOKUP($CH46,'العاملين '!$A$3:$AR$260,13),0) -> 0 | M46: =IF($B46>0,SUM(H46:L46),0) -> 0 | N46: =IF($CH46>0,VLOOKUP($CH46,'العاملين '!$A$3:$AR$260,14),0) -> 0 | O46: =IF($CH46>0,VLOOKUP($CH46,'العاملين '!$A$3:$AR$260,15),0) -> 0 | P46: =IF($CH46>0,VLOOKUP($CH46,'العاملين '!$A$3:$AR$260,16),0) -> 0 | Q46: =IF($CH46>0,VLOOKUP($CH46,'العاملين '!$A$3:$AR$260,17),0) -> 0 | R46: =IF($CH46>0,VLOOKUP($CH46,'العاملين '!$A$3:$AR$260,18),0) -> 0 | S46: =IF($CH46>0,VLOOKUP($CH46,'العاملين '!$A$3:$AR$260,19),0) -> 0 | T46: =IF($CH46>0,VLOOKUP($CH46,'العاملين '!$A$3:$AR$260,20),0) -> 0 | U46: =IF($CH46>0,VLOOKUP($CH46,'العاملين '!$A$3:$AR$260,21),0) -> 0 | V46: =IF($CH46>0,VLOOKUP($CH46,'العاملين '!$A$3:$AR$260,22),0) -> 0 | W46: =IF($CH46>0,VLOOKUP($CH46,'العاملين '!$A$3:$AR$260,23),0) -> 0 | X46: =IF($CH46>0,VLOOKUP($CH46,'العاملين '!$A$3:$AR$260,24),0) -> 0 | Y46: =IF($CH46>0,VLOOKUP($CH46,'العاملين '!$A$3:$AR$260,26),0) -> 0 | AN46: =IF($CH46>0,VLOOKUP($CH46,'العاملين '!$A$3:$AR$260,25),0) -> 0 | AO46: =SUM(M46:AN46) -> 0 | AP46: 0 | AQ46: =AO46-AP46 -> 0 | AR46: =ROUND(($AP46)*15%,2) -> 0 | AS46: =ROUND(($AP46)*1%,2) -> 0 | AT46: =ROUND(($AP46)*3%,2) -> 0 | AU46: =SUM(AR46:AT46) -> 0 | AV46: =IF(B46>0,10,"") ->  | AW46: =IF($CH46>0,VLOOKUP($CH46,'العاملين '!$A$3:$AR$260,28),0) -> 0 | AX46: =SUM(AV46,AU46,AO46,G46,AW46) -> 0 | AY46: =IF($B46>0,ROUND(($B46)*15%,2)," ") ->  | AZ46: =IF($B46>0,ROUND(($B46)*1%,2)," ") ->  | BA46: =IF($B46>0,ROUND(($B46)*2%,2)," ") ->  | BC46: =IF($B46>0,ROUND(($B46)*10%,2)," ") ->  | BD46: =IF($B46>0,ROUND(($B46)*8%,2)," ") ->  | BE46: =IF($B46>0,ROUND(($B46)*3%,2)," ") ->  | BF46: =IF($B46>0,ROUND(($B46)*1%,2)," ") ->  | BG46: =AR46 -> 0 | BH46: =AS46 -> 0 | BI46: =ROUND(($AP46)*10%,2) -> 0 | BJ46: =AT46 -> 0 | BK46: =AS46 -> 0 | BL46: =IF($CJ46=1,ROUND(($B46)*7%,2),IF($CJ46=2,VLOOKUP($CH46,'العاملين '!$A$3:$AS$260,44),0)) -> 0 | BM46: =IF($CJ46=1,0.5,IF($CJ46=2,VLOOKUP($CH46,'العاملين '!$A$3:$AS$260,45),0)) -> 0 | BN46: =IF($CJ46=1,4.5,IF($CJ46=2,VLOOKUP($CH46,'العاملين '!$A$3:$AS$260,46),0)) -> 0 | BO46: =IF($CH46>0,VLOOKUP($CH46,'العاملين '!$A$3:$AR$260,29),0) -> 0 | BP46: =IF($CJ46=1,0.2,IF($CJ46=2,VLOOKUP($CH46,'العاملين '!$A$3:$AU$260,47),0)) -> 0 | BQ46: =IF($CJ46=1,0.05,IF($CJ46=2,VLOOKUP($CH46,'العاملين '!$A$3:$AU$260,47),0)) -> 0 | BR46: =IF($CH46>0,VLOOKUP($CH46,'العاملين '!$A$3:$AR$260,30),0) -> 0 | BS46: =IF($CH46>0,VLOOKUP($CH46,'العاملين '!$A$3:$AR$260,31),0) -> 0 | BU46: =IF($CH46>0,VLOOKUP($CH46,'العاملين '!$A$3:$AR$260,33),0) -> 0 | BV46: =IF($CH46>0,VLOOKUP($CH46,'العاملين '!$A$3:$AR$260,34),0) -> 0 | BW46: =IF($CH46>0,VLOOKUP($CH46,'العاملين '!$A$3:$AR$260,35),0) -> 0 | BX46: =IF($CH46>0,VLOOKUP($CH46,'العاملين '!$A$3:$AR$260,36),0) -> 0 | BY46: =IF($CH46>0,VLOOKUP($CH46,'العاملين '!$A$3:$AR$260,37),0) -> 0 | BZ46: =IF($CH46>0,VLOOKUP($CH46,'العاملين '!$A$3:$AR$260,38),0) -> 0 | CA46: =IF($CH46>0,VLOOKUP($CH46,'العاملين '!$A$3:$AR$260,39),0) -> 0 | CB46: =IF($CH46>0,VLOOKUP($CH46,'العاملين '!$A$3:$AR$260,40),0) -> 0 | CC46: =IF($CH46>0,VLOOKUP($CH46,'العاملين '!$A$3:$AR$260,41),0) -> 0 | CD46: =CL46-CF46 -> 0 | CE46: =SUM(AY46:CD46) -> 0 | CF46: =FLOOR(CL46,0.05) -> 0 | CG46: =IF($CH46>0,VLOOKUP($CH46,'العاملين '!$A$3:$AR$260,2),0) -> 0 | CH46: 0 | CJ46: =IF($CH46>0,VLOOKUP($CH46,'العاملين '!$A$3:$AR$260,3),0) -> 0 | CK46: =IF($CH46>0,VLOOKUP($CH46,'العاملين '!$A$3:$AR$260,43),0) -> 0 | CL46: 0
A47: 8 | B47: =IF($CH47>0,VLOOKUP($CH47,'العاملين '!$A$3:$AR$260,8),0) -> 0 | C47: =IF($B47>0,ROUND(($B47)*15%,2)," ") ->  | D47: =IF($B47>0,ROUND(($B47)*1%,2)," ") ->  | E47: =IF($B47>0,ROUND(($B47)*2%,2)," ") ->  | F47: =IF($B47>0,ROUND(($B47)*3%,2)," ") ->  | G47: =IF($B47>0,SUM(B47:F47)," ") ->  | H47: =IF($CH47>0,VLOOKUP($CH47,'العاملين '!$A$3:$AR$260,9),0) -> 0 | I47: =IF($CH47>0,VLOOKUP($CH47,'العاملين '!$A$3:$AR$260,10),0) -> 0 | J47: =IF($CH47>0,VLOOKUP($CH47,'العاملين '!$A$3:$AR$260,11),0) -> 0 | K47: =IF($CH47>0,VLOOKUP($CH47,'العاملين '!$A$3:$AR$260,12),0) -> 0 | L47: =IF($CH47>0,VLOOKUP($CH47,'العاملين '!$A$3:$AR$260,13),0) -> 0 | M47: =IF($B47>0,SUM(H47:L47),0) -> 0 | N47: =IF($CH47>0,VLOOKUP($CH47,'العاملين '!$A$3:$AR$260,14),0) -> 0 | O47: =IF($CH47>0,VLOOKUP($CH47,'العاملين '!$A$3:$AR$260,15),0) -> 0 | P47: =IF($CH47>0,VLOOKUP($CH47,'العاملين '!$A$3:$AR$260,16),0) -> 0 | Q47: =IF($CH47>0,VLOOKUP($CH47,'العاملين '!$A$3:$AR$260,17),0) -> 0 | R47: =IF($CH47>0,VLOOKUP($CH47,'العاملين '!$A$3:$AR$260,18),0) -> 0 | S47: =IF($CH47>0,VLOOKUP($CH47,'العاملين '!$A$3:$AR$260,19),0) -> 0 | T47: =IF($CH47>0,VLOOKUP($CH47,'العاملين '!$A$3:$AR$260,20),0) -> 0 | U47: =IF($CH47>0,VLOOKUP($CH47,'العاملين '!$A$3:$AR$260,21),0) -> 0 | V47: =IF($CH47>0,VLOOKUP($CH47,'العاملين '!$A$3:$AR$260,22),0) -> 0 | W47: =IF($CH47>0,VLOOKUP($CH47,'العاملين '!$A$3:$AR$260,23),0) -> 0 | X47: =IF($CH47>0,VLOOKUP($CH47,'العاملين '!$A$3:$AR$260,24),0) -> 0 | Y47: =IF($CH47>0,VLOOKUP($CH47,'العاملين '!$A$3:$AR$260,26),0) -> 0 | AN47: =IF($CH47>0,VLOOKUP($CH47,'العاملين '!$A$3:$AR$260,25),0) -> 0 | AO47: =SUM(M47:AN47) -> 0 | AP47: 0 | AQ47: =AO47-AP47 -> 0 | AR47: =ROUND(($AP47)*15%,2) -> 0 | AS47: =ROUND(($AP47)*1%,2) -> 0 | AT47: =ROUND(($AP47)*3%,2) -> 0 | AU47: =SUM(AR47:AT47) -> 0 | AV47: =IF(B47>0,10,"") ->  | AW47: =IF($CH47>0,VLOOKUP($CH47,'العاملين '!$A$3:$AR$260,28),0) -> 0 | AX47: =SUM(AV47,AU47,AO47,G47,AW47) -> 0 | AY47: =IF($B47>0,ROUND(($B47)*15%,2)," ") ->  | AZ47: =IF($B47>0,ROUND(($B47)*1%,2)," ") ->  | BA47: =IF($B47>0,ROUND(($B47)*2%,2)," ") ->  | BC47: =IF($B47>0,ROUND(($B47)*10%,2)," ") ->  | BD47: =IF($B47>0,ROUND(($B47)*8%,2)," ") ->  | BE47: =IF($B47>0,ROUND(($B47)*3%,2)," ") ->  | BF47: =IF($B47>0,ROUND(($B47)*1%,2)," ") ->  | BG47: =AR47 -> 0 | BH47: =AS47 -> 0 | BI47: =ROUND(($AP47)*10%,2) -> 0 | BJ47: =AT47 -> 0 | BK47: =AS47 -> 0 | BL47: =IF($CJ47=1,ROUND(($B47)*7%,2),IF($CJ47=2,VLOOKUP($CH47,'العاملين '!$A$3:$AS$260,44),0)) -> 0 | BM47: =IF($CJ47=1,0.5,IF($CJ47=2,VLOOKUP($CH47,'العاملين '!$A$3:$AS$260,45),0)) -> 0 | BN47: =IF($CJ47=1,4.5,IF($CJ47=2,VLOOKUP($CH47,'العاملين '!$A$3:$AS$260,46),0)) -> 0 | BO47: =IF($CH47>0,VLOOKUP($CH47,'العاملين '!$A$3:$AR$260,29),0) -> 0 | BP47: =IF($CJ47=1,0.2,IF($CJ47=2,VLOOKUP($CH47,'العاملين '!$A$3:$AU$260,47),0)) -> 0 | BQ47: =IF($CJ47=1,0.05,IF($CJ47=2,VLOOKUP($CH47,'العاملين '!$A$3:$AU$260,47),0)) -> 0 | BR47: =IF($CH47>0,VLOOKUP($CH47,'العاملين '!$A$3:$AR$260,30),0) -> 0 | BS47: =IF($CH47>0,VLOOKUP($CH47,'العاملين '!$A$3:$AR$260,31),0) -> 0 | BU47: =IF($CH47>0,VLOOKUP($CH47,'العاملين '!$A$3:$AR$260,33),0) -> 0 | BV47: =IF($CH47>0,VLOOKUP($CH47,'العاملين '!$A$3:$AR$260,34),0) -> 0 | BW47: =IF($CH47>0,VLOOKUP($CH47,'العاملين '!$A$3:$AR$260,35),0) -> 0 | BX47: =IF($CH47>0,VLOOKUP($CH47,'العاملين '!$A$3:$AR$260,36),0) -> 0 | BY47: =IF($CH47>0,VLOOKUP($CH47,'العاملين '!$A$3:$AR$260,37),0) -> 0 | BZ47: =IF($CH47>0,VLOOKUP($CH47,'العاملين '!$A$3:$AR$260,38),0) -> 0 | CA47: =IF($CH47>0,VLOOKUP($CH47,'العاملين '!$A$3:$AR$260,39),0) -> 0 | CB47: =IF($CH47>0,VLOOKUP($CH47,'العاملين '!$A$3:$AR$260,40),0) -> 0 | CC47: =IF($CH47>0,VLOOKUP($CH47,'العاملين '!$A$3:$AR$260,41),0) -> 0 | CD47: =CL47-CF47 -> 0 | CE47: =SUM(AY47:CD47) -> 0 | CF47: =FLOOR(CL47,0.05) -> 0 | CG47: =IF($CH47>0,VLOOKUP($CH47,'العاملين '!$A$3:$AR$260,2),0) -> 0 | CH47: 0 | CJ47: =IF($CH47>0,VLOOKUP($CH47,'العاملين '!$A$3:$AR$260,3),0) -> 0 | CK47: =IF($CH47>0,VLOOKUP($CH47,'العاملين '!$A$3:$AR$260,43),0) -> 0 | CL47: 0
A48: 9 | B48: =IF($CH48>0,VLOOKUP($CH48,'العاملين '!$A$3:$AR$260,8),0) -> 0 | C48: =IF($B48>0,ROUND(($B48)*15%,2)," ") ->  | D48: =IF($B48>0,ROUND(($B48)*1%,2)," ") ->  | E48: =IF($B48>0,ROUND(($B48)*2%,2)," ") ->  | F48: =IF($B48>0,ROUND(($B48)*3%,2)," ") ->  | G48: =IF($B48>0,SUM(B48:F48)," ") ->  | H48: =IF($CH48>0,VLOOKUP($CH48,'العاملين '!$A$3:$AR$260,9),0) -> 0 | I48: =IF($CH48>0,VLOOKUP($CH48,'العاملين '!$A$3:$AR$260,10),0) -> 0 | J48: =IF($CH48>0,VLOOKUP($CH48,'العاملين '!$A$3:$AR$260,11),0) -> 0 | K48: =IF($CH48>0,VLOOKUP($CH48,'العاملين '!$A$3:$AR$260,12),0) -> 0 | L48: =IF($CH48>0,VLOOKUP($CH48,'العاملين '!$A$3:$AR$260,13),0) -> 0 | M48: =IF($B48>0,SUM(H48:L48),0) -> 0 | N48: =IF($CH48>0,VLOOKUP($CH48,'العاملين '!$A$3:$AR$260,14),0) -> 0 | O48: =IF($CH48>0,VLOOKUP($CH48,'العاملين '!$A$3:$AR$260,15),0) -> 0 | P48: =IF($CH48>0,VLOOKUP($CH48,'العاملين '!$A$3:$AR$260,16),0) -> 0 | Q48: =IF($CH48>0,VLOOKUP($CH48,'العاملين '!$A$3:$AR$260,17),0) -> 0 | R48: =IF($CH48>0,VLOOKUP($CH48,'العاملين '!$A$3:$AR$260,18),0) -> 0 | S48: =IF($CH48>0,VLOOKUP($CH48,'العاملين '!$A$3:$AR$260,19),0) -> 0 | T48: =IF($CH48>0,VLOOKUP($CH48,'العاملين '!$A$3:$AR$260,20),0) -> 0 | U48: =IF($CH48>0,VLOOKUP($CH48,'العاملين '!$A$3:$AR$260,21),0) -> 0 | V48: =IF($CH48>0,VLOOKUP($CH48,'العاملين '!$A$3:$AR$260,22),0) -> 0 | W48: =IF($CH48>0,VLOOKUP($CH48,'العاملين '!$A$3:$AR$260,23),0) -> 0 | X48: =IF($CH48>0,VLOOKUP($CH48,'العاملين '!$A$3:$AR$260,24),0) -> 0 | Y48: =IF($CH48>0,VLOOKUP($CH48,'العاملين '!$A$3:$AR$260,26),0) -> 0 | AN48: =IF($CH48>0,VLOOKUP($CH48,'العاملين '!$A$3:$AR$260,25),0) -> 0 | AO48: =SUM(M48:AN48) -> 0 | AP48: 0 | AQ48: =AO48-AP48 -> 0 | AR48: =ROUND(($AP48)*15%,2) -> 0 | AS48: =ROUND(($AP48)*1%,2) -> 0 | AT48: =ROUND(($AP48)*3%,2) -> 0 | AU48: =SUM(AR48:AT48) -> 0 | AV48: =IF(B48>0,10,"") ->  | AW48: =IF($CH48>0,VLOOKUP($CH48,'العاملين '!$A$3:$AR$260,28),0) -> 0 | AX48: =SUM(AV48,AU48,AO48,G48,AW48) -> 0 | AY48: =IF($B48>0,ROUND(($B48)*15%,2)," ") ->  | AZ48: =IF($B48>0,ROUND(($B48)*1%,2)," ") ->  | BA48: =IF($B48>0,ROUND(($B48)*2%,2)," ") ->  | BC48: =IF($B48>0,ROUND(($B48)*10%,2)," ") ->  | BD48: =IF($B48>0,ROUND(($B48)*8%,2)," ") ->  | BE48: =IF($B48>0,ROUND(($B48)*3%,2)," ") ->  | BF48: =IF($B48>0,ROUND(($B48)*1%,2)," ") ->  | BG48: =AR48 -> 0 | BH48: 0 | BI48: =ROUND(($AP48)*10%,2) -> 0 | BJ48: =AT48 -> 0 | BK48: =AS48 -> 0 | BL48: =IF($CJ48=1,ROUND(($B48)*7%,2),IF($CJ48=2,VLOOKUP($CH48,'العاملين '!$A$3:$AS$260,44),0)) -> 0 | BM48: =IF($CJ48=1,0.5,IF($CJ48=2,VLOOKUP($CH48,'العاملين '!$A$3:$AS$260,45),0)) -> 0 | BN48: =IF($CJ48=1,4.5,IF($CJ48=2,VLOOKUP($CH48,'العاملين '!$A$3:$AS$260,46),0)) -> 0 | BO48: =IF($CH48>0,VLOOKUP($CH48,'العاملين '!$A$3:$AR$260,29),0) -> 0 | BP48: =IF($CJ48=1,0.2,IF($CJ48=2,VLOOKUP($CH48,'العاملين '!$A$3:$AU$260,47),0)) -> 0 | BQ48: =IF($CJ48=1,0.05,IF($CJ48=2,VLOOKUP($CH48,'العاملين '!$A$3:$AU$260,47),0)) -> 0 | BR48: =IF($CH48>0,VLOOKUP($CH48,'العاملين '!$A$3:$AR$260,30),0) -> 0 | BS48: =IF($CH48>0,VLOOKUP($CH48,'العاملين '!$A$3:$AR$260,31),0) -> 0 | BU48: =IF($CH48>0,VLOOKUP($CH48,'العاملين '!$A$3:$AR$260,33),0) -> 0 | BV48: =IF($CH48>0,VLOOKUP($CH48,'العاملين '!$A$3:$AR$260,34),0) -> 0 | BW48: =IF($CH48>0,VLOOKUP($CH48,'العاملين '!$A$3:$AR$260,35),0) -> 0 | BX48: =IF($CH48>0,VLOOKUP($CH48,'العاملين '!$A$3:$AR$260,36),0) -> 0 | BY48: =IF($CH48>0,VLOOKUP($CH48,'العاملين '!$A$3:$AR$260,37),0) -> 0 | BZ48: =IF($CH48>0,VLOOKUP($CH48,'العاملين '!$A$3:$AR$260,38),0) -> 0 | CA48: =IF($CH48>0,VLOOKUP($CH48,'العاملين '!$A$3:$AR$260,39),0) -> 0 | CB48: =IF($CH48>0,VLOOKUP($CH48,'العاملين '!$A$3:$AR$260,40),0) -> 0 | CC48: =IF($CH48>0,VLOOKUP($CH48,'العاملين '!$A$3:$AR$260,41),0) -> 0 | CD48: =CL48-CF48 -> 0 | CE48: =SUM(AY48:CD48) -> 0 | CF48: =FLOOR(CL48,0.05) -> 0 | CG48: =IF($CH48>0,VLOOKUP($CH48,'العاملين '!$A$3:$AR$260,2),0) -> 0 | CH48: 0 | CJ48: =IF($CH48>0,VLOOKUP($CH48,'العاملين '!$A$3:$AR$260,3),0) -> 0 | CK48: =IF($CH48>0,VLOOKUP($CH48,'العاملين '!$A$3:$AR$260,43),0) -> 0 | CL48: 0
A49: 10 | B49: =IF($CH49>0,VLOOKUP($CH49,'العاملين '!$A$3:$AR$260,8),0) -> 0 | H49: =IF($CH49>0,VLOOKUP($CH49,'العاملين '!$A$3:$AR$260,9),0) -> 0 | I49: =IF($CH49>0,VLOOKUP($CH49,'العاملين '!$A$3:$AR$260,10),0) -> 0 | J49: =IF($CH49>0,VLOOKUP($CH49,'العاملين '!$A$3:$AR$260,11),0) -> 0 | K49: =IF($CH49>0,VLOOKUP($CH49,'العاملين '!$A$3:$AR$260,12),0) -> 0 | L49: =IF($CH49>0,VLOOKUP($CH49,'العاملين '!$A$3:$AR$260,13),0) -> 0 | M49: 0 | N49: =IF($CH49>0,VLOOKUP($CH49,'العاملين '!$A$3:$AR$260,14),0) -> 0 | O49: =IF($CH49>0,VLOOKUP($CH49,'العاملين '!$A$3:$AR$260,15),0) -> 0 | P49: =IF($CH49>0,VLOOKUP($CH49,'العاملين '!$A$3:$AR$260,16),0) -> 0 | Q49: =IF($CH49>0,VLOOKUP($CH49,'العاملين '!$A$3:$AR$260,17),0) -> 0 | R49: =IF($CH49>0,VLOOKUP($CH49,'العاملين '!$A$3:$AR$260,18),0) -> 0 | S49: =IF($CH49>0,VLOOKUP($CH49,'العاملين '!$A$3:$AR$260,19),0) -> 0 | T49: =IF($CH49>0,VLOOKUP($CH49,'العاملين '!$A$3:$AR$260,20),0) -> 0 | U49: =IF($CH49>0,VLOOKUP($CH49,'العاملين '!$A$3:$AR$260,21),0) -> 0 | V49: =IF($CH49>0,VLOOKUP($CH49,'العاملين '!$A$3:$AR$260,22),0) -> 0 | W49: =IF($CH49>0,VLOOKUP($CH49,'العاملين '!$A$3:$AR$260,23),0) -> 0 | X49: =IF($CH49>0,VLOOKUP($CH49,'العاملين '!$A$3:$AR$260,24),0) -> 0 | Y49: =IF($CH49>0,VLOOKUP($CH49,'العاملين '!$A$3:$AR$260,26),0) -> 0 | AN49: =IF($CH49>0,VLOOKUP($CH49,'العاملين '!$A$3:$AR$260,25),0) -> 0 | AO49: 0 | AP49: 0 | AQ49: 0 | AR49: 0 | AS49: 0 | AT49: 0 | AU49: 0 | AW49: =IF($CH49>0,VLOOKUP($CH49,'العاملين '!$A$3:$AR$260,28),0) -> 0 | AX49: 0 | BG49: 0 | BH49: 0 | BI49: 0 | BJ49: 0 | BK49: 0 | BL49: =IF($CJ49=1,ROUND(($B49)*7%,2),IF($CJ49=2,VLOOKUP($CH49,'العاملين '!$A$3:$AS$260,44),0)) -> 0 | BM49: =IF($CJ49=1,0.5,IF($CJ49=2,VLOOKUP($CH49,'العاملين '!$A$3:$AS$260,45),0)) -> 0 | BN49: =IF($CJ49=1,4.5,IF($CJ49=2,VLOOKUP($CH49,'العاملين '!$A$3:$AS$260,46),0)) -> 0 | BO49: =IF($CH49>0,VLOOKUP($CH49,'العاملين '!$A$3:$AR$260,29),0) -> 0 | BP49: =IF($CJ49=1,0.2,IF($CJ49=2,VLOOKUP($CH49,'العاملين '!$A$3:$AU$260,47),0)) -> 0 | BQ49: =IF($CJ49=1,0.05,IF($CJ49=2,VLOOKUP($CH49,'العاملين '!$A$3:$AU$260,47),0)) -> 0 | BR49: =IF($CH49>0,VLOOKUP($CH49,'العاملين '!$A$3:$AR$260,30),0) -> 0 | BS49: =IF($CH49>0,VLOOKUP($CH49,'العاملين '!$A$3:$AR$260,31),0) -> 0 | BU49: =IF($CH49>0,VLOOKUP($CH49,'العاملين '!$A$3:$AR$260,33),0) -> 0 | BV49: =IF($CH49>0,VLOOKUP($CH49,'العاملين '!$A$3:$AR$260,34),0) -> 0 | BW49: =IF($CH49>0,VLOOKUP($CH49,'العاملين '!$A$3:$AR$260,35),0) -> 0 | BX49: =IF($CH49>0,VLOOKUP($CH49,'العاملين '!$A$3:$AR$260,36),0) -> 0 | BY49: =IF($CH49>0,VLOOKUP($CH49,'العاملين '!$A$3:$AR$260,37),0) -> 0 | BZ49: =IF($CH49>0,VLOOKUP($CH49,'العاملين '!$A$3:$AR$260,38),0) -> 0 | CA49: =IF($CH49>0,VLOOKUP($CH49,'العاملين '!$A$3:$AR$260,39),0) -> 0 | CB49: =IF($CH49>0,VLOOKUP($CH49,'العاملين '!$A$3:$AR$260,40),0) -> 0 | CC49: =IF($CH49>0,VLOOKUP($CH49,'العاملين '!$A$3:$AR$260,41),0) -> 0 | CD49: 0 | CE49: 0 | CF49: 0 | CG49: =IF($CH49>0,VLOOKUP($CH49,'العاملين '!$A$3:$AR$260,2),0) -> 0 | CH49: 0 | CJ49: =IF($CH49>0,VLOOKUP($CH49,'العاملين '!$A$3:$AR$260,3),0) -> 0 | CK49: =IF($CH49>0,VLOOKUP($CH49,'العاملين '!$A$3:$AR$260,43),0) -> 0 | CL49: 0
A50: 11 | B50: =IF($CH50>0,VLOOKUP($CH50,'العاملين '!$A$3:$AR$260,8),0) -> 0 | H50: =IF($CH50>0,VLOOKUP($CH50,'العاملين '!$A$3:$AR$260,9),0) -> 0 | I50: =IF($CH50>0,VLOOKUP($CH50,'العاملين '!$A$3:$AR$260,10),0) -> 0 | J50: =IF($CH50>0,VLOOKUP($CH50,'العاملين '!$A$3:$AR$260,11),0) -> 0 | K50: =IF($CH50>0,VLOOKUP($CH50,'العاملين '!$A$3:$AR$260,12),0) -> 0 | L50: =IF($CH50>0,VLOOKUP($CH50,'العاملين '!$A$3:$AR$260,13),0) -> 0 | M50: 0 | N50: =IF($CH50>0,VLOOKUP($CH50,'العاملين '!$A$3:$AR$260,14),0) -> 0 | O50: =IF($CH50>0,VLOOKUP($CH50,'العاملين '!$A$3:$AR$260,15),0) -> 0 | P50: =IF($CH50>0,VLOOKUP($CH50,'العاملين '!$A$3:$AR$260,16),0) -> 0 | Q50: =IF($CH50>0,VLOOKUP($CH50,'العاملين '!$A$3:$AR$260,17),0) -> 0 | R50: =IF($CH50>0,VLOOKUP($CH50,'العاملين '!$A$3:$AR$260,18),0) -> 0 | S50: =IF($CH50>0,VLOOKUP($CH50,'العاملين '!$A$3:$AR$260,19),0) -> 0 | T50: =IF($CH50>0,VLOOKUP($CH50,'العاملين '!$A$3:$AR$260,20),0) -> 0 | U50: =IF($CH50>0,VLOOKUP($CH50,'العاملين '!$A$3:$AR$260,21),0) -> 0 | V50: =IF($CH50>0,VLOOKUP($CH50,'العاملين '!$A$3:$AR$260,22),0) -> 0 | W50: =IF($CH50>0,VLOOKUP($CH50,'العاملين '!$A$3:$AR$260,23),0) -> 0 | X50: =IF($CH50>0,VLOOKUP($CH50,'العاملين '!$A$3:$AR$260,24),0) -> 0 | Y50: =IF($CH50>0,VLOOKUP($CH50,'العاملين '!$A$3:$AR$260,26),0) -> 0 | AN50: =IF($CH50>0,VLOOKUP($CH50,'العاملين '!$A$3:$AR$260,25),0) -> 0 | AO50: 0 | AP50: 0 | AQ50: 0 | AR50: 0 | AS50: 0 | AT50: 0 | AU50: 0 | AW50: =IF($CH50>0,VLOOKUP($CH50,'العاملين '!$A$3:$AR$260,28),0) -> 0 | AX50: 0 | BG50: 0 | BH50: 0 | BI50: 0 | BJ50: 0 | BK50: 0 | BL50: =IF($CJ50=1,ROUND(($B50)*7%,2),IF($CJ50=2,VLOOKUP($CH50,'العاملين '!$A$3:$AS$260,44),0)) -> 0 | BM50: =IF($CJ50=1,0.5,IF($CJ50=2,VLOOKUP($CH50,'العاملين '!$A$3:$AS$260,45),0)) -> 0 | BN50: =IF($CJ50=1,4.5,IF($CJ50=2,VLOOKUP($CH50,'العاملين '!$A$3:$AS$260,46),0)) -> 0 | BO50: =IF($CH50>0,VLOOKUP($CH50,'العاملين '!$A$3:$AR$260,29),0) -> 0 | BP50: =IF($CJ50=1,0.2,IF($CJ50=2,VLOOKUP($CH50,'العاملين '!$A$3:$AU$260,47),0)) -> 0 | BQ50: =IF($CJ50=1,0.05,IF($CJ50=2,VLOOKUP($CH50,'العاملين '!$A$3:$AU$260,47),0)) -> 0 | BR50: =IF($CH50>0,VLOOKUP($CH50,'العاملين '!$A$3:$AR$260,30),0) -> 0 | BS50: =IF($CH50>0,VLOOKUP($CH50,'العاملين '!$A$3:$AR$260,31),0) -> 0 | BU50: =IF($CH50>0,VLOOKUP($CH50,'العاملين '!$A$3:$AR$260,33),0) -> 0 | BV50: =IF($CH50>0,VLOOKUP($CH50,'العاملين '!$A$3:$AR$260,34),0) -> 0 | BW50: =IF($CH50>0,VLOOKUP($CH50,'العاملين '!$A$3:$AR$260,35),0) -> 0 | BX50: =IF($CH50>0,VLOOKUP($CH50,'العاملين '!$A$3:$AR$260,36),0) -> 0 | BY50: =IF($CH50>0,VLOOKUP($CH50,'العاملين '!$A$3:$AR$260,37),0) -> 0 | BZ50: =IF($CH50>0,VLOOKUP($CH50,'العاملين '!$A$3:$AR$260,38),0) -> 0 | CA50: =IF($CH50>0,VLOOKUP($CH50,'العاملين '!$A$3:$AR$260,39),0) -> 0 | CB50: =IF($CH50>0,VLOOKUP($CH50,'العاملين '!$A$3:$AR$260,40),0) -> 0 | CC50: =IF($CH50>0,VLOOKUP($CH50,'العاملين '!$A$3:$AR$260,41),0) -> 0 | CD50: 0 | CE50: 0 | CF50: 0 | CG50: =IF($CH50>0,VLOOKUP($CH50,'العاملين '!$A$3:$AR$260,2),0) -> 0 | CH50: 0 | CJ50: =IF($CH50>0,VLOOKUP($CH50,'العاملين '!$A$3:$AR$260,3),0) -> 0 | CK50: =IF($CH50>0,VLOOKUP($CH50,'العاملين '!$A$3:$AR$260,43),0) -> 0 | CL50: 0
A51: 12 | B51: =IF($CH51>0,VLOOKUP($CH51,'العاملين '!$A$3:$AR$260,8),0) -> 0 | H51: =IF($CH51>0,VLOOKUP($CH51,'العاملين '!$A$3:$AR$260,9),0) -> 0 | I51: =IF($CH51>0,VLOOKUP($CH51,'العاملين '!$A$3:$AR$260,10),0) -> 0 | J51: =IF($CH51>0,VLOOKUP($CH51,'العاملين '!$A$3:$AR$260,11),0) -> 0 | K51: =IF($CH51>0,VLOOKUP($CH51,'العاملين '!$A$3:$AR$260,12),0) -> 0 | L51: =IF($CH51>0,VLOOKUP($CH51,'العاملين '!$A$3:$AR$260,13),0) -> 0 | M51: 0 | N51: =IF($CH51>0,VLOOKUP($CH51,'العاملين '!$A$3:$AR$260,14),0) -> 0 | O51: =IF($CH51>0,VLOOKUP($CH51,'العاملين '!$A$3:$AR$260,15),0) -> 0 | P51: =IF($CH51>0,VLOOKUP($CH51,'العاملين '!$A$3:$AR$260,16),0) -> 0 | Q51: =IF($CH51>0,VLOOKUP($CH51,'العاملين '!$A$3:$AR$260,17),0) -> 0 | R51: =IF($CH51>0,VLOOKUP($CH51,'العاملين '!$A$3:$AR$260,18),0) -> 0 | S51: =IF($CH51>0,VLOOKUP($CH51,'العاملين '!$A$3:$AR$260,19),0) -> 0 | T51: =IF($CH51>0,VLOOKUP($CH51,'العاملين '!$A$3:$AR$260,20),0) -> 0 | U51: =IF($CH51>0,VLOOKUP($CH51,'العاملين '!$A$3:$AR$260,21),0) -> 0 | V51: =IF($CH51>0,VLOOKUP($CH51,'العاملين '!$A$3:$AR$260,22),0) -> 0 | W51: =IF($CH51>0,VLOOKUP($CH51,'العاملين '!$A$3:$AR$260,23),0) -> 0 | X51: =IF($CH51>0,VLOOKUP($CH51,'العاملين '!$A$3:$AR$260,24),0) -> 0 | Y51: =IF($CH51>0,VLOOKUP($CH51,'العاملين '!$A$3:$AR$260,26),0) -> 0 | AN51: =IF($CH51>0,VLOOKUP($CH51,'العاملين '!$A$3:$AR$260,25),0) -> 0 | AO51: 0 | AP51: 0 | AQ51: 0 | AR51: 0 | AS51: 0 | AT51: 0 | AU51: 0 | AW51: =IF($CH51>0,VLOOKUP($CH51,'العاملين '!$A$3:$AR$260,28),0) -> 0 | AX51: 0 | BG51: 0 | BH51: 0 | BI51: 0 | BJ51: 0 | BK51: 0 | BL51: =IF($CJ51=1,ROUND(($B51)*7%,2),IF($CJ51=2,VLOOKUP($CH51,'العاملين '!$A$3:$AS$260,44),0)) -> 0 | BM51: =IF($CJ51=1,0.5,IF($CJ51=2,VLOOKUP($CH51,'العاملين '!$A$3:$AS$260,45),0)) -> 0 | BN51: =IF($CJ51=1,4.5,IF($CJ51=2,VLOOKUP($CH51,'العاملين '!$A$3:$AS$260,46),0)) -> 0 | BO51: =IF($CH51>0,VLOOKUP($CH51,'العاملين '!$A$3:$AR$260,29),0) -> 0 | BP51: =IF($CJ51=1,0.2,IF($CJ51=2,VLOOKUP($CH51,'العاملين '!$A$3:$AU$260,47),0)) -> 0 | BQ51: =IF($CJ51=1,0.05,IF($CJ51=2,VLOOKUP($CH51,'العاملين '!$A$3:$AU$260,47),0)) -> 0 | BR51: =IF($CH51>0,VLOOKUP($CH51,'العاملين '!$A$3:$AR$260,30),0) -> 0 | BS51: =IF($CH51>0,VLOOKUP($CH51,'العاملين '!$A$3:$AR$260,31),0) -> 0 | BU51: =IF($CH51>0,VLOOKUP($CH51,'العاملين '!$A$3:$AR$260,33),0) -> 0 | BV51: =IF($CH51>0,VLOOKUP($CH51,'العاملين '!$A$3:$AR$260,34),0) -> 0 | BW51: =IF($CH51>0,VLOOKUP($CH51,'العاملين '!$A$3:$AR$260,35),0) -> 0 | BX51: =IF($CH51>0,VLOOKUP($CH51,'العاملين '!$A$3:$AR$260,36),0) -> 0 | BY51: =IF($CH51>0,VLOOKUP($CH51,'العاملين '!$A$3:$AR$260,37),0) -> 0 | BZ51: =IF($CH51>0,VLOOKUP($CH51,'العاملين '!$A$3:$AR$260,38),0) -> 0 | CA51: =IF($CH51>0,VLOOKUP($CH51,'العاملين '!$A$3:$AR$260,39),0) -> 0 | CB51: =IF($CH51>0,VLOOKUP($CH51,'العاملين '!$A$3:$AR$260,40),0) -> 0 | CC51: =IF($CH51>0,VLOOKUP($CH51,'العاملين '!$A$3:$AR$260,41),0) -> 0 | CD51: 0 | CE51: 0 | CF51: 0 | CG51: =IF($CH51>0,VLOOKUP($CH51,'العاملين '!$A$3:$AR$260,2),0) -> 0 | CH51: 0 | CJ51: =IF($CH51>0,VLOOKUP($CH51,'العاملين '!$A$3:$AR$260,3),0) -> 0 | CK51: =IF($CH51>0,VLOOKUP($CH51,'العاملين '!$A$3:$AR$260,43),0) -> 0 | CL51: 0
A52: 13 | B52: =IF($CH52>0,VLOOKUP($CH52,'العاملين '!$A$3:$AR$260,8),0) -> 0 | H52: =IF($CH52>0,VLOOKUP($CH52,'العاملين '!$A$3:$AR$260,9),0) -> 0 | I52: =IF($CH52>0,VLOOKUP($CH52,'العاملين '!$A$3:$AR$260,10),0) -> 0 | J52: =IF($CH52>0,VLOOKUP($CH52,'العاملين '!$A$3:$AR$260,11),0) -> 0 | K52: =IF($CH52>0,VLOOKUP($CH52,'العاملين '!$A$3:$AR$260,12),0) -> 0 | L52: =IF($CH52>0,VLOOKUP($CH52,'العاملين '!$A$3:$AR$260,13),0) -> 0 | M52: 0 | N52: =IF($CH52>0,VLOOKUP($CH52,'العاملين '!$A$3:$AR$260,14),0) -> 0 | O52: =IF($CH52>0,VLOOKUP($CH52,'العاملين '!$A$3:$AR$260,15),0) -> 0 | P52: =IF($CH52>0,VLOOKUP($CH52,'العاملين '!$A$3:$AR$260,16),0) -> 0 | Q52: =IF($CH52>0,VLOOKUP($CH52,'العاملين '!$A$3:$AR$260,17),0) -> 0 | R52: =IF($CH52>0,VLOOKUP($CH52,'العاملين '!$A$3:$AR$260,18),0) -> 0 | S52: =IF($CH52>0,VLOOKUP($CH52,'العاملين '!$A$3:$AR$260,19),0) -> 0 | T52: =IF($CH52>0,VLOOKUP($CH52,'العاملين '!$A$3:$AR$260,20),0) -> 0 | U52: =IF($CH52>0,VLOOKUP($CH52,'العاملين '!$A$3:$AR$260,21),0) -> 0 | V52: =IF($CH52>0,VLOOKUP($CH52,'العاملين '!$A$3:$AR$260,22),0) -> 0 | W52: =IF($CH52>0,VLOOKUP($CH52,'العاملين '!$A$3:$AR$260,23),0) -> 0 | X52: =IF($CH52>0,VLOOKUP($CH52,'العاملين '!$A$3:$AR$260,24),0) -> 0 | Y52: =IF($CH52>0,VLOOKUP($CH52,'العاملين '!$A$3:$AR$260,26),0) -> 0 | AN52: =IF($CH52>0,VLOOKUP($CH52,'العاملين '!$A$3:$AR$260,25),0) -> 0 | AO52: 0 | AP52: 0 | AQ52: 0 | AR52: 0 | AS52: 0 | AT52: 0 | AU52: 0 | AW52: =IF($CH52>0,VLOOKUP($CH52,'العاملين '!$A$3:$AR$260,28),0) -> 0 | AX52: 0 | BG52: 0 | BH52: 0 | BI52: 0 | BJ52: 0 | BK52: 0 | BL52: =IF($CJ52=1,ROUND(($B52)*7%,2),IF($CJ52=2,VLOOKUP($CH52,'العاملين '!$A$3:$AS$260,44),0)) -> 0 | BM52: =IF($CJ52=1,0.5,IF($CJ52=2,VLOOKUP($CH52,'العاملين '!$A$3:$AS$260,45),0)) -> 0 | BN52: =IF($CJ52=1,4.5,IF($CJ52=2,VLOOKUP($CH52,'العاملين '!$A$3:$AS$260,46),0)) -> 0 | BO52: =IF($CH52>0,VLOOKUP($CH52,'العاملين '!$A$3:$AR$260,29),0) -> 0 | BP52: =IF($CJ52=1,0.2,IF($CJ52=2,VLOOKUP($CH52,'العاملين '!$A$3:$AU$260,47),0)) -> 0 | BQ52: =IF($CJ52=1,0.05,IF($CJ52=2,VLOOKUP($CH52,'العاملين '!$A$3:$AU$260,47),0)) -> 0 | BR52: =IF($CH52>0,VLOOKUP($CH52,'العاملين '!$A$3:$AR$260,30),0) -> 0 | BS52: =IF($CH52>0,VLOOKUP($CH52,'العاملين '!$A$3:$AR$260,31),0) -> 0 | BU52: =IF($CH52>0,VLOOKUP($CH52,'العاملين '!$A$3:$AR$260,33),0) -> 0 | BV52: =IF($CH52>0,VLOOKUP($CH52,'العاملين '!$A$3:$AR$260,34),0) -> 0 | BW52: =IF($CH52>0,VLOOKUP($CH52,'العاملين '!$A$3:$AR$260,35),0) -> 0 | BX52: =IF($CH52>0,VLOOKUP($CH52,'العاملين '!$A$3:$AR$260,36),0) -> 0 | BY52: =IF($CH52>0,VLOOKUP($CH52,'العاملين '!$A$3:$AR$260,37),0) -> 0 | BZ52: =IF($CH52>0,VLOOKUP($CH52,'العاملين '!$A$3:$AR$260,38),0) -> 0 | CA52: =IF($CH52>0,VLOOKUP($CH52,'العاملين '!$A$3:$AR$260,39),0) -> 0 | CB52: =IF($CH52>0,VLOOKUP($CH52,'العاملين '!$A$3:$AR$260,40),0) -> 0 | CC52: =IF($CH52>0,VLOOKUP($CH52,'العاملين '!$A$3:$AR$260,41),0) -> 0 | CD52: 0 | CE52: 0 | CF52: 0 | CG52: =IF($CH52>0,VLOOKUP($CH52,'العاملين '!$A$3:$AR$260,2),0) -> 0 | CH52: 0 | CJ52: =IF($CH52>0,VLOOKUP($CH52,'العاملين '!$A$3:$AR$260,3),0) -> 0 | CK52: =IF($CH52>0,VLOOKUP($CH52,'العاملين '!$A$3:$AR$260,43),0) -> 0 | CL52: 0
A53: 14 | B53: =IF($CH53>0,VLOOKUP($CH53,'العاملين '!$A$3:$AR$260,8),0) -> 0 | H53: =IF($CH53>0,VLOOKUP($CH53,'العاملين '!$A$3:$AR$260,9),0) -> 0 | I53: =IF($CH53>0,VLOOKUP($CH53,'العاملين '!$A$3:$AR$260,10),0) -> 0 | J53: =IF($CH53>0,VLOOKUP($CH53,'العاملين '!$A$3:$AR$260,11),0) -> 0 | K53: =IF($CH53>0,VLOOKUP($CH53,'العاملين '!$A$3:$AR$260,12),0) -> 0 | L53: =IF($CH53>0,VLOOKUP($CH53,'العاملين '!$A$3:$AR$260,13),0) -> 0 | M53: 0 | N53: =IF($CH53>0,VLOOKUP($CH53,'العاملين '!$A$3:$AR$260,14),0) -> 0 | O53: =IF($CH53>0,VLOOKUP($CH53,'العاملين '!$A$3:$AR$260,15),0) -> 0 | P53: =IF($CH53>0,VLOOKUP($CH53,'العاملين '!$A$3:$AR$260,16),0) -> 0 | Q53: =IF($CH53>0,VLOOKUP($CH53,'العاملين '!$A$3:$AR$260,17),0) -> 0 | R53: =IF($CH53>0,VLOOKUP($CH53,'العاملين '!$A$3:$AR$260,18),0) -> 0 | S53: =IF($CH53>0,VLOOKUP($CH53,'العاملين '!$A$3:$AR$260,19),0) -> 0 | T53: =IF($CH53>0,VLOOKUP($CH53,'العاملين '!$A$3:$AR$260,20),0) -> 0 | U53: =IF($CH53>0,VLOOKUP($CH53,'العاملين '!$A$3:$AR$260,21),0) -> 0 | V53: =IF($CH53>0,VLOOKUP($CH53,'العاملين '!$A$3:$AR$260,22),0) -> 0 | W53: =IF($CH53>0,VLOOKUP($CH53,'العاملين '!$A$3:$AR$260,23),0) -> 0 | X53: =IF($CH53>0,VLOOKUP($CH53,'العاملين '!$A$3:$AR$260,24),0) -> 0 | Y53: =IF($CH53>0,VLOOKUP($CH53,'العاملين '!$A$3:$AR$260,26),0) -> 0 | AN53: =IF($CH53>0,VLOOKUP($CH53,'العاملين '!$A$3:$AR$260,25),0) -> 0 | AO53: 0 | AP53: 0 | AQ53: 0 | AR53: 0 | AS53: 0 | AT53: 0 | AU53: 0 | AW53: =IF($CH53>0,VLOOKUP($CH53,'العاملين '!$A$3:$AR$260,28),0) -> 0 | AX53: 0 | BG53: 0 | BH53: 0 | BI53: 0 | BJ53: 0 | BK53: 0 | BL53: =IF($CJ53=1,ROUND(($B53)*7%,2),IF($CJ53=2,VLOOKUP($CH53,'العاملين '!$A$3:$AS$260,44),0)) -> 0 | BM53: =IF($CJ53=1,0.5,IF($CJ53=2,VLOOKUP($CH53,'العاملين '!$A$3:$AS$260,45),0)) -> 0 | BN53: =IF($CJ53=1,4.5,IF($CJ53=2,VLOOKUP($CH53,'العاملين '!$A$3:$AS$260,46),0)) -> 0 | BO53: =IF($CH53>0,VLOOKUP($CH53,'العاملين '!$A$3:$AR$260,29),0) -> 0 | BP53: =IF($CJ53=1,0.2,IF($CJ53=2,VLOOKUP($CH53,'العاملين '!$A$3:$AU$260,47),0)) -> 0 | BQ53: =IF($CJ53=1,0.05,IF($CJ53=2,VLOOKUP($CH53,'العاملين '!$A$3:$AU$260,47),0)) -> 0 | BR53: =IF($CH53>0,VLOOKUP($CH53,'العاملين '!$A$3:$AR$260,30),0) -> 0 | BS53: =IF($CH53>0,VLOOKUP($CH53,'العاملين '!$A$3:$AR$260,31),0) -> 0 | BU53: =IF($CH53>0,VLOOKUP($CH53,'العاملين '!$A$3:$AR$260,33),0) -> 0 | BV53: =IF($CH53>0,VLOOKUP($CH53,'العاملين '!$A$3:$AR$260,34),0) -> 0 | BW53: =IF($CH53>0,VLOOKUP($CH53,'العاملين '!$A$3:$AR$260,35),0) -> 0 | BX53: =IF($CH53>0,VLOOKUP($CH53,'العاملين '!$A$3:$AR$260,36),0) -> 0 | BY53: =IF($CH53>0,VLOOKUP($CH53,'العاملين '!$A$3:$AR$260,37),0) -> 0 | BZ53: =IF($CH53>0,VLOOKUP($CH53,'العاملين '!$A$3:$AR$260,38),0) -> 0 | CA53: =IF($CH53>0,VLOOKUP($CH53,'العاملين '!$A$3:$AR$260,39),0) -> 0 | CB53: =IF($CH53>0,VLOOKUP($CH53,'العاملين '!$A$3:$AR$260,40),0) -> 0 | CC53: =IF($CH53>0,VLOOKUP($CH53,'العاملين '!$A$3:$AR$260,41),0) -> 0 | CD53: 0 | CE53: 0 | CF53: 0 | CG53: =IF($CH53>0,VLOOKUP($CH53,'العاملين '!$A$3:$AR$260,2),0) -> 0 | CH53: 0 | CJ53: =IF($CH53>0,VLOOKUP($CH53,'العاملين '!$A$3:$AR$260,3),0) -> 0 | CK53: =IF($CH53>0,VLOOKUP($CH53,'العاملين '!$A$3:$AR$260,43),0) -> 0 | CL53: 0
A54: 15 | B54: =IF($CH54>0,VLOOKUP($CH54,'العاملين '!$A$3:$AR$260,8),0) -> 0 | H54: =IF($CH54>0,VLOOKUP($CH54,'العاملين '!$A$3:$AR$260,9),0) -> 0 | I54: =IF($CH54>0,VLOOKUP($CH54,'العاملين '!$A$3:$AR$260,10),0) -> 0 | J54: =IF($CH54>0,VLOOKUP($CH54,'العاملين '!$A$3:$AR$260,11),0) -> 0 | K54: =IF($CH54>0,VLOOKUP($CH54,'العاملين '!$A$3:$AR$260,12),0) -> 0 | L54: =IF($CH54>0,VLOOKUP($CH54,'العاملين '!$A$3:$AR$260,13),0) -> 0 | M54: 0 | N54: =IF($CH54>0,VLOOKUP($CH54,'العاملين '!$A$3:$AR$260,14),0) -> 0 | O54: =IF($CH54>0,VLOOKUP($CH54,'العاملين '!$A$3:$AR$260,15),0) -> 0 | P54: =IF($CH54>0,VLOOKUP($CH54,'العاملين '!$A$3:$AR$260,16),0) -> 0 | Q54: =IF($CH54>0,VLOOKUP($CH54,'العاملين '!$A$3:$AR$260,17),0) -> 0 | R54: =IF($CH54>0,VLOOKUP($CH54,'العاملين '!$A$3:$AR$260,18),0) -> 0 | S54: =IF($CH54>0,VLOOKUP($CH54,'العاملين '!$A$3:$AR$260,19),0) -> 0 | T54: =IF($CH54>0,VLOOKUP($CH54,'العاملين '!$A$3:$AR$260,20),0) -> 0 | U54: =IF($CH54>0,VLOOKUP($CH54,'العاملين '!$A$3:$AR$260,21),0) -> 0 | V54: =IF($CH54>0,VLOOKUP($CH54,'العاملين '!$A$3:$AR$260,22),0) -> 0 | W54: =IF($CH54>0,VLOOKUP($CH54,'العاملين '!$A$3:$AR$260,23),0) -> 0 | X54: =IF($CH54>0,VLOOKUP($CH54,'العاملين '!$A$3:$AR$260,24),0) -> 0 | Y54: =IF($CH54>0,VLOOKUP($CH54,'العاملين '!$A$3:$AR$260,26),0) -> 0 | AN54: =IF($CH54>0,VLOOKUP($CH54,'العاملين '!$A$3:$AR$260,25),0) -> 0 | AO54: 0 | AP54: 0 | AQ54: 0 | AR54: 0 | AS54: 0 | AT54: 0 | AU54: 0 | AW54: =IF($CH54>0,VLOOKUP($CH54,'العاملين '!$A$3:$AR$260,28),0) -> 0 | AX54: 0 | BG54: 0 | BH54: 0 | BI54: 0 | BJ54: 0 | BK54: 0 | BL54: =IF($CJ54=1,ROUND(($B54)*7%,2),IF($CJ54=2,VLOOKUP($CH54,'العاملين '!$A$3:$AS$260,44),0)) -> 0 | BM54: =IF($CJ54=1,0.5,IF($CJ54=2,VLOOKUP($CH54,'العاملين '!$A$3:$AS$260,45),0)) -> 0 | BN54: =IF($CJ54=1,4.5,IF($CJ54=2,VLOOKUP($CH54,'العاملين '!$A$3:$AS$260,46),0)) -> 0 | BO54: =IF($CH54>0,VLOOKUP($CH54,'العاملين '!$A$3:$AR$260,29),0) -> 0 | BP54: =IF($CJ54=1,0.2,IF($CJ54=2,VLOOKUP($CH54,'العاملين '!$A$3:$AU$260,47),0)) -> 0 | BQ54: =IF($CJ54=1,0.05,IF($CJ54=2,VLOOKUP($CH54,'العاملين '!$A$3:$AU$260,47),0)) -> 0 | BR54: =IF($CH54>0,VLOOKUP($CH54,'العاملين '!$A$3:$AR$260,30),0) -> 0 | BS54: =IF($CH54>0,VLOOKUP($CH54,'العاملين '!$A$3:$AR$260,31),0) -> 0 | BU54: =IF($CH54>0,VLOOKUP($CH54,'العاملين '!$A$3:$AR$260,33),0) -> 0 | BV54: =IF($CH54>0,VLOOKUP($CH54,'العاملين '!$A$3:$AR$260,34),0) -> 0 | BW54: =IF($CH54>0,VLOOKUP($CH54,'العاملين '!$A$3:$AR$260,35),0) -> 0 | BX54: =IF($CH54>0,VLOOKUP($CH54,'العاملين '!$A$3:$AR$260,36),0) -> 0 | BY54: =IF($CH54>0,VLOOKUP($CH54,'العاملين '!$A$3:$AR$260,37),0) -> 0 | BZ54: =IF($CH54>0,VLOOKUP($CH54,'العاملين '!$A$3:$AR$260,38),0) -> 0 | CA54: =IF($CH54>0,VLOOKUP($CH54,'العاملين '!$A$3:$AR$260,39),0) -> 0 | CB54: =IF($CH54>0,VLOOKUP($CH54,'العاملين '!$A$3:$AR$260,40),0) -> 0 | CC54: =IF($CH54>0,VLOOKUP($CH54,'العاملين '!$A$3:$AR$260,41),0) -> 0 | CD54: 0 | CE54: 0 | CF54: 0 | CG54: =IF($CH54>0,VLOOKUP($CH54,'العاملين '!$A$3:$AR$260,2),0) -> 0 | CH54: 0 | CJ54: =IF($CH54>0,VLOOKUP($CH54,'العاملين '!$A$3:$AR$260,3),0) -> 0 | CK54: =IF($CH54>0,VLOOKUP($CH54,'العاملين '!$A$3:$AR$260,43),0) -> 0 | CL54: 0
A55: 16 | B55: =IF($CH55>0,VLOOKUP($CH55,'العاملين '!$A$3:$AR$260,8),0) -> 0 | H55: =IF($CH55>0,VLOOKUP($CH55,'العاملين '!$A$3:$AR$260,9),0) -> 0 | I55: =IF($CH55>0,VLOOKUP($CH55,'العاملين '!$A$3:$AR$260,10),0) -> 0 | J55: =IF($CH55>0,VLOOKUP($CH55,'العاملين '!$A$3:$AR$260,11),0) -> 0 | K55: =IF($CH55>0,VLOOKUP($CH55,'العاملين '!$A$3:$AR$260,12),0) -> 0 | L55: =IF($CH55>0,VLOOKUP($CH55,'العاملين '!$A$3:$AR$260,13),0) -> 0 | M55: 0 | N55: =IF($CH55>0,VLOOKUP($CH55,'العاملين '!$A$3:$AR$260,14),0) -> 0 | O55: =IF($CH55>0,VLOOKUP($CH55,'العاملين '!$A$3:$AR$260,15),0) -> 0 | P55: =IF($CH55>0,VLOOKUP($CH55,'العاملين '!$A$3:$AR$260,16),0) -> 0 | Q55: =IF($CH55>0,VLOOKUP($CH55,'العاملين '!$A$3:$AR$260,17),0) -> 0 | R55: =IF($CH55>0,VLOOKUP($CH55,'العاملين '!$A$3:$AR$260,18),0) -> 0 | S55: =IF($CH55>0,VLOOKUP($CH55,'العاملين '!$A$3:$AR$260,19),0) -> 0 | T55: =IF($CH55>0,VLOOKUP($CH55,'العاملين '!$A$3:$AR$260,20),0) -> 0 | U55: =IF($CH55>0,VLOOKUP($CH55,'العاملين '!$A$3:$AR$260,21),0) -> 0 | V55: =IF($CH55>0,VLOOKUP($CH55,'العاملين '!$A$3:$AR$260,22),0) -> 0 | W55: =IF($CH55>0,VLOOKUP($CH55,'العاملين '!$A$3:$AR$260,23),0) -> 0 | X55: =IF($CH55>0,VLOOKUP($CH55,'العاملين '!$A$3:$AR$260,24),0) -> 0 | Y55: =IF($CH55>0,VLOOKUP($CH55,'العاملين '!$A$3:$AR$260,26),0) -> 0 | AN55: =IF($CH55>0,VLOOKUP($CH55,'العاملين '!$A$3:$AR$260,25),0) -> 0 | AO55: 0 | AP55: 0 | AQ55: 0 | AR55: 0 | AS55: 0 | AT55: 0 | AU55: 0 | AW55: =IF($CH55>0,VLOOKUP($CH55,'العاملين '!$A$3:$AR$260,28),0) -> 0 | AX55: 0 | BG55: 0 | BH55: 0 | BI55: 0 | BJ55: 0 | BK55: 0 | BL55: =IF($CJ55=1,ROUND(($B55)*7%,2),IF($CJ55=2,VLOOKUP($CH55,'العاملين '!$A$3:$AS$260,44),0)) -> 0 | BM55: =IF($CJ55=1,0.5,IF($CJ55=2,VLOOKUP($CH55,'العاملين '!$A$3:$AS$260,45),0)) -> 0 | BN55: =IF($CJ55=1,4.5,IF($CJ55=2,VLOOKUP($CH55,'العاملين '!$A$3:$AS$260,46),0)) -> 0 | BO55: =IF($CH55>0,VLOOKUP($CH55,'العاملين '!$A$3:$AR$260,29),0) -> 0 | BP55: =IF($CJ55=1,0.2,IF($CJ55=2,VLOOKUP($CH55,'العاملين '!$A$3:$AU$260,47),0)) -> 0 | BQ55: =IF($CJ55=1,0.05,IF($CJ55=2,VLOOKUP($CH55,'العاملين '!$A$3:$AU$260,47),0)) -> 0 | BR55: =IF($CH55>0,VLOOKUP($CH55,'العاملين '!$A$3:$AR$260,30),0) -> 0 | BS55: =IF($CH55>0,VLOOKUP($CH55,'العاملين '!$A$3:$AR$260,31),0) -> 0 | BU55: =IF($CH55>0,VLOOKUP($CH55,'العاملين '!$A$3:$AR$260,33),0) -> 0 | BV55: =IF($CH55>0,VLOOKUP($CH55,'العاملين '!$A$3:$AR$260,34),0) -> 0 | BW55: =IF($CH55>0,VLOOKUP($CH55,'العاملين '!$A$3:$AR$260,35),0) -> 0 | BX55: =IF($CH55>0,VLOOKUP($CH55,'العاملين '!$A$3:$AR$260,36),0) -> 0 | BY55: =IF($CH55>0,VLOOKUP($CH55,'العاملين '!$A$3:$AR$260,37),0) -> 0 | BZ55: =IF($CH55>0,VLOOKUP($CH55,'العاملين '!$A$3:$AR$260,38),0) -> 0 | CA55: =IF($CH55>0,VLOOKUP($CH55,'العاملين '!$A$3:$AR$260,39),0) -> 0 | CB55: =IF($CH55>0,VLOOKUP($CH55,'العاملين '!$A$3:$AR$260,40),0) -> 0 | CC55: =IF($CH55>0,VLOOKUP($CH55,'العاملين '!$A$3:$AR$260,41),0) -> 0 | CD55: 0 | CE55: 0 | CF55: 0 | CG55: =IF($CH55>0,VLOOKUP($CH55,'العاملين '!$A$3:$AR$260,2),0) -> 0 | CH55: 0 | CJ55: =IF($CH55>0,VLOOKUP($CH55,'العاملين '!$A$3:$AR$260,3),0) -> 0 | CK55: =IF($CH55>0,VLOOKUP($CH55,'العاملين '!$A$3:$AR$260,43),0) -> 0 | CL55: 0
A56: 17 | B56: =IF($CH56>0,VLOOKUP($CH56,'العاملين '!$A$3:$AR$260,8),0) -> 0 | H56: =IF($CH56>0,VLOOKUP($CH56,'العاملين '!$A$3:$AR$260,9),0) -> 0 | I56: =IF($CH56>0,VLOOKUP($CH56,'العاملين '!$A$3:$AR$260,10),0) -> 0 | J56: =IF($CH56>0,VLOOKUP($CH56,'العاملين '!$A$3:$AR$260,11),0) -> 0 | K56: =IF($CH56>0,VLOOKUP($CH56,'العاملين '!$A$3:$AR$260,12),0) -> 0 | L56: =IF($CH56>0,VLOOKUP($CH56,'العاملين '!$A$3:$AR$260,13),0) -> 0 | M56: 0 | N56: =IF($CH56>0,VLOOKUP($CH56,'العاملين '!$A$3:$AR$260,14),0) -> 0 | O56: =IF($CH56>0,VLOOKUP($CH56,'العاملين '!$A$3:$AR$260,15),0) -> 0 | P56: =IF($CH56>0,VLOOKUP($CH56,'العاملين '!$A$3:$AR$260,16),0) -> 0 | Q56: =IF($CH56>0,VLOOKUP($CH56,'العاملين '!$A$3:$AR$260,17),0) -> 0 | R56: =IF($CH56>0,VLOOKUP($CH56,'العاملين '!$A$3:$AR$260,18),0) -> 0 | S56: =IF($CH56>0,VLOOKUP($CH56,'العاملين '!$A$3:$AR$260,19),0) -> 0 | T56: =IF($CH56>0,VLOOKUP($CH56,'العاملين '!$A$3:$AR$260,20),0) -> 0 | U56: =IF($CH56>0,VLOOKUP($CH56,'العاملين '!$A$3:$AR$260,21),0) -> 0 | V56: =IF($CH56>0,VLOOKUP($CH56,'العاملين '!$A$3:$AR$260,22),0) -> 0 | W56: =IF($CH56>0,VLOOKUP($CH56,'العاملين '!$A$3:$AR$260,23),0) -> 0 | X56: =IF($CH56>0,VLOOKUP($CH56,'العاملين '!$A$3:$AR$260,24),0) -> 0 | Y56: =IF($CH56>0,VLOOKUP($CH56,'العاملين '!$A$3:$AR$260,26),0) -> 0 | AN56: =IF($CH56>0,VLOOKUP($CH56,'العاملين '!$A$3:$AR$260,25),0) -> 0 | AO56: 0 | AP56: 0 | AQ56: 0 | AR56: 0 | AS56: 0 | AT56: 0 | AU56: 0 | AW56: =IF($CH56>0,VLOOKUP($CH56,'العاملين '!$A$3:$AR$260,28),0) -> 0 | AX56: 0 | BG56: 0 | BH56: 0 | BI56: 0 | BJ56: 0 | BK56: 0 | BL56: =IF($CJ56=1,ROUND(($B56)*7%,2),IF($CJ56=2,VLOOKUP($CH56,'العاملين '!$A$3:$AS$260,44),0)) -> 0 | BM56: =IF($CJ56=1,0.5,IF($CJ56=2,VLOOKUP($CH56,'العاملين '!$A$3:$AS$260,45),0)) -> 0 | BN56: =IF($CJ56=1,4.5,IF($CJ56=2,VLOOKUP($CH56,'العاملين '!$A$3:$AS$260,46),0)) -> 0 | BO56: =IF($CH56>0,VLOOKUP($CH56,'العاملين '!$A$3:$AR$260,29),0) -> 0 | BP56: =IF($CJ56=1,0.2,IF($CJ56=2,VLOOKUP($CH56,'العاملين '!$A$3:$AU$260,47),0)) -> 0 | BQ56: =IF($CJ56=1,0.05,IF($CJ56=2,VLOOKUP($CH56,'العاملين '!$A$3:$AU$260,47),0)) -> 0 | BR56: =IF($CH56>0,VLOOKUP($CH56,'العاملين '!$A$3:$AR$260,30),0) -> 0 | BS56: =IF($CH56>0,VLOOKUP($CH56,'العاملين '!$A$3:$AR$260,31),0) -> 0 | BU56: =IF($CH56>0,VLOOKUP($CH56,'العاملين '!$A$3:$AR$260,33),0) -> 0 | BV56: =IF($CH56>0,VLOOKUP($CH56,'العاملين '!$A$3:$AR$260,34),0) -> 0 | BW56: =IF($CH56>0,VLOOKUP($CH56,'العاملين '!$A$3:$AR$260,35),0) -> 0 | BX56: =IF($CH56>0,VLOOKUP($CH56,'العاملين '!$A$3:$AR$260,36),0) -> 0 | BY56: =IF($CH56>0,VLOOKUP($CH56,'العاملين '!$A$3:$AR$260,37),0) -> 0 | BZ56: =IF($CH56>0,VLOOKUP($CH56,'العاملين '!$A$3:$AR$260,38),0) -> 0 | CA56: =IF($CH56>0,VLOOKUP($CH56,'العاملين '!$A$3:$AR$260,39),0) -> 0 | CB56: =IF($CH56>0,VLOOKUP($CH56,'العاملين '!$A$3:$AR$260,40),0) -> 0 | CC56: =IF($CH56>0,VLOOKUP($CH56,'العاملين '!$A$3:$AR$260,41),0) -> 0 | CD56: 0 | CE56: 0 | CF56: 0 | CG56: =IF($CH56>0,VLOOKUP($CH56,'العاملين '!$A$3:$AR$260,2),0) -> 0 | CH56: 0 | CJ56: =IF($CH56>0,VLOOKUP($CH56,'العاملين '!$A$3:$AR$260,3),0) -> 0 | CK56: =IF($CH56>0,VLOOKUP($CH56,'العاملين '!$A$3:$AR$260,43),0) -> 0 | CL56: 0
A57: 18 | B57: =IF($CH57>0,VLOOKUP($CH57,'العاملين '!$A$3:$AR$260,8),0) -> 0 | H57: =IF($CH57>0,VLOOKUP($CH57,'العاملين '!$A$3:$AR$260,9),0) -> 0 | I57: =IF($CH57>0,VLOOKUP($CH57,'العاملين '!$A$3:$AR$260,10),0) -> 0 | J57: =IF($CH57>0,VLOOKUP($CH57,'العاملين '!$A$3:$AR$260,11),0) -> 0 | K57: =IF($CH57>0,VLOOKUP($CH57,'العاملين '!$A$3:$AR$260,12),0) -> 0 | L57: =IF($CH57>0,VLOOKUP($CH57,'العاملين '!$A$3:$AR$260,13),0) -> 0 | M57: 0 | N57: =IF($CH57>0,VLOOKUP($CH57,'العاملين '!$A$3:$AR$260,14),0) -> 0 | O57: =IF($CH57>0,VLOOKUP($CH57,'العاملين '!$A$3:$AR$260,15),0) -> 0 | P57: =IF($CH57>0,VLOOKUP($CH57,'العاملين '!$A$3:$AR$260,16),0) -> 0 | Q57: =IF($CH57>0,VLOOKUP($CH57,'العاملين '!$A$3:$AR$260,17),0) -> 0 | R57: =IF($CH57>0,VLOOKUP($CH57,'العاملين '!$A$3:$AR$260,18),0) -> 0 | S57: =IF($CH57>0,VLOOKUP($CH57,'العاملين '!$A$3:$AR$260,19),0) -> 0 | T57: =IF($CH57>0,VLOOKUP($CH57,'العاملين '!$A$3:$AR$260,20),0) -> 0 | U57: =IF($CH57>0,VLOOKUP($CH57,'العاملين '!$A$3:$AR$260,21),0) -> 0 | V57: =IF($CH57>0,VLOOKUP($CH57,'العاملين '!$A$3:$AR$260,22),0) -> 0 | W57: =IF($CH57>0,VLOOKUP($CH57,'العاملين '!$A$3:$AR$260,23),0) -> 0 | X57: =IF($CH57>0,VLOOKUP($CH57,'العاملين '!$A$3:$AR$260,24),0) -> 0 | Y57: =IF($CH57>0,VLOOKUP($CH57,'العاملين '!$A$3:$AR$260,26),0) -> 0 | AN57: =IF($CH57>0,VLOOKUP($CH57,'العاملين '!$A$3:$AR$260,25),0) -> 0 | AO57: 0 | AP57: 0 | AQ57: 0 | AR57: 0 | AS57: 0 | AT57: 0 | AU57: 0 | AW57: =IF($CH57>0,VLOOKUP($CH57,'العاملين '!$A$3:$AR$260,28),0) -> 0 | AX57: 0 | BG57: 0 | BH57: 0 | BI57: 0 | BJ57: 0 | BK57: 0 | BL57: =IF($CJ57=1,ROUND(($B57)*7%,2),IF($CJ57=2,VLOOKUP($CH57,'العاملين '!$A$3:$AS$260,44),0)) -> 0 | BM57: =IF($CJ57=1,0.5,IF($CJ57=2,VLOOKUP($CH57,'العاملين '!$A$3:$AS$260,45),0)) -> 0 | BN57: =IF($CJ57=1,4.5,IF($CJ57=2,VLOOKUP($CH57,'العاملين '!$A$3:$AS$260,46),0)) -> 0 | BO57: =IF($CH57>0,VLOOKUP($CH57,'العاملين '!$A$3:$AR$260,29),0) -> 0 | BP57: =IF($CJ57=1,0.2,IF($CJ57=2,VLOOKUP($CH57,'العاملين '!$A$3:$AU$260,47),0)) -> 0 | BQ57: =IF($CJ57=1,0.05,IF($CJ57=2,VLOOKUP($CH57,'العاملين '!$A$3:$AU$260,47),0)) -> 0 | BR57: =IF($CH57>0,VLOOKUP($CH57,'العاملين '!$A$3:$AR$260,30),0) -> 0 | BS57: =IF($CH57>0,VLOOKUP($CH57,'العاملين '!$A$3:$AR$260,31),0) -> 0 | BU57: =IF($CH57>0,VLOOKUP($CH57,'العاملين '!$A$3:$AR$260,33),0) -> 0 | BV57: =IF($CH57>0,VLOOKUP($CH57,'العاملين '!$A$3:$AR$260,34),0) -> 0 | BW57: =IF($CH57>0,VLOOKUP($CH57,'العاملين '!$A$3:$AR$260,35),0) -> 0 | BX57: =IF($CH57>0,VLOOKUP($CH57,'العاملين '!$A$3:$AR$260,36),0) -> 0 | BY57: =IF($CH57>0,VLOOKUP($CH57,'العاملين '!$A$3:$AR$260,37),0) -> 0 | BZ57: =IF($CH57>0,VLOOKUP($CH57,'العاملين '!$A$3:$AR$260,38),0) -> 0 | CA57: =IF($CH57>0,VLOOKUP($CH57,'العاملين '!$A$3:$AR$260,39),0) -> 0 | CB57: =IF($CH57>0,VLOOKUP($CH57,'العاملين '!$A$3:$AR$260,40),0) -> 0 | CC57: =IF($CH57>0,VLOOKUP($CH57,'العاملين '!$A$3:$AR$260,41),0) -> 0 | CD57: 0 | CE57: 0 | CF57: 0 | CG57: =IF($CH57>0,VLOOKUP($CH57,'العاملين '!$A$3:$AR$260,2),0) -> 0 | CH57: 0 | CJ57: =IF($CH57>0,VLOOKUP($CH57,'العاملين '!$A$3:$AR$260,3),0) -> 0 | CK57: =IF($CH57>0,VLOOKUP($CH57,'العاملين '!$A$3:$AR$260,43),0) -> 0 | CL57: 0
A58: 19 | B58: =IF($CH58>0,VLOOKUP($CH58,'العاملين '!$A$3:$AR$260,8),0) -> 0 | H58: =IF($CH58>0,VLOOKUP($CH58,'العاملين '!$A$3:$AR$260,9),0) -> 0 | I58: =IF($CH58>0,VLOOKUP($CH58,'العاملين '!$A$3:$AR$260,10),0) -> 0 | J58: =IF($CH58>0,VLOOKUP($CH58,'العاملين '!$A$3:$AR$260,11),0) -> 0 | K58: =IF($CH58>0,VLOOKUP($CH58,'العاملين '!$A$3:$AR$260,12),0) -> 0 | L58: =IF($CH58>0,VLOOKUP($CH58,'العاملين '!$A$3:$AR$260,13),0) -> 0 | M58: 0 | N58: =IF($CH58>0,VLOOKUP($CH58,'العاملين '!$A$3:$AR$260,14),0) -> 0 | O58: =IF($CH58>0,VLOOKUP($CH58,'العاملين '!$A$3:$AR$260,15),0) -> 0 | P58: =IF($CH58>0,VLOOKUP($CH58,'العاملين '!$A$3:$AR$260,16),0) -> 0 | Q58: =IF($CH58>0,VLOOKUP($CH58,'العاملين '!$A$3:$AR$260,17),0) -> 0 | R58: =IF($CH58>0,VLOOKUP($CH58,'العاملين '!$A$3:$AR$260,18),0) -> 0 | S58: =IF($CH58>0,VLOOKUP($CH58,'العاملين '!$A$3:$AR$260,19),0) -> 0 | T58: =IF($CH58>0,VLOOKUP($CH58,'العاملين '!$A$3:$AR$260,20),0) -> 0 | U58: =IF($CH58>0,VLOOKUP($CH58,'العاملين '!$A$3:$AR$260,21),0) -> 0 | V58: =IF($CH58>0,VLOOKUP($CH58,'العاملين '!$A$3:$AR$260,22),0) -> 0 | W58: =IF($CH58>0,VLOOKUP($CH58,'العاملين '!$A$3:$AR$260,23),0) -> 0 | X58: =IF($CH58>0,VLOOKUP($CH58,'العاملين '!$A$3:$AR$260,24),0) -> 0 | Y58: =IF($CH58>0,VLOOKUP($CH58,'العاملين '!$A$3:$AR$260,26),0) -> 0 | AN58: =IF($CH58>0,VLOOKUP($CH58,'العاملين '!$A$3:$AR$260,25),0) -> 0 | AO58: 0 | AP58: 0 | AQ58: 0 | AR58: 0 | AS58: 0 | AT58: 0 | AU58: 0 | AW58: =IF($CH58>0,VLOOKUP($CH58,'العاملين '!$A$3:$AR$260,28),0) -> 0 | AX58: 0 | BG58: 0 | BH58: 0 | BI58: 0 | BJ58: 0 | BK58: 0 | BL58: =IF($CJ58=1,ROUND(($B58)*7%,2),IF($CJ58=2,VLOOKUP($CH58,'العاملين '!$A$3:$AS$260,44),0)) -> 0 | BM58: =IF($CJ58=1,0.5,IF($CJ58=2,VLOOKUP($CH58,'العاملين '!$A$3:$AS$260,45),0)) -> 0 | BN58: =IF($CJ58=1,4.5,IF($CJ58=2,VLOOKUP($CH58,'العاملين '!$A$3:$AS$260,46),0)) -> 0 | BO58: =IF($CH58>0,VLOOKUP($CH58,'العاملين '!$A$3:$AR$260,29),0) -> 0 | BP58: =IF($CJ58=1,0.2,IF($CJ58=2,VLOOKUP($CH58,'العاملين '!$A$3:$AU$260,47),0)) -> 0 | BQ58: =IF($CJ58=1,0.05,IF($CJ58=2,VLOOKUP($CH58,'العاملين '!$A$3:$AU$260,47),0)) -> 0 | BR58: =IF($CH58>0,VLOOKUP($CH58,'العاملين '!$A$3:$AR$260,30),0) -> 0 | BS58: =IF($CH58>0,VLOOKUP($CH58,'العاملين '!$A$3:$AR$260,31),0) -> 0 | BU58: =IF($CH58>0,VLOOKUP($CH58,'العاملين '!$A$3:$AR$260,33),0) -> 0 | BV58: =IF($CH58>0,VLOOKUP($CH58,'العاملين '!$A$3:$AR$260,34),0) -> 0 | BW58: =IF($CH58>0,VLOOKUP($CH58,'العاملين '!$A$3:$AR$260,35),0) -> 0 | BX58: =IF($CH58>0,VLOOKUP($CH58,'العاملين '!$A$3:$AR$260,36),0) -> 0 | BY58: =IF($CH58>0,VLOOKUP($CH58,'العاملين '!$A$3:$AR$260,37),0) -> 0 | BZ58: =IF($CH58>0,VLOOKUP($CH58,'العاملين '!$A$3:$AR$260,38),0) -> 0 | CA58: =IF($CH58>0,VLOOKUP($CH58,'العاملين '!$A$3:$AR$260,39),0) -> 0 | CB58: =IF($CH58>0,VLOOKUP($CH58,'العاملين '!$A$3:$AR$260,40),0) -> 0 | CC58: =IF($CH58>0,VLOOKUP($CH58,'العاملين '!$A$3:$AR$260,41),0) -> 0 | CD58: 0 | CE58: 0 | CF58: 0 | CG58: =IF($CH58>0,VLOOKUP($CH58,'العاملين '!$A$3:$AR$260,2),0) -> 0 | CH58: 0 | CJ58: =IF($CH58>0,VLOOKUP($CH58,'العاملين '!$A$3:$AR$260,3),0) -> 0 | CK58: =IF($CH58>0,VLOOKUP($CH58,'العاملين '!$A$3:$AR$260,43),0) -> 0 | CL58: 0
A59: 20 | B59: =IF($CH59>0,VLOOKUP($CH59,'العاملين '!$A$3:$AR$260,8),0) -> 0 | H59: =IF($CH59>0,VLOOKUP($CH59,'العاملين '!$A$3:$AR$260,9),0) -> 0 | I59: =IF($CH59>0,VLOOKUP($CH59,'العاملين '!$A$3:$AR$260,10),0) -> 0 | J59: =IF($CH59>0,VLOOKUP($CH59,'العاملين '!$A$3:$AR$260,11),0) -> 0 | K59: =IF($CH59>0,VLOOKUP($CH59,'العاملين '!$A$3:$AR$260,12),0) -> 0 | L59: =IF($CH59>0,VLOOKUP($CH59,'العاملين '!$A$3:$AR$260,13),0) -> 0 | M59: 0 | N59: =IF($CH59>0,VLOOKUP($CH59,'العاملين '!$A$3:$AR$260,14),0) -> 0 | O59: =IF($CH59>0,VLOOKUP($CH59,'العاملين '!$A$3:$AR$260,15),0) -> 0 | P59: =IF($CH59>0,VLOOKUP($CH59,'العاملين '!$A$3:$AR$260,16),0) -> 0 | Q59: =IF($CH59>0,VLOOKUP($CH59,'العاملين '!$A$3:$AR$260,17),0) -> 0 | R59: =IF($CH59>0,VLOOKUP($CH59,'العاملين '!$A$3:$AR$260,18),0) -> 0 | S59: =IF($CH59>0,VLOOKUP($CH59,'العاملين '!$A$3:$AR$260,19),0) -> 0 | T59: =IF($CH59>0,VLOOKUP($CH59,'العاملين '!$A$3:$AR$260,20),0) -> 0 | U59: =IF($CH59>0,VLOOKUP($CH59,'العاملين '!$A$3:$AR$260,21),0) -> 0 | V59: =IF($CH59>0,VLOOKUP($CH59,'العاملين '!$A$3:$AR$260,22),0) -> 0 | W59: =IF($CH59>0,VLOOKUP($CH59,'العاملين '!$A$3:$AR$260,23),0) -> 0 | X59: =IF($CH59>0,VLOOKUP($CH59,'العاملين '!$A$3:$AR$260,24),0) -> 0 | Y59: =IF($CH59>0,VLOOKUP($CH59,'العاملين '!$A$3:$AR$260,26),0) -> 0 | AN59: =IF($CH59>0,VLOOKUP($CH59,'العاملين '!$A$3:$AR$260,25),0) -> 0 | AO59: 0 | AP59: 0 | AQ59: 0 | AR59: 0 | AS59: 0 | AT59: 0 | AU59: 0 | AW59: =IF($CH59>0,VLOOKUP($CH59,'العاملين '!$A$3:$AR$260,28),0) -> 0 | AX59: 0 | BG59: 0 | BH59: 0 | BI59: 0 | BJ59: 0 | BK59: 0 | BL59: =IF($CJ59=1,ROUND(($B59)*7%,2),IF($CJ59=2,VLOOKUP($CH59,'العاملين '!$A$3:$AS$260,44),0)) -> 0 | BM59: =IF($CJ59=1,0.5,IF($CJ59=2,VLOOKUP($CH59,'العاملين '!$A$3:$AS$260,45),0)) -> 0 | BN59: =IF($CJ59=1,4.5,IF($CJ59=2,VLOOKUP($CH59,'العاملين '!$A$3:$AS$260,46),0)) -> 0 | BO59: =IF($CH59>0,VLOOKUP($CH59,'العاملين '!$A$3:$AR$260,29),0) -> 0 | BP59: =IF($CJ59=1,0.2,IF($CJ59=2,VLOOKUP($CH59,'العاملين '!$A$3:$AU$260,47),0)) -> 0 | BQ59: =IF($CJ59=1,0.05,IF($CJ59=2,VLOOKUP($CH59,'العاملين '!$A$3:$AU$260,47),0)) -> 0 | BR59: =IF($CH59>0,VLOOKUP($CH59,'العاملين '!$A$3:$AR$260,30),0) -> 0 | BS59: =IF($CH59>0,VLOOKUP($CH59,'العاملين '!$A$3:$AR$260,31),0) -> 0 | BU59: =IF($CH59>0,VLOOKUP($CH59,'العاملين '!$A$3:$AR$260,33),0) -> 0 | BV59: =IF($CH59>0,VLOOKUP($CH59,'العاملين '!$A$3:$AR$260,34),0) -> 0 | BW59: =IF($CH59>0,VLOOKUP($CH59,'العاملين '!$A$3:$AR$260,35),0) -> 0 | BX59: =IF($CH59>0,VLOOKUP($CH59,'العاملين '!$A$3:$AR$260,36),0) -> 0 | BY59: =IF($CH59>0,VLOOKUP($CH59,'العاملين '!$A$3:$AR$260,37),0) -> 0 | BZ59: =IF($CH59>0,VLOOKUP($CH59,'العاملين '!$A$3:$AR$260,38),0) -> 0 | CA59: =IF($CH59>0,VLOOKUP($CH59,'العاملين '!$A$3:$AR$260,39),0) -> 0 | CB59: =IF($CH59>0,VLOOKUP($CH59,'العاملين '!$A$3:$AR$260,40),0) -> 0 | CC59: =IF($CH59>0,VLOOKUP($CH59,'العاملين '!$A$3:$AR$260,41),0) -> 0 | CD59: 0 | CE59: 0 | CF59: 0 | CG59: =IF($CH59>0,VLOOKUP($CH59,'العاملين '!$A$3:$AR$260,2),0) -> 0 | CH59: 0 | CJ59: =IF($CH59>0,VLOOKUP($CH59,'العاملين '!$A$3:$AR$260,3),0) -> 0 | CK59: =IF($CH59>0,VLOOKUP($CH59,'العاملين '!$A$3:$AR$260,43),0) -> 0 | CL59: 0
A60: 21 | B60: =IF($CH60>0,VLOOKUP($CH60,'العاملين '!$A$3:$AR$260,8),0) -> 0 | H60: =IF($CH60>0,VLOOKUP($CH60,'العاملين '!$A$3:$AR$260,9),0) -> 0 | I60: =IF($CH60>0,VLOOKUP($CH60,'العاملين '!$A$3:$AR$260,10),0) -> 0 | J60: =IF($CH60>0,VLOOKUP($CH60,'العاملين '!$A$3:$AR$260,11),0) -> 0 | K60: =IF($CH60>0,VLOOKUP($CH60,'العاملين '!$A$3:$AR$260,12),0) -> 0 | L60: =IF($CH60>0,VLOOKUP($CH60,'العاملين '!$A$3:$AR$260,13),0) -> 0 | M60: 0 | N60: =IF($CH60>0,VLOOKUP($CH60,'العاملين '!$A$3:$AR$260,14),0) -> 0 | O60: =IF($CH60>0,VLOOKUP($CH60,'العاملين '!$A$3:$AR$260,15),0) -> 0 | P60: =IF($CH60>0,VLOOKUP($CH60,'العاملين '!$A$3:$AR$260,16),0) -> 0 | Q60: =IF($CH60>0,VLOOKUP($CH60,'العاملين '!$A$3:$AR$260,17),0) -> 0 | R60: =IF($CH60>0,VLOOKUP($CH60,'العاملين '!$A$3:$AR$260,18),0) -> 0 | S60: =IF($CH60>0,VLOOKUP($CH60,'العاملين '!$A$3:$AR$260,19),0) -> 0 | T60: =IF($CH60>0,VLOOKUP($CH60,'العاملين '!$A$3:$AR$260,20),0) -> 0 | U60: =IF($CH60>0,VLOOKUP($CH60,'العاملين '!$A$3:$AR$260,21),0) -> 0 | V60: =IF($CH60>0,VLOOKUP($CH60,'العاملين '!$A$3:$AR$260,22),0) -> 0 | W60: =IF($CH60>0,VLOOKUP($CH60,'العاملين '!$A$3:$AR$260,23),0) -> 0 | X60: =IF($CH60>0,VLOOKUP($CH60,'العاملين '!$A$3:$AR$260,24),0) -> 0 | Y60: =IF($CH60>0,VLOOKUP($CH60,'العاملين '!$A$3:$AR$260,26),0) -> 0 | AN60: =IF($CH60>0,VLOOKUP($CH60,'العاملين '!$A$3:$AR$260,25),0) -> 0 | AO60: 0 | AP60: 0 | AQ60: 0 | AR60: 0 | AS60: 0 | AT60: 0 | AU60: 0 | AW60: =IF($CH60>0,VLOOKUP($CH60,'العاملين '!$A$3:$AR$260,28),0) -> 0 | AX60: 0 | BG60: 0 | BH60: 0 | BI60: 0 | BJ60: 0 | BK60: 0 | BL60: =IF($CJ60=1,ROUND(($B60)*7%,2),IF($CJ60=2,VLOOKUP($CH60,'العاملين '!$A$3:$AS$260,44),0)) -> 0 | BM60: =IF($CJ60=1,0.5,IF($CJ60=2,VLOOKUP($CH60,'العاملين '!$A$3:$AS$260,45),0)) -> 0 | BN60: =IF($CJ60=1,4.5,IF($CJ60=2,VLOOKUP($CH60,'العاملين '!$A$3:$AS$260,46),0)) -> 0 | BO60: =IF($CH60>0,VLOOKUP($CH60,'العاملين '!$A$3:$AR$260,29),0) -> 0 | BP60: =IF($CJ60=1,0.2,IF($CJ60=2,VLOOKUP($CH60,'العاملين '!$A$3:$AU$260,47),0)) -> 0 | BQ60: =IF($CJ60=1,0.05,IF($CJ60=2,VLOOKUP($CH60,'العاملين '!$A$3:$AU$260,47),0)) -> 0 | BR60: =IF($CH60>0,VLOOKUP($CH60,'العاملين '!$A$3:$AR$260,30),0) -> 0 | BS60: =IF($CH60>0,VLOOKUP($CH60,'العاملين '!$A$3:$AR$260,31),0) -> 0 | BU60: =IF($CH60>0,VLOOKUP($CH60,'العاملين '!$A$3:$AR$260,33),0) -> 0 | BV60: =IF($CH60>0,VLOOKUP($CH60,'العاملين '!$A$3:$AR$260,34),0) -> 0 | BW60: =IF($CH60>0,VLOOKUP($CH60,'العاملين '!$A$3:$AR$260,35),0) -> 0 | BX60: =IF($CH60>0,VLOOKUP($CH60,'العاملين '!$A$3:$AR$260,36),0) -> 0 | BY60: =IF($CH60>0,VLOOKUP($CH60,'العاملين '!$A$3:$AR$260,37),0) -> 0 | BZ60: =IF($CH60>0,VLOOKUP($CH60,'العاملين '!$A$3:$AR$260,38),0) -> 0 | CA60: =IF($CH60>0,VLOOKUP($CH60,'العاملين '!$A$3:$AR$260,39),0) -> 0 | CB60: =IF($CH60>0,VLOOKUP($CH60,'العاملين '!$A$3:$AR$260,40),0) -> 0 | CC60: =IF($CH60>0,VLOOKUP($CH60,'العاملين '!$A$3:$AR$260,41),0) -> 0 | CD60: 0 | CE60: 0 | CF60: 0 | CG60: =IF($CH60>0,VLOOKUP($CH60,'العاملين '!$A$3:$AR$260,2),0) -> 0 | CH60: 0 | CJ60: =IF($CH60>0,VLOOKUP($CH60,'العاملين '!$A$3:$AR$260,3),0) -> 0 | CK60: =IF($CH60>0,VLOOKUP($CH60,'العاملين '!$A$3:$AR$260,43),0) -> 0 | CL60: 0
A61: 22 | B61: =IF($CH61>0,VLOOKUP($CH61,'العاملين '!$A$3:$AR$260,8),0) -> 0 | H61: =IF($CH61>0,VLOOKUP($CH61,'العاملين '!$A$3:$AR$260,9),0) -> 0 | I61: =IF($CH61>0,VLOOKUP($CH61,'العاملين '!$A$3:$AR$260,10),0) -> 0 | J61: =IF($CH61>0,VLOOKUP($CH61,'العاملين '!$A$3:$AR$260,11),0) -> 0 | K61: =IF($CH61>0,VLOOKUP($CH61,'العاملين '!$A$3:$AR$260,12),0) -> 0 | L61: =IF($CH61>0,VLOOKUP($CH61,'العاملين '!$A$3:$AR$260,13),0) -> 0 | M61: 0 | N61: =IF($CH61>0,VLOOKUP($CH61,'العاملين '!$A$3:$AR$260,14),0) -> 0 | O61: =IF($CH61>0,VLOOKUP($CH61,'العاملين '!$A$3:$AR$260,15),0) -> 0 | P61: =IF($CH61>0,VLOOKUP($CH61,'العاملين '!$A$3:$AR$260,16),0) -> 0 | Q61: =IF($CH61>0,VLOOKUP($CH61,'العاملين '!$A$3:$AR$260,17),0) -> 0 | R61: =IF($CH61>0,VLOOKUP($CH61,'العاملين '!$A$3:$AR$260,18),0) -> 0 | S61: =IF($CH61>0,VLOOKUP($CH61,'العاملين '!$A$3:$AR$260,19),0) -> 0 | T61: =IF($CH61>0,VLOOKUP($CH61,'العاملين '!$A$3:$AR$260,20),0) -> 0 | U61: =IF($CH61>0,VLOOKUP($CH61,'العاملين '!$A$3:$AR$260,21),0) -> 0 | V61: =IF($CH61>0,VLOOKUP($CH61,'العاملين '!$A$3:$AR$260,22),0) -> 0 | W61: =IF($CH61>0,VLOOKUP($CH61,'العاملين '!$A$3:$AR$260,23),0) -> 0 | X61: =IF($CH61>0,VLOOKUP($CH61,'العاملين '!$A$3:$AR$260,24),0) -> 0 | Y61: =IF($CH61>0,VLOOKUP($CH61,'العاملين '!$A$3:$AR$260,26),0) -> 0 | AN61: =IF($CH61>0,VLOOKUP($CH61,'العاملين '!$A$3:$AR$260,25),0) -> 0 | AO61: 0 | AP61: 0 | AQ61: 0 | AR61: 0 | AS61: 0 | AT61: 0 | AU61: 0 | AW61: =IF($CH61>0,VLOOKUP($CH61,'العاملين '!$A$3:$AR$260,28),0) -> 0 | AX61: 0 | BG61: 0 | BH61: 0 | BI61: 0 | BJ61: 0 | BK61: 0 | BL61: =IF($CJ61=1,ROUND(($B61)*7%,2),IF($CJ61=2,VLOOKUP($CH61,'العاملين '!$A$3:$AS$260,44),0)) -> 0 | BM61: =IF($CJ61=1,0.5,IF($CJ61=2,VLOOKUP($CH61,'العاملين '!$A$3:$AS$260,45),0)) -> 0 | BN61: =IF($CJ61=1,4.5,IF($CJ61=2,VLOOKUP($CH61,'العاملين '!$A$3:$AS$260,46),0)) -> 0 | BO61: =IF($CH61>0,VLOOKUP($CH61,'العاملين '!$A$3:$AR$260,29),0) -> 0 | BP61: =IF($CJ61=1,0.2,IF($CJ61=2,VLOOKUP($CH61,'العاملين '!$A$3:$AU$260,47),0)) -> 0 | BQ61: =IF($CJ61=1,0.05,IF($CJ61=2,VLOOKUP($CH61,'العاملين '!$A$3:$AU$260,47),0)) -> 0 | BR61: =IF($CH61>0,VLOOKUP($CH61,'العاملين '!$A$3:$AR$260,30),0) -> 0 | BS61: =IF($CH61>0,VLOOKUP($CH61,'العاملين '!$A$3:$AR$260,31),0) -> 0 | BU61: =IF($CH61>0,VLOOKUP($CH61,'العاملين '!$A$3:$AR$260,33),0) -> 0 | BV61: =IF($CH61>0,VLOOKUP($CH61,'العاملين '!$A$3:$AR$260,34),0) -> 0 | BW61: =IF($CH61>0,VLOOKUP($CH61,'العاملين '!$A$3:$AR$260,35),0) -> 0 | BX61: =IF($CH61>0,VLOOKUP($CH61,'العاملين '!$A$3:$AR$260,36),0) -> 0 | BY61: =IF($CH61>0,VLOOKUP($CH61,'العاملين '!$A$3:$AR$260,37),0) -> 0 | BZ61: =IF($CH61>0,VLOOKUP($CH61,'العاملين '!$A$3:$AR$260,38),0) -> 0 | CA61: =IF($CH61>0,VLOOKUP($CH61,'العاملين '!$A$3:$AR$260,39),0) -> 0 | CB61: =IF($CH61>0,VLOOKUP($CH61,'العاملين '!$A$3:$AR$260,40),0) -> 0 | CC61: =IF($CH61>0,VLOOKUP($CH61,'العاملين '!$A$3:$AR$260,41),0) -> 0 | CD61: 0 | CE61: 0 | CF61: 0 | CG61: =IF($CH61>0,VLOOKUP($CH61,'العاملين '!$A$3:$AR$260,2),0) -> 0 | CH61: 0 | CJ61: =IF($CH61>0,VLOOKUP($CH61,'العاملين '!$A$3:$AR$260,3),0) -> 0 | CK61: =IF($CH61>0,VLOOKUP($CH61,'العاملين '!$A$3:$AR$260,43),0) -> 0 | CL61: 0
A62: 23 | B62: =IF($CH62>0,VLOOKUP($CH62,'العاملين '!$A$3:$AR$260,8),0) -> 0 | H62: =IF($CH62>0,VLOOKUP($CH62,'العاملين '!$A$3:$AR$260,9),0) -> 0 | I62: =IF($CH62>0,VLOOKUP($CH62,'العاملين '!$A$3:$AR$260,10),0) -> 0 | J62: =IF($CH62>0,VLOOKUP($CH62,'العاملين '!$A$3:$AR$260,11),0) -> 0 | K62: =IF($CH62>0,VLOOKUP($CH62,'العاملين '!$A$3:$AR$260,12),0) -> 0 | L62: =IF($CH62>0,VLOOKUP($CH62,'العاملين '!$A$3:$AR$260,13),0) -> 0 | M62: 0 | N62: =IF($CH62>0,VLOOKUP($CH62,'العاملين '!$A$3:$AR$260,14),0) -> 0 | O62: =IF($CH62>0,VLOOKUP($CH62,'العاملين '!$A$3:$AR$260,15),0) -> 0 | P62: =IF($CH62>0,VLOOKUP($CH62,'العاملين '!$A$3:$AR$260,16),0) -> 0 | Q62: =IF($CH62>0,VLOOKUP($CH62,'العاملين '!$A$3:$AR$260,17),0) -> 0 | R62: =IF($CH62>0,VLOOKUP($CH62,'العاملين '!$A$3:$AR$260,18),0) -> 0 | S62: =IF($CH62>0,VLOOKUP($CH62,'العاملين '!$A$3:$AR$260,19),0) -> 0 | T62: =IF($CH62>0,VLOOKUP($CH62,'العاملين '!$A$3:$AR$260,20),0) -> 0 | U62: =IF($CH62>0,VLOOKUP($CH62,'العاملين '!$A$3:$AR$260,21),0) -> 0 | V62: =IF($CH62>0,VLOOKUP($CH62,'العاملين '!$A$3:$AR$260,22),0) -> 0 | W62: =IF($CH62>0,VLOOKUP($CH62,'العاملين '!$A$3:$AR$260,23),0) -> 0 | X62: =IF($CH62>0,VLOOKUP($CH62,'العاملين '!$A$3:$AR$260,24),0) -> 0 | Y62: =IF($CH62>0,VLOOKUP($CH62,'العاملين '!$A$3:$AR$260,26),0) -> 0 | AN62: =IF($CH62>0,VLOOKUP($CH62,'العاملين '!$A$3:$AR$260,25),0) -> 0 | AO62: 0 | AP62: 0 | AQ62: 0 | AR62: 0 | AS62: 0 | AT62: 0 | AU62: 0 | AW62: =IF($CH62>0,VLOOKUP($CH62,'العاملين '!$A$3:$AR$260,28),0) -> 0 | AX62: 0 | BG62: 0 | BH62: 0 | BI62: 0 | BJ62: 0 | BK62: 0 | BL62: =IF($CJ62=1,ROUND(($B62)*7%,2),IF($CJ62=2,VLOOKUP($CH62,'العاملين '!$A$3:$AS$260,44),0)) -> 0 | BM62: =IF($CJ62=1,0.5,IF($CJ62=2,VLOOKUP($CH62,'العاملين '!$A$3:$AS$260,45),0)) -> 0 | BN62: =IF($CJ62=1,4.5,IF($CJ62=2,VLOOKUP($CH62,'العاملين '!$A$3:$AS$260,46),0)) -> 0 | BO62: =IF($CH62>0,VLOOKUP($CH62,'العاملين '!$A$3:$AR$260,29),0) -> 0 | BP62: =IF($CJ62=1,0.2,IF($CJ62=2,VLOOKUP($CH62,'العاملين '!$A$3:$AU$260,47),0)) -> 0 | BQ62: =IF($CJ62=1,0.05,IF($CJ62=2,VLOOKUP($CH62,'العاملين '!$A$3:$AU$260,47),0)) -> 0 | BR62: =IF($CH62>0,VLOOKUP($CH62,'العاملين '!$A$3:$AR$260,30),0) -> 0 | BS62: =IF($CH62>0,VLOOKUP($CH62,'العاملين '!$A$3:$AR$260,31),0) -> 0 | BU62: =IF($CH62>0,VLOOKUP($CH62,'العاملين '!$A$3:$AR$260,33),0) -> 0 | BV62: =IF($CH62>0,VLOOKUP($CH62,'العاملين '!$A$3:$AR$260,34),0) -> 0 | BW62: =IF($CH62>0,VLOOKUP($CH62,'العاملين '!$A$3:$AR$260,35),0) -> 0 | BX62: =IF($CH62>0,VLOOKUP($CH62,'العاملين '!$A$3:$AR$260,36),0) -> 0 | BY62: =IF($CH62>0,VLOOKUP($CH62,'العاملين '!$A$3:$AR$260,37),0) -> 0 | BZ62: =IF($CH62>0,VLOOKUP($CH62,'العاملين '!$A$3:$AR$260,38),0) -> 0 | CA62: =IF($CH62>0,VLOOKUP($CH62,'العاملين '!$A$3:$AR$260,39),0) -> 0 | CB62: =IF($CH62>0,VLOOKUP($CH62,'العاملين '!$A$3:$AR$260,40),0) -> 0 | CC62: =IF($CH62>0,VLOOKUP($CH62,'العاملين '!$A$3:$AR$260,41),0) -> 0 | CD62: 0 | CE62: 0 | CF62: 0 | CG62: =IF($CH62>0,VLOOKUP($CH62,'العاملين '!$A$3:$AR$260,2),0) -> 0 | CH62: 0 | CJ62: =IF($CH62>0,VLOOKUP($CH62,'العاملين '!$A$3:$AR$260,3),0) -> 0 | CK62: =IF($CH62>0,VLOOKUP($CH62,'العاملين '!$A$3:$AR$260,43),0) -> 0 | CL62: 0
A63: 24 | B63: =IF($CH63>0,VLOOKUP($CH63,'العاملين '!$A$3:$AR$260,8),0) -> 0 | H63: =IF($CH63>0,VLOOKUP($CH63,'العاملين '!$A$3:$AR$260,9),0) -> 0 | I63: =IF($CH63>0,VLOOKUP($CH63,'العاملين '!$A$3:$AR$260,10),0) -> 0 | J63: =IF($CH63>0,VLOOKUP($CH63,'العاملين '!$A$3:$AR$260,11),0) -> 0 | K63: =IF($CH63>0,VLOOKUP($CH63,'العاملين '!$A$3:$AR$260,12),0) -> 0 | L63: =IF($CH63>0,VLOOKUP($CH63,'العاملين '!$A$3:$AR$260,13),0) -> 0 | M63: 0 | N63: =IF($CH63>0,VLOOKUP($CH63,'العاملين '!$A$3:$AR$260,14),0) -> 0 | O63: =IF($CH63>0,VLOOKUP($CH63,'العاملين '!$A$3:$AR$260,15),0) -> 0 | P63: =IF($CH63>0,VLOOKUP($CH63,'العاملين '!$A$3:$AR$260,16),0) -> 0 | Q63: =IF($CH63>0,VLOOKUP($CH63,'العاملين '!$A$3:$AR$260,17),0) -> 0 | R63: =IF($CH63>0,VLOOKUP($CH63,'العاملين '!$A$3:$AR$260,18),0) -> 0 | S63: =IF($CH63>0,VLOOKUP($CH63,'العاملين '!$A$3:$AR$260,19),0) -> 0 | T63: =IF($CH63>0,VLOOKUP($CH63,'العاملين '!$A$3:$AR$260,20),0) -> 0 | U63: =IF($CH63>0,VLOOKUP($CH63,'العاملين '!$A$3:$AR$260,21),0) -> 0 | V63: =IF($CH63>0,VLOOKUP($CH63,'العاملين '!$A$3:$AR$260,22),0) -> 0 | W63: =IF($CH63>0,VLOOKUP($CH63,'العاملين '!$A$3:$AR$260,23),0) -> 0 | X63: =IF($CH63>0,VLOOKUP($CH63,'العاملين '!$A$3:$AR$260,24),0) -> 0 | Y63: =IF($CH63>0,VLOOKUP($CH63,'العاملين '!$A$3:$AR$260,26),0) -> 0 | AN63: =IF($CH63>0,VLOOKUP($CH63,'العاملين '!$A$3:$AR$260,25),0) -> 0 | AO63: 0 | AP63: 0 | AQ63: 0 | AR63: 0 | AS63: 0 | AT63: 0 | AU63: 0 | AW63: =IF($CH63>0,VLOOKUP($CH63,'العاملين '!$A$3:$AR$260,28),0) -> 0 | AX63: 0 | BG63: 0 | BH63: 0 | BI63: 0 | BJ63: 0 | BK63: 0 | BL63: =IF($CJ63=1,ROUND(($B63)*7%,2),IF($CJ63=2,VLOOKUP($CH63,'العاملين '!$A$3:$AS$260,44),0)) -> 0 | BM63: =IF($CJ63=1,0.5,IF($CJ63=2,VLOOKUP($CH63,'العاملين '!$A$3:$AS$260,45),0)) -> 0 | BN63: =IF($CJ63=1,4.5,IF($CJ63=2,VLOOKUP($CH63,'العاملين '!$A$3:$AS$260,46),0)) -> 0 | BO63: =IF($CH63>0,VLOOKUP($CH63,'العاملين '!$A$3:$AR$260,29),0) -> 0 | BP63: =IF($CJ63=1,0.2,IF($CJ63=2,VLOOKUP($CH63,'العاملين '!$A$3:$AU$260,47),0)) -> 0 | BQ63: =IF($CJ63=1,0.05,IF($CJ63=2,VLOOKUP($CH63,'العاملين '!$A$3:$AU$260,47),0)) -> 0 | BR63: =IF($CH63>0,VLOOKUP($CH63,'العاملين '!$A$3:$AR$260,30),0) -> 0 | BS63: =IF($CH63>0,VLOOKUP($CH63,'العاملين '!$A$3:$AR$260,31),0) -> 0 | BU63: =IF($CH63>0,VLOOKUP($CH63,'العاملين '!$A$3:$AR$260,33),0) -> 0 | BV63: =IF($CH63>0,VLOOKUP($CH63,'العاملين '!$A$3:$AR$260,34),0) -> 0 | BW63: =IF($CH63>0,VLOOKUP($CH63,'العاملين '!$A$3:$AR$260,35),0) -> 0 | BX63: =IF($CH63>0,VLOOKUP($CH63,'العاملين '!$A$3:$AR$260,36),0) -> 0 | BY63: =IF($CH63>0,VLOOKUP($CH63,'العاملين '!$A$3:$AR$260,37),0) -> 0 | BZ63: =IF($CH63>0,VLOOKUP($CH63,'العاملين '!$A$3:$AR$260,38),0) -> 0 | CA63: =IF($CH63>0,VLOOKUP($CH63,'العاملين '!$A$3:$AR$260,39),0) -> 0 | CB63: =IF($CH63>0,VLOOKUP($CH63,'العاملين '!$A$3:$AR$260,40),0) -> 0 | CC63: =IF($CH63>0,VLOOKUP($CH63,'العاملين '!$A$3:$AR$260,41),0) -> 0 | CD63: 0 | CE63: 0 | CF63: 0 | CG63: =IF($CH63>0,VLOOKUP($CH63,'العاملين '!$A$3:$AR$260,2),0) -> 0 | CH63: 0 | CJ63: =IF($CH63>0,VLOOKUP($CH63,'العاملين '!$A$3:$AR$260,3),0) -> 0 | CK63: =IF($CH63>0,VLOOKUP($CH63,'العاملين '!$A$3:$AR$260,43),0) -> 0 | CL63: 0
A64: 25 | B64: =IF($CH64>0,VLOOKUP($CH64,'العاملين '!$A$3:$AR$260,8),0) -> 0 | H64: =IF($CH64>0,VLOOKUP($CH64,'العاملين '!$A$3:$AR$260,9),0) -> 0 | I64: =IF($CH64>0,VLOOKUP($CH64,'العاملين '!$A$3:$AR$260,10),0) -> 0 | J64: =IF($CH64>0,VLOOKUP($CH64,'العاملين '!$A$3:$AR$260,11),0) -> 0 | K64: =IF($CH64>0,VLOOKUP($CH64,'العاملين '!$A$3:$AR$260,12),0) -> 0 | L64: =IF($CH64>0,VLOOKUP($CH64,'العاملين '!$A$3:$AR$260,13),0) -> 0 | M64: 0 | N64: =IF($CH64>0,VLOOKUP($CH64,'العاملين '!$A$3:$AR$260,14),0) -> 0 | O64: =IF($CH64>0,VLOOKUP($CH64,'العاملين '!$A$3:$AR$260,15),0) -> 0 | P64: =IF($CH64>0,VLOOKUP($CH64,'العاملين '!$A$3:$AR$260,16),0) -> 0 | Q64: =IF($CH64>0,VLOOKUP($CH64,'العاملين '!$A$3:$AR$260,17),0) -> 0 | R64: =IF($CH64>0,VLOOKUP($CH64,'العاملين '!$A$3:$AR$260,18),0) -> 0 | S64: =IF($CH64>0,VLOOKUP($CH64,'العاملين '!$A$3:$AR$260,19),0) -> 0 | T64: =IF($CH64>0,VLOOKUP($CH64,'العاملين '!$A$3:$AR$260,20),0) -> 0 | U64: =IF($CH64>0,VLOOKUP($CH64,'العاملين '!$A$3:$AR$260,21),0) -> 0 | V64: =IF($CH64>0,VLOOKUP($CH64,'العاملين '!$A$3:$AR$260,22),0) -> 0 | W64: =IF($CH64>0,VLOOKUP($CH64,'العاملين '!$A$3:$AR$260,23),0) -> 0 | X64: =IF($CH64>0,VLOOKUP($CH64,'العاملين '!$A$3:$AR$260,24),0) -> 0 | Y64: =IF($CH64>0,VLOOKUP($CH64,'العاملين '!$A$3:$AR$260,26),0) -> 0 | AN64: =IF($CH64>0,VLOOKUP($CH64,'العاملين '!$A$3:$AR$260,25),0) -> 0 | AO64: 0 | AP64: 0 | AQ64: 0 | AR64: 0 | AS64: 0 | AT64: 0 | AU64: 0 | AW64: =IF($CH64>0,VLOOKUP($CH64,'العاملين '!$A$3:$AR$260,28),0) -> 0 | AX64: 0 | BG64: 0 | BH64: 0 | BI64: 0 | BJ64: 0 | BK64: 0 | BL64: =IF($CJ64=1,ROUND(($B64)*7%,2),IF($CJ64=2,VLOOKUP($CH64,'العاملين '!$A$3:$AS$260,44),0)) -> 0 | BM64: =IF($CJ64=1,0.5,IF($CJ64=2,VLOOKUP($CH64,'العاملين '!$A$3:$AS$260,45),0)) -> 0 | BN64: =IF($CJ64=1,4.5,IF($CJ64=2,VLOOKUP($CH64,'العاملين '!$A$3:$AS$260,46),0)) -> 0 | BO64: =IF($CH64>0,VLOOKUP($CH64,'العاملين '!$A$3:$AR$260,29),0) -> 0 | BP64: =IF($CJ64=1,0.2,IF($CJ64=2,VLOOKUP($CH64,'العاملين '!$A$3:$AU$260,47),0)) -> 0 | BQ64: =IF($CJ64=1,0.05,IF($CJ64=2,VLOOKUP($CH64,'العاملين '!$A$3:$AU$260,47),0)) -> 0 | BR64: =IF($CH64>0,VLOOKUP($CH64,'العاملين '!$A$3:$AR$260,30),0) -> 0 | BS64: =IF($CH64>0,VLOOKUP($CH64,'العاملين '!$A$3:$AR$260,31),0) -> 0 | BU64: =IF($CH64>0,VLOOKUP($CH64,'العاملين '!$A$3:$AR$260,33),0) -> 0 | BV64: =IF($CH64>0,VLOOKUP($CH64,'العاملين '!$A$3:$AR$260,34),0) -> 0 | BW64: =IF($CH64>0,VLOOKUP($CH64,'العاملين '!$A$3:$AR$260,35),0) -> 0 | BX64: =IF($CH64>0,VLOOKUP($CH64,'العاملين '!$A$3:$AR$260,36),0) -> 0 | BY64: =IF($CH64>0,VLOOKUP($CH64,'العاملين '!$A$3:$AR$260,37),0) -> 0 | BZ64: =IF($CH64>0,VLOOKUP($CH64,'العاملين '!$A$3:$AR$260,38),0) -> 0 | CA64: =IF($CH64>0,VLOOKUP($CH64,'العاملين '!$A$3:$AR$260,39),0) -> 0 | CB64: =IF($CH64>0,VLOOKUP($CH64,'العاملين '!$A$3:$AR$260,40),0) -> 0 | CC64: =IF($CH64>0,VLOOKUP($CH64,'العاملين '!$A$3:$AR$260,41),0) -> 0 | CD64: 0 | CE64: 0 | CF64: 0 | CG64: =IF($CH64>0,VLOOKUP($CH64,'العاملين '!$A$3:$AR$260,2),0) -> 0 | CH64: 0 | CJ64: =IF($CH64>0,VLOOKUP($CH64,'العاملين '!$A$3:$AR$260,3),0) -> 0 | CK64: =IF($CH64>0,VLOOKUP($CH64,'العاملين '!$A$3:$AR$260,43),0) -> 0 | CL64: 0
B65: =SUM(B40:B64) -> 0 | C65: =SUM(C40:C64) ->  | H65: 1104.08 | I65: 1831.23 | J65: 0 | K65: 102.82 | L65: 103.82 | M65: 3141.95 | N65: 110.44 | O65: 0 | P65: 8 | Q65: 12 | R65: 0 | S65: 0 | T65: 0 | U65: 0 | V65: 0 | W65: 0 | X65: 0 | Y65: 0 | AN65: 0 | AO65: 3272.39 | AP65: 3272.39 | AQ65: 0 | AR65: 490.86 | AS65: 32.72 | AT65: 98.17 | AU65: 621.75 | AV65: 30 | AW65: 0 | AX65: =SUM(AX40:AX64) ->  | AY65: =SUM(AY40:AY64) ->  | BB65: 0 | BG65: 490.86 | BH65: 32.72 | BI65: 327.24 | BJ65: 98.17 | BK65: 32.72 | BM65: 1.5 | BN65: 13.5 | BO65: 0 | BP65: 0.6 | BQ65: 0.15 | BR65: 0 | BS65: 0 | BT65: 0 | BU65: 0 | BV65: 0 | BW65: 0 | BX65: 0 | BY65: 0 | BZ65: 2 | CA65: 65.22 | CB65: 29.3 | CC65: 0
A67: كشــــــــــــــــــــــــــــــف المرتبات عن شــــــــــــــــــــــــــــــــهر / | AY67: =ورقة1!C3 -> مارس 2018 | BF67: ســــــــــــــــــــــــــــــــنة / | BL67: =IF($CG80>0,ورقة1!$C$5,0) -> 2018 | BR67: م
A68: =ورقة1!C1 -> الشهداء التعليمية | AY68: مدرسة / | BD68: =IF($CG80>0,ورقة1!$C$2," ") -> الادارة | CH68: =FLOOR(CM80,0.05) -> 0
A69: م | B69: الاســــــــــــــــــــــــــتحـــــــــــــــــــــــــــــــــقــــــــــــــــــــــــــــــــــــــــــــــــــــــــــــــــــــــــــاقـــــــــــــــــــــــــــــــــــات | AX69: جملة الاستــــحقــاقات | AY69: الأســـــــــــــــــــــــــــــــــــــتـــــــقـــــــــــــــــطاعـــــــــــــــــات | CE69: جملة الأستقطاعات | CF69: الصافي المستحق | CG69: الاســـــــــــــــــــم | CH69: التوقيع بالاســــــــــــتلام | CI69: صافي الشهر السابق | CK69: اسم البنك
B70: الاجور الاســــــــــــــــــــــــــاسية | G70: الجملة | H70: الاجور المتغيرة الخاضعة بكامل قيمتها للتأمينات والمعاشات | M70: الجملة | N70: الاجور المتغيرة الاخري بنسبة % | AO70: الجملة | AP70: ='العاملين '!BA70 -> 0 | AQ70: غير خاضع | AR70: حصص الاجور المتغيرة | AU70: الجملة | AV70: منحة | AW70: ='العاملين '!$AA$1 -> 0 | AY70: لحســــــــــــــــــــاب الهيئة القوميـــــــــــــــــــــة للتـــــــــــــــــأمين الإجتـــــــــــــــــــــــــماعي | BR70: لحساب جاري دائنة مصلحة الضرائب | BU70: لحساب دائنين مختلفين
AP71: خاضع | AY71: استقطاعات الأجور الاســــــــــــــــــاسية | BG71: استقطاعات الأجور المتغيرة | BL71: الأقساط الخاصة عن الأجور الأساسية | BR71: ضريبة دخل | BS71: دمغة عادية
B72: المرتب | C72: حصة الحكومة 15% | D72: إصابة عمل 1% | E72: أ 2 % | F72: أ 3 % | H72: علاوة 2012 | I72: علاوة 2013 | J72: علاوة 2014 | K72: علاوة 2015 | L72: علاوة 2016 | N72: ='العاملين '!$N$1 -> 0 | O72: ='العاملين '!$O$1 -> 0 | P72: ='العاملين '!$P$1 -> 0 | Q72: ='العاملين '!$Q$1 -> 0 | R72: ='العاملين '!$R$1 -> 0 | S72: ='العاملين '!#REF! ->  | T72: ='العاملين '!$S$1 -> 0 | U72: ='العاملين '!$T$1 -> 0 | V72: ='العاملين '!$U$1 -> 0 | W72: ='العاملين '!$V$1 -> 0 | X72: ='العاملين '!$W$1 -> 0 | Y72: الحد الادنى | AN72: ='العاملين '!$X$1 -> 0 | AR72: ألـ 15 % | AS72: ألـ 1 % | AT72: ألـ 3% | AY72: حصة الحكومة 15% | AZ72: إصابة عمل 1% | BA72: الـ 2% | BC72: حصة الموظف 10% | BD72: 0.08 | BE72: ألـ 3% | BF72: ألـ 1 % | BG72: حصة الحكومة 15% | BH72: إصابة عمل 1% | BI72: حصة الموظف 10% | BJ72: 0.03 | BK72: 0.01 | BL72: زمالة 7 % | BM72: زمالة جماعى | BN72: نقابه | BO72: رابطة | BP72: نادى محافظة | BQ72: نادي الادارة | BU72: ='العاملين '!$AF$1 -> 0 | BV72: ='العاملين '!$AG$1 -> 0 | BW72: ='العاملين '!$AH$1 -> 0 | BX72: ='العاملين '!$AI$1 -> 0 | BY72: ='العاملين '!$AJ$1 -> 0 | BZ72: ='العاملين '!$AK$1 -> 0 | CA72: ='العاملين '!$AL$1 -> 0 | CB72: ='العاملين '!$AM$1 -> 0 | CC72: ='العاملين '!$AN$1 -> 0 | CD72: كسر قرش
A73: 1 | B73: =IF($CH73>0,VLOOKUP($CH73,'العاملين '!$A$3:$AR$260,8),0) -> خبير | C73: =IF($B73>0,ROUND(($B73)*15%,2)," ") ->  | D73: =IF($B73>0,ROUND(($B73)*1%,2)," ") ->  | E73: =IF($B73>0,ROUND(($B73)*2%,2)," ") ->  | F73: =IF($B73>0,ROUND(($B73)*3%,2)," ") ->  | G73: =IF($B73>0,SUM(B73:F73)," ") ->  | H73: =IF($CH73>0,VLOOKUP($CH73,'العاملين '!$A$3:$AR$260,9),0) -> 574.8 | I73: =IF($CH73>0,VLOOKUP($CH73,'العاملين '!$A$3:$AR$260,10),0) -> 951.55 | J73: =IF($CH73>0,VLOOKUP($CH73,'العاملين '!$A$3:$AR$260,11),0) -> 0 | K73: =IF($CH73>0,VLOOKUP($CH73,'العاملين '!$A$3:$AR$260,12),0) -> 53.54 | L73: =IF($CH73>0,VLOOKUP($CH73,'العاملين '!$A$3:$AR$260,13),0) -> 54.04 | M73: =IF($B73>0,SUM(H73:L73),0) -> 1633.93 | N73: =IF($CH73>0,VLOOKUP($CH73,'العاملين '!$A$3:$AR$260,14),0) -> 57.48 | O73: =IF($CH73>0,VLOOKUP($CH73,'العاملين '!$A$3:$AR$260,15),0) -> 0 | P73: =IF($CH73>0,VLOOKUP($CH73,'العاملين '!$A$3:$AR$260,16),0) -> 4 | Q73: =IF($CH73>0,VLOOKUP($CH73,'العاملين '!$A$3:$AR$260,17),0) -> 6 | R73: =IF($CH73>0,VLOOKUP($CH73,'العاملين '!$A$3:$AR$260,18),0) -> 0 | S73: =IF($CH73>0,VLOOKUP($CH73,'العاملين '!$A$3:$AR$260,19),0) -> 0 | T73: =IF($CH73>0,VLOOKUP($CH73,'العاملين '!$A$3:$AR$260,20),0) -> 0 | U73: =IF($CH73>0,VLOOKUP($CH73,'العاملين '!$A$3:$AR$260,21),0) -> 0 | V73: =IF($CH73>0,VLOOKUP($CH73,'العاملين '!$A$3:$AR$260,22),0) -> 0 | W73: =IF($CH73>0,VLOOKUP($CH73,'العاملين '!$A$3:$AR$260,23),0) -> 0 | X73: =IF($CH73>0,VLOOKUP($CH73,'العاملين '!$A$3:$AR$260,24),0) -> 0 | Y73: =IF($CH73>0,VLOOKUP($CH73,'العاملين '!$A$3:$AR$260,26),0) -> 0 | AN73: =IF($CH73>0,VLOOKUP($CH73,'العاملين '!$A$3:$AR$260,25),0) -> 0 | AO73: =SUM(M73:AN73) -> 1701.41 | AP73: =IF(AO73>$AP$4,$AP$4,AO73) -> 1701.41 | AQ73: =AO73-AP73 -> 0 | AR73: =ROUND(($AP73)*15%,2) -> 255.21 | AS73: =ROUND(($AP73)*1%,2) -> 17.01 | AT73: =ROUND(($AP73)*3%,2) -> 51.04 | AU73: =SUM(AR73:AT73) -> 323.26 | AV73: =IF(B73>0,10,"") -> 10 | AW73: =IF($CH73>0,VLOOKUP($CH73,'العاملين '!$A$3:$AR$260,28),0) -> 0 | AX73: =SUM(AV73,AU73,AO73,G73,AW73) ->  | AY73: =IF($B73>0,ROUND(($B73)*15%,2)," ") ->  | AZ73: =IF($B73>0,ROUND(($B73)*1%,2)," ") ->  | BA73: =IF($B73>0,ROUND(($B73)*2%,2)," ") ->  | BC73: =IF($B73>0,ROUND(($B73)*10%,2)," ") ->  | BD73: =IF($B73>0,ROUND(($B73)*8%,2)," ") ->  | BE73: =IF($B73>0,ROUND(($B73)*3%,2)," ") ->  | BF73: =IF($B73>0,ROUND(($B73)*1%,2)," ") ->  | BG73: =AR73 -> 255.21 | BH73: 17.01 | BI73: =ROUND(($AP73)*10%,2) -> 170.14 | BJ73: =AT73 -> 51.04 | BK73: =AS73 -> 17.01 | BL73: =IF($CJ73=1,ROUND(($B73)*7%,2),IF($CJ73=2,VLOOKUP($CH73,'العاملين '!$A$3:$AS$260,44),0)) ->  | BM73: =IF($CJ73=1,0.5,IF($CJ73=2,VLOOKUP($CH73,'العاملين '!$A$3:$AS$260,45),0)) -> 0.5 | BN73: =IF($CJ73=1,4.5,IF($CJ73=2,VLOOKUP($CH73,'العاملين '!$A$3:$AS$260,46),0)) -> 4.5 | BO73: =IF($CH73>0,VLOOKUP($CH73,'العاملين '!$A$3:$AR$260,29),0) -> 0 | BP73: =IF($CJ73=1,0.2,IF($CJ73=2,VLOOKUP($CH73,'العاملين '!$A$3:$AU$260,47),0)) -> 0.2 | BQ73: =IF($CJ73=1,0.05,IF($CJ73=2,VLOOKUP($CH73,'العاملين '!$A$3:$AU$260,47),0)) -> 0.05 | BR73: =IF($CH73>0,VLOOKUP($CH73,'العاملين '!$A$3:$AR$260,30),0) -> 0 | BS73: =IF($CH73>0,VLOOKUP($CH73,'العاملين '!$A$3:$AR$260,31),0) -> 0 | BU73: =IF($CH73>0,VLOOKUP($CH73,'العاملين '!$A$3:$AR$260,33),0) -> 0 | BV73: =IF($CH73>0,VLOOKUP($CH73,'العاملين '!$A$3:$AR$260,34),0) -> 0 | BW73: =IF($CH73>0,VLOOKUP($CH73,'العاملين '!$A$3:$AR$260,35),0) -> 0 | BX73: =IF($CH73>0,VLOOKUP($CH73,'العاملين '!$A$3:$AR$260,36),0) -> 0 | BY73: =IF($CH73>0,VLOOKUP($CH73,'العاملين '!$A$3:$AR$260,37),0) -> 0 | BZ73: =IF($CH73>0,VLOOKUP($CH73,'العاملين '!$A$3:$AR$260,38),0) -> 1 | CA73: =IF($CH73>0,VLOOKUP($CH73,'العاملين '!$A$3:$AR$260,39),0) -> 0 | CB73: =IF($CH73>0,VLOOKUP($CH73,'العاملين '!$A$3:$AR$260,40),0) -> 14.95 | CC73: =IF($CH73>0,VLOOKUP($CH73,'العاملين '!$A$3:$AR$260,41),0) -> 0 | CD73: =CL73-CF73 ->  | CE73: =SUM(AY73:CD73) ->  | CF73: =FLOOR(CL73,0.05) ->  | CG73: =IF($CH73>0,VLOOKUP($CH73,'العاملين '!$A$3:$AR$260,2),0) -> محمد30 | CH73: 30 | CJ73: =IF($CH73>0,VLOOKUP($CH73,'العاملين '!$A$3:$AR$260,3),0) -> 1 | CK73: =IF($CH73>0,VLOOKUP($CH73,'العاملين '!$A$3:$AR$260,43),0) -> 0 | CL73: =AX73-SUM(AY73:CC73) -> 
A74: 2 | B74: =IF($CH74>0,VLOOKUP($CH74,'العاملين '!$A$3:$AR$260,8),0) -> خبير | H74: =IF($CH74>0,VLOOKUP($CH74,'العاملين '!$A$3:$AR$260,9),0) -> 537.56 | I74: =IF($CH74>0,VLOOKUP($CH74,'العاملين '!$A$3:$AR$260,10),0) -> 892.61 | J74: =IF($CH74>0,VLOOKUP($CH74,'العاملين '!$A$3:$AR$260,11),0) -> 0 | K74: =IF($CH74>0,VLOOKUP($CH74,'العاملين '!$A$3:$AR$260,12),0) -> 50.03 | L74: =IF($CH74>0,VLOOKUP($CH74,'العاملين '!$A$3:$AR$260,13),0) -> 50.53 | M74: 1530.73 | N74: =IF($CH74>0,VLOOKUP($CH74,'العاملين '!$A$3:$AR$260,14),0) -> 53.75 | O74: =IF($CH74>0,VLOOKUP($CH74,'العاملين '!$A$3:$AR$260,15),0) -> 0 | P74: =IF($CH74>0,VLOOKUP($CH74,'العاملين '!$A$3:$AR$260,16),0) -> 4 | Q74: =IF($CH74>0,VLOOKUP($CH74,'العاملين '!$A$3:$AR$260,17),0) -> 6 | R74: =IF($CH74>0,VLOOKUP($CH74,'العاملين '!$A$3:$AR$260,18),0) -> 0 | S74: =IF($CH74>0,VLOOKUP($CH74,'العاملين '!$A$3:$AR$260,19),0) -> 0 | T74: =IF($CH74>0,VLOOKUP($CH74,'العاملين '!$A$3:$AR$260,20),0) -> 0 | U74: =IF($CH74>0,VLOOKUP($CH74,'العاملين '!$A$3:$AR$260,21),0) -> 0 | V74: =IF($CH74>0,VLOOKUP($CH74,'العاملين '!$A$3:$AR$260,22),0) -> 0 | W74: =IF($CH74>0,VLOOKUP($CH74,'العاملين '!$A$3:$AR$260,23),0) -> 0 | X74: =IF($CH74>0,VLOOKUP($CH74,'العاملين '!$A$3:$AR$260,24),0) -> 0 | Y74: =IF($CH74>0,VLOOKUP($CH74,'العاملين '!$A$3:$AR$260,26),0) -> 0 | AN74: =IF($CH74>0,VLOOKUP($CH74,'العاملين '!$A$3:$AR$260,25),0) -> 0 | AO74: 1594.48 | AP74: 1594.48 | AQ74: 0 | AR74: 239.17 | AS74: 15.94 | AT74: 47.83 | AU74: 302.94 | AV74: 10 | AW74: =IF($CH74>0,VLOOKUP($CH74,'العاملين '!$A$3:$AR$260,28),0) -> 0 | BG74: 239.17 | BH74: 15.94 | BI74: 159.45 | BJ74: 47.83 | BK74: 15.94 | BL74: =IF($CJ74=1,ROUND(($B74)*7%,2),IF($CJ74=2,VLOOKUP($CH74,'العاملين '!$A$3:$AS$260,44),0)) ->  | BM74: =IF($CJ74=1,0.5,IF($CJ74=2,VLOOKUP($CH74,'العاملين '!$A$3:$AS$260,45),0)) -> 0.5 | BN74: =IF($CJ74=1,4.5,IF($CJ74=2,VLOOKUP($CH74,'العاملين '!$A$3:$AS$260,46),0)) -> 4.5 | BO74: =IF($CH74>0,VLOOKUP($CH74,'العاملين '!$A$3:$AR$260,29),0) -> 0 | BP74: =IF($CJ74=1,0.2,IF($CJ74=2,VLOOKUP($CH74,'العاملين '!$A$3:$AU$260,47),0)) -> 0.2 | BQ74: =IF($CJ74=1,0.05,IF($CJ74=2,VLOOKUP($CH74,'العاملين '!$A$3:$AU$260,47),0)) -> 0.05 | BR74: =IF($CH74>0,VLOOKUP($CH74,'العاملين '!$A$3:$AR$260,30),0) -> 0 | BS74: =IF($CH74>0,VLOOKUP($CH74,'العاملين '!$A$3:$AR$260,31),0) -> 0 | BU74: =IF($CH74>0,VLOOKUP($CH74,'العاملين '!$A$3:$AR$260,33),0) -> 0 | BV74: =IF($CH74>0,VLOOKUP($CH74,'العاملين '!$A$3:$AR$260,34),0) -> 0 | BW74: =IF($CH74>0,VLOOKUP($CH74,'العاملين '!$A$3:$AR$260,35),0) -> 0 | BX74: =IF($CH74>0,VLOOKUP($CH74,'العاملين '!$A$3:$AR$260,36),0) -> 0 | BY74: =IF($CH74>0,VLOOKUP($CH74,'العاملين '!$A$3:$AR$260,37),0) -> 0 | BZ74: =IF($CH74>0,VLOOKUP($CH74,'العاملين '!$A$3:$AR$260,38),0) -> 1 | CA74: =IF($CH74>0,VLOOKUP($CH74,'العاملين '!$A$3:$AR$260,39),0) -> 38.49 | CB74: =IF($CH74>0,VLOOKUP($CH74,'العاملين '!$A$3:$AR$260,40),0) -> 14.35 | CC74: =IF($CH74>0,VLOOKUP($CH74,'العاملين '!$A$3:$AR$260,41),0) -> 0 | CG74: =IF($CH74>0,VLOOKUP($CH74,'العاملين '!$A$3:$AR$260,2),0) -> محمد31 | CH74: 31 | CJ74: =IF($CH74>0,VLOOKUP($CH74,'العاملين '!$A$3:$AR$260,3),0) -> 1 | CK74: =IF($CH74>0,VLOOKUP($CH74,'العاملين '!$A$3:$AR$260,43),0) -> 0
A75: 3 | B75: =IF($CH75>0,VLOOKUP($CH75,'العاملين '!$A$3:$AR$260,8),0) -> خبير | H75: =IF($CH75>0,VLOOKUP($CH75,'العاملين '!$A$3:$AR$260,9),0) -> 498.56 | I75: =IF($CH75>0,VLOOKUP($CH75,'العاملين '!$A$3:$AR$260,10),0) -> 835.37 | J75: =IF($CH75>0,VLOOKUP($CH75,'العاملين '!$A$3:$AR$260,11),0) -> 0 | K75: =IF($CH75>0,VLOOKUP($CH75,'العاملين '!$A$3:$AR$260,12),0) -> 45.83 | L75: =IF($CH75>0,VLOOKUP($CH75,'العاملين '!$A$3:$AR$260,13),0) -> 46.33 | M75: 1426.09 | N75: =IF($CH75>0,VLOOKUP($CH75,'العاملين '!$A$3:$AR$260,14),0) -> 49.85 | O75: =IF($CH75>0,VLOOKUP($CH75,'العاملين '!$A$3:$AR$260,15),0) -> 0 | P75: =IF($CH75>0,VLOOKUP($CH75,'العاملين '!$A$3:$AR$260,16),0) -> 4 | Q75: =IF($CH75>0,VLOOKUP($CH75,'العاملين '!$A$3:$AR$260,17),0) -> 2 | R75: =IF($CH75>0,VLOOKUP($CH75,'العاملين '!$A$3:$AR$260,18),0) -> 0 | S75: =IF($CH75>0,VLOOKUP($CH75,'العاملين '!$A$3:$AR$260,19),0) -> 0 | T75: =IF($CH75>0,VLOOKUP($CH75,'العاملين '!$A$3:$AR$260,20),0) -> 0 | U75: =IF($CH75>0,VLOOKUP($CH75,'العاملين '!$A$3:$AR$260,21),0) -> 0 | V75: =IF($CH75>0,VLOOKUP($CH75,'العاملين '!$A$3:$AR$260,22),0) -> 0 | W75: =IF($CH75>0,VLOOKUP($CH75,'العاملين '!$A$3:$AR$260,23),0) -> 0 | X75: =IF($CH75>0,VLOOKUP($CH75,'العاملين '!$A$3:$AR$260,24),0) -> 0 | Y75: =IF($CH75>0,VLOOKUP($CH75,'العاملين '!$A$3:$AR$260,26),0) -> 0 | AN75: =IF($CH75>0,VLOOKUP($CH75,'العاملين '!$A$3:$AR$260,25),0) -> 0 | AO75: 1481.94 | AP75: 1481.94 | AQ75: 0 | AR75: 222.29 | AS75: 14.82 | AT75: 44.46 | AU75: 281.57 | AV75: 10 | AW75: =IF($CH75>0,VLOOKUP($CH75,'العاملين '!$A$3:$AR$260,28),0) -> 0 | BG75: 222.29 | BH75: 14.82 | BI75: 148.19 | BJ75: 44.46 | BK75: 14.82 | BL75: =IF($CJ75=1,ROUND(($B75)*7%,2),IF($CJ75=2,VLOOKUP($CH75,'العاملين '!$A$3:$AS$260,44),0)) ->  | BM75: =IF($CJ75=1,0.5,IF($CJ75=2,VLOOKUP($CH75,'العاملين '!$A$3:$AS$260,45),0)) -> 0.5 | BN75: =IF($CJ75=1,4.5,IF($CJ75=2,VLOOKUP($CH75,'العاملين '!$A$3:$AS$260,46),0)) -> 4.5 | BO75: =IF($CH75>0,VLOOKUP($CH75,'العاملين '!$A$3:$AR$260,29),0) -> 0 | BP75: =IF($CJ75=1,0.2,IF($CJ75=2,VLOOKUP($CH75,'العاملين '!$A$3:$AU$260,47),0)) -> 0.2 | BQ75: =IF($CJ75=1,0.05,IF($CJ75=2,VLOOKUP($CH75,'العاملين '!$A$3:$AU$260,47),0)) -> 0.05 | BR75: =IF($CH75>0,VLOOKUP($CH75,'العاملين '!$A$3:$AR$260,30),0) -> 0 | BS75: =IF($CH75>0,VLOOKUP($CH75,'العاملين '!$A$3:$AR$260,31),0) -> 0 | BU75: =IF($CH75>0,VLOOKUP($CH75,'العاملين '!$A$3:$AR$260,33),0) -> 0 | BV75: =IF($CH75>0,VLOOKUP($CH75,'العاملين '!$A$3:$AR$260,34),0) -> 0 | BW75: =IF($CH75>0,VLOOKUP($CH75,'العاملين '!$A$3:$AR$260,35),0) -> 0 | BX75: =IF($CH75>0,VLOOKUP($CH75,'العاملين '!$A$3:$AR$260,36),0) -> 0 | BY75: =IF($CH75>0,VLOOKUP($CH75,'العاملين '!$A$3:$AR$260,37),0) -> 0 | BZ75: =IF($CH75>0,VLOOKUP($CH75,'العاملين '!$A$3:$AR$260,38),0) -> 1 | CA75: =IF($CH75>0,VLOOKUP($CH75,'العاملين '!$A$3:$AR$260,39),0) -> 21.71 | CB75: =IF($CH75>0,VLOOKUP($CH75,'العاملين '!$A$3:$AR$260,40),0) -> 13.85 | CC75: =IF($CH75>0,VLOOKUP($CH75,'العاملين '!$A$3:$AR$260,41),0) -> 0 | CG75: =IF($CH75>0,VLOOKUP($CH75,'العاملين '!$A$3:$AR$260,2),0) -> محمد32 | CH75: 32 | CJ75: =IF($CH75>0,VLOOKUP($CH75,'العاملين '!$A$3:$AR$260,3),0) -> 1 | CK75: =IF($CH75>0,VLOOKUP($CH75,'العاملين '!$A$3:$AR$260,43),0) -> 0
A76: 4 | B76: =IF($CH76>0,VLOOKUP($CH76,'العاملين '!$A$3:$AR$260,8),0) -> خبير | H76: =IF($CH76>0,VLOOKUP($CH76,'العاملين '!$A$3:$AR$260,9),0) -> 566.52 | I76: =IF($CH76>0,VLOOKUP($CH76,'العاملين '!$A$3:$AR$260,10),0) -> 938.62 | J76: =IF($CH76>0,VLOOKUP($CH76,'العاملين '!$A$3:$AR$260,11),0) -> 0 | K76: =IF($CH76>0,VLOOKUP($CH76,'العاملين '!$A$3:$AR$260,12),0) -> 52.79 | L76: =IF($CH76>0,VLOOKUP($CH76,'العاملين '!$A$3:$AR$260,13),0) -> 53.29 | M76: 1611.22 | N76: =IF($CH76>0,VLOOKUP($CH76,'العاملين '!$A$3:$AR$260,14),0) -> 56.69 | O76: =IF($CH76>0,VLOOKUP($CH76,'العاملين '!$A$3:$AR$260,15),0) -> 0 | P76: =IF($CH76>0,VLOOKUP($CH76,'العاملين '!$A$3:$AR$260,16),0) -> 4 | Q76: =IF($CH76>0,VLOOKUP($CH76,'العاملين '!$A$3:$AR$260,17),0) -> 6 | R76: =IF($CH76>0,VLOOKUP($CH76,'العاملين '!$A$3:$AR$260,18),0) -> 0 | S76: =IF($CH76>0,VLOOKUP($CH76,'العاملين '!$A$3:$AR$260,19),0) -> 0 | T76: =IF($CH76>0,VLOOKUP($CH76,'العاملين '!$A$3:$AR$260,20),0) -> 0 | U76: =IF($CH76>0,VLOOKUP($CH76,'العاملين '!$A$3:$AR$260,21),0) -> 0 | V76: =IF($CH76>0,VLOOKUP($CH76,'العاملين '!$A$3:$AR$260,22),0) -> 0 | W76: =IF($CH76>0,VLOOKUP($CH76,'العاملين '!$A$3:$AR$260,23),0) -> 0 | X76: =IF($CH76>0,VLOOKUP($CH76,'العاملين '!$A$3:$AR$260,24),0) -> 0 | Y76: =IF($CH76>0,VLOOKUP($CH76,'العاملين '!$A$3:$AR$260,26),0) -> 0 | AN76: =IF($CH76>0,VLOOKUP($CH76,'العاملين '!$A$3:$AR$260,25),0) -> 0 | AO76: 1677.91 | AP76: 1677.91 | AQ76: 0 | AR76: 251.69 | AS76: 16.78 | AT76: 50.34 | AU76: 318.81 | AV76: 10 | AW76: =IF($CH76>0,VLOOKUP($CH76,'العاملين '!$A$3:$AR$260,28),0) -> 0 | BG76: 251.69 | BH76: 16.78 | BI76: 167.79 | BJ76: 50.34 | BK76: 16.78 | BL76: =IF($CJ76=1,ROUND(($B76)*7%,2),IF($CJ76=2,VLOOKUP($CH76,'العاملين '!$A$3:$AS$260,44),0)) ->  | BM76: =IF($CJ76=1,0.5,IF($CJ76=2,VLOOKUP($CH76,'العاملين '!$A$3:$AS$260,45),0)) -> 0.5 | BN76: =IF($CJ76=1,4.5,IF($CJ76=2,VLOOKUP($CH76,'العاملين '!$A$3:$AS$260,46),0)) -> 4.5 | BO76: =IF($CH76>0,VLOOKUP($CH76,'العاملين '!$A$3:$AR$260,29),0) -> 0 | BP76: =IF($CJ76=1,0.2,IF($CJ76=2,VLOOKUP($CH76,'العاملين '!$A$3:$AU$260,47),0)) -> 0.2 | BQ76: =IF($CJ76=1,0.05,IF($CJ76=2,VLOOKUP($CH76,'العاملين '!$A$3:$AU$260,47),0)) -> 0.05 | BR76: =IF($CH76>0,VLOOKUP($CH76,'العاملين '!$A$3:$AR$260,30),0) -> 0 | BS76: =IF($CH76>0,VLOOKUP($CH76,'العاملين '!$A$3:$AR$260,31),0) -> 0 | BU76: =IF($CH76>0,VLOOKUP($CH76,'العاملين '!$A$3:$AR$260,33),0) -> 0 | BV76: =IF($CH76>0,VLOOKUP($CH76,'العاملين '!$A$3:$AR$260,34),0) -> 0 | BW76: =IF($CH76>0,VLOOKUP($CH76,'العاملين '!$A$3:$AR$260,35),0) -> 0 | BX76: =IF($CH76>0,VLOOKUP($CH76,'العاملين '!$A$3:$AR$260,36),0) -> 0 | BY76: =IF($CH76>0,VLOOKUP($CH76,'العاملين '!$A$3:$AR$260,37),0) -> 0 | BZ76: =IF($CH76>0,VLOOKUP($CH76,'العاملين '!$A$3:$AR$260,38),0) -> 1 | CA76: =IF($CH76>0,VLOOKUP($CH76,'العاملين '!$A$3:$AR$260,39),0) -> 26.73 | CB76: =IF($CH76>0,VLOOKUP($CH76,'العاملين '!$A$3:$AR$260,40),0) -> 14.95 | CC76: =IF($CH76>0,VLOOKUP($CH76,'العاملين '!$A$3:$AR$260,41),0) -> 0 | CG76: =IF($CH76>0,VLOOKUP($CH76,'العاملين '!$A$3:$AR$260,2),0) -> محمد33 | CH76: 33 | CJ76: =IF($CH76>0,VLOOKUP($CH76,'العاملين '!$A$3:$AR$260,3),0) -> 1 | CK76: =IF($CH76>0,VLOOKUP($CH76,'العاملين '!$A$3:$AR$260,43),0) -> 0
A77: 5 | B77: =IF($CH77>0,VLOOKUP($CH77,'العاملين '!$A$3:$AR$260,8),0) -> خبير | H77: =IF($CH77>0,VLOOKUP($CH77,'العاملين '!$A$3:$AR$260,9),0) -> 514.52 | I77: =IF($CH77>0,VLOOKUP($CH77,'العاملين '!$A$3:$AR$260,10),0) -> 860.87 | J77: =IF($CH77>0,VLOOKUP($CH77,'العاملين '!$A$3:$AR$260,11),0) -> 0 | K77: =IF($CH77>0,VLOOKUP($CH77,'العاملين '!$A$3:$AR$260,12),0) -> 47.4 | L77: =IF($CH77>0,VLOOKUP($CH77,'العاملين '!$A$3:$AR$260,13),0) -> 47.9 | M77: 1470.69 | N77: =IF($CH77>0,VLOOKUP($CH77,'العاملين '!$A$3:$AR$260,14),0) -> 51.45 | O77: =IF($CH77>0,VLOOKUP($CH77,'العاملين '!$A$3:$AR$260,15),0) -> 0 | P77: =IF($CH77>0,VLOOKUP($CH77,'العاملين '!$A$3:$AR$260,16),0) -> 4 | Q77: =IF($CH77>0,VLOOKUP($CH77,'العاملين '!$A$3:$AR$260,17),0) -> 2 | R77: =IF($CH77>0,VLOOKUP($CH77,'العاملين '!$A$3:$AR$260,18),0) -> 0 | S77: =IF($CH77>0,VLOOKUP($CH77,'العاملين '!$A$3:$AR$260,19),0) -> 0 | T77: =IF($CH77>0,VLOOKUP($CH77,'العاملين '!$A$3:$AR$260,20),0) -> 0 | U77: =IF($CH77>0,VLOOKUP($CH77,'العاملين '!$A$3:$AR$260,21),0) -> 0 | V77: =IF($CH77>0,VLOOKUP($CH77,'العاملين '!$A$3:$AR$260,22),0) -> 0 | W77: =IF($CH77>0,VLOOKUP($CH77,'العاملين '!$A$3:$AR$260,23),0) -> 0 | X77: =IF($CH77>0,VLOOKUP($CH77,'العاملين '!$A$3:$AR$260,24),0) -> 0 | Y77: =IF($CH77>0,VLOOKUP($CH77,'العاملين '!$A$3:$AR$260,26),0) -> 0 | AN77: =IF($CH77>0,VLOOKUP($CH77,'العاملين '!$A$3:$AR$260,25),0) -> 0 | AO77: 1528.14 | AP77: 1528.14 | AQ77: 0 | AR77: 229.22 | AS77: 15.28 | AT77: 45.84 | AU77: 290.34 | AV77: 10 | AW77: =IF($CH77>0,VLOOKUP($CH77,'العاملين '!$A$3:$AR$260,28),0) -> 0 | BG77: 229.22 | BH77: 15.28 | BI77: 152.81 | BJ77: 45.84 | BK77: 15.28 | BL77: =IF($CJ77=1,ROUND(($B77)*7%,2),IF($CJ77=2,VLOOKUP($CH77,'العاملين '!$A$3:$AS$260,44),0)) ->  | BM77: =IF($CJ77=1,0.5,IF($CJ77=2,VLOOKUP($CH77,'العاملين '!$A$3:$AS$260,45),0)) -> 0.5 | BN77: =IF($CJ77=1,4.5,IF($CJ77=2,VLOOKUP($CH77,'العاملين '!$A$3:$AS$260,46),0)) -> 4.5 | BO77: =IF($CH77>0,VLOOKUP($CH77,'العاملين '!$A$3:$AR$260,29),0) -> 0 | BP77: =IF($CJ77=1,0.2,IF($CJ77=2,VLOOKUP($CH77,'العاملين '!$A$3:$AU$260,47),0)) -> 0.2 | BQ77: =IF($CJ77=1,0.05,IF($CJ77=2,VLOOKUP($CH77,'العاملين '!$A$3:$AU$260,47),0)) -> 0.05 | BR77: =IF($CH77>0,VLOOKUP($CH77,'العاملين '!$A$3:$AR$260,30),0) -> 0 | BS77: =IF($CH77>0,VLOOKUP($CH77,'العاملين '!$A$3:$AR$260,31),0) -> 0 | BU77: =IF($CH77>0,VLOOKUP($CH77,'العاملين '!$A$3:$AR$260,33),0) -> 0 | BV77: =IF($CH77>0,VLOOKUP($CH77,'العاملين '!$A$3:$AR$260,34),0) -> 0 | BW77: =IF($CH77>0,VLOOKUP($CH77,'العاملين '!$A$3:$AR$260,35),0) -> 0 | BX77: =IF($CH77>0,VLOOKUP($CH77,'العاملين '!$A$3:$AR$260,36),0) -> 0 | BY77: =IF($CH77>0,VLOOKUP($CH77,'العاملين '!$A$3:$AR$260,37),0) -> 0 | BZ77: =IF($CH77>0,VLOOKUP($CH77,'العاملين '!$A$3:$AR$260,38),0) -> 1 | CA77: =IF($CH77>0,VLOOKUP($CH77,'العاملين '!$A$3:$AR$260,39),0) -> 0 | CB77: =IF($CH77>0,VLOOKUP($CH77,'العاملين '!$A$3:$AR$260,40),0) -> 13.85 | CC77: =IF($CH77>0,VLOOKUP($CH77,'العاملين '!$A$3:$AR$260,41),0) -> 0 | CG77: =IF($CH77>0,VLOOKUP($CH77,'العاملين '!$A$3:$AR$260,2),0) -> محمد34 | CH77: 34 | CJ77: =IF($CH77>0,VLOOKUP($CH77,'العاملين '!$A$3:$AR$260,3),0) -> 1 | CK77: =IF($CH77>0,VLOOKUP($CH77,'العاملين '!$A$3:$AR$260,43),0) -> 0
A78: 6 | B78: =IF($CH78>0,VLOOKUP($CH78,'العاملين '!$A$3:$AR$260,8),0) -> خبير | H78: =IF($CH78>0,VLOOKUP($CH78,'العاملين '!$A$3:$AR$260,9),0) -> 498.56 | I78: =IF($CH78>0,VLOOKUP($CH78,'العاملين '!$A$3:$AR$260,10),0) -> 835.37 | J78: =IF($CH78>0,VLOOKUP($CH78,'العاملين '!$A$3:$AR$260,11),0) -> 0 | K78: =IF($CH78>0,VLOOKUP($CH78,'العاملين '!$A$3:$AR$260,12),0) -> 45.83 | L78: =IF($CH78>0,VLOOKUP($CH78,'العاملين '!$A$3:$AR$260,13),0) -> 46.33 | M78: 1426.09 | N78: =IF($CH78>0,VLOOKUP($CH78,'العاملين '!$A$3:$AR$260,14),0) -> 49.85 | O78: =IF($CH78>0,VLOOKUP($CH78,'العاملين '!$A$3:$AR$260,15),0) -> 0 | P78: =IF($CH78>0,VLOOKUP($CH78,'العاملين '!$A$3:$AR$260,16),0) -> 4 | Q78: =IF($CH78>0,VLOOKUP($CH78,'العاملين '!$A$3:$AR$260,17),0) -> 2 | R78: =IF($CH78>0,VLOOKUP($CH78,'العاملين '!$A$3:$AR$260,18),0) -> 0 | S78: =IF($CH78>0,VLOOKUP($CH78,'العاملين '!$A$3:$AR$260,19),0) -> 0 | T78: =IF($CH78>0,VLOOKUP($CH78,'العاملين '!$A$3:$AR$260,20),0) -> 0 | U78: =IF($CH78>0,VLOOKUP($CH78,'العاملين '!$A$3:$AR$260,21),0) -> 0 | V78: =IF($CH78>0,VLOOKUP($CH78,'العاملين '!$A$3:$AR$260,22),0) -> 0 | W78: =IF($CH78>0,VLOOKUP($CH78,'العاملين '!$A$3:$AR$260,23),0) -> 0 | X78: =IF($CH78>0,VLOOKUP($CH78,'العاملين '!$A$3:$AR$260,24),0) -> 0 | Y78: =IF($CH78>0,VLOOKUP($CH78,'العاملين '!$A$3:$AR$260,26),0) -> 0 | AN78: =IF($CH78>0,VLOOKUP($CH78,'العاملين '!$A$3:$AR$260,25),0) -> 0 | AO78: 1481.94 | AP78: 1481.94 | AQ78: 0 | AR78: 222.29 | AS78: 14.82 | AT78: 44.46 | AU78: 281.57 | AV78: 10 | AW78: =IF($CH78>0,VLOOKUP($CH78,'العاملين '!$A$3:$AR$260,28),0) -> 0 | BG78: 222.29 | BH78: 14.82 | BI78: 148.19 | BJ78: 44.46 | BK78: 14.82 | BL78: =IF($CJ78=1,ROUND(($B78)*7%,2),IF($CJ78=2,VLOOKUP($CH78,'العاملين '!$A$3:$AS$260,44),0)) ->  | BM78: =IF($CJ78=1,0.5,IF($CJ78=2,VLOOKUP($CH78,'العاملين '!$A$3:$AS$260,45),0)) -> 0.5 | BN78: =IF($CJ78=1,4.5,IF($CJ78=2,VLOOKUP($CH78,'العاملين '!$A$3:$AS$260,46),0)) -> 4.5 | BO78: =IF($CH78>0,VLOOKUP($CH78,'العاملين '!$A$3:$AR$260,29),0) -> 0 | BP78: =IF($CJ78=1,0.2,IF($CJ78=2,VLOOKUP($CH78,'العاملين '!$A$3:$AU$260,47),0)) -> 0.2 | BQ78: =IF($CJ78=1,0.05,IF($CJ78=2,VLOOKUP($CH78,'العاملين '!$A$3:$AU$260,47),0)) -> 0.05 | BR78: =IF($CH78>0,VLOOKUP($CH78,'العاملين '!$A$3:$AR$260,30),0) -> 0 | BS78: =IF($CH78>0,VLOOKUP($CH78,'العاملين '!$A$3:$AR$260,31),0) -> 0 | BU78: =IF($CH78>0,VLOOKUP($CH78,'العاملين '!$A$3:$AR$260,33),0) -> 0 | BV78: =IF($CH78>0,VLOOKUP($CH78,'العاملين '!$A$3:$AR$260,34),0) -> 0 | BW78: =IF($CH78>0,VLOOKUP($CH78,'العاملين '!$A$3:$AR$260,35),0) -> 0 | BX78: =IF($CH78>0,VLOOKUP($CH78,'العاملين '!$A$3:$AR$260,36),0) -> 0 | BY78: =IF($CH78>0,VLOOKUP($CH78,'العاملين '!$A$3:$AR$260,37),0) -> 0 | BZ78: =IF($CH78>0,VLOOKUP($CH78,'العاملين '!$A$3:$AR$260,38),0) -> 1 | CA78: =IF($CH78>0,VLOOKUP($CH78,'العاملين '!$A$3:$AR$260,39),0) -> 21.71 | CB78: =IF($CH78>0,VLOOKUP($CH78,'العاملين '!$A$3:$AR$260,40),0) -> 13.85 | CC78: =IF($CH78>0,VLOOKUP($CH78,'العاملين '!$A$3:$AR$260,41),0) -> 0 | CG78: =IF($CH78>0,VLOOKUP($CH78,'العاملين '!$A$3:$AR$260,2),0) -> محمد32 | CH78: 32 | CJ78: =IF($CH78>0,VLOOKUP($CH78,'العاملين '!$A$3:$AR$260,3),0) -> 1 | CK78: =IF($CH78>0,VLOOKUP($CH78,'العاملين '!$A$3:$AR$260,43),0) -> 0
A79: 7 | B79: =IF($CH79>0,VLOOKUP($CH79,'العاملين '!$A$3:$AR$260,8),0) -> خبير | C79: =IF($B79>0,ROUND(($B79)*15%,2)," ") ->  | D79: =IF($B79>0,ROUND(($B79)*1%,2)," ") ->  | E79: =IF($B79>0,ROUND(($B79)*2%,2)," ") ->  | F79: =IF($B79>0,ROUND(($B79)*3%,2)," ") ->  | G79: =IF($B79>0,SUM(B79:F79)," ") ->  | H79: =IF($CH79>0,VLOOKUP($CH79,'العاملين '!$A$3:$AR$260,9),0) -> 498.56 | I79: =IF($CH79>0,VLOOKUP($CH79,'العاملين '!$A$3:$AR$260,10),0) -> 835.37 | J79: =IF($CH79>0,VLOOKUP($CH79,'العاملين '!$A$3:$AR$260,11),0) -> 0 | K79: =IF($CH79>0,VLOOKUP($CH79,'العاملين '!$A$3:$AR$260,12),0) -> 45.83 | L79: =IF($CH79>0,VLOOKUP($CH79,'العاملين '!$A$3:$AR$260,13),0) -> 46.33 | M79: =IF($B79>0,SUM(H79:L79),0) -> 1426.09 | N79: =IF($CH79>0,VLOOKUP($CH79,'العاملين '!$A$3:$AR$260,14),0) -> 49.85 | O79: =IF($CH79>0,VLOOKUP($CH79,'العاملين '!$A$3:$AR$260,15),0) -> 0 | P79: =IF($CH79>0,VLOOKUP($CH79,'العاملين '!$A$3:$AR$260,16),0) -> 4 | Q79: =IF($CH79>0,VLOOKUP($CH79,'العاملين '!$A$3:$AR$260,17),0) -> 2 | R79: =IF($CH79>0,VLOOKUP($CH79,'العاملين '!$A$3:$AR$260,18),0) -> 0 | S79: =IF($CH79>0,VLOOKUP($CH79,'العاملين '!$A$3:$AR$260,19),0) -> 0 | T79: =IF($CH79>0,VLOOKUP($CH79,'العاملين '!$A$3:$AR$260,20),0) -> 0 | U79: =IF($CH79>0,VLOOKUP($CH79,'العاملين '!$A$3:$AR$260,21),0) -> 0 | V79: =IF($CH79>0,VLOOKUP($CH79,'العاملين '!$A$3:$AR$260,22),0) -> 0 | W79: =IF($CH79>0,VLOOKUP($CH79,'العاملين '!$A$3:$AR$260,23),0) -> 0 | X79: =IF($CH79>0,VLOOKUP($CH79,'العاملين '!$A$3:$AR$260,24),0) -> 0 | Y79: =IF($CH79>0,VLOOKUP($CH79,'العاملين '!$A$3:$AR$260,26),0) -> 0 | AN79: =IF($CH79>0,VLOOKUP($CH79,'العاملين '!$A$3:$AR$260,25),0) -> 0 | AO79: =SUM(M79:AN79) -> 1481.94 | AP79: =IF(AO79>$AP$4,$AP$4,AO79) -> 1481.94 | AQ79: =AO79-AP79 -> 0 | AR79: =ROUND(($AP79)*15%,2) -> 222.29 | AS79: =ROUND(($AP79)*1%,2) -> 14.82 | AT79: =ROUND(($AP79)*3%,2) -> 44.46 | AU79: =SUM(AR79:AT79) -> 281.57 | AV79: =IF(B79>0,10,"") -> 10 | AW79: =IF($CH79>0,VLOOKUP($CH79,'العاملين '!$A$3:$AR$260,28),0) -> 0 | AX79: =SUM(AV79,AU79,AO79,G79,AW79) ->  | AY79: =IF($B79>0,ROUND(($B79)*15%,2)," ") ->  | AZ79: =IF($B79>0,ROUND(($B79)*1%,2)," ") ->  | BA79: =IF($B79>0,ROUND(($B79)*2%,2)," ") ->  | BC79: =IF($B79>0,ROUND(($B79)*10%,2)," ") ->  | BD79: =IF($B79>0,ROUND(($B79)*8%,2)," ") ->  | BE79: =IF($B79>0,ROUND(($B79)*3%,2)," ") ->  | BF79: =IF($B79>0,ROUND(($B79)*1%,2)," ") ->  | BG79: =AR79 -> 222.29 | BH79: =AS79 -> 14.82 | BI79: =ROUND(($AP79)*10%,2) -> 148.19 | BJ79: =AT79 -> 44.46 | BK79: =AS79 -> 14.82 | BL79: =IF($CJ79=1,ROUND(($B79)*7%,2),IF($CJ79=2,VLOOKUP($CH79,'العاملين '!$A$3:$AS$260,44),0)) ->  | BM79: =IF($CJ79=1,0.5,IF($CJ79=2,VLOOKUP($CH79,'العاملين '!$A$3:$AS$260,45),0)) -> 0.5 | BN79: =IF($CJ79=1,4.5,IF($CJ79=2,VLOOKUP($CH79,'العاملين '!$A$3:$AS$260,46),0)) -> 4.5 | BO79: =IF($CH79>0,VLOOKUP($CH79,'العاملين '!$A$3:$AR$260,29),0) -> 0 | BP79: =IF($CJ79=1,0.2,IF($CJ79=2,VLOOKUP($CH79,'العاملين '!$A$3:$AU$260,47),0)) -> 0.2 | BQ79: =IF($CJ79=1,0.05,IF($CJ79=2,VLOOKUP($CH79,'العاملين '!$A$3:$AU$260,47),0)) -> 0.05 | BR79: =IF($CH79>0,VLOOKUP($CH79,'العاملين '!$A$3:$AR$260,30),0) -> 0 | BS79: =IF($CH79>0,VLOOKUP($CH79,'العاملين '!$A$3:$AR$260,31),0) -> 0 | BU79: =IF($CH79>0,VLOOKUP($CH79,'العاملين '!$A$3:$AR$260,33),0) -> 0 | BV79: =IF($CH79>0,VLOOKUP($CH79,'العاملين '!$A$3:$AR$260,34),0) -> 0 | BW79: =IF($CH79>0,VLOOKUP($CH79,'العاملين '!$A$3:$AR$260,35),0) -> 0 | BX79: =IF($CH79>0,VLOOKUP($CH79,'العاملين '!$A$3:$AR$260,36),0) -> 0 | BY79: =IF($CH79>0,VLOOKUP($CH79,'العاملين '!$A$3:$AR$260,37),0) -> 0 | BZ79: =IF($CH79>0,VLOOKUP($CH79,'العاملين '!$A$3:$AR$260,38),0) -> 1 | CA79: =IF($CH79>0,VLOOKUP($CH79,'العاملين '!$A$3:$AR$260,39),0) -> 21.71 | CB79: =IF($CH79>0,VLOOKUP($CH79,'العاملين '!$A$3:$AR$260,40),0) -> 13.85 | CC79: =IF($CH79>0,VLOOKUP($CH79,'العاملين '!$A$3:$AR$260,41),0) -> 0 | CD79: =CL79-CF79 ->  | CE79: =SUM(AY79:CD79) ->  | CF79: =FLOOR(CL79,0.05) ->  | CG79: =IF($CH79>0,VLOOKUP($CH79,'العاملين '!$A$3:$AR$260,2),0) -> محمد32 | CH79: 32 | CJ79: =IF($CH79>0,VLOOKUP($CH79,'العاملين '!$A$3:$AR$260,3),0) -> 1 | CK79: =IF($CH79>0,VLOOKUP($CH79,'العاملين '!$A$3:$AR$260,43),0) -> 0
A80: 8 | B80: =IF($CH80>0,VLOOKUP($CH80,'العاملين '!$A$3:$AR$260,8),0) -> خبير | C80: =IF($B80>0,ROUND(($B80)*15%,2)," ") ->  | D80: =IF($B80>0,ROUND(($B80)*1%,2)," ") ->  | E80: =IF($B80>0,ROUND(($B80)*2%,2)," ") ->  | F80: =IF($B80>0,ROUND(($B80)*3%,2)," ") ->  | G80: =IF($B80>0,SUM(B80:F80)," ") ->  | H80: =IF($CH80>0,VLOOKUP($CH80,'العاملين '!$A$3:$AR$260,9),0) -> 638.55 | I80: =IF($CH80>0,VLOOKUP($CH80,'العاملين '!$A$3:$AR$260,10),0) -> 1056.59 | J80: =IF($CH80>0,VLOOKUP($CH80,'العاملين '!$A$3:$AR$260,11),0) -> 0 | K80: =IF($CH80>0,VLOOKUP($CH80,'العاملين '!$A$3:$AR$260,12),0) -> 59.54 | L80: =IF($CH80>0,VLOOKUP($CH80,'العاملين '!$A$3:$AR$260,13),0) -> 60.04 | M80: =IF($B80>0,SUM(H80:L80),0) -> 1814.72 | N80: =IF($CH80>0,VLOOKUP($CH80,'العاملين '!$A$3:$AR$260,14),0) -> 63.85 | O80: =IF($CH80>0,VLOOKUP($CH80,'العاملين '!$A$3:$AR$260,15),0) -> 0 | P80: =IF($CH80>0,VLOOKUP($CH80,'العاملين '!$A$3:$AR$260,16),0) -> 4 | Q80: =IF($CH80>0,VLOOKUP($CH80,'العاملين '!$A$3:$AR$260,17),0) -> 6 | R80: =IF($CH80>0,VLOOKUP($CH80,'العاملين '!$A$3:$AR$260,18),0) -> 0 | S80: =IF($CH80>0,VLOOKUP($CH80,'العاملين '!$A$3:$AR$260,19),0) -> 0 | T80: =IF($CH80>0,VLOOKUP($CH80,'العاملين '!$A$3:$AR$260,20),0) -> 0 | U80: =IF($CH80>0,VLOOKUP($CH80,'العاملين '!$A$3:$AR$260,21),0) -> 0 | V80: =IF($CH80>0,VLOOKUP($CH80,'العاملين '!$A$3:$AR$260,22),0) -> 0 | W80: =IF($CH80>0,VLOOKUP($CH80,'العاملين '!$A$3:$AR$260,23),0) -> 0 | X80: =IF($CH80>0,VLOOKUP($CH80,'العاملين '!$A$3:$AR$260,24),0) -> 0 | Y80: =IF($CH80>0,VLOOKUP($CH80,'العاملين '!$A$3:$AR$260,26),0) -> 0 | AN80: =IF($CH80>0,VLOOKUP($CH80,'العاملين '!$A$3:$AR$260,25),0) -> 0 | AO80: =SUM(M80:AN80) -> 1888.57 | AP80: =IF(AO80>$AP$4,$AP$4,AO80) -> 1888.57 | AQ80: =AO80-AP80 -> 0 | AR80: =ROUND(($AP80)*15%,2) -> 283.29 | AS80: =ROUND(($AP80)*1%,2) -> 18.89 | AT80: =ROUND(($AP80)*3%,2) -> 56.66 | AU80: =SUM(AR80:AT80) -> 358.84 | AV80: =IF(B80>0,10,"") -> 10 | AW80: =IF($CH80>0,VLOOKUP($CH80,'العاملين '!$A$3:$AR$260,28),0) -> 0 | AX80: =SUM(AV80,AU80,AO80,G80,AW80) ->  | AY80: =IF($B80>0,ROUND(($B80)*15%,2)," ") ->  | AZ80: =IF($B80>0,ROUND(($B80)*1%,2)," ") ->  | BA80: =IF($B80>0,ROUND(($B80)*2%,2)," ") ->  | BC80: =IF($B80>0,ROUND(($B80)*10%,2)," ") ->  | BD80: =IF($B80>0,ROUND(($B80)*8%,2)," ") ->  | BE80: =IF($B80>0,ROUND(($B80)*3%,2)," ") ->  | BF80: =IF($B80>0,ROUND(($B80)*1%,2)," ") ->  | BG80: =AR80 -> 283.29 | BH80: =AS80 -> 18.89 | BI80: =ROUND(($AP80)*10%,2) -> 188.86 | BJ80: =AT80 -> 56.66 | BK80: =AS80 -> 18.89 | BL80: =IF($CJ80=1,ROUND(($B80)*7%,2),IF($CJ80=2,VLOOKUP($CH80,'العاملين '!$A$3:$AS$260,44),0)) ->  | BM80: =IF($CJ80=1,0.5,IF($CJ80=2,VLOOKUP($CH80,'العاملين '!$A$3:$AS$260,45),0)) -> 0.5 | BN80: =IF($CJ80=1,4.5,IF($CJ80=2,VLOOKUP($CH80,'العاملين '!$A$3:$AS$260,46),0)) -> 4.5 | BO80: =IF($CH80>0,VLOOKUP($CH80,'العاملين '!$A$3:$AR$260,29),0) -> 0 | BP80: =IF($CJ80=1,0.2,IF($CJ80=2,VLOOKUP($CH80,'العاملين '!$A$3:$AU$260,47),0)) -> 0.2 | BQ80: =IF($CJ80=1,0.05,IF($CJ80=2,VLOOKUP($CH80,'العاملين '!$A$3:$AU$260,47),0)) -> 0.05 | BR80: =IF($CH80>0,VLOOKUP($CH80,'العاملين '!$A$3:$AR$260,30),0) -> 0 | BS80: =IF($CH80>0,VLOOKUP($CH80,'العاملين '!$A$3:$AR$260,31),0) -> 0 | BU80: =IF($CH80>0,VLOOKUP($CH80,'العاملين '!$A$3:$AR$260,33),0) -> 0 | BV80: =IF($CH80>0,VLOOKUP($CH80,'العاملين '!$A$3:$AR$260,34),0) -> 0 | BW80: =IF($CH80>0,VLOOKUP($CH80,'العاملين '!$A$3:$AR$260,35),0) -> 0 | BX80: =IF($CH80>0,VLOOKUP($CH80,'العاملين '!$A$3:$AR$260,36),0) -> 0 | BY80: =IF($CH80>0,VLOOKUP($CH80,'العاملين '!$A$3:$AR$260,37),0) -> 0 | BZ80: =IF($CH80>0,VLOOKUP($CH80,'العاملين '!$A$3:$AR$260,38),0) -> 1 | CA80: =IF($CH80>0,VLOOKUP($CH80,'العاملين '!$A$3:$AR$260,39),0) -> 51.65 | CB80: =IF($CH80>0,VLOOKUP($CH80,'العاملين '!$A$3:$AR$260,40),0) -> 15 | CC80: =IF($CH80>0,VLOOKUP($CH80,'العاملين '!$A$3:$AR$260,41),0) -> 0 | CD80: =CL80-CF80 ->  | CE80: =SUM(AY80:CD80) ->  | CF80: =FLOOR(CL80,0.05) ->  | CG80: =IF($CH80>0,VLOOKUP($CH80,'العاملين '!$A$3:$AR$260,2),0) -> محمد28 | CH80: 28 | CJ80: =IF($CH80>0,VLOOKUP($CH80,'العاملين '!$A$3:$AR$260,3),0) -> 1 | CK80: =IF($CH80>0,VLOOKUP($CH80,'العاملين '!$A$3:$AR$260,43),0) -> 0
A81: 9 | B81: =IF($CH81>0,VLOOKUP($CH81,'العاملين '!$A$3:$AR$260,8),0) -> 0 | C81: =IF($B81>0,ROUND(($B81)*15%,2)," ") ->  | D81: =IF($B81>0,ROUND(($B81)*1%,2)," ") ->  | E81: =IF($B81>0,ROUND(($B81)*2%,2)," ") ->  | F81: =IF($B81>0,ROUND(($B81)*3%,2)," ") ->  | G81: =IF($B81>0,SUM(B81:F81)," ") ->  | H81: =IF($CH81>0,VLOOKUP($CH81,'العاملين '!$A$3:$AR$260,9),0) -> 0 | I81: =IF($CH81>0,VLOOKUP($CH81,'العاملين '!$A$3:$AR$260,10),0) -> 0 | J81: =IF($CH81>0,VLOOKUP($CH81,'العاملين '!$A$3:$AR$260,11),0) -> 0 | K81: =IF($CH81>0,VLOOKUP($CH81,'العاملين '!$A$3:$AR$260,12),0) -> 0 | L81: =IF($CH81>0,VLOOKUP($CH81,'العاملين '!$A$3:$AR$260,13),0) -> 0 | M81: =IF($B81>0,SUM(H81:L81),0) -> 0 | N81: =IF($CH81>0,VLOOKUP($CH81,'العاملين '!$A$3:$AR$260,14),0) -> 0 | O81: =IF($CH81>0,VLOOKUP($CH81,'العاملين '!$A$3:$AR$260,15),0) -> 0 | P81: =IF($CH81>0,VLOOKUP($CH81,'العاملين '!$A$3:$AR$260,16),0) -> 0 | Q81: =IF($CH81>0,VLOOKUP($CH81,'العاملين '!$A$3:$AR$260,17),0) -> 0 | R81: =IF($CH81>0,VLOOKUP($CH81,'العاملين '!$A$3:$AR$260,18),0) -> 0 | S81: =IF($CH81>0,VLOOKUP($CH81,'العاملين '!$A$3:$AR$260,19),0) -> 0 | T81: =IF($CH81>0,VLOOKUP($CH81,'العاملين '!$A$3:$AR$260,20),0) -> 0 | U81: =IF($CH81>0,VLOOKUP($CH81,'العاملين '!$A$3:$AR$260,21),0) -> 0 | V81: =IF($CH81>0,VLOOKUP($CH81,'العاملين '!$A$3:$AR$260,22),0) -> 0 | W81: =IF($CH81>0,VLOOKUP($CH81,'العاملين '!$A$3:$AR$260,23),0) -> 0 | X81: =IF($CH81>0,VLOOKUP($CH81,'العاملين '!$A$3:$AR$260,24),0) -> 0 | Y81: =IF($CH81>0,VLOOKUP($CH81,'العاملين '!$A$3:$AR$260,26),0) -> 0 | AN81: =IF($CH81>0,VLOOKUP($CH81,'العاملين '!$A$3:$AR$260,25),0) -> 0 | AO81: =SUM(M81:AN81) -> 0 | AP81: =IF(AO81>$AP$4,$AP$4,AO81) -> 0 | AQ81: =AO81-AP81 -> 0 | AR81: =ROUND(($AP81)*15%,2) -> 0 | AS81: =ROUND(($AP81)*1%,2) -> 0 | AT81: =ROUND(($AP81)*3%,2) -> 0 | AU81: =SUM(AR81:AT81) -> 0 | AV81: =IF(B81>0,10,"") ->  | AW81: =IF($CH81>0,VLOOKUP($CH81,'العاملين '!$A$3:$AR$260,28),0) -> 0 | AX81: =SUM(AV81,AU81,AO81,G81,AW81) -> 0 | AY81: =IF($B81>0,ROUND(($B81)*15%,2)," ") ->  | AZ81: =IF($B81>0,ROUND(($B81)*1%,2)," ") ->  | BA81: =IF($B81>0,ROUND(($B81)*2%,2)," ") ->  | BC81: =IF($B81>0,ROUND(($B81)*10%,2)," ") ->  | BD81: =IF($B81>0,ROUND(($B81)*8%,2)," ") ->  | BE81: =IF($B81>0,ROUND(($B81)*3%,2)," ") ->  | BF81: =IF($B81>0,ROUND(($B81)*1%,2)," ") ->  | BG81: =AR81 -> 0 | BH81: 0 | BI81: =ROUND(($AP81)*10%,2) -> 0 | BJ81: =AT81 -> 0 | BK81: =AS81 -> 0 | BL81: =IF($CJ81=1,ROUND(($B81)*7%,2),IF($CJ81=2,VLOOKUP($CH81,'العاملين '!$A$3:$AS$260,44),0)) -> 0 | BM81: =IF($CJ81=1,0.5,IF($CJ81=2,VLOOKUP($CH81,'العاملين '!$A$3:$AS$260,45),0)) -> 0 | BN81: =IF($CJ81=1,4.5,IF($CJ81=2,VLOOKUP($CH81,'العاملين '!$A$3:$AS$260,46),0)) -> 0 | BO81: =IF($CH81>0,VLOOKUP($CH81,'العاملين '!$A$3:$AR$260,29),0) -> 0 | BP81: =IF($CJ81=1,0.2,IF($CJ81=2,VLOOKUP($CH81,'العاملين '!$A$3:$AU$260,47),0)) -> 0 | BQ81: =IF($CJ81=1,0.05,IF($CJ81=2,VLOOKUP($CH81,'العاملين '!$A$3:$AU$260,47),0)) -> 0 | BR81: =IF($CH81>0,VLOOKUP($CH81,'العاملين '!$A$3:$AR$260,30),0) -> 0 | BS81: =IF($CH81>0,VLOOKUP($CH81,'العاملين '!$A$3:$AR$260,31),0) -> 0 | BU81: =IF($CH81>0,VLOOKUP($CH81,'العاملين '!$A$3:$AR$260,33),0) -> 0 | BV81: =IF($CH81>0,VLOOKUP($CH81,'العاملين '!$A$3:$AR$260,34),0) -> 0 | BW81: =IF($CH81>0,VLOOKUP($CH81,'العاملين '!$A$3:$AR$260,35),0) -> 0 | BX81: =IF($CH81>0,VLOOKUP($CH81,'العاملين '!$A$3:$AR$260,36),0) -> 0 | BY81: =IF($CH81>0,VLOOKUP($CH81,'العاملين '!$A$3:$AR$260,37),0) -> 0 | BZ81: =IF($CH81>0,VLOOKUP($CH81,'العاملين '!$A$3:$AR$260,38),0) -> 0 | CA81: =IF($CH81>0,VLOOKUP($CH81,'العاملين '!$A$3:$AR$260,39),0) -> 0 | CB81: =IF($CH81>0,VLOOKUP($CH81,'العاملين '!$A$3:$AR$260,40),0) -> 0 | CC81: =IF($CH81>0,VLOOKUP($CH81,'العاملين '!$A$3:$AR$260,41),0) -> 0 | CD81: =CL81-CF81 -> 0 | CE81: =SUM(AY81:CD81) -> 0 | CF81: =FLOOR(CL81,0.05) -> 0 | CG81: =IF($CH81>0,VLOOKUP($CH81,'العاملين '!$A$3:$AR$260,2),0) -> 0 | CH81: 0 | CJ81: =IF($CH81>0,VLOOKUP($CH81,'العاملين '!$A$3:$AR$260,3),0) -> 0 | CK81: =IF($CH81>0,VLOOKUP($CH81,'العاملين '!$A$3:$AR$260,43),0) -> 0 | CL81: 0
A82: 10 | B82: =IF($CH82>0,VLOOKUP($CH82,'العاملين '!$A$3:$AR$260,8),0) -> 0 | H82: =IF($CH82>0,VLOOKUP($CH82,'العاملين '!$A$3:$AR$260,9),0) -> 0 | I82: =IF($CH82>0,VLOOKUP($CH82,'العاملين '!$A$3:$AR$260,10),0) -> 0 | J82: =IF($CH82>0,VLOOKUP($CH82,'العاملين '!$A$3:$AR$260,11),0) -> 0 | K82: =IF($CH82>0,VLOOKUP($CH82,'العاملين '!$A$3:$AR$260,12),0) -> 0 | L82: =IF($CH82>0,VLOOKUP($CH82,'العاملين '!$A$3:$AR$260,13),0) -> 0 | M82: 0 | N82: =IF($CH82>0,VLOOKUP($CH82,'العاملين '!$A$3:$AR$260,14),0) -> 0 | O82: =IF($CH82>0,VLOOKUP($CH82,'العاملين '!$A$3:$AR$260,15),0) -> 0 | P82: =IF($CH82>0,VLOOKUP($CH82,'العاملين '!$A$3:$AR$260,16),0) -> 0 | Q82: =IF($CH82>0,VLOOKUP($CH82,'العاملين '!$A$3:$AR$260,17),0) -> 0 | R82: =IF($CH82>0,VLOOKUP($CH82,'العاملين '!$A$3:$AR$260,18),0) -> 0 | S82: =IF($CH82>0,VLOOKUP($CH82,'العاملين '!$A$3:$AR$260,19),0) -> 0 | T82: =IF($CH82>0,VLOOKUP($CH82,'العاملين '!$A$3:$AR$260,20),0) -> 0 | U82: =IF($CH82>0,VLOOKUP($CH82,'العاملين '!$A$3:$AR$260,21),0) -> 0 | V82: =IF($CH82>0,VLOOKUP($CH82,'العاملين '!$A$3:$AR$260,22),0) -> 0 | W82: =IF($CH82>0,VLOOKUP($CH82,'العاملين '!$A$3:$AR$260,23),0) -> 0 | X82: =IF($CH82>0,VLOOKUP($CH82,'العاملين '!$A$3:$AR$260,24),0) -> 0 | Y82: =IF($CH82>0,VLOOKUP($CH82,'العاملين '!$A$3:$AR$260,26),0) -> 0 | AN82: =IF($CH82>0,VLOOKUP($CH82,'العاملين '!$A$3:$AR$260,25),0) -> 0 | AO82: 0 | AP82: 0 | AQ82: 0 | AR82: 0 | AS82: 0 | AT82: 0 | AU82: 0 | AW82: =IF($CH82>0,VLOOKUP($CH82,'العاملين '!$A$3:$AR$260,28),0) -> 0 | AX82: 0 | BG82: 0 | BH82: 0 | BI82: 0 | BJ82: 0 | BK82: 0 | BL82: =IF($CJ82=1,ROUND(($B82)*7%,2),IF($CJ82=2,VLOOKUP($CH82,'العاملين '!$A$3:$AS$260,44),0)) -> 0 | BM82: =IF($CJ82=1,0.5,IF($CJ82=2,VLOOKUP($CH82,'العاملين '!$A$3:$AS$260,45),0)) -> 0 | BN82: =IF($CJ82=1,4.5,IF($CJ82=2,VLOOKUP($CH82,'العاملين '!$A$3:$AS$260,46),0)) -> 0 | BO82: =IF($CH82>0,VLOOKUP($CH82,'العاملين '!$A$3:$AR$260,29),0) -> 0 | BP82: =IF($CJ82=1,0.2,IF($CJ82=2,VLOOKUP($CH82,'العاملين '!$A$3:$AU$260,47),0)) -> 0 | BQ82: =IF($CJ82=1,0.05,IF($CJ82=2,VLOOKUP($CH82,'العاملين '!$A$3:$AU$260,47),0)) -> 0 | BR82: =IF($CH82>0,VLOOKUP($CH82,'العاملين '!$A$3:$AR$260,30),0) -> 0 | BS82: =IF($CH82>0,VLOOKUP($CH82,'العاملين '!$A$3:$AR$260,31),0) -> 0 | BU82: =IF($CH82>0,VLOOKUP($CH82,'العاملين '!$A$3:$AR$260,33),0) -> 0 | BV82: =IF($CH82>0,VLOOKUP($CH82,'العاملين '!$A$3:$AR$260,34),0) -> 0 | BW82: =IF($CH82>0,VLOOKUP($CH82,'العاملين '!$A$3:$AR$260,35),0) -> 0 | BX82: =IF($CH82>0,VLOOKUP($CH82,'العاملين '!$A$3:$AR$260,36),0) -> 0 | BY82: =IF($CH82>0,VLOOKUP($CH82,'العاملين '!$A$3:$AR$260,37),0) -> 0 | BZ82: =IF($CH82>0,VLOOKUP($CH82,'العاملين '!$A$3:$AR$260,38),0) -> 0 | CA82: =IF($CH82>0,VLOOKUP($CH82,'العاملين '!$A$3:$AR$260,39),0) -> 0 | CB82: =IF($CH82>0,VLOOKUP($CH82,'العاملين '!$A$3:$AR$260,40),0) -> 0 | CC82: =IF($CH82>0,VLOOKUP($CH82,'العاملين '!$A$3:$AR$260,41),0) -> 0 | CD82: 0 | CE82: 0 | CF82: 0 | CG82: =IF($CH82>0,VLOOKUP($CH82,'العاملين '!$A$3:$AR$260,2),0) -> 0 | CH82: 0 | CJ82: =IF($CH82>0,VLOOKUP($CH82,'العاملين '!$A$3:$AR$260,3),0) -> 0 | CK82: =IF($CH82>0,VLOOKUP($CH82,'العاملين '!$A$3:$AR$260,43),0) -> 0 | CL82: 0
A83: 11 | B83: =IF($CH83>0,VLOOKUP($CH83,'العاملين '!$A$3:$AR$260,8),0) -> 0 | H83: =IF($CH83>0,VLOOKUP($CH83,'العاملين '!$A$3:$AR$260,9),0) -> 0 | I83: =IF($CH83>0,VLOOKUP($CH83,'العاملين '!$A$3:$AR$260,10),0) -> 0 | J83: =IF($CH83>0,VLOOKUP($CH83,'العاملين '!$A$3:$AR$260,11),0) -> 0 | K83: =IF($CH83>0,VLOOKUP($CH83,'العاملين '!$A$3:$AR$260,12),0) -> 0 | L83: =IF($CH83>0,VLOOKUP($CH83,'العاملين '!$A$3:$AR$260,13),0) -> 0 | M83: 0 | N83: =IF($CH83>0,VLOOKUP($CH83,'العاملين '!$A$3:$AR$260,14),0) -> 0 | O83: =IF($CH83>0,VLOOKUP($CH83,'العاملين '!$A$3:$AR$260,15),0) -> 0 | P83: =IF($CH83>0,VLOOKUP($CH83,'العاملين '!$A$3:$AR$260,16),0) -> 0 | Q83: =IF($CH83>0,VLOOKUP($CH83,'العاملين '!$A$3:$AR$260,17),0) -> 0 | R83: =IF($CH83>0,VLOOKUP($CH83,'العاملين '!$A$3:$AR$260,18),0) -> 0 | S83: =IF($CH83>0,VLOOKUP($CH83,'العاملين '!$A$3:$AR$260,19),0) -> 0 | T83: =IF($CH83>0,VLOOKUP($CH83,'العاملين '!$A$3:$AR$260,20),0) -> 0 | U83: =IF($CH83>0,VLOOKUP($CH83,'العاملين '!$A$3:$AR$260,21),0) -> 0 | V83: =IF($CH83>0,VLOOKUP($CH83,'العاملين '!$A$3:$AR$260,22),0) -> 0 | W83: =IF($CH83>0,VLOOKUP($CH83,'العاملين '!$A$3:$AR$260,23),0) -> 0 | X83: =IF($CH83>0,VLOOKUP($CH83,'العاملين '!$A$3:$AR$260,24),0) -> 0 | Y83: =IF($CH83>0,VLOOKUP($CH83,'العاملين '!$A$3:$AR$260,26),0) -> 0 | AN83: =IF($CH83>0,VLOOKUP($CH83,'العاملين '!$A$3:$AR$260,25),0) -> 0 | AO83: 0 | AP83: 0 | AQ83: 0 | AR83: 0 | AS83: 0 | AT83: 0 | AU83: 0 | AW83: =IF($CH83>0,VLOOKUP($CH83,'العاملين '!$A$3:$AR$260,28),0) -> 0 | AX83: 0 | BG83: 0 | BH83: 0 | BI83: 0 | BJ83: 0 | BK83: 0 | BL83: =IF($CJ83=1,ROUND(($B83)*7%,2),IF($CJ83=2,VLOOKUP($CH83,'العاملين '!$A$3:$AS$260,44),0)) -> 0 | BM83: =IF($CJ83=1,0.5,IF($CJ83=2,VLOOKUP($CH83,'العاملين '!$A$3:$AS$260,45),0)) -> 0 | BN83: =IF($CJ83=1,4.5,IF($CJ83=2,VLOOKUP($CH83,'العاملين '!$A$3:$AS$260,46),0)) -> 0 | BO83: =IF($CH83>0,VLOOKUP($CH83,'العاملين '!$A$3:$AR$260,29),0) -> 0 | BP83: =IF($CJ83=1,0.2,IF($CJ83=2,VLOOKUP($CH83,'العاملين '!$A$3:$AU$260,47),0)) -> 0 | BQ83: =IF($CJ83=1,0.05,IF($CJ83=2,VLOOKUP($CH83,'العاملين '!$A$3:$AU$260,47),0)) -> 0 | BR83: =IF($CH83>0,VLOOKUP($CH83,'العاملين '!$A$3:$AR$260,30),0) -> 0 | BS83: =IF($CH83>0,VLOOKUP($CH83,'العاملين '!$A$3:$AR$260,31),0) -> 0 | BU83: =IF($CH83>0,VLOOKUP($CH83,'العاملين '!$A$3:$AR$260,33),0) -> 0 | BV83: =IF($CH83>0,VLOOKUP($CH83,'العاملين '!$A$3:$AR$260,34),0) -> 0 | BW83: =IF($CH83>0,VLOOKUP($CH83,'العاملين '!$A$3:$AR$260,35),0) -> 0 | BX83: =IF($CH83>0,VLOOKUP($CH83,'العاملين '!$A$3:$AR$260,36),0) -> 0 | BY83: =IF($CH83>0,VLOOKUP($CH83,'العاملين '!$A$3:$AR$260,37),0) -> 0 | BZ83: =IF($CH83>0,VLOOKUP($CH83,'العاملين '!$A$3:$AR$260,38),0) -> 0 | CA83: =IF($CH83>0,VLOOKUP($CH83,'العاملين '!$A$3:$AR$260,39),0) -> 0 | CB83: =IF($CH83>0,VLOOKUP($CH83,'العاملين '!$A$3:$AR$260,40),0) -> 0 | CC83: =IF($CH83>0,VLOOKUP($CH83,'العاملين '!$A$3:$AR$260,41),0) -> 0 | CD83: 0 | CE83: 0 | CF83: 0 | CG83: =IF($CH83>0,VLOOKUP($CH83,'العاملين '!$A$3:$AR$260,2),0) -> 0 | CH83: 0 | CJ83: =IF($CH83>0,VLOOKUP($CH83,'العاملين '!$A$3:$AR$260,3),0) -> 0 | CK83: =IF($CH83>0,VLOOKUP($CH83,'العاملين '!$A$3:$AR$260,43),0) -> 0 | CL83: 0
A84: 12 | B84: =IF($CH84>0,VLOOKUP($CH84,'العاملين '!$A$3:$AR$260,8),0) -> 0 | H84: =IF($CH84>0,VLOOKUP($CH84,'العاملين '!$A$3:$AR$260,9),0) -> 0 | I84: =IF($CH84>0,VLOOKUP($CH84,'العاملين '!$A$3:$AR$260,10),0) -> 0 | J84: =IF($CH84>0,VLOOKUP($CH84,'العاملين '!$A$3:$AR$260,11),0) -> 0 | K84: =IF($CH84>0,VLOOKUP($CH84,'العاملين '!$A$3:$AR$260,12),0) -> 0 | L84: =IF($CH84>0,VLOOKUP($CH84,'العاملين '!$A$3:$AR$260,13),0) -> 0 | M84: 0 | N84: =IF($CH84>0,VLOOKUP($CH84,'العاملين '!$A$3:$AR$260,14),0) -> 0 | O84: =IF($CH84>0,VLOOKUP($CH84,'العاملين '!$A$3:$AR$260,15),0) -> 0 | P84: =IF($CH84>0,VLOOKUP($CH84,'العاملين '!$A$3:$AR$260,16),0) -> 0 | Q84: =IF($CH84>0,VLOOKUP($CH84,'العاملين '!$A$3:$AR$260,17),0) -> 0 | R84: =IF($CH84>0,VLOOKUP($CH84,'العاملين '!$A$3:$AR$260,18),0) -> 0 | S84: =IF($CH84>0,VLOOKUP($CH84,'العاملين '!$A$3:$AR$260,19),0) -> 0 | T84: =IF($CH84>0,VLOOKUP($CH84,'العاملين '!$A$3:$AR$260,20),0) -> 0 | U84: =IF($CH84>0,VLOOKUP($CH84,'العاملين '!$A$3:$AR$260,21),0) -> 0 | V84: =IF($CH84>0,VLOOKUP($CH84,'العاملين '!$A$3:$AR$260,22),0) -> 0 | W84: =IF($CH84>0,VLOOKUP($CH84,'العاملين '!$A$3:$AR$260,23),0) -> 0 | X84: =IF($CH84>0,VLOOKUP($CH84,'العاملين '!$A$3:$AR$260,24),0) -> 0 | Y84: =IF($CH84>0,VLOOKUP($CH84,'العاملين '!$A$3:$AR$260,26),0) -> 0 | AN84: =IF($CH84>0,VLOOKUP($CH84,'العاملين '!$A$3:$AR$260,25),0) -> 0 | AO84: 0 | AP84: 0 | AQ84: 0 | AR84: 0 | AS84: 0 | AT84: 0 | AU84: 0 | AW84: =IF($CH84>0,VLOOKUP($CH84,'العاملين '!$A$3:$AR$260,28),0) -> 0 | AX84: 0 | BG84: 0 | BH84: 0 | BI84: 0 | BJ84: 0 | BK84: 0 | BL84: =IF($CJ84=1,ROUND(($B84)*7%,2),IF($CJ84=2,VLOOKUP($CH84,'العاملين '!$A$3:$AS$260,44),0)) -> 0 | BM84: =IF($CJ84=1,0.5,IF($CJ84=2,VLOOKUP($CH84,'العاملين '!$A$3:$AS$260,45),0)) -> 0 | BN84: =IF($CJ84=1,4.5,IF($CJ84=2,VLOOKUP($CH84,'العاملين '!$A$3:$AS$260,46),0)) -> 0 | BO84: =IF($CH84>0,VLOOKUP($CH84,'العاملين '!$A$3:$AR$260,29),0) -> 0 | BP84: =IF($CJ84=1,0.2,IF($CJ84=2,VLOOKUP($CH84,'العاملين '!$A$3:$AU$260,47),0)) -> 0 | BQ84: =IF($CJ84=1,0.05,IF($CJ84=2,VLOOKUP($CH84,'العاملين '!$A$3:$AU$260,47),0)) -> 0 | BR84: =IF($CH84>0,VLOOKUP($CH84,'العاملين '!$A$3:$AR$260,30),0) -> 0 | BS84: =IF($CH84>0,VLOOKUP($CH84,'العاملين '!$A$3:$AR$260,31),0) -> 0 | BU84: =IF($CH84>0,VLOOKUP($CH84,'العاملين '!$A$3:$AR$260,33),0) -> 0 | BV84: =IF($CH84>0,VLOOKUP($CH84,'العاملين '!$A$3:$AR$260,34),0) -> 0 | BW84: =IF($CH84>0,VLOOKUP($CH84,'العاملين '!$A$3:$AR$260,35),0) -> 0 | BX84: =IF($CH84>0,VLOOKUP($CH84,'العاملين '!$A$3:$AR$260,36),0) -> 0 | BY84: =IF($CH84>0,VLOOKUP($CH84,'العاملين '!$A$3:$AR$260,37),0) -> 0 | BZ84: =IF($CH84>0,VLOOKUP($CH84,'العاملين '!$A$3:$AR$260,38),0) -> 0 | CA84: =IF($CH84>0,VLOOKUP($CH84,'العاملين '!$A$3:$AR$260,39),0) -> 0 | CB84: =IF($CH84>0,VLOOKUP($CH84,'العاملين '!$A$3:$AR$260,40),0) -> 0 | CC84: =IF($CH84>0,VLOOKUP($CH84,'العاملين '!$A$3:$AR$260,41),0) -> 0 | CD84: 0 | CE84: 0 | CF84: 0 | CG84: =IF($CH84>0,VLOOKUP($CH84,'العاملين '!$A$3:$AR$260,2),0) -> 0 | CH84: 0 | CJ84: =IF($CH84>0,VLOOKUP($CH84,'العاملين '!$A$3:$AR$260,3),0) -> 0 | CK84: =IF($CH84>0,VLOOKUP($CH84,'العاملين '!$A$3:$AR$260,43),0) -> 0 | CL84: 0
A85: 13 | B85: =IF($CH85>0,VLOOKUP($CH85,'العاملين '!$A$3:$AR$260,8),0) -> 0 | H85: =IF($CH85>0,VLOOKUP($CH85,'العاملين '!$A$3:$AR$260,9),0) -> 0 | I85: =IF($CH85>0,VLOOKUP($CH85,'العاملين '!$A$3:$AR$260,10),0) -> 0 | J85: =IF($CH85>0,VLOOKUP($CH85,'العاملين '!$A$3:$AR$260,11),0) -> 0 | K85: =IF($CH85>0,VLOOKUP($CH85,'العاملين '!$A$3:$AR$260,12),0) -> 0 | L85: =IF($CH85>0,VLOOKUP($CH85,'العاملين '!$A$3:$AR$260,13),0) -> 0 | M85: 0 | N85: =IF($CH85>0,VLOOKUP($CH85,'العاملين '!$A$3:$AR$260,14),0) -> 0 | O85: =IF($CH85>0,VLOOKUP($CH85,'العاملين '!$A$3:$AR$260,15),0) -> 0 | P85: =IF($CH85>0,VLOOKUP($CH85,'العاملين '!$A$3:$AR$260,16),0) -> 0 | Q85: =IF($CH85>0,VLOOKUP($CH85,'العاملين '!$A$3:$AR$260,17),0) -> 0 | R85: =IF($CH85>0,VLOOKUP($CH85,'العاملين '!$A$3:$AR$260,18),0) -> 0 | S85: =IF($CH85>0,VLOOKUP($CH85,'العاملين '!$A$3:$AR$260,19),0) -> 0 | T85: =IF($CH85>0,VLOOKUP($CH85,'العاملين '!$A$3:$AR$260,20),0) -> 0 | U85: =IF($CH85>0,VLOOKUP($CH85,'العاملين '!$A$3:$AR$260,21),0) -> 0 | V85: =IF($CH85>0,VLOOKUP($CH85,'العاملين '!$A$3:$AR$260,22),0) -> 0 | W85: =IF($CH85>0,VLOOKUP($CH85,'العاملين '!$A$3:$AR$260,23),0) -> 0 | X85: =IF($CH85>0,VLOOKUP($CH85,'العاملين '!$A$3:$AR$260,24),0) -> 0 | Y85: =IF($CH85>0,VLOOKUP($CH85,'العاملين '!$A$3:$AR$260,26),0) -> 0 | AN85: =IF($CH85>0,VLOOKUP($CH85,'العاملين '!$A$3:$AR$260,25),0) -> 0 | AO85: 0 | AP85: 0 | AQ85: 0 | AR85: 0 | AS85: 0 | AT85: 0 | AU85: 0 | AW85: =IF($CH85>0,VLOOKUP($CH85,'العاملين '!$A$3:$AR$260,28),0) -> 0 | AX85: 0 | BG85: 0 | BH85: 0 | BI85: 0 | BJ85: 0 | BK85: 0 | BL85: =IF($CJ85=1,ROUND(($B85)*7%,2),IF($CJ85=2,VLOOKUP($CH85,'العاملين '!$A$3:$AS$260,44),0)) -> 0 | BM85: =IF($CJ85=1,0.5,IF($CJ85=2,VLOOKUP($CH85,'العاملين '!$A$3:$AS$260,45),0)) -> 0 | BN85: =IF($CJ85=1,4.5,IF($CJ85=2,VLOOKUP($CH85,'العاملين '!$A$3:$AS$260,46),0)) -> 0 | BO85: =IF($CH85>0,VLOOKUP($CH85,'العاملين '!$A$3:$AR$260,29),0) -> 0 | BP85: =IF($CJ85=1,0.2,IF($CJ85=2,VLOOKUP($CH85,'العاملين '!$A$3:$AU$260,47),0)) -> 0 | BQ85: =IF($CJ85=1,0.05,IF($CJ85=2,VLOOKUP($CH85,'العاملين '!$A$3:$AU$260,47),0)) -> 0 | BR85: =IF($CH85>0,VLOOKUP($CH85,'العاملين '!$A$3:$AR$260,30),0) -> 0 | BS85: =IF($CH85>0,VLOOKUP($CH85,'العاملين '!$A$3:$AR$260,31),0) -> 0 | BU85: =IF($CH85>0,VLOOKUP($CH85,'العاملين '!$A$3:$AR$260,33),0) -> 0 | BV85: =IF($CH85>0,VLOOKUP($CH85,'العاملين '!$A$3:$AR$260,34),0) -> 0 | BW85: =IF($CH85>0,VLOOKUP($CH85,'العاملين '!$A$3:$AR$260,35),0) -> 0 | BX85: =IF($CH85>0,VLOOKUP($CH85,'العاملين '!$A$3:$AR$260,36),0) -> 0 | BY85: =IF($CH85>0,VLOOKUP($CH85,'العاملين '!$A$3:$AR$260,37),0) -> 0 | BZ85: =IF($CH85>0,VLOOKUP($CH85,'العاملين '!$A$3:$AR$260,38),0) -> 0 | CA85: =IF($CH85>0,VLOOKUP($CH85,'العاملين '!$A$3:$AR$260,39),0) -> 0 | CB85: =IF($CH85>0,VLOOKUP($CH85,'العاملين '!$A$3:$AR$260,40),0) -> 0 | CC85: =IF($CH85>0,VLOOKUP($CH85,'العاملين '!$A$3:$AR$260,41),0) -> 0 | CD85: 0 | CE85: 0 | CF85: 0 | CG85: =IF($CH85>0,VLOOKUP($CH85,'العاملين '!$A$3:$AR$260,2),0) -> 0 | CH85: 0 | CJ85: =IF($CH85>0,VLOOKUP($CH85,'العاملين '!$A$3:$AR$260,3),0) -> 0 | CK85: =IF($CH85>0,VLOOKUP($CH85,'العاملين '!$A$3:$AR$260,43),0) -> 0 | CL85: 0
